Workbook

Sheet Deckblatt

Sheet Impressum
F1: Grundsicherung für Arbeitsuchende (SGBII)
A4: Impressum
A7: Produktlinie/Reihe: | C7: Tabellen
A9: Titel: | C9: Kinder in Bedarfsgemeinschaften (Monatszahlen)
A11: Region: | C11: Deutschland, West/Ost, Länder und Kreise
A13: Berichtsmonat: | C13: 2018-12-01
A15: Erstellungsdatum: | C15: 2019-04-23
A17: Periodizität: | C17: halbjährlich
A19: Hinweise:
A21: Nächster Veröffentlichungstermin:
C22: 2019-10-21
A24: Herausgeberin: | C24: Bundesagentur für Arbeit
C25: Statistik
A27: Rückfragen an: | C27: Zentraler Statistik-Service
C28: Regensburger Straße 104
C29: 90478 Nürnberg
A30: E-Mail: | C30: Zentraler-Statistik-Service@arbeitsagentur.de
A31: Hotline: | C31: 0911/179-3632
A32: Fax: | C32: 0911/179-1131
A35: Weiterführende statistische Informationen
A37: Internet: | C37: http://statistik.arbeitsagentur.de
C38: Register: "Statistik nach Themen"
C39: http://statistik.arbeitsagentur.de/Navigation/Statistik/Statistik-nach-Themen/Statistik-nach-Themen-Nav.html
A41: Zitierhinweis: | C41: Statistik der Bundesagentur für Arbeit
C42: Tabellen, Kinder in Bedarfsgemeinschaften (Monatszahlen), Nürnberg, April 2019
A44: Nutzungsbedingungen: | C44: © Statistik der Bundesagentur für Arbeit
C45: Sie können Informationen speichern, (auch auszugsweise) mit Quellen-
C46: angabe weitergeben, vervielfältigen und verbreiten. Die Inhalte dürfen
C47: nicht verändert oder verfälscht werden. Eigene Berechnungen sind
C48: erlaubt, jedoch als solche kenntlich zu machen.
C49: Im Falle einer Zugänglichmachung im Internet soll dies in Form einer
C50: Verlinkung auf die Homepage der Statistik der Bundesagentur für Arbeit
C51: erfolgen.
C52: Die Nutzung der Inhalte für gewerbliche Zwecke, ausgenommen Presse,
C53: Rundfunk und Fernsehen und wissenschaftliche Publikationen, bedarf
C54: der Genehmigung durch die Statistik der Bundesagentur für Arbeit.

Sheet Inhalt
F1: Grundsicherung für Arbeitsuchende (SGBII)
A5: Inhaltsverzeichnis
A10: 1. Einführung | F10: 1
A13: 2. Kinder in Bedarfsgemeinschaften
A15: 2.1 Bestand der Kinder in Bedarfsgemeinschaften nach Strukturmerkmalen und Vergleichsmonaten | F15: 2.1
A16: 2.2 Bestand Kinder unter 18 Jahren in Bedarfsgemeinschaften nach ausgewählten Altersklassen | F16: 2.2
A17: 2.3 Bestand an Kindern nach Alter und BG-Typ | F17: 2.3
A20: 3. Bedarfsgemeinschaften mit Kindern
A22: 3.1 Bestand Bedarfsgemeinschaften (BG) mit Kindern unter 18 Jahren nach BG-Typ | F22: 3.1
A23: 3.2 Bedarfsgemeinschaften (BG) mit Kindern nach Anzahl der Kinder, BG-Typ | F23: 3.2
B24: und ausgewählten Merkmalen
A25: 3.3 Durchschnittliches Haushaltsbudget von Regelleistungsbedarfsgemeinschaften (RL-BG) | F25: 3.3
B26: mit Kindern unter 18 Jahren nach BG-Typ pro RL-BG in Euro
A29: 4. SGB II-Hilfequoten
A31: 4.1 SGB II-Hilfequote der leistungsberechtigten Kinder unter 18 Jahren in Bedarfsgemeinschaften | F31: 4.1
A32: 4.2 SGB II-Hilfequote der leistungsberechtigten Kinder unter 3 Jahren in Bedarfsgemeinschaften | F32: 4.2
A35: 5. Anteil minderjähriger Kinder in Bedarfsgemeinschaften an der Bevölkerung | F35: 5
A38: Methodische Hinweise 1
A40: Methodische Hinweise 2
A42: Methodische Hinweise 3
A44: Statistik Infoseite
A47: (über das Statistik-Symbol am linken oberen Rand gelangen Sie von jeder Seite auf das Inhaltsverzeichnis zurück)

Sheet 1
F1: Grundsicherung für Arbeitsuchende nach dem SGB II
A4: 1. Einführung
A6: In der vorliegenden Publikation finden Sie Zahlen und Strukturdaten zu den Kindern und Jugendlichen in der Grundsicherung nach dem SGB II. Je nach Fragestellung gibt es unterschiedliche Definitionen des Begriffs "Kind". Grundlegend kann man zwei Ansätze unterscheiden: "Kinder" können definiert werden als Personen in einem frühen Lebensalter und/oder als Personen in einer bestimmten Stellung in einem Haushalt oder einer Bedarfsgemeinschaft (BG). Beide Abgrenzungen finden sich im SGB II.
A12: Kinder nach dem SGB VIII
A13: Im Kinder- und Jugendhilfegesetz gelten alle Bestimmungen, die sich auf die Annahme einer Person als Kind beziehen, nur für Personen, die das 18. Lebensjahr noch nicht vollendet haben (§ 7 Abs.1 (1) SGB VIII). Im Sinne des Jugendschutzgesetzes unterteilen sich diese in Kinder (Personen, die noch nicht 14 Jahre alt sind) und Jugendliche (Personen im Alter von 14 bis unter 18 Jahren) (§ 1 Jugendschutzgesetz).
A17: Im Dezember 2018 lebten 1.961.052 Personen unter 18 Jahren in Bedarfsgemeinschaften - darunter 1.606.155 Kinder unter 14 Jahren.
A20: Kinder nach dem SGB II
A21: In der Grundsicherung für Arbeitsuchende wird leistungsrechtlich der Haushaltskontext betrachtet, so dass Kinder (bis unter 25 Jahren) grundsätzlich anhand ihrer Stellung in der Bedarfsgemeinschaft definiert werden. Statistisch können minderjährige und volljährige Kinder nach verschiedenen Altersgrenzen differenziert werden. Kinder unter 15 Jahren gelten als nicht erwerbsfähig.
A25: Im Dezember 2018 lebten 1.699.413 Kinder unter 15 Jahren in Bedarfsgemeinschaften.
A27: Kinder in Bedarfsgemeinschaften
A28: Zu einer Bedarfsgemeinschaft gehören grundsätzlich alle erwerbsfähigen Leistungsberechtigten mit deren Ehegatten/Partnern und unverheirateten Kindern, „wenn sie das 25. Lebensjahr noch nicht vollendet haben, soweit sie die Leistungen zur Sicherung ihres Lebensunterhaltes nicht aus eigenem Einkommen oder Vermögen beschaffen können“ (§ 7 Abs. 3 Nr. 4 SGB II).
A32: Im Dezember 2018 lebten 2.148.824 unverheiratete Kinder unter 25 Jahren, die Ihren Lebensunterhalt nicht aus eigenem Einkommen oder Vermögen beschaffen konnten, in Bedarfsgemeinschaften.
A34: Zur Typisierung von Bedarfsgemeinschaften werden nur die Informationen über minderjährige, unverheiratete Kinder herangezogen. Volljährige Kinder bis zur Vollendung des 25. Lebensjahres werden bei der Typisierung nicht berücksichtigt, was bedeutet, dass z.B. eine Bedarfsgemeinschaft mit zwei Ehegatten und einem 20jährigen Sohn als Paar ohne Kinder geführt wird. Verheiratete minderjährige Personen oder Personen unter 18 Jahren mit Kind und Partner bilden eigene Bedarfsgemeinschaften, in denen sie selbst nicht als Kind gezählt werden.
A39: Im Dezember 2018 lebten 1.952.738 minderjährige unverheiratete Kinder unter 18 Jahren in Bedarfsgemeinschaften.
A40: Bedarfsgemeinschaften mit minderjährigen Kindern können nach alleinerziehenden BG und Partner-BG mit Kindern differenziert werden.
A42: Im Dezember 2018 gab es 1.022.557 Bedarfsgemeinschaften mit Kindern (34% aller BG) - 539.781 waren Alleinerziehende-BG und 479.664 Partner-BG mit Kindern.
A45: Regelbedarfssätze von (minderjährigen und unverheirateten) Kindern und Jugendlichen unter 25 Jahren
A46: (nach § 22 (2) Abs 2 Nr.1 und § 23 (1) SGB II); Stand: 01.01.2018
A47: Regelbedarfsstufe 3 | B47: (Volljährige von 18 bis unter 25 Jahre) | D47: 332 Euro
A48: Regelbedarfsstufe 4 | B48: (Jugendliche von 14 bis unter 18 Jahre): | D48: 316 Euro
A49: Regelbedarfsstufe 5 | B49: (Kinder von 6 bis unter 14 Jahre): | D49: 296 Euro
A50: Regelbedarfsstufe 6 | B50: (Kinder von 0 bis unter 6 Jahre): | D50: 240 Euro
A51: Im Dezember 2018 gab es 732.253 Kinder unter 6 Jahren, 873.902 im Alter von 6 bis unter 14 Jahren, 346.583 Jugendliche von 14 bis unter 18 Jahren und 196.086 volljährige Personen von 18 bis unter 25 Jahren, die noch bei den Eltern lebten.
A55: Kinder mit bedarfsdeckendem Einkommen
A56: Es gibt Personen innerhalb von Bedarfsgemeinschaften, die individuell keine Leistungen beziehen, jedoch als Personen einer Bedarfsgemeinschaft gezählt werden. Dabei handelt es sich vor allem um Kinder (bis zum 25. Lebensjahr), die in der Bedarfsgemeinschaft der Eltern leben und deren Einkommen den eigenen Bedarf übersteigt. Nach den Bestimmungen des SGB II verbleibt das Einkommen eines Kindes (z.B. Unterhaltszahlungen oder Einkommen aus Erwerbstätigkeit) beim Kind und muss nicht zur Bedarfsdeckung der übrigen Mitglieder der Bedarfsgemeinschaft eingesetzt werden (Ausnahme: Kindergeld). Die Kinder mit ausreichendem Einkommen haben daher keinen individuellen Leistungsanspruch im SGB II.
A62: Im Dezember 2018 gab es 113.767 Kinder ohne Leistungsanspruch (KOL).

Sheet 2.1
J1: Grundsicherung für Arbeitsuchende (SGBII)
A3: =CONCATENATE(A5&A4) -> 2.1 Entwicklung des Bestands an Kindern unter 18 Jahren in Bedarfsgemeinschaften - Deutschland
A4: ='2.1 roh'!$A$1 -> Deutschland
A5: 2.1 Entwicklung des Bestands an Kindern unter 18 Jahren in Bedarfsgemeinschaften -
A17: Tabelle 2.1 Bestand der Kinder in Bedarfsgemeinschaften nach Strukturmerkmalen und Vergleichsmonaten
A20: 2018-12-01
A21: Bund, Länder, Kreise und kreisfreie Städte
A23: Merkmal | C23: 2018-12-01 | D23: 2017-12-01 | E23: 2016-12-01 | F23: 2015-12-01 | G23: 2014-12-01 | H23: 2013-12-01 | I23: Veränder-ung Dezember 2018 zu Dezember 2017 in % | J23: Veränder-ung Dezember 2018 zu Dezember 2013 in %
C24: 1 | D24: 2 | E24: 3 | F24: 4 | G24: 5 | H24: 6 | I24: 7 | J24: 8
A25: Personen unter 18 Jahren2) | C25: =IF('Vorl 2.1'!D14=".",".",IF('Vorl 2.1'!D14-'Vorl 2.1'!D15<3,IF('Vorl 2.1'!D14-'Vorl 2.1'!D15>0,"*",'Vorl 2.1'!D14),'Vorl 2.1'!D14)) -> 1961052 | D25: =IF('Vorl 2.1'!E14=".",".",IF('Vorl 2.1'!E14-'Vorl 2.1'!E15<3,IF('Vorl 2.1'!E14-'Vorl 2.1'!E15>0,"*",'Vorl 2.1'!E14),'Vorl 2.1'!E14)) -> 2038999.351 | E25: =IF('Vorl 2.1'!F14=".",".",IF('Vorl 2.1'!F14-'Vorl 2.1'!F15<3,IF('Vorl 2.1'!F14-'Vorl 2.1'!F15>0,"*",'Vorl 2.1'!F14),'Vorl 2.1'!F14)) -> 2003809.376 | F25: =IF('Vorl 2.1'!G14=".",".",IF('Vorl 2.1'!G14-'Vorl 2.1'!G15<3,IF('Vorl 2.1'!G14-'Vorl 2.1'!G15>0,"*",'Vorl 2.1'!G14),'Vorl 2.1'!G14)) -> 1939187 | G25: =IF('Vorl 2.1'!H14=".",".",IF('Vorl 2.1'!H14-'Vorl 2.1'!H15<3,IF('Vorl 2.1'!H14-'Vorl 2.1'!H15>0,"*",'Vorl 2.1'!H14),'Vorl 2.1'!H14)) -> 1913465 | H25: =IF('Vorl 2.1'!I14=".",".",IF('Vorl 2.1'!I14-'Vorl 2.1'!I15<3,IF('Vorl 2.1'!I14-'Vorl 2.1'!I15>0,"*",'Vorl 2.1'!I14),'Vorl 2.1'!I14)) -> 1893692 | I25: =IF(ISNUMBER((C25-D25)/D25%),((C25-D25)/D25%),"-") -> -3.822823715 | J25: =IF(ISNUMBER((C25-H25)/H25%),((C25-H25)/H25%),"-") -> 3.557072639
A26: Kinder unter 18 Jahren3) | C26: ='Vorl 2.1'!D15 -> 1952738 | D26: ='Vorl 2.1'!E15 -> 2027906.536 | E26: ='Vorl 2.1'!F15 -> 1993704.253 | F26: ='Vorl 2.1'!G15 -> 1931474 | G26: ='Vorl 2.1'!H15 -> 1906330 | H26: ='Vorl 2.1'!I15 -> 1886472 | I26: =IF(ISNUMBER((C26-D26)/D26%),((C26-D26)/D26%),"-") -> -3.706706152 | J26: =IF(ISNUMBER((C26-H26)/H26%),((C26-H26)/H26%),"-") -> 3.512694596
A27: dav.
A28: nicht erwerbsfähige Leistungsberechtigte (NEF) | C28: ='Vorl 2.1'!D18 -> 1563722 | D28: ='Vorl 2.1'!E18 -> 1636200.287 | E28: ='Vorl 2.1'!F18 -> 1598808.736 | F28: ='Vorl 2.1'!G18 -> 1541155 | G28: ='Vorl 2.1'!H18 -> 1523695 | H28: ='Vorl 2.1'!I18 -> 1489603 | I28: =IF(ISNUMBER((C28-D28)/D28%),((C28-D28)/D28%),"-") -> -4.429670858 | J28: =IF(ISNUMBER((C28-H28)/H28%),((C28-H28)/H28%),"-") -> 4.975755285
A29: erwerbsfähige Leistungsberechtigte (ELB) | C29: ='Vorl 2.1'!D19 -> 221432 | D29: ='Vorl 2.1'!E19 -> 241822.532 | E29: ='Vorl 2.1'!F19 -> 246516.9596 | F29: ='Vorl 2.1'!G19 -> 242049 | G29: ='Vorl 2.1'!H19 -> 227481 | H29: ='Vorl 2.1'!I19 -> 220460 | I29: =IF(ISNUMBER((C29-D29)/D29%),((C29-D29)/D29%),"-") -> -8.432023183 | J29: =IF(ISNUMBER((C29-H29)/H29%),((C29-H29)/H29%),"-") -> 0.4408963077
A30: sonstige Leistungsberechtigte (SLB) | C30: =IF(C79="*",IF(C79="-",'Vorl 2.1'!D20,"*"),'Vorl 2.1'!D20) -> 39961 | D30: =IF(D79="*",IF(D79="-",'Vorl 2.1'!E20,"*"),'Vorl 2.1'!E20) -> 35387.77297 | E30: =IF(E79="*",IF(E79="-",'Vorl 2.1'!F20,"*"),'Vorl 2.1'!F20) -> 33135.27871 | F30: =IF(F79="*",IF(F79="-",'Vorl 2.1'!G20,"*"),'Vorl 2.1'!G20) -> 31483 | G30: =IF(G79="*",IF(G79="-",'Vorl 2.1'!H20,"*"),'Vorl 2.1'!H20) -> 25861 | H30: =IF(H79="*",IF(H79="-",'Vorl 2.1'!I20,"*"),'Vorl 2.1'!I20) -> 25978 | I30: =IF(ISNUMBER((C30-D30)/D30%),(IF((C30-D30)/D30%<250,(C30-D30)/D30%,".X")),"-") -> 12.92318403 | J30: =IF(ISNUMBER((C30-H30)/H30%),(IF((C30-H30)/H30%<250,(C30-H30)/H30%,".X")),"-") -> 53.82631457
A31: Kinder ohne Leistungsanspruch (KOL) | C31: ='Vorl 2.1'!D21 -> 113767 | D31: ='Vorl 2.1'!E21 -> 103771.2884 | E31: ='Vorl 2.1'!F21 -> 103203.5591 | F31: ='Vorl 2.1'!G21 -> 107693 | G31: ='Vorl 2.1'!H21 -> 118564 | H31: ='Vorl 2.1'!I21 -> 139452 | I31: =IF(ISNUMBER((C31-D31)/D31%),((C31-D31)/D31%),"-") -> 9.632444297 | J31: =IF(ISNUMBER((C31-H31)/H31%),((C31-H31)/H31%),"-") -> -18.41852394
A32: vom Leistungsanspruch ausgeschlossene Personen (AUS) | C32: =IF(C30="*","*",'Vorl 2.1'!D22) -> 13856 | D32: =IF(D30="*","*",'Vorl 2.1'!E22) -> 10724.65565 | E32: =IF(E30="*","*",'Vorl 2.1'!F22) -> 12039.72047 | F32: =IF(F30="*","*",'Vorl 2.1'!G22) -> 9094 | G32: =IF(G30="*","*",'Vorl 2.1'!H22) -> 10729 | H32: =IF(H30="*","*",'Vorl 2.1'!I22) -> 10979 | I32: =IF(ISNUMBER((C32-D32)/D32%),(IF((C32-D32)/D32%<250,(C32-D32)/D32%,".X")),"-") -> 29.19762134 | J32: =IF(ISNUMBER((C32-H32)/H32%),(IF((C32-H32)/H32%<250,(C32-H32)/H32%,".X")),"-") -> 26.20457237
A33: dar.
A34: männlich | C34: ='Vorl 2.1'!D24 -> 1008573 | D34: ='Vorl 2.1'!E24 -> 1047003.349 | E34: ='Vorl 2.1'!F24 -> 1026746.01 | F34: ='Vorl 2.1'!G24 -> 990455 | G34: ='Vorl 2.1'!H24 -> 977001 | H34: ='Vorl 2.1'!I24 -> 966327 | I34: =IF(ISNUMBER((C34-D34)/D34%),((C34-D34)/D34%),"-") -> -3.670508739 | J34: =IF(ISNUMBER((C34-H34)/H34%),((C34-H34)/H34%),"-") -> 4.371812026
A35: weiblich | C35: ='Vorl 2.1'!D25 -> 944075 | D35: ='Vorl 2.1'!E25 -> 980807.6022 | E35: ='Vorl 2.1'!F25 -> 966899.8214 | F35: ='Vorl 2.1'!G25 -> 940986 | G35: ='Vorl 2.1'!H25 -> 929327 | H35: ='Vorl 2.1'!I25 -> 920145 | I35: =IF(ISNUMBER((C35-D35)/D35%),((C35-D35)/D35%),"-") -> -3.745138409 | J35: =IF(ISNUMBER((C35-H35)/H35%),((C35-H35)/H35%),"-") -> 2.600677067
A36: dar.
A37: Ausländer1) | C37: ='Vorl 2.1'!D27 -> 646704 | D37: ='Vorl 2.1'!E27 -> 621356.5861 | E37: ='Vorl 2.1'!F27 -> 505577.6825 | F37: ='Vorl 2.1'!G27 -> 367521 | G37: ='Vorl 2.1'!H27 -> 317938 | H37: ='Vorl 2.1'!I27 -> 290983 | I37: =IF(ISNUMBER((C37-D37)/D37%),((C37-D37)/D37%),"-") -> 4.079366732 | J37: =IF(ISNUMBER((C37-H37)/H37%),((C37-H37)/H37%),"-") -> 122.2480351
A38: dar.
A39: unter 15 Jahren | C39: ='Vorl 2.1'!D29 -> 1699413 | D39: ='Vorl 2.1'!E29 -> 1758586.82 | E39: ='Vorl 2.1'!F29 -> 1722312.537 | F39: ='Vorl 2.1'!G29 -> 1663237 | G39: ='Vorl 2.1'!H29 -> 1642442 | H39: ='Vorl 2.1'!I29 -> 1626176 | I39: =IF(ISNUMBER((C39-D39)/D39%),((C39-D39)/D39%),"-") -> -3.364850645 | J39: =IF(ISNUMBER((C39-H39)/H39%),((C39-H39)/H39%),"-") -> 4.503633063
A40: dav.
A41: unter 3 Jahren | C41: ='Vorl 2.1'!D31 -> 373422 | D41: ='Vorl 2.1'!E31 -> 388628.4229 | E41: ='Vorl 2.1'!F31 -> 372955.9123 | F41: ='Vorl 2.1'!G31 -> 348962 | G41: ='Vorl 2.1'!H31 -> 345128 | H41: ='Vorl 2.1'!I31 -> 344855 | I41: =IF(ISNUMBER((C41-D41)/D41%),((C41-D41)/D41%),"-") -> -3.912843733 | J41: =IF(ISNUMBER((C41-H41)/H41%),((C41-H41)/H41%),"-") -> 8.28377144
A42: 3 bis unter 6 Jahren | C42: ='Vorl 2.1'!D32 -> 358831 | D42: ='Vorl 2.1'!E32 -> 370081.5013 | E42: ='Vorl 2.1'!F32 -> 361005.5462 | F42: ='Vorl 2.1'!G32 -> 352011 | G42: ='Vorl 2.1'!H32 -> 348420 | H42: ='Vorl 2.1'!I32 -> 349954 | I42: =IF(ISNUMBER((C42-D42)/D42%),((C42-D42)/D42%),"-") -> -3.04000639 | J42: =IF(ISNUMBER((C42-H42)/H42%),((C42-H42)/H42%),"-") -> 2.536619099
A43: 6 bis unter 15 Jahren | C43: ='Vorl 2.1'!D33 -> 967160 | D43: ='Vorl 2.1'!E33 -> 999876.8958 | E43: ='Vorl 2.1'!F33 -> 988351.0788 | F43: ='Vorl 2.1'!G33 -> 962264 | G43: ='Vorl 2.1'!H33 -> 948894 | H43: ='Vorl 2.1'!I33 -> 931367 | I43: =IF(ISNUMBER((C43-D43)/D43%),((C43-D43)/D43%),"-") -> -3.272092386 | J43: =IF(ISNUMBER((C43-H43)/H43%),((C43-H43)/H43%),"-") -> 3.843060791
A44: 15 bis unter 18 Jahren3) | C44: ='Vorl 2.1'!D34 -> 253325 | D44: ='Vorl 2.1'!E34 -> 269319.7164 | E44: ='Vorl 2.1'!F34 -> 271391.7161 | F44: ='Vorl 2.1'!G34 -> 268237 | G44: ='Vorl 2.1'!H34 -> 263888 | H44: ='Vorl 2.1'!I34 -> 260296 | I44: =IF(ISNUMBER((C44-D44)/D44%),((C44-D44)/D44%),"-") -> -5.938932585 | J44: =IF(ISNUMBER((C44-H44)/H44%),((C44-H44)/H44%),"-") -> -2.678104927
A45: dar. (nach Regelbedarfsaltersstufen)4)
A46: unter 6 Jahren | C46: ='Vorl 2.1'!D36 -> 732253 | D46: ='Vorl 2.1'!E36 -> 758709.9242 | E46: ='Vorl 2.1'!F36 -> 733961.4585 | F46: ='Vorl 2.1'!G36 -> 700973 | G46: ='Vorl 2.1'!H36 -> 693548 | H46: ='Vorl 2.1'!I36 -> 694809 | I46: =IF(ISNUMBER((C46-D46)/D46%),((C46-D46)/D46%),"-") -> -3.487093464 | J46: =IF(ISNUMBER((C46-H46)/H46%),((C46-H46)/H46%),"-") -> 5.389106934
A47: 6 bis unter 14 Jahren | C47: ='Vorl 2.1'!D37 -> 873902 | D47: ='Vorl 2.1'!E37 -> 903535.6614 | E47: ='Vorl 2.1'!F37 -> 892059.2323 | F47: ='Vorl 2.1'!G37 -> 865868 | G47: ='Vorl 2.1'!H37 -> 851831 | H47: ='Vorl 2.1'!I37 -> 838146 | I47: =IF(ISNUMBER((C47-D47)/D47%),((C47-D47)/D47%),"-") -> -3.279744527 | J47: =IF(ISNUMBER((C47-H47)/H47%),((C47-H47)/H47%),"-") -> 4.26608252
A48: 14 bis unter 18 Jahren | C48: ='Vorl 2.1'!D38 -> 346583 | D48: ='Vorl 2.1'!E38 -> 365660.9508 | E48: ='Vorl 2.1'!F38 -> 367683.5627 | F48: ='Vorl 2.1'!G38 -> 364633 | G48: ='Vorl 2.1'!H38 -> 360951 | H48: ='Vorl 2.1'!I38 -> 353517 | I48: =IF(ISNUMBER((C48-D48)/D48%),((C48-D48)/D48%),"-") -> -5.217388055 | J48: =IF(ISNUMBER((C48-H48)/H48%),((C48-H48)/H48%),"-") -> -1.961433255
A49: Nachrichtlich: Personen unter 25 Jahren | C49: ='Vorl 2.1'!D39 -> 2468475 | D49: ='Vorl 2.1'!E39 -> 2591647.613 | E49: ='Vorl 2.1'!F39 -> 2549498.471 | F49: ='Vorl 2.1'!G39 -> 2432440 | G49: ='Vorl 2.1'!H39 -> 2411511 | H49: ='Vorl 2.1'!I39 -> 2403255 | I49: =IF(ISNUMBER((C49-D49)/D49%),((C49-D49)/D49%),"-") -> -4.752675941 | J49: =IF(ISNUMBER((C49-H49)/H49%),((C49-H49)/H49%),"-") -> 2.713819382
A50: Hinweis: Nicht plausible Werte werden mit "." ausgewiesen. | J50: © Statistik der Bundesagentur für Arbeit
A51: Hinweis: Veränderungswerte > 250% werden mit ".X" gekennzeichnet.
A52: 1) Für Kinder unter 18 Jahren, die eine doppelter Staatsangehörigkeit besitzen, kann bei Antragstellung nur eine Staatsbürgerschaft erfasst werden.
A53: 2) alle minderjährigen Personen unter 18 Jahren in Bedarfsgemeinschaften
A54: 3) minderjährige, unverheiratete Kinder unter 18 Jahren in Bedarfsgemeinschaften
A55: 4) Der Regelbedarf der Kinder unter 6 Jahren beträgt 240 Euro, der 6 bis 13-Jährigen 296 Euro und der Jugendlichen von 14 bis unter 18 Jahren 316 Euro (Stand 01.01.2018).
C79: ='Vorl 2.1'!D22 -> 13856 | D79: ='Vorl 2.1'!E22 -> 10724.65565 | E79: ='Vorl 2.1'!F22 -> 12039.72047 | F79: ='Vorl 2.1'!G22 -> 9094 | G79: ='Vorl 2.1'!H22 -> 10729 | H79: ='Vorl 2.1'!I22 -> 10979

Sheet 2.2
L1: Grundsicherung für Arbeitsuchende (SGBII)
A3: 2.2 Bestand und Veränderung der Anzahl der Kinder unter 18 Jahren in Bedarfsgemeinschaften nach Altersstufen gegenüber dem Vorjahresmonat in %
A24: Tabelle 2.2 Bestand Kinder unter 18 Jahren in Bedarfsgemeinschaften nach ausgewählten Altersklassen
A27: 2018-12-01
A28: Bund, Länder, Kreise und kreisfreie Städte
A30: Region | C30: Insgesamt | H30: Veränderung zum Vorjahresmonat
C32: Kinder unter 18 Jahren | D32: davon | H32: Kinder unter 18 Jahren | I32: davon
D33: unter 3 Jahren | E33: 3 bis unter 6 Jahren | F33: 6 bis unter 15 Jahren | G33: 15 bis unter 18 Jahren | I33: unter 3 Jahren | J33: 3 bis unter 6 Jahren | K33: 6 bis unter 15 Jahren | L33: 15 bis unter 18 Jahren
C34: 1 | D34: 2 | E34: 3 | F34: 4 | G34: 5 | H34: 6 | I34: 7 | J34: 8 | K34: 9 | L34: 10
A35: Deutschland | C35: ='2.2 Daten'!E4 -> 1952738 | D35: ='2.2 Daten'!F4 -> 373422 | E35: ='2.2 Daten'!G4 -> 358831 | F35: ='2.2 Daten'!H4 -> 967160 | G35: ='2.2 Daten'!I4 -> 253325 | H35: ='2.2 Daten'!K4 -> -3.706706152 | I35: ='2.2 Daten'!L4 -> -3.912843733 | J35: ='2.2 Daten'!M4 -> -3.04000639 | K35: ='2.2 Daten'!N4 -> -3.272092386 | L35: ='2.2 Daten'!O4 -> -5.938932585
A36: Westdeutschland | C36: ='2.2 Daten'!E5 -> 1494105 | D36: ='2.2 Daten'!F5 -> 286268 | E36: ='2.2 Daten'!G5 -> 274371 | F36: ='2.2 Daten'!H5 -> 736799 | G36: ='2.2 Daten'!I5 -> 196667 | H36: ='2.2 Daten'!K5 -> -3.022420125 | I36: ='2.2 Daten'!L5 -> -3.126301892 | J36: ='2.2 Daten'!M5 -> -2.164623017 | K36: ='2.2 Daten'!N5 -> -2.667132356 | L36: ='2.2 Daten'!O5 -> -5.327356861
A37: Ostdeutschland | C37: ='2.2 Daten'!E6 -> 458633 | D37: ='2.2 Daten'!F6 -> 87154 | E37: ='2.2 Daten'!G6 -> 84460 | F37: ='2.2 Daten'!H6 -> 230361 | G37: ='2.2 Daten'!I6 -> 56658 | H37: ='2.2 Daten'!K6 -> -5.870461132 | I37: ='2.2 Daten'!L6 -> -6.408797062 | J37: ='2.2 Daten'!M6 -> -5.778670237 | K37: ='2.2 Daten'!N6 -> -5.157521162 | L37: ='2.2 Daten'!O6 -> -8.001818595
A38: =CHOOSE('2.2 Daten'!$A$2,'2.2 Daten'!B460,'2.2 Daten'!B9,'2.2 Daten'!B26,'2.2 Daten'!B43,'2.2 Daten'!B46,'2.2 Daten'!B93,'2.2 Daten'!B97,'2.2 Daten'!B152,'2.2 Daten'!B180,'2.2 Daten'!B218,'2.2 Daten'!B264,'2.2 Daten'!B362,'2.2 Daten'!B370,'2.2 Daten'!B373,'2.2 Daten'!B393,'2.2 Daten'!B403,'2.2 Daten'!B418,'2.2 Daten'!B434,x) -> Schleswig-Holstein | B38: =IF($A38<>0,INDEX('2.2 Daten'!C$9:C$860,MATCH('2.2'!$A38,'2.2 Daten'!$B$9:$B$860,0))," ") -> 01 | C38: =IF($A38<>0,INDEX('2.2 Daten'!E$9:E$860,MATCH('2.2'!$A38,'2.2 Daten'!$B$9:$B$860,0))) -> 74167 | D38: =IF($A38<>0,INDEX('2.2 Daten'!F$9:F$860,MATCH('2.2'!$A38,'2.2 Daten'!$B$9:$B$860,0))) -> 14142 | E38: =IF($A38<>0,INDEX('2.2 Daten'!G$9:G$860,MATCH('2.2'!$A38,'2.2 Daten'!$B$9:$B$860,0))) -> 13703 | F38: =IF($A38<>0,INDEX('2.2 Daten'!H$9:H$860,MATCH('2.2'!$A38,'2.2 Daten'!$B$9:$B$860,0))) -> 36929 | G38: =IF($A38<>0,INDEX('2.2 Daten'!I$9:I$860,MATCH('2.2'!$A38,'2.2 Daten'!$B$9:$B$860,0))) -> 9393 | H38: =IF($A38<>0,INDEX('2.2 Daten'!K$9:K$860,MATCH('2.2'!$A38,'2.2 Daten'!$B$9:$B$860,0))) -> -3.291129337 | I38: =IF($A38<>0,INDEX('2.2 Daten'!L$9:L$860,MATCH('2.2'!$A38,'2.2 Daten'!$B$9:$B$860,0))) -> -3.017418735 | J38: =IF($A38<>0,INDEX('2.2 Daten'!M$9:M$860,MATCH('2.2'!$A38,'2.2 Daten'!$B$9:$B$860,0))) -> -3.662823397 | K38: =IF($A38<>0,INDEX('2.2 Daten'!N$9:N$860,MATCH('2.2'!$A38,'2.2 Daten'!$B$9:$B$860,0))) -> -2.438444468 | L38: =IF($A38<>0,INDEX('2.2 Daten'!O$9:O$860,MATCH('2.2'!$A38,'2.2 Daten'!$B$9:$B$860,0))) -> -6.378949467
A39: =CHOOSE('2.2 Daten'!$A$2,'2.2 Daten'!B461,'2.2 Daten'!B10,'2.2 Daten'!B27,'2.2 Daten'!B44,'2.2 Daten'!B47,'2.2 Daten'!B94,'2.2 Daten'!B98,'2.2 Daten'!B153,'2.2 Daten'!B181,'2.2 Daten'!B219,'2.2 Daten'!B265,'2.2 Daten'!B363,'2.2 Daten'!B371,'2.2 Daten'!B374,'2.2 Daten'!B394,'2.2 Daten'!B404,'2.2 Daten'!B419,'2.2 Daten'!B435,x) -> Hamburg | B39: =IF($A39<>0,INDEX('2.2 Daten'!C$9:C$860,MATCH('2.2'!$A39,'2.2 Daten'!$B$9:$B$860,0))," ") -> 02 | C39: =IF($A39<>0,INDEX('2.2 Daten'!E$9:E$860,MATCH('2.2'!$A39,'2.2 Daten'!$B$9:$B$860,0))) -> 61358 | D39: =IF($A39<>0,INDEX('2.2 Daten'!F$9:F$860,MATCH('2.2'!$A39,'2.2 Daten'!$B$9:$B$860,0))) -> 11880 | E39: =IF($A39<>0,INDEX('2.2 Daten'!G$9:G$860,MATCH('2.2'!$A39,'2.2 Daten'!$B$9:$B$860,0))) -> 11119 | F39: =IF($A39<>0,INDEX('2.2 Daten'!H$9:H$860,MATCH('2.2'!$A39,'2.2 Daten'!$B$9:$B$860,0))) -> 30137 | G39: =IF($A39<>0,INDEX('2.2 Daten'!I$9:I$860,MATCH('2.2'!$A39,'2.2 Daten'!$B$9:$B$860,0))) -> 8222 | H39: =IF($A39<>0,INDEX('2.2 Daten'!K$9:K$860,MATCH('2.2'!$A39,'2.2 Daten'!$B$9:$B$860,0))) -> -1.429764812 | I39: =IF($A39<>0,INDEX('2.2 Daten'!L$9:L$860,MATCH('2.2'!$A39,'2.2 Daten'!$B$9:$B$860,0))) -> 0.008418217022 | J39: =IF($A39<>0,INDEX('2.2 Daten'!M$9:M$860,MATCH('2.2'!$A39,'2.2 Daten'!$B$9:$B$860,0))) -> -1.453514136 | K39: =IF($A39<>0,INDEX('2.2 Daten'!N$9:N$860,MATCH('2.2'!$A39,'2.2 Daten'!$B$9:$B$860,0))) -> -1.144787771 | L39: =IF($A39<>0,INDEX('2.2 Daten'!O$9:O$860,MATCH('2.2'!$A39,'2.2 Daten'!$B$9:$B$860,0))) -> -4.395348837
A40: =CHOOSE('2.2 Daten'!$A$2,'2.2 Daten'!B462,'2.2 Daten'!B11,'2.2 Daten'!B28,'2.2 Daten'!B45,'2.2 Daten'!B48,'2.2 Daten'!B95,'2.2 Daten'!B99,'2.2 Daten'!B154,'2.2 Daten'!B182,'2.2 Daten'!B220,'2.2 Daten'!B266,'2.2 Daten'!B364,'2.2 Daten'!B372,'2.2 Daten'!B375,'2.2 Daten'!B395,'2.2 Daten'!B405,'2.2 Daten'!B420,'2.2 Daten'!B436,x) -> Niedersachsen | B40: =IF($A40<>0,INDEX('2.2 Daten'!C$9:C$860,MATCH('2.2'!$A40,'2.2 Daten'!$B$9:$B$860,0))," ") -> 03 | C40: =IF($A40<>0,INDEX('2.2 Daten'!E$9:E$860,MATCH('2.2'!$A40,'2.2 Daten'!$B$9:$B$860,0))) -> 199474 | D40: =IF($A40<>0,INDEX('2.2 Daten'!F$9:F$860,MATCH('2.2'!$A40,'2.2 Daten'!$B$9:$B$860,0))) -> 37560 | E40: =IF($A40<>0,INDEX('2.2 Daten'!G$9:G$860,MATCH('2.2'!$A40,'2.2 Daten'!$B$9:$B$860,0))) -> 36808 | F40: =IF($A40<>0,INDEX('2.2 Daten'!H$9:H$860,MATCH('2.2'!$A40,'2.2 Daten'!$B$9:$B$860,0))) -> 98240 | G40: =IF($A40<>0,INDEX('2.2 Daten'!I$9:I$860,MATCH('2.2'!$A40,'2.2 Daten'!$B$9:$B$860,0))) -> 26866 | H40: =IF($A40<>0,INDEX('2.2 Daten'!K$9:K$860,MATCH('2.2'!$A40,'2.2 Daten'!$B$9:$B$860,0))) -> -3.313460327 | I40: =IF($A40<>0,INDEX('2.2 Daten'!L$9:L$860,MATCH('2.2'!$A40,'2.2 Daten'!$B$9:$B$860,0))) -> -2.706903251 | J40: =IF($A40<>0,INDEX('2.2 Daten'!M$9:M$860,MATCH('2.2'!$A40,'2.2 Daten'!$B$9:$B$860,0))) -> -2.378994828 | K40: =IF($A40<>0,INDEX('2.2 Daten'!N$9:N$860,MATCH('2.2'!$A40,'2.2 Daten'!$B$9:$B$860,0))) -> -3.178435914 | L40: =IF($A40<>0,INDEX('2.2 Daten'!O$9:O$860,MATCH('2.2'!$A40,'2.2 Daten'!$B$9:$B$860,0))) -> -5.848957421
A41: =CHOOSE('2.2 Daten'!$A$2,'2.2 Daten'!B463,'2.2 Daten'!B12,'2.2 Daten'!B29,'2.2 Daten'!B46,'2.2 Daten'!B49,'2.2 Daten'!B96,'2.2 Daten'!B100,'2.2 Daten'!B155,'2.2 Daten'!B183,'2.2 Daten'!B221,'2.2 Daten'!B267,'2.2 Daten'!B365,'2.2 Daten'!B373,'2.2 Daten'!B376,'2.2 Daten'!B396,'2.2 Daten'!B406,'2.2 Daten'!B421,'2.2 Daten'!B437,x) -> Bremen | B41: =IF($A41<>0,INDEX('2.2 Daten'!C$9:C$860,MATCH('2.2'!$A41,'2.2 Daten'!$B$9:$B$860,0))," ") -> 04 | C41: =IF($A41<>0,INDEX('2.2 Daten'!E$9:E$860,MATCH('2.2'!$A41,'2.2 Daten'!$B$9:$B$860,0))) -> 35066 | D41: =IF($A41<>0,INDEX('2.2 Daten'!F$9:F$860,MATCH('2.2'!$A41,'2.2 Daten'!$B$9:$B$860,0))) -> 7138 | E41: =IF($A41<>0,INDEX('2.2 Daten'!G$9:G$860,MATCH('2.2'!$A41,'2.2 Daten'!$B$9:$B$860,0))) -> 6657 | F41: =IF($A41<>0,INDEX('2.2 Daten'!H$9:H$860,MATCH('2.2'!$A41,'2.2 Daten'!$B$9:$B$860,0))) -> 16694 | G41: =IF($A41<>0,INDEX('2.2 Daten'!I$9:I$860,MATCH('2.2'!$A41,'2.2 Daten'!$B$9:$B$860,0))) -> 4577 | H41: =IF($A41<>0,INDEX('2.2 Daten'!K$9:K$860,MATCH('2.2'!$A41,'2.2 Daten'!$B$9:$B$860,0))) -> -0.4457314823 | I41: =IF($A41<>0,INDEX('2.2 Daten'!L$9:L$860,MATCH('2.2'!$A41,'2.2 Daten'!$B$9:$B$860,0))) -> -0.04201092284 | J41: =IF($A41<>0,INDEX('2.2 Daten'!M$9:M$860,MATCH('2.2'!$A41,'2.2 Daten'!$B$9:$B$860,0))) -> 4.292652358 | K41: =IF($A41<>0,INDEX('2.2 Daten'!N$9:N$860,MATCH('2.2'!$A41,'2.2 Daten'!$B$9:$B$860,0))) -> -1.446366373 | L41: =IF($A41<>0,INDEX('2.2 Daten'!O$9:O$860,MATCH('2.2'!$A41,'2.2 Daten'!$B$9:$B$860,0))) -> -3.844537815
A42: =CHOOSE('2.2 Daten'!$A$2,'2.2 Daten'!B464,'2.2 Daten'!B13,'2.2 Daten'!B30,'2.2 Daten'!B47,'2.2 Daten'!B50,'2.2 Daten'!B97,'2.2 Daten'!B101,'2.2 Daten'!B156,'2.2 Daten'!B184,'2.2 Daten'!B222,'2.2 Daten'!B268,'2.2 Daten'!B366,'2.2 Daten'!B374,'2.2 Daten'!B377,'2.2 Daten'!B397,'2.2 Daten'!B407,'2.2 Daten'!B422,'2.2 Daten'!B438,x) -> Nordrhein-Westfalen | B42: =IF($A42<>0,INDEX('2.2 Daten'!C$9:C$860,MATCH('2.2'!$A42,'2.2 Daten'!$B$9:$B$860,0))," ") -> 05 | C42: =IF($A42<>0,INDEX('2.2 Daten'!E$9:E$860,MATCH('2.2'!$A42,'2.2 Daten'!$B$9:$B$860,0))) -> 566470 | D42: =IF($A42<>0,INDEX('2.2 Daten'!F$9:F$860,MATCH('2.2'!$A42,'2.2 Daten'!$B$9:$B$860,0))) -> 105160 | E42: =IF($A42<>0,INDEX('2.2 Daten'!G$9:G$860,MATCH('2.2'!$A42,'2.2 Daten'!$B$9:$B$860,0))) -> 102461 | F42: =IF($A42<>0,INDEX('2.2 Daten'!H$9:H$860,MATCH('2.2'!$A42,'2.2 Daten'!$B$9:$B$860,0))) -> 281280 | G42: =IF($A42<>0,INDEX('2.2 Daten'!I$9:I$860,MATCH('2.2'!$A42,'2.2 Daten'!$B$9:$B$860,0))) -> 77569 | H42: =IF($A42<>0,INDEX('2.2 Daten'!K$9:K$860,MATCH('2.2'!$A42,'2.2 Daten'!$B$9:$B$860,0))) -> -2.177254187 | I42: =IF($A42<>0,INDEX('2.2 Daten'!L$9:L$860,MATCH('2.2'!$A42,'2.2 Daten'!$B$9:$B$860,0))) -> -2.59625983 | J42: =IF($A42<>0,INDEX('2.2 Daten'!M$9:M$860,MATCH('2.2'!$A42,'2.2 Daten'!$B$9:$B$860,0))) -> -1.102284683 | K42: =IF($A42<>0,INDEX('2.2 Daten'!N$9:N$860,MATCH('2.2'!$A42,'2.2 Daten'!$B$9:$B$860,0))) -> -1.81684905 | L42: =IF($A42<>0,INDEX('2.2 Daten'!O$9:O$860,MATCH('2.2'!$A42,'2.2 Daten'!$B$9:$B$860,0))) -> -4.267713231
A43: =CHOOSE('2.2 Daten'!$A$2,'2.2 Daten'!B465,'2.2 Daten'!B14,'2.2 Daten'!B31,'2.2 Daten'!B48,'2.2 Daten'!B51,'2.2 Daten'!B98,'2.2 Daten'!B102,'2.2 Daten'!B157,'2.2 Daten'!B185,'2.2 Daten'!B223,'2.2 Daten'!B269,'2.2 Daten'!B367,'2.2 Daten'!B375,'2.2 Daten'!B378,'2.2 Daten'!B398,'2.2 Daten'!B408,'2.2 Daten'!B423,'2.2 Daten'!B439,x) -> Hessen | B43: =IF($A43<>0,INDEX('2.2 Daten'!C$9:C$860,MATCH('2.2'!$A43,'2.2 Daten'!$B$9:$B$860,0))," ") -> 06 | C43: =IF($A43<>0,INDEX('2.2 Daten'!E$9:E$860,MATCH('2.2'!$A43,'2.2 Daten'!$B$9:$B$860,0))) -> 149345 | D43: =IF($A43<>0,INDEX('2.2 Daten'!F$9:F$860,MATCH('2.2'!$A43,'2.2 Daten'!$B$9:$B$860,0))) -> 29449 | E43: =IF($A43<>0,INDEX('2.2 Daten'!G$9:G$860,MATCH('2.2'!$A43,'2.2 Daten'!$B$9:$B$860,0))) -> 27422 | F43: =IF($A43<>0,INDEX('2.2 Daten'!H$9:H$860,MATCH('2.2'!$A43,'2.2 Daten'!$B$9:$B$860,0))) -> 73330 | G43: =IF($A43<>0,INDEX('2.2 Daten'!I$9:I$860,MATCH('2.2'!$A43,'2.2 Daten'!$B$9:$B$860,0))) -> 19144 | H43: =IF($A43<>0,INDEX('2.2 Daten'!K$9:K$860,MATCH('2.2'!$A43,'2.2 Daten'!$B$9:$B$860,0))) -> -3.229173594 | I43: =IF($A43<>0,INDEX('2.2 Daten'!L$9:L$860,MATCH('2.2'!$A43,'2.2 Daten'!$B$9:$B$860,0))) -> -2.800313716 | J43: =IF($A43<>0,INDEX('2.2 Daten'!M$9:M$860,MATCH('2.2'!$A43,'2.2 Daten'!$B$9:$B$860,0))) -> -1.960999131 | K43: =IF($A43<>0,INDEX('2.2 Daten'!N$9:N$860,MATCH('2.2'!$A43,'2.2 Daten'!$B$9:$B$860,0))) -> -3.117847831 | L43: =IF($A43<>0,INDEX('2.2 Daten'!O$9:O$860,MATCH('2.2'!$A43,'2.2 Daten'!$B$9:$B$860,0))) -> -6.021960002
A44: =CHOOSE('2.2 Daten'!$A$2,'2.2 Daten'!B466,'2.2 Daten'!B15,'2.2 Daten'!B32,'2.2 Daten'!B49,'2.2 Daten'!B52,'2.2 Daten'!B99,'2.2 Daten'!B103,'2.2 Daten'!B158,'2.2 Daten'!B186,'2.2 Daten'!B224,'2.2 Daten'!B270,'2.2 Daten'!B368,'2.2 Daten'!B376,'2.2 Daten'!B379,'2.2 Daten'!B399,'2.2 Daten'!B409,'2.2 Daten'!B424,'2.2 Daten'!B440,x) -> Rheinland-Pfalz | B44: =IF($A44<>0,INDEX('2.2 Daten'!C$9:C$860,MATCH('2.2'!$A44,'2.2 Daten'!$B$9:$B$860,0))," ") -> 07 | C44: =IF($A44<>0,INDEX('2.2 Daten'!E$9:E$860,MATCH('2.2'!$A44,'2.2 Daten'!$B$9:$B$860,0))) -> 79348 | D44: =IF($A44<>0,INDEX('2.2 Daten'!F$9:F$860,MATCH('2.2'!$A44,'2.2 Daten'!$B$9:$B$860,0))) -> 16285 | E44: =IF($A44<>0,INDEX('2.2 Daten'!G$9:G$860,MATCH('2.2'!$A44,'2.2 Daten'!$B$9:$B$860,0))) -> 14595 | F44: =IF($A44<>0,INDEX('2.2 Daten'!H$9:H$860,MATCH('2.2'!$A44,'2.2 Daten'!$B$9:$B$860,0))) -> 38519 | G44: =IF($A44<>0,INDEX('2.2 Daten'!I$9:I$860,MATCH('2.2'!$A44,'2.2 Daten'!$B$9:$B$860,0))) -> 9949 | H44: =IF($A44<>0,INDEX('2.2 Daten'!K$9:K$860,MATCH('2.2'!$A44,'2.2 Daten'!$B$9:$B$860,0))) -> -3.551719947 | I44: =IF($A44<>0,INDEX('2.2 Daten'!L$9:L$860,MATCH('2.2'!$A44,'2.2 Daten'!$B$9:$B$860,0))) -> -3.860912687 | J44: =IF($A44<>0,INDEX('2.2 Daten'!M$9:M$860,MATCH('2.2'!$A44,'2.2 Daten'!$B$9:$B$860,0))) -> -3.548770817 | K44: =IF($A44<>0,INDEX('2.2 Daten'!N$9:N$860,MATCH('2.2'!$A44,'2.2 Daten'!$B$9:$B$860,0))) -> -2.955255467 | L44: =IF($A44<>0,INDEX('2.2 Daten'!O$9:O$860,MATCH('2.2'!$A44,'2.2 Daten'!$B$9:$B$860,0))) -> -5.310745217
A45: =CHOOSE('2.2 Daten'!$A$2,'2.2 Daten'!B467,'2.2 Daten'!B16,'2.2 Daten'!B33,'2.2 Daten'!B50,'2.2 Daten'!B53,'2.2 Daten'!B100,'2.2 Daten'!B104,'2.2 Daten'!B159,'2.2 Daten'!B187,'2.2 Daten'!B225,'2.2 Daten'!B271,'2.2 Daten'!B369,'2.2 Daten'!B377,'2.2 Daten'!B380,'2.2 Daten'!B400,'2.2 Daten'!B410,'2.2 Daten'!B425,'2.2 Daten'!B441,x) -> Baden-Württemberg | B45: =IF($A45<>0,INDEX('2.2 Daten'!C$9:C$860,MATCH('2.2'!$A45,'2.2 Daten'!$B$9:$B$860,0))," ") -> 08 | C45: =IF($A45<>0,INDEX('2.2 Daten'!E$9:E$860,MATCH('2.2'!$A45,'2.2 Daten'!$B$9:$B$860,0))) -> 156770 | D45: =IF($A45<>0,INDEX('2.2 Daten'!F$9:F$860,MATCH('2.2'!$A45,'2.2 Daten'!$B$9:$B$860,0))) -> 30600 | E45: =IF($A45<>0,INDEX('2.2 Daten'!G$9:G$860,MATCH('2.2'!$A45,'2.2 Daten'!$B$9:$B$860,0))) -> 29078 | F45: =IF($A45<>0,INDEX('2.2 Daten'!H$9:H$860,MATCH('2.2'!$A45,'2.2 Daten'!$B$9:$B$860,0))) -> 77230 | G45: =IF($A45<>0,INDEX('2.2 Daten'!I$9:I$860,MATCH('2.2'!$A45,'2.2 Daten'!$B$9:$B$860,0))) -> 19862 | H45: =IF($A45<>0,INDEX('2.2 Daten'!K$9:K$860,MATCH('2.2'!$A45,'2.2 Daten'!$B$9:$B$860,0))) -> -3.558795485 | I45: =IF($A45<>0,INDEX('2.2 Daten'!L$9:L$860,MATCH('2.2'!$A45,'2.2 Daten'!$B$9:$B$860,0))) -> -4.024088072 | J45: =IF($A45<>0,INDEX('2.2 Daten'!M$9:M$860,MATCH('2.2'!$A45,'2.2 Daten'!$B$9:$B$860,0))) -> -2.311361957 | K45: =IF($A45<>0,INDEX('2.2 Daten'!N$9:N$860,MATCH('2.2'!$A45,'2.2 Daten'!$B$9:$B$860,0))) -> -3.088178088 | L45: =IF($A45<>0,INDEX('2.2 Daten'!O$9:O$860,MATCH('2.2'!$A45,'2.2 Daten'!$B$9:$B$860,0))) -> -6.377563045
A46: =CHOOSE('2.2 Daten'!$A$2,'2.2 Daten'!B468,'2.2 Daten'!B17,'2.2 Daten'!B34,'2.2 Daten'!B51,'2.2 Daten'!B54,'2.2 Daten'!B101,'2.2 Daten'!B105,'2.2 Daten'!B160,'2.2 Daten'!B188,'2.2 Daten'!B226,'2.2 Daten'!B272,'2.2 Daten'!B370,'2.2 Daten'!B378,'2.2 Daten'!B381,'2.2 Daten'!B401,'2.2 Daten'!B411,'2.2 Daten'!B426,'2.2 Daten'!B442,x) -> Bayern | B46: =IF($A46<>0,INDEX('2.2 Daten'!C$9:C$860,MATCH('2.2'!$A46,'2.2 Daten'!$B$9:$B$860,0))," ") -> 09 | C46: =IF($A46<>0,INDEX('2.2 Daten'!E$9:E$860,MATCH('2.2'!$A46,'2.2 Daten'!$B$9:$B$860,0))) -> 143436 | D46: =IF($A46<>0,INDEX('2.2 Daten'!F$9:F$860,MATCH('2.2'!$A46,'2.2 Daten'!$B$9:$B$860,0))) -> 28404 | E46: =IF($A46<>0,INDEX('2.2 Daten'!G$9:G$860,MATCH('2.2'!$A46,'2.2 Daten'!$B$9:$B$860,0))) -> 27448 | F46: =IF($A46<>0,INDEX('2.2 Daten'!H$9:H$860,MATCH('2.2'!$A46,'2.2 Daten'!$B$9:$B$860,0))) -> 70302 | G46: =IF($A46<>0,INDEX('2.2 Daten'!I$9:I$860,MATCH('2.2'!$A46,'2.2 Daten'!$B$9:$B$860,0))) -> 17282 | H46: =IF($A46<>0,INDEX('2.2 Daten'!K$9:K$860,MATCH('2.2'!$A46,'2.2 Daten'!$B$9:$B$860,0))) -> -5.926951001 | I46: =IF($A46<>0,INDEX('2.2 Daten'!L$9:L$860,MATCH('2.2'!$A46,'2.2 Daten'!$B$9:$B$860,0))) -> -6.930109112 | J46: =IF($A46<>0,INDEX('2.2 Daten'!M$9:M$860,MATCH('2.2'!$A46,'2.2 Daten'!$B$9:$B$860,0))) -> -5.777350589 | K46: =IF($A46<>0,INDEX('2.2 Daten'!N$9:N$860,MATCH('2.2'!$A46,'2.2 Daten'!$B$9:$B$860,0))) -> -5.14982663 | L46: =IF($A46<>0,INDEX('2.2 Daten'!O$9:O$860,MATCH('2.2'!$A46,'2.2 Daten'!$B$9:$B$860,0))) -> -7.602651839
A47: =CHOOSE('2.2 Daten'!$A$2,'2.2 Daten'!B469,'2.2 Daten'!B18,'2.2 Daten'!B35,'2.2 Daten'!B52,'2.2 Daten'!B55,'2.2 Daten'!B102,'2.2 Daten'!B106,'2.2 Daten'!B161,'2.2 Daten'!B189,'2.2 Daten'!B227,'2.2 Daten'!B273,'2.2 Daten'!B371,'2.2 Daten'!B379,'2.2 Daten'!B382,'2.2 Daten'!B402,'2.2 Daten'!B412,'2.2 Daten'!B427,'2.2 Daten'!B443,x) -> Saarland | B47: =IF($A47<>0,INDEX('2.2 Daten'!C$9:C$860,MATCH('2.2'!$A47,'2.2 Daten'!$B$9:$B$860,0))," ") -> 10 | C47: =IF($A47<>0,INDEX('2.2 Daten'!E$9:E$860,MATCH('2.2'!$A47,'2.2 Daten'!$B$9:$B$860,0))) -> 28671 | D47: =IF($A47<>0,INDEX('2.2 Daten'!F$9:F$860,MATCH('2.2'!$A47,'2.2 Daten'!$B$9:$B$860,0))) -> 5650 | E47: =IF($A47<>0,INDEX('2.2 Daten'!G$9:G$860,MATCH('2.2'!$A47,'2.2 Daten'!$B$9:$B$860,0))) -> 5080 | F47: =IF($A47<>0,INDEX('2.2 Daten'!H$9:H$860,MATCH('2.2'!$A47,'2.2 Daten'!$B$9:$B$860,0))) -> 14138 | G47: =IF($A47<>0,INDEX('2.2 Daten'!I$9:I$860,MATCH('2.2'!$A47,'2.2 Daten'!$B$9:$B$860,0))) -> 3803 | H47: =IF($A47<>0,INDEX('2.2 Daten'!K$9:K$860,MATCH('2.2'!$A47,'2.2 Daten'!$B$9:$B$860,0))) -> -2.790398047 | I47: =IF($A47<>0,INDEX('2.2 Daten'!L$9:L$860,MATCH('2.2'!$A47,'2.2 Daten'!$B$9:$B$860,0))) -> -0.8424008424 | J47: =IF($A47<>0,INDEX('2.2 Daten'!M$9:M$860,MATCH('2.2'!$A47,'2.2 Daten'!$B$9:$B$860,0))) -> -3.127383677 | K47: =IF($A47<>0,INDEX('2.2 Daten'!N$9:N$860,MATCH('2.2'!$A47,'2.2 Daten'!$B$9:$B$860,0))) -> -2.964996568 | L47: =IF($A47<>0,INDEX('2.2 Daten'!O$9:O$860,MATCH('2.2'!$A47,'2.2 Daten'!$B$9:$B$860,0))) -> -4.495228528
A48: =CHOOSE('2.2 Daten'!$A$2,'2.2 Daten'!B470,'2.2 Daten'!B19,'2.2 Daten'!B36,'2.2 Daten'!B53,'2.2 Daten'!B56,'2.2 Daten'!B103,'2.2 Daten'!B107,'2.2 Daten'!B162,'2.2 Daten'!B190,'2.2 Daten'!B228,'2.2 Daten'!B274,'2.2 Daten'!B372,'2.2 Daten'!B380,'2.2 Daten'!B383,'2.2 Daten'!B403,'2.2 Daten'!B413,'2.2 Daten'!B428,'2.2 Daten'!B444,x) -> Berlin | B48: =IF($A48<>0,INDEX('2.2 Daten'!C$9:C$860,MATCH('2.2'!$A48,'2.2 Daten'!$B$9:$B$860,0))," ") -> 11 | C48: =IF($A48<>0,INDEX('2.2 Daten'!E$9:E$860,MATCH('2.2'!$A48,'2.2 Daten'!$B$9:$B$860,0))) -> 167478 | D48: =IF($A48<>0,INDEX('2.2 Daten'!F$9:F$860,MATCH('2.2'!$A48,'2.2 Daten'!$B$9:$B$860,0))) -> 31471 | E48: =IF($A48<>0,INDEX('2.2 Daten'!G$9:G$860,MATCH('2.2'!$A48,'2.2 Daten'!$B$9:$B$860,0))) -> 30037 | F48: =IF($A48<>0,INDEX('2.2 Daten'!H$9:H$860,MATCH('2.2'!$A48,'2.2 Daten'!$B$9:$B$860,0))) -> 83290 | G48: =IF($A48<>0,INDEX('2.2 Daten'!I$9:I$860,MATCH('2.2'!$A48,'2.2 Daten'!$B$9:$B$860,0))) -> 22680 | H48: =IF($A48<>0,INDEX('2.2 Daten'!K$9:K$860,MATCH('2.2'!$A48,'2.2 Daten'!$B$9:$B$860,0))) -> -2.866820167 | I48: =IF($A48<>0,INDEX('2.2 Daten'!L$9:L$860,MATCH('2.2'!$A48,'2.2 Daten'!$B$9:$B$860,0))) -> -3.687721875 | J48: =IF($A48<>0,INDEX('2.2 Daten'!M$9:M$860,MATCH('2.2'!$A48,'2.2 Daten'!$B$9:$B$860,0))) -> -3.103325914 | K48: =IF($A48<>0,INDEX('2.2 Daten'!N$9:N$860,MATCH('2.2'!$A48,'2.2 Daten'!$B$9:$B$860,0))) -> -2.039424163 | L48: =IF($A48<>0,INDEX('2.2 Daten'!O$9:O$860,MATCH('2.2'!$A48,'2.2 Daten'!$B$9:$B$860,0))) -> -4.392547003
A49: =CHOOSE('2.2 Daten'!$A$2,'2.2 Daten'!B471,'2.2 Daten'!B20,'2.2 Daten'!B37,'2.2 Daten'!B54,'2.2 Daten'!B57,'2.2 Daten'!B104,'2.2 Daten'!B108,'2.2 Daten'!B163,'2.2 Daten'!B191,'2.2 Daten'!B229,'2.2 Daten'!B275,'2.2 Daten'!B373,'2.2 Daten'!B381,'2.2 Daten'!B384,'2.2 Daten'!B404,'2.2 Daten'!B414,'2.2 Daten'!B429,'2.2 Daten'!B445,x) -> Brandenburg | B49: =IF($A49<>0,INDEX('2.2 Daten'!C$9:C$860,MATCH('2.2'!$A49,'2.2 Daten'!$B$9:$B$860,0))," ") -> 12 | C49: =IF($A49<>0,INDEX('2.2 Daten'!E$9:E$860,MATCH('2.2'!$A49,'2.2 Daten'!$B$9:$B$860,0))) -> 53155 | D49: =IF($A49<>0,INDEX('2.2 Daten'!F$9:F$860,MATCH('2.2'!$A49,'2.2 Daten'!$B$9:$B$860,0))) -> 10093 | E49: =IF($A49<>0,INDEX('2.2 Daten'!G$9:G$860,MATCH('2.2'!$A49,'2.2 Daten'!$B$9:$B$860,0))) -> 9742 | F49: =IF($A49<>0,INDEX('2.2 Daten'!H$9:H$860,MATCH('2.2'!$A49,'2.2 Daten'!$B$9:$B$860,0))) -> 27041 | G49: =IF($A49<>0,INDEX('2.2 Daten'!I$9:I$860,MATCH('2.2'!$A49,'2.2 Daten'!$B$9:$B$860,0))) -> 6279 | H49: =IF($A49<>0,INDEX('2.2 Daten'!K$9:K$860,MATCH('2.2'!$A49,'2.2 Daten'!$B$9:$B$860,0))) -> -7.456735959 | I49: =IF($A49<>0,INDEX('2.2 Daten'!L$9:L$860,MATCH('2.2'!$A49,'2.2 Daten'!$B$9:$B$860,0))) -> -6.68454142 | J49: =IF($A49<>0,INDEX('2.2 Daten'!M$9:M$860,MATCH('2.2'!$A49,'2.2 Daten'!$B$9:$B$860,0))) -> -7.911900936 | K49: =IF($A49<>0,INDEX('2.2 Daten'!N$9:N$860,MATCH('2.2'!$A49,'2.2 Daten'!$B$9:$B$860,0))) -> -6.748741293 | L49: =IF($A49<>0,INDEX('2.2 Daten'!O$9:O$860,MATCH('2.2'!$A49,'2.2 Daten'!$B$9:$B$860,0))) -> -10.87295955
A50: =CHOOSE('2.2 Daten'!$A$2,'2.2 Daten'!B472,'2.2 Daten'!B21,'2.2 Daten'!B38,'2.2 Daten'!B55,'2.2 Daten'!B58,'2.2 Daten'!B105,'2.2 Daten'!B109,'2.2 Daten'!B164,'2.2 Daten'!B192,'2.2 Daten'!B230,'2.2 Daten'!B276,'2.2 Daten'!B374,'2.2 Daten'!B382,'2.2 Daten'!B385,'2.2 Daten'!B405,'2.2 Daten'!B415,'2.2 Daten'!B430,'2.2 Daten'!B446,x) -> Mecklenburg-Vorpommern | B50: =IF($A50<>0,INDEX('2.2 Daten'!C$9:C$860,MATCH('2.2'!$A50,'2.2 Daten'!$B$9:$B$860,0))," ") -> 13 | C50: =IF($A50<>0,INDEX('2.2 Daten'!E$9:E$860,MATCH('2.2'!$A50,'2.2 Daten'!$B$9:$B$860,0))) -> 42194 | D50: =IF($A50<>0,INDEX('2.2 Daten'!F$9:F$860,MATCH('2.2'!$A50,'2.2 Daten'!$B$9:$B$860,0))) -> 7640 | E50: =IF($A50<>0,INDEX('2.2 Daten'!G$9:G$860,MATCH('2.2'!$A50,'2.2 Daten'!$B$9:$B$860,0))) -> 7918 | F50: =IF($A50<>0,INDEX('2.2 Daten'!H$9:H$860,MATCH('2.2'!$A50,'2.2 Daten'!$B$9:$B$860,0))) -> 21701 | G50: =IF($A50<>0,INDEX('2.2 Daten'!I$9:I$860,MATCH('2.2'!$A50,'2.2 Daten'!$B$9:$B$860,0))) -> 4935 | H50: =IF($A50<>0,INDEX('2.2 Daten'!K$9:K$860,MATCH('2.2'!$A50,'2.2 Daten'!$B$9:$B$860,0))) -> -8.554214256 | I50: =IF($A50<>0,INDEX('2.2 Daten'!L$9:L$860,MATCH('2.2'!$A50,'2.2 Daten'!$B$9:$B$860,0))) -> -10.72680533 | J50: =IF($A50<>0,INDEX('2.2 Daten'!M$9:M$860,MATCH('2.2'!$A50,'2.2 Daten'!$B$9:$B$860,0))) -> -8.430669596 | K50: =IF($A50<>0,INDEX('2.2 Daten'!N$9:N$860,MATCH('2.2'!$A50,'2.2 Daten'!$B$9:$B$860,0))) -> -7.733843537 | L50: =IF($A50<>0,INDEX('2.2 Daten'!O$9:O$860,MATCH('2.2'!$A50,'2.2 Daten'!$B$9:$B$860,0))) -> -8.881093058
A51: =CHOOSE('2.2 Daten'!$A$2,'2.2 Daten'!B473,'2.2 Daten'!B22,'2.2 Daten'!B39,'2.2 Daten'!B56,'2.2 Daten'!B59,'2.2 Daten'!B106,'2.2 Daten'!B110,'2.2 Daten'!B165,'2.2 Daten'!B193,'2.2 Daten'!B231,'2.2 Daten'!B277,'2.2 Daten'!B375,'2.2 Daten'!B383,'2.2 Daten'!B386,'2.2 Daten'!B406,'2.2 Daten'!B416,'2.2 Daten'!B431,'2.2 Daten'!B447,x) -> Sachsen | B51: =IF($A51<>0,INDEX('2.2 Daten'!C$9:C$860,MATCH('2.2'!$A51,'2.2 Daten'!$B$9:$B$860,0))," ") -> 14 | C51: =IF($A51<>0,INDEX('2.2 Daten'!E$9:E$860,MATCH('2.2'!$A51,'2.2 Daten'!$B$9:$B$860,0))) -> 85424 | D51: =IF($A51<>0,INDEX('2.2 Daten'!F$9:F$860,MATCH('2.2'!$A51,'2.2 Daten'!$B$9:$B$860,0))) -> 16612 | E51: =IF($A51<>0,INDEX('2.2 Daten'!G$9:G$860,MATCH('2.2'!$A51,'2.2 Daten'!$B$9:$B$860,0))) -> 16034 | F51: =IF($A51<>0,INDEX('2.2 Daten'!H$9:H$860,MATCH('2.2'!$A51,'2.2 Daten'!$B$9:$B$860,0))) -> 42874 | G51: =IF($A51<>0,INDEX('2.2 Daten'!I$9:I$860,MATCH('2.2'!$A51,'2.2 Daten'!$B$9:$B$860,0))) -> 9904 | H51: =IF($A51<>0,INDEX('2.2 Daten'!K$9:K$860,MATCH('2.2'!$A51,'2.2 Daten'!$B$9:$B$860,0))) -> -7.911559566 | I51: =IF($A51<>0,INDEX('2.2 Daten'!L$9:L$860,MATCH('2.2'!$A51,'2.2 Daten'!$B$9:$B$860,0))) -> -7.956560284 | J51: =IF($A51<>0,INDEX('2.2 Daten'!M$9:M$860,MATCH('2.2'!$A51,'2.2 Daten'!$B$9:$B$860,0))) -> -7.478361223 | K51: =IF($A51<>0,INDEX('2.2 Daten'!N$9:N$860,MATCH('2.2'!$A51,'2.2 Daten'!$B$9:$B$860,0))) -> -7.148890092 | L51: =IF($A51<>0,INDEX('2.2 Daten'!O$9:O$860,MATCH('2.2'!$A51,'2.2 Daten'!$B$9:$B$860,0))) -> -11.65031222
A52: =CHOOSE('2.2 Daten'!$A$2,'2.2 Daten'!B474,'2.2 Daten'!B23,'2.2 Daten'!B40,'2.2 Daten'!B57,'2.2 Daten'!B60,'2.2 Daten'!B107,'2.2 Daten'!B111,'2.2 Daten'!B166,'2.2 Daten'!B194,'2.2 Daten'!B232,'2.2 Daten'!B278,'2.2 Daten'!B376,'2.2 Daten'!B384,'2.2 Daten'!B387,'2.2 Daten'!B407,'2.2 Daten'!B417,'2.2 Daten'!B432,'2.2 Daten'!B448,x) -> Sachsen-Anhalt | B52: =IF($A52<>0,INDEX('2.2 Daten'!C$9:C$860,MATCH('2.2'!$A52,'2.2 Daten'!$B$9:$B$860,0))," ") -> 15 | C52: =IF($A52<>0,INDEX('2.2 Daten'!E$9:E$860,MATCH('2.2'!$A52,'2.2 Daten'!$B$9:$B$860,0))) -> 65377 | D52: =IF($A52<>0,INDEX('2.2 Daten'!F$9:F$860,MATCH('2.2'!$A52,'2.2 Daten'!$B$9:$B$860,0))) -> 12420 | E52: =IF($A52<>0,INDEX('2.2 Daten'!G$9:G$860,MATCH('2.2'!$A52,'2.2 Daten'!$B$9:$B$860,0))) -> 12243 | F52: =IF($A52<>0,INDEX('2.2 Daten'!H$9:H$860,MATCH('2.2'!$A52,'2.2 Daten'!$B$9:$B$860,0))) -> 33034 | G52: =IF($A52<>0,INDEX('2.2 Daten'!I$9:I$860,MATCH('2.2'!$A52,'2.2 Daten'!$B$9:$B$860,0))) -> 7680 | H52: =IF($A52<>0,INDEX('2.2 Daten'!K$9:K$860,MATCH('2.2'!$A52,'2.2 Daten'!$B$9:$B$860,0))) -> -7.061014443 | I52: =IF($A52<>0,INDEX('2.2 Daten'!L$9:L$860,MATCH('2.2'!$A52,'2.2 Daten'!$B$9:$B$860,0))) -> -6.875609207 | J52: =IF($A52<>0,INDEX('2.2 Daten'!M$9:M$860,MATCH('2.2'!$A52,'2.2 Daten'!$B$9:$B$860,0))) -> -6.925649992 | K52: =IF($A52<>0,INDEX('2.2 Daten'!N$9:N$860,MATCH('2.2'!$A52,'2.2 Daten'!$B$9:$B$860,0))) -> -6.511956983 | L52: =IF($A52<>0,INDEX('2.2 Daten'!O$9:O$860,MATCH('2.2'!$A52,'2.2 Daten'!$B$9:$B$860,0))) -> -9.837990139
A53: =CHOOSE('2.2 Daten'!$A$2,'2.2 Daten'!B475,'2.2 Daten'!B24,'2.2 Daten'!B41,'2.2 Daten'!B58,'2.2 Daten'!B61,'2.2 Daten'!B108,'2.2 Daten'!B112,'2.2 Daten'!B167,'2.2 Daten'!B195,'2.2 Daten'!B233,'2.2 Daten'!B279,'2.2 Daten'!B377,'2.2 Daten'!B385,'2.2 Daten'!B388,'2.2 Daten'!B408,'2.2 Daten'!B418,'2.2 Daten'!B433,'2.2 Daten'!B449,x) -> Thüringen | B53: =IF($A53<>0,INDEX('2.2 Daten'!C$9:C$860,MATCH('2.2'!$A53,'2.2 Daten'!$B$9:$B$860,0))," ") -> 16 | C53: =IF($A53<>0,INDEX('2.2 Daten'!E$9:E$860,MATCH('2.2'!$A53,'2.2 Daten'!$B$9:$B$860,0))) -> 45005 | D53: =IF($A53<>0,INDEX('2.2 Daten'!F$9:F$860,MATCH('2.2'!$A53,'2.2 Daten'!$B$9:$B$860,0))) -> 8918 | E53: =IF($A53<>0,INDEX('2.2 Daten'!G$9:G$860,MATCH('2.2'!$A53,'2.2 Daten'!$B$9:$B$860,0))) -> 8486 | F53: =IF($A53<>0,INDEX('2.2 Daten'!H$9:H$860,MATCH('2.2'!$A53,'2.2 Daten'!$B$9:$B$860,0))) -> 22421 | G53: =IF($A53<>0,INDEX('2.2 Daten'!I$9:I$860,MATCH('2.2'!$A53,'2.2 Daten'!$B$9:$B$860,0))) -> 5180 | H53: =IF($A53<>0,INDEX('2.2 Daten'!K$9:K$860,MATCH('2.2'!$A53,'2.2 Daten'!$B$9:$B$860,0))) -> -6.490889069 | I53: =IF($A53<>0,INDEX('2.2 Daten'!L$9:L$860,MATCH('2.2'!$A53,'2.2 Daten'!$B$9:$B$860,0))) -> -7.938474244 | J53: =IF($A53<>0,INDEX('2.2 Daten'!M$9:M$860,MATCH('2.2'!$A53,'2.2 Daten'!$B$9:$B$860,0))) -> -4.982644721 | K53: =IF($A53<>0,INDEX('2.2 Daten'!N$9:N$860,MATCH('2.2'!$A53,'2.2 Daten'!$B$9:$B$860,0))) -> -5.936398725 | L53: =IF($A53<>0,INDEX('2.2 Daten'!O$9:O$860,MATCH('2.2'!$A53,'2.2 Daten'!$B$9:$B$860,0))) -> -8.72246696
A54: =CHOOSE('2.2 Daten'!$A$2,'2.2 Daten'!B476,'2.2 Daten'!B25,'2.2 Daten'!B42,'2.2 Daten'!B59,'2.2 Daten'!B62,'2.2 Daten'!B109,'2.2 Daten'!B113,'2.2 Daten'!B168,'2.2 Daten'!B196,'2.2 Daten'!B234,'2.2 Daten'!B280,'2.2 Daten'!B378,'2.2 Daten'!B386,'2.2 Daten'!B389,'2.2 Daten'!B409,'2.2 Daten'!B419,'2.2 Daten'!B434,'2.2 Daten'!B450,x) -> 0 | B54: =IF($A54<>0,INDEX('2.2 Daten'!C$9:C$860,MATCH('2.2'!$A54,'2.2 Daten'!$B$9:$B$860,0))," ") ->  | C54: =IF($A54<>0,INDEX('2.2 Daten'!E$9:E$860,MATCH('2.2'!$A54,'2.2 Daten'!$B$9:$B$860,0))) -> FALSE | D54: =IF($A54<>0,INDEX('2.2 Daten'!F$9:F$860,MATCH('2.2'!$A54,'2.2 Daten'!$B$9:$B$860,0))) -> FALSE | E54: =IF($A54<>0,INDEX('2.2 Daten'!G$9:G$860,MATCH('2.2'!$A54,'2.2 Daten'!$B$9:$B$860,0))) -> FALSE | F54: =IF($A54<>0,INDEX('2.2 Daten'!H$9:H$860,MATCH('2.2'!$A54,'2.2 Daten'!$B$9:$B$860,0))) -> FALSE | G54: =IF($A54<>0,INDEX('2.2 Daten'!I$9:I$860,MATCH('2.2'!$A54,'2.2 Daten'!$B$9:$B$860,0))) -> FALSE | H54: =IF($A54<>0,INDEX('2.2 Daten'!K$9:K$860,MATCH('2.2'!$A54,'2.2 Daten'!$B$9:$B$860,0))) -> FALSE | I54: =IF($A54<>0,INDEX('2.2 Daten'!L$9:L$860,MATCH('2.2'!$A54,'2.2 Daten'!$B$9:$B$860,0))) -> FALSE | J54: =IF($A54<>0,INDEX('2.2 Daten'!M$9:M$860,MATCH('2.2'!$A54,'2.2 Daten'!$B$9:$B$860,0))) -> FALSE | K54: =IF($A54<>0,INDEX('2.2 Daten'!N$9:N$860,MATCH('2.2'!$A54,'2.2 Daten'!$B$9:$B$860,0))) -> FALSE | L54: =IF($A54<>0,INDEX('2.2 Daten'!O$9:O$860,MATCH('2.2'!$A54,'2.2 Daten'!$B$9:$B$860,0))) -> FALSE
A55: =CHOOSE('2.2 Daten'!$A$2,'2.2 Daten'!B477,'2.2 Daten'!B26,'2.2 Daten'!B43,'2.2 Daten'!B60,'2.2 Daten'!B63,'2.2 Daten'!B110,'2.2 Daten'!B114,'2.2 Daten'!B169,'2.2 Daten'!B197,'2.2 Daten'!B235,'2.2 Daten'!B281,'2.2 Daten'!B379,'2.2 Daten'!B387,'2.2 Daten'!B390,'2.2 Daten'!B410,'2.2 Daten'!B420,'2.2 Daten'!B435,'2.2 Daten'!B451,x) -> Schleswig-Holstein | B55: =IF($A55<>0,INDEX('2.2 Daten'!C$9:C$860,MATCH('2.2'!$A55,'2.2 Daten'!$B$9:$B$860,0))," ") -> 01 | C55: =IF($A55<>0,INDEX('2.2 Daten'!E$9:E$860,MATCH('2.2'!$A55,'2.2 Daten'!$B$9:$B$860,0))) -> 74167 | D55: =IF($A55<>0,INDEX('2.2 Daten'!F$9:F$860,MATCH('2.2'!$A55,'2.2 Daten'!$B$9:$B$860,0))) -> 14142 | E55: =IF($A55<>0,INDEX('2.2 Daten'!G$9:G$860,MATCH('2.2'!$A55,'2.2 Daten'!$B$9:$B$860,0))) -> 13703 | F55: =IF($A55<>0,INDEX('2.2 Daten'!H$9:H$860,MATCH('2.2'!$A55,'2.2 Daten'!$B$9:$B$860,0))) -> 36929 | G55: =IF($A55<>0,INDEX('2.2 Daten'!I$9:I$860,MATCH('2.2'!$A55,'2.2 Daten'!$B$9:$B$860,0))) -> 9393 | H55: =IF($A55<>0,INDEX('2.2 Daten'!K$9:K$860,MATCH('2.2'!$A55,'2.2 Daten'!$B$9:$B$860,0))) -> -3.291129337 | I55: =IF($A55<>0,INDEX('2.2 Daten'!L$9:L$860,MATCH('2.2'!$A55,'2.2 Daten'!$B$9:$B$860,0))) -> -3.017418735 | J55: =IF($A55<>0,INDEX('2.2 Daten'!M$9:M$860,MATCH('2.2'!$A55,'2.2 Daten'!$B$9:$B$860,0))) -> -3.662823397 | K55: =IF($A55<>0,INDEX('2.2 Daten'!N$9:N$860,MATCH('2.2'!$A55,'2.2 Daten'!$B$9:$B$860,0))) -> -2.438444468 | L55: =IF($A55<>0,INDEX('2.2 Daten'!O$9:O$860,MATCH('2.2'!$A55,'2.2 Daten'!$B$9:$B$860,0))) -> -6.378949467
A56: =CHOOSE('2.2 Daten'!$A$2,'2.2 Daten'!B478,'2.2 Daten'!B27,'2.2 Daten'!B44,'2.2 Daten'!B61,'2.2 Daten'!B64,'2.2 Daten'!B111,'2.2 Daten'!B115,'2.2 Daten'!B170,'2.2 Daten'!B198,'2.2 Daten'!B236,'2.2 Daten'!B282,'2.2 Daten'!B380,'2.2 Daten'!B388,'2.2 Daten'!B391,'2.2 Daten'!B411,'2.2 Daten'!B421,'2.2 Daten'!B436,'2.2 Daten'!B452,x) -> Flensburg, Stadt | B56: =IF($A56<>0,INDEX('2.2 Daten'!C$9:C$860,MATCH('2.2'!$A56,'2.2 Daten'!$B$9:$B$860,0))," ") -> 1001000 | C56: =IF($A56<>0,INDEX('2.2 Daten'!E$9:E$860,MATCH('2.2'!$A56,'2.2 Daten'!$B$9:$B$860,0))) -> 3939 | D56: =IF($A56<>0,INDEX('2.2 Daten'!F$9:F$860,MATCH('2.2'!$A56,'2.2 Daten'!$B$9:$B$860,0))) -> 837 | E56: =IF($A56<>0,INDEX('2.2 Daten'!G$9:G$860,MATCH('2.2'!$A56,'2.2 Daten'!$B$9:$B$860,0))) -> 716 | F56: =IF($A56<>0,INDEX('2.2 Daten'!H$9:H$860,MATCH('2.2'!$A56,'2.2 Daten'!$B$9:$B$860,0))) -> 1920 | G56: =IF($A56<>0,INDEX('2.2 Daten'!I$9:I$860,MATCH('2.2'!$A56,'2.2 Daten'!$B$9:$B$860,0))) -> 466 | H56: =IF($A56<>0,INDEX('2.2 Daten'!K$9:K$860,MATCH('2.2'!$A56,'2.2 Daten'!$B$9:$B$860,0))) -> 5.124099279 | I56: =IF($A56<>0,INDEX('2.2 Daten'!L$9:L$860,MATCH('2.2'!$A56,'2.2 Daten'!$B$9:$B$860,0))) -> 4.887218045 | J56: =IF($A56<>0,INDEX('2.2 Daten'!M$9:M$860,MATCH('2.2'!$A56,'2.2 Daten'!$B$9:$B$860,0))) -> 3.318903319 | K56: =IF($A56<>0,INDEX('2.2 Daten'!N$9:N$860,MATCH('2.2'!$A56,'2.2 Daten'!$B$9:$B$860,0))) -> 6.489184692 | L56: =IF($A56<>0,INDEX('2.2 Daten'!O$9:O$860,MATCH('2.2'!$A56,'2.2 Daten'!$B$9:$B$860,0))) -> 2.869757174
A57: =CHOOSE('2.2 Daten'!$A$2,'2.2 Daten'!B479,'2.2 Daten'!B28,'2.2 Daten'!B45,'2.2 Daten'!B62,'2.2 Daten'!B65,'2.2 Daten'!B112,'2.2 Daten'!B116,'2.2 Daten'!B171,'2.2 Daten'!B199,'2.2 Daten'!B237,'2.2 Daten'!B283,'2.2 Daten'!B381,'2.2 Daten'!B389,'2.2 Daten'!B392,'2.2 Daten'!B412,'2.2 Daten'!B422,'2.2 Daten'!B437,'2.2 Daten'!B453,x) -> Kiel, Landeshauptstadt | B57: =IF($A57<>0,INDEX('2.2 Daten'!C$9:C$860,MATCH('2.2'!$A57,'2.2 Daten'!$B$9:$B$860,0))," ") -> 1002000 | C57: =IF($A57<>0,INDEX('2.2 Daten'!E$9:E$860,MATCH('2.2'!$A57,'2.2 Daten'!$B$9:$B$860,0))) -> 11101 | D57: =IF($A57<>0,INDEX('2.2 Daten'!F$9:F$860,MATCH('2.2'!$A57,'2.2 Daten'!$B$9:$B$860,0))) -> 2062 | E57: =IF($A57<>0,INDEX('2.2 Daten'!G$9:G$860,MATCH('2.2'!$A57,'2.2 Daten'!$B$9:$B$860,0))) -> 2039 | F57: =IF($A57<>0,INDEX('2.2 Daten'!H$9:H$860,MATCH('2.2'!$A57,'2.2 Daten'!$B$9:$B$860,0))) -> 5486 | G57: =IF($A57<>0,INDEX('2.2 Daten'!I$9:I$860,MATCH('2.2'!$A57,'2.2 Daten'!$B$9:$B$860,0))) -> 1514 | H57: =IF($A57<>0,INDEX('2.2 Daten'!K$9:K$860,MATCH('2.2'!$A57,'2.2 Daten'!$B$9:$B$860,0))) -> -0.7421316166 | I57: =IF($A57<>0,INDEX('2.2 Daten'!L$9:L$860,MATCH('2.2'!$A57,'2.2 Daten'!$B$9:$B$860,0))) -> -3.147017379 | J57: =IF($A57<>0,INDEX('2.2 Daten'!M$9:M$860,MATCH('2.2'!$A57,'2.2 Daten'!$B$9:$B$860,0))) -> 0.3938946332 | K57: =IF($A57<>0,INDEX('2.2 Daten'!N$9:N$860,MATCH('2.2'!$A57,'2.2 Daten'!$B$9:$B$860,0))) -> -1.313185825 | L57: =IF($A57<>0,INDEX('2.2 Daten'!O$9:O$860,MATCH('2.2'!$A57,'2.2 Daten'!$B$9:$B$860,0))) -> 3.344709898
A58: =CHOOSE('2.2 Daten'!$A$2,'2.2 Daten'!B480,'2.2 Daten'!B29,'2.2 Daten'!B46,'2.2 Daten'!B63,'2.2 Daten'!B66,'2.2 Daten'!B113,'2.2 Daten'!B117,'2.2 Daten'!B172,'2.2 Daten'!B200,'2.2 Daten'!B238,'2.2 Daten'!B284,'2.2 Daten'!B382,'2.2 Daten'!B390,'2.2 Daten'!B393,'2.2 Daten'!B413,'2.2 Daten'!B423,'2.2 Daten'!B438,'2.2 Daten'!B454,x) -> Lübeck, Hansestadt | B58: =IF($A58<>0,INDEX('2.2 Daten'!C$9:C$860,MATCH('2.2'!$A58,'2.2 Daten'!$B$9:$B$860,0))," ") -> 1003000 | C58: =IF($A58<>0,INDEX('2.2 Daten'!E$9:E$860,MATCH('2.2'!$A58,'2.2 Daten'!$B$9:$B$860,0))) -> 8298 | D58: =IF($A58<>0,INDEX('2.2 Daten'!F$9:F$860,MATCH('2.2'!$A58,'2.2 Daten'!$B$9:$B$860,0))) -> 1560 | E58: =IF($A58<>0,INDEX('2.2 Daten'!G$9:G$860,MATCH('2.2'!$A58,'2.2 Daten'!$B$9:$B$860,0))) -> 1523 | F58: =IF($A58<>0,INDEX('2.2 Daten'!H$9:H$860,MATCH('2.2'!$A58,'2.2 Daten'!$B$9:$B$860,0))) -> 4128 | G58: =IF($A58<>0,INDEX('2.2 Daten'!I$9:I$860,MATCH('2.2'!$A58,'2.2 Daten'!$B$9:$B$860,0))) -> 1087 | H58: =IF($A58<>0,INDEX('2.2 Daten'!K$9:K$860,MATCH('2.2'!$A58,'2.2 Daten'!$B$9:$B$860,0))) -> -4.543885885 | I58: =IF($A58<>0,INDEX('2.2 Daten'!L$9:L$860,MATCH('2.2'!$A58,'2.2 Daten'!$B$9:$B$860,0))) -> -3.763109192 | J58: =IF($A58<>0,INDEX('2.2 Daten'!M$9:M$860,MATCH('2.2'!$A58,'2.2 Daten'!$B$9:$B$860,0))) -> -6.564417178 | K58: =IF($A58<>0,INDEX('2.2 Daten'!N$9:N$860,MATCH('2.2'!$A58,'2.2 Daten'!$B$9:$B$860,0))) -> -2.572574935 | L58: =IF($A58<>0,INDEX('2.2 Daten'!O$9:O$860,MATCH('2.2'!$A58,'2.2 Daten'!$B$9:$B$860,0))) -> -9.79253112
A59: =CHOOSE('2.2 Daten'!$A$2,'2.2 Daten'!B481,'2.2 Daten'!B30,'2.2 Daten'!B47,'2.2 Daten'!B64,'2.2 Daten'!B67,'2.2 Daten'!B114,'2.2 Daten'!B118,'2.2 Daten'!B173,'2.2 Daten'!B201,'2.2 Daten'!B239,'2.2 Daten'!B285,'2.2 Daten'!B383,'2.2 Daten'!B391,'2.2 Daten'!B394,'2.2 Daten'!B414,'2.2 Daten'!B424,'2.2 Daten'!B439,'2.2 Daten'!B455,x) -> Neumünster, Stadt | B59: =IF($A59<>0,INDEX('2.2 Daten'!C$9:C$860,MATCH('2.2'!$A59,'2.2 Daten'!$B$9:$B$860,0))," ") -> 1004000 | C59: =IF($A59<>0,INDEX('2.2 Daten'!E$9:E$860,MATCH('2.2'!$A59,'2.2 Daten'!$B$9:$B$860,0))) -> 3253 | D59: =IF($A59<>0,INDEX('2.2 Daten'!F$9:F$860,MATCH('2.2'!$A59,'2.2 Daten'!$B$9:$B$860,0))) -> 590 | E59: =IF($A59<>0,INDEX('2.2 Daten'!G$9:G$860,MATCH('2.2'!$A59,'2.2 Daten'!$B$9:$B$860,0))) -> 621 | F59: =IF($A59<>0,INDEX('2.2 Daten'!H$9:H$860,MATCH('2.2'!$A59,'2.2 Daten'!$B$9:$B$860,0))) -> 1660 | G59: =IF($A59<>0,INDEX('2.2 Daten'!I$9:I$860,MATCH('2.2'!$A59,'2.2 Daten'!$B$9:$B$860,0))) -> 382 | H59: =IF($A59<>0,INDEX('2.2 Daten'!K$9:K$860,MATCH('2.2'!$A59,'2.2 Daten'!$B$9:$B$860,0))) -> -6.415420023 | I59: =IF($A59<>0,INDEX('2.2 Daten'!L$9:L$860,MATCH('2.2'!$A59,'2.2 Daten'!$B$9:$B$860,0))) -> -5.448717949 | J59: =IF($A59<>0,INDEX('2.2 Daten'!M$9:M$860,MATCH('2.2'!$A59,'2.2 Daten'!$B$9:$B$860,0))) -> -8.676470588 | K59: =IF($A59<>0,INDEX('2.2 Daten'!N$9:N$860,MATCH('2.2'!$A59,'2.2 Daten'!$B$9:$B$860,0))) -> -3.600464576 | L59: =IF($A59<>0,INDEX('2.2 Daten'!O$9:O$860,MATCH('2.2'!$A59,'2.2 Daten'!$B$9:$B$860,0))) -> -15.11111111
A60: =CHOOSE('2.2 Daten'!$A$2,'2.2 Daten'!B482,'2.2 Daten'!B31,'2.2 Daten'!B48,'2.2 Daten'!B65,'2.2 Daten'!B68,'2.2 Daten'!B115,'2.2 Daten'!B119,'2.2 Daten'!B174,'2.2 Daten'!B202,'2.2 Daten'!B240,'2.2 Daten'!B286,'2.2 Daten'!B384,'2.2 Daten'!B392,'2.2 Daten'!B395,'2.2 Daten'!B415,'2.2 Daten'!B425,'2.2 Daten'!B440,'2.2 Daten'!B456,x) -> Dithmarschen | B60: =IF($A60<>0,INDEX('2.2 Daten'!C$9:C$860,MATCH('2.2'!$A60,'2.2 Daten'!$B$9:$B$860,0))," ") -> 1051000 | C60: =IF($A60<>0,INDEX('2.2 Daten'!E$9:E$860,MATCH('2.2'!$A60,'2.2 Daten'!$B$9:$B$860,0))) -> 3955 | D60: =IF($A60<>0,INDEX('2.2 Daten'!F$9:F$860,MATCH('2.2'!$A60,'2.2 Daten'!$B$9:$B$860,0))) -> 767 | E60: =IF($A60<>0,INDEX('2.2 Daten'!G$9:G$860,MATCH('2.2'!$A60,'2.2 Daten'!$B$9:$B$860,0))) -> 761 | F60: =IF($A60<>0,INDEX('2.2 Daten'!H$9:H$860,MATCH('2.2'!$A60,'2.2 Daten'!$B$9:$B$860,0))) -> 1943 | G60: =IF($A60<>0,INDEX('2.2 Daten'!I$9:I$860,MATCH('2.2'!$A60,'2.2 Daten'!$B$9:$B$860,0))) -> 484 | H60: =IF($A60<>0,INDEX('2.2 Daten'!K$9:K$860,MATCH('2.2'!$A60,'2.2 Daten'!$B$9:$B$860,0))) -> -4.283639884 | I60: =IF($A60<>0,INDEX('2.2 Daten'!L$9:L$860,MATCH('2.2'!$A60,'2.2 Daten'!$B$9:$B$860,0))) -> -1.540436457 | J60: =IF($A60<>0,INDEX('2.2 Daten'!M$9:M$860,MATCH('2.2'!$A60,'2.2 Daten'!$B$9:$B$860,0))) -> -6.049382716 | K60: =IF($A60<>0,INDEX('2.2 Daten'!N$9:N$860,MATCH('2.2'!$A60,'2.2 Daten'!$B$9:$B$860,0))) -> -4.520884521 | L60: =IF($A60<>0,INDEX('2.2 Daten'!O$9:O$860,MATCH('2.2'!$A60,'2.2 Daten'!$B$9:$B$860,0))) -> -4.724409449
A61: =CHOOSE('2.2 Daten'!$A$2,'2.2 Daten'!B483,'2.2 Daten'!B32,'2.2 Daten'!B49,'2.2 Daten'!B66,'2.2 Daten'!B69,'2.2 Daten'!B116,'2.2 Daten'!B120,'2.2 Daten'!B175,'2.2 Daten'!B203,'2.2 Daten'!B241,'2.2 Daten'!B287,'2.2 Daten'!B385,'2.2 Daten'!B393,'2.2 Daten'!B396,'2.2 Daten'!B416,'2.2 Daten'!B426,'2.2 Daten'!B441,'2.2 Daten'!B457,x) -> Herzogtum Lauenburg | B61: =IF($A61<>0,INDEX('2.2 Daten'!C$9:C$860,MATCH('2.2'!$A61,'2.2 Daten'!$B$9:$B$860,0))," ") -> 1053000 | C61: =IF($A61<>0,INDEX('2.2 Daten'!E$9:E$860,MATCH('2.2'!$A61,'2.2 Daten'!$B$9:$B$860,0))) -> 4365 | D61: =IF($A61<>0,INDEX('2.2 Daten'!F$9:F$860,MATCH('2.2'!$A61,'2.2 Daten'!$B$9:$B$860,0))) -> 864 | E61: =IF($A61<>0,INDEX('2.2 Daten'!G$9:G$860,MATCH('2.2'!$A61,'2.2 Daten'!$B$9:$B$860,0))) -> 800 | F61: =IF($A61<>0,INDEX('2.2 Daten'!H$9:H$860,MATCH('2.2'!$A61,'2.2 Daten'!$B$9:$B$860,0))) -> 2132 | G61: =IF($A61<>0,INDEX('2.2 Daten'!I$9:I$860,MATCH('2.2'!$A61,'2.2 Daten'!$B$9:$B$860,0))) -> 569 | H61: =IF($A61<>0,INDEX('2.2 Daten'!K$9:K$860,MATCH('2.2'!$A61,'2.2 Daten'!$B$9:$B$860,0))) -> -6.47096636 | I61: =IF($A61<>0,INDEX('2.2 Daten'!L$9:L$860,MATCH('2.2'!$A61,'2.2 Daten'!$B$9:$B$860,0))) -> -5.882352941 | J61: =IF($A61<>0,INDEX('2.2 Daten'!M$9:M$860,MATCH('2.2'!$A61,'2.2 Daten'!$B$9:$B$860,0))) -> -5.325443787 | K61: =IF($A61<>0,INDEX('2.2 Daten'!N$9:N$860,MATCH('2.2'!$A61,'2.2 Daten'!$B$9:$B$860,0))) -> -7.183282542 | L61: =IF($A61<>0,INDEX('2.2 Daten'!O$9:O$860,MATCH('2.2'!$A61,'2.2 Daten'!$B$9:$B$860,0))) -> -6.26029654
A62: =CHOOSE('2.2 Daten'!$A$2,'2.2 Daten'!B484,'2.2 Daten'!B33,'2.2 Daten'!B50,'2.2 Daten'!B67,'2.2 Daten'!B70,'2.2 Daten'!B117,'2.2 Daten'!B121,'2.2 Daten'!B176,'2.2 Daten'!B204,'2.2 Daten'!B242,'2.2 Daten'!B288,'2.2 Daten'!B386,'2.2 Daten'!B394,'2.2 Daten'!B397,'2.2 Daten'!B417,'2.2 Daten'!B427,'2.2 Daten'!B442,'2.2 Daten'!B458,x) -> Nordfriesland | B62: =IF($A62<>0,INDEX('2.2 Daten'!C$9:C$860,MATCH('2.2'!$A62,'2.2 Daten'!$B$9:$B$860,0))," ") -> 1054000 | C62: =IF($A62<>0,INDEX('2.2 Daten'!E$9:E$860,MATCH('2.2'!$A62,'2.2 Daten'!$B$9:$B$860,0))) -> 3128 | D62: =IF($A62<>0,INDEX('2.2 Daten'!F$9:F$860,MATCH('2.2'!$A62,'2.2 Daten'!$B$9:$B$860,0))) -> 610 | E62: =IF($A62<>0,INDEX('2.2 Daten'!G$9:G$860,MATCH('2.2'!$A62,'2.2 Daten'!$B$9:$B$860,0))) -> 577 | F62: =IF($A62<>0,INDEX('2.2 Daten'!H$9:H$860,MATCH('2.2'!$A62,'2.2 Daten'!$B$9:$B$860,0))) -> 1523 | G62: =IF($A62<>0,INDEX('2.2 Daten'!I$9:I$860,MATCH('2.2'!$A62,'2.2 Daten'!$B$9:$B$860,0))) -> 418 | H62: =IF($A62<>0,INDEX('2.2 Daten'!K$9:K$860,MATCH('2.2'!$A62,'2.2 Daten'!$B$9:$B$860,0))) -> -9.016870273 | I62: =IF($A62<>0,INDEX('2.2 Daten'!L$9:L$860,MATCH('2.2'!$A62,'2.2 Daten'!$B$9:$B$860,0))) -> -5.572755418 | J62: =IF($A62<>0,INDEX('2.2 Daten'!M$9:M$860,MATCH('2.2'!$A62,'2.2 Daten'!$B$9:$B$860,0))) -> -13.23308271 | K62: =IF($A62<>0,INDEX('2.2 Daten'!N$9:N$860,MATCH('2.2'!$A62,'2.2 Daten'!$B$9:$B$860,0))) -> -9.667852906 | L62: =IF($A62<>0,INDEX('2.2 Daten'!O$9:O$860,MATCH('2.2'!$A62,'2.2 Daten'!$B$9:$B$860,0))) -> -5.215419501
A63: =CHOOSE('2.2 Daten'!$A$2,'2.2 Daten'!B485,'2.2 Daten'!B34,'2.2 Daten'!B51,'2.2 Daten'!B68,'2.2 Daten'!B71,'2.2 Daten'!B118,'2.2 Daten'!B122,'2.2 Daten'!B177,'2.2 Daten'!B205,'2.2 Daten'!B243,'2.2 Daten'!B289,'2.2 Daten'!B387,'2.2 Daten'!B395,'2.2 Daten'!B398,'2.2 Daten'!B418,'2.2 Daten'!B428,'2.2 Daten'!B443,'2.2 Daten'!B459,x) -> Ostholstein | B63: =IF($A63<>0,INDEX('2.2 Daten'!C$9:C$860,MATCH('2.2'!$A63,'2.2 Daten'!$B$9:$B$860,0))," ") -> 1055000 | C63: =IF($A63<>0,INDEX('2.2 Daten'!E$9:E$860,MATCH('2.2'!$A63,'2.2 Daten'!$B$9:$B$860,0))) -> 3793 | D63: =IF($A63<>0,INDEX('2.2 Daten'!F$9:F$860,MATCH('2.2'!$A63,'2.2 Daten'!$B$9:$B$860,0))) -> 701 | E63: =IF($A63<>0,INDEX('2.2 Daten'!G$9:G$860,MATCH('2.2'!$A63,'2.2 Daten'!$B$9:$B$860,0))) -> 690 | F63: =IF($A63<>0,INDEX('2.2 Daten'!H$9:H$860,MATCH('2.2'!$A63,'2.2 Daten'!$B$9:$B$860,0))) -> 1913 | G63: =IF($A63<>0,INDEX('2.2 Daten'!I$9:I$860,MATCH('2.2'!$A63,'2.2 Daten'!$B$9:$B$860,0))) -> 489 | H63: =IF($A63<>0,INDEX('2.2 Daten'!K$9:K$860,MATCH('2.2'!$A63,'2.2 Daten'!$B$9:$B$860,0))) -> -3.51055711 | I63: =IF($A63<>0,INDEX('2.2 Daten'!L$9:L$860,MATCH('2.2'!$A63,'2.2 Daten'!$B$9:$B$860,0))) -> -1.128349788 | J63: =IF($A63<>0,INDEX('2.2 Daten'!M$9:M$860,MATCH('2.2'!$A63,'2.2 Daten'!$B$9:$B$860,0))) -> -2.266288952 | K63: =IF($A63<>0,INDEX('2.2 Daten'!N$9:N$860,MATCH('2.2'!$A63,'2.2 Daten'!$B$9:$B$860,0))) -> -2.148337596 | L63: =IF($A63<>0,INDEX('2.2 Daten'!O$9:O$860,MATCH('2.2'!$A63,'2.2 Daten'!$B$9:$B$860,0))) -> -12.8342246
A64: =CHOOSE('2.2 Daten'!$A$2,'2.2 Daten'!B486,'2.2 Daten'!B35,'2.2 Daten'!B52,'2.2 Daten'!B69,'2.2 Daten'!B72,'2.2 Daten'!B119,'2.2 Daten'!B123,'2.2 Daten'!B178,'2.2 Daten'!B206,'2.2 Daten'!B244,'2.2 Daten'!B290,'2.2 Daten'!B388,'2.2 Daten'!B396,'2.2 Daten'!B399,'2.2 Daten'!B419,'2.2 Daten'!B429,'2.2 Daten'!B444,'2.2 Daten'!B460,x) -> Pinneberg | B64: =IF($A64<>0,INDEX('2.2 Daten'!C$9:C$860,MATCH('2.2'!$A64,'2.2 Daten'!$B$9:$B$860,0))," ") -> 1056000 | C64: =IF($A64<>0,INDEX('2.2 Daten'!E$9:E$860,MATCH('2.2'!$A64,'2.2 Daten'!$B$9:$B$860,0))) -> 7291 | D64: =IF($A64<>0,INDEX('2.2 Daten'!F$9:F$860,MATCH('2.2'!$A64,'2.2 Daten'!$B$9:$B$860,0))) -> 1466 | E64: =IF($A64<>0,INDEX('2.2 Daten'!G$9:G$860,MATCH('2.2'!$A64,'2.2 Daten'!$B$9:$B$860,0))) -> 1396 | F64: =IF($A64<>0,INDEX('2.2 Daten'!H$9:H$860,MATCH('2.2'!$A64,'2.2 Daten'!$B$9:$B$860,0))) -> 3557 | G64: =IF($A64<>0,INDEX('2.2 Daten'!I$9:I$860,MATCH('2.2'!$A64,'2.2 Daten'!$B$9:$B$860,0))) -> 872 | H64: =IF($A64<>0,INDEX('2.2 Daten'!K$9:K$860,MATCH('2.2'!$A64,'2.2 Daten'!$B$9:$B$860,0))) -> -2.107948443 | I64: =IF($A64<>0,INDEX('2.2 Daten'!L$9:L$860,MATCH('2.2'!$A64,'2.2 Daten'!$B$9:$B$860,0))) -> -1.610738255 | J64: =IF($A64<>0,INDEX('2.2 Daten'!M$9:M$860,MATCH('2.2'!$A64,'2.2 Daten'!$B$9:$B$860,0))) -> -0.5698005698 | K64: =IF($A64<>0,INDEX('2.2 Daten'!N$9:N$860,MATCH('2.2'!$A64,'2.2 Daten'!$B$9:$B$860,0))) -> -2.3070585 | L64: =IF($A64<>0,INDEX('2.2 Daten'!O$9:O$860,MATCH('2.2'!$A64,'2.2 Daten'!$B$9:$B$860,0))) -> -4.490690033
A65: =CHOOSE('2.2 Daten'!$A$2,'2.2 Daten'!B487,'2.2 Daten'!B36,'2.2 Daten'!B53,'2.2 Daten'!B70,'2.2 Daten'!B73,'2.2 Daten'!B120,'2.2 Daten'!B124,'2.2 Daten'!B179,'2.2 Daten'!B207,'2.2 Daten'!B245,'2.2 Daten'!B291,'2.2 Daten'!B389,'2.2 Daten'!B397,'2.2 Daten'!B400,'2.2 Daten'!B420,'2.2 Daten'!B430,'2.2 Daten'!B445,'2.2 Daten'!B461,x) -> Plön | B65: =IF($A65<>0,INDEX('2.2 Daten'!C$9:C$860,MATCH('2.2'!$A65,'2.2 Daten'!$B$9:$B$860,0))," ") -> 1057000 | C65: =IF($A65<>0,INDEX('2.2 Daten'!E$9:E$860,MATCH('2.2'!$A65,'2.2 Daten'!$B$9:$B$860,0))) -> 2483 | D65: =IF($A65<>0,INDEX('2.2 Daten'!F$9:F$860,MATCH('2.2'!$A65,'2.2 Daten'!$B$9:$B$860,0))) -> 453 | E65: =IF($A65<>0,INDEX('2.2 Daten'!G$9:G$860,MATCH('2.2'!$A65,'2.2 Daten'!$B$9:$B$860,0))) -> 436 | F65: =IF($A65<>0,INDEX('2.2 Daten'!H$9:H$860,MATCH('2.2'!$A65,'2.2 Daten'!$B$9:$B$860,0))) -> 1267 | G65: =IF($A65<>0,INDEX('2.2 Daten'!I$9:I$860,MATCH('2.2'!$A65,'2.2 Daten'!$B$9:$B$860,0))) -> 327 | H65: =IF($A65<>0,INDEX('2.2 Daten'!K$9:K$860,MATCH('2.2'!$A65,'2.2 Daten'!$B$9:$B$860,0))) -> -2.167060678 | I65: =IF($A65<>0,INDEX('2.2 Daten'!L$9:L$860,MATCH('2.2'!$A65,'2.2 Daten'!$B$9:$B$860,0))) -> 1.569506726 | J65: =IF($A65<>0,INDEX('2.2 Daten'!M$9:M$860,MATCH('2.2'!$A65,'2.2 Daten'!$B$9:$B$860,0))) -> -6.837606838 | K65: =IF($A65<>0,INDEX('2.2 Daten'!N$9:N$860,MATCH('2.2'!$A65,'2.2 Daten'!$B$9:$B$860,0))) -> 0.7955449483 | L65: =IF($A65<>0,INDEX('2.2 Daten'!O$9:O$860,MATCH('2.2'!$A65,'2.2 Daten'!$B$9:$B$860,0))) -> -10.89918256
A66: =CHOOSE('2.2 Daten'!$A$2,'2.2 Daten'!B488,'2.2 Daten'!B37,'2.2 Daten'!B54,'2.2 Daten'!B71,'2.2 Daten'!B74,'2.2 Daten'!B121,'2.2 Daten'!B125,'2.2 Daten'!B180,'2.2 Daten'!B208,'2.2 Daten'!B246,'2.2 Daten'!B292,'2.2 Daten'!B390,'2.2 Daten'!B398,'2.2 Daten'!B401,'2.2 Daten'!B421,'2.2 Daten'!B431,'2.2 Daten'!B446,'2.2 Daten'!B462,x) -> Rendsburg-Eckernförde | B66: =IF($A66<>0,INDEX('2.2 Daten'!C$9:C$860,MATCH('2.2'!$A66,'2.2 Daten'!$B$9:$B$860,0))," ") -> 1058000 | C66: =IF($A66<>0,INDEX('2.2 Daten'!E$9:E$860,MATCH('2.2'!$A66,'2.2 Daten'!$B$9:$B$860,0))) -> 5591 | D66: =IF($A66<>0,INDEX('2.2 Daten'!F$9:F$860,MATCH('2.2'!$A66,'2.2 Daten'!$B$9:$B$860,0))) -> 1052 | E66: =IF($A66<>0,INDEX('2.2 Daten'!G$9:G$860,MATCH('2.2'!$A66,'2.2 Daten'!$B$9:$B$860,0))) -> 998 | F66: =IF($A66<>0,INDEX('2.2 Daten'!H$9:H$860,MATCH('2.2'!$A66,'2.2 Daten'!$B$9:$B$860,0))) -> 2796 | G66: =IF($A66<>0,INDEX('2.2 Daten'!I$9:I$860,MATCH('2.2'!$A66,'2.2 Daten'!$B$9:$B$860,0))) -> 745 | H66: =IF($A66<>0,INDEX('2.2 Daten'!K$9:K$860,MATCH('2.2'!$A66,'2.2 Daten'!$B$9:$B$860,0))) -> -2.578846489 | I66: =IF($A66<>0,INDEX('2.2 Daten'!L$9:L$860,MATCH('2.2'!$A66,'2.2 Daten'!$B$9:$B$860,0))) -> 0.4775549188 | J66: =IF($A66<>0,INDEX('2.2 Daten'!M$9:M$860,MATCH('2.2'!$A66,'2.2 Daten'!$B$9:$B$860,0))) -> -3.200775946 | K66: =IF($A66<>0,INDEX('2.2 Daten'!N$9:N$860,MATCH('2.2'!$A66,'2.2 Daten'!$B$9:$B$860,0))) -> -3.453038674 | L66: =IF($A66<>0,INDEX('2.2 Daten'!O$9:O$860,MATCH('2.2'!$A66,'2.2 Daten'!$B$9:$B$860,0))) -> -2.614379085
A67: =CHOOSE('2.2 Daten'!$A$2,'2.2 Daten'!B489,'2.2 Daten'!B38,'2.2 Daten'!B55,'2.2 Daten'!B72,'2.2 Daten'!B75,'2.2 Daten'!B122,'2.2 Daten'!B126,'2.2 Daten'!B181,'2.2 Daten'!B209,'2.2 Daten'!B247,'2.2 Daten'!B293,'2.2 Daten'!B391,'2.2 Daten'!B399,'2.2 Daten'!B402,'2.2 Daten'!B422,'2.2 Daten'!B432,'2.2 Daten'!B447,'2.2 Daten'!B463,x) -> Schleswig-Flensburg | B67: =IF($A67<>0,INDEX('2.2 Daten'!C$9:C$860,MATCH('2.2'!$A67,'2.2 Daten'!$B$9:$B$860,0))," ") -> 1059000 | C67: =IF($A67<>0,INDEX('2.2 Daten'!E$9:E$860,MATCH('2.2'!$A67,'2.2 Daten'!$B$9:$B$860,0))) -> 4297 | D67: =IF($A67<>0,INDEX('2.2 Daten'!F$9:F$860,MATCH('2.2'!$A67,'2.2 Daten'!$B$9:$B$860,0))) -> 789 | E67: =IF($A67<>0,INDEX('2.2 Daten'!G$9:G$860,MATCH('2.2'!$A67,'2.2 Daten'!$B$9:$B$860,0))) -> 820 | F67: =IF($A67<>0,INDEX('2.2 Daten'!H$9:H$860,MATCH('2.2'!$A67,'2.2 Daten'!$B$9:$B$860,0))) -> 2200 | G67: =IF($A67<>0,INDEX('2.2 Daten'!I$9:I$860,MATCH('2.2'!$A67,'2.2 Daten'!$B$9:$B$860,0))) -> 488 | H67: =IF($A67<>0,INDEX('2.2 Daten'!K$9:K$860,MATCH('2.2'!$A67,'2.2 Daten'!$B$9:$B$860,0))) -> -8.961864407 | I67: =IF($A67<>0,INDEX('2.2 Daten'!L$9:L$860,MATCH('2.2'!$A67,'2.2 Daten'!$B$9:$B$860,0))) -> -13.20132013 | J67: =IF($A67<>0,INDEX('2.2 Daten'!M$9:M$860,MATCH('2.2'!$A67,'2.2 Daten'!$B$9:$B$860,0))) -> -3.301886792 | K67: =IF($A67<>0,INDEX('2.2 Daten'!N$9:N$860,MATCH('2.2'!$A67,'2.2 Daten'!$B$9:$B$860,0))) -> -7.911259941 | L67: =IF($A67<>0,INDEX('2.2 Daten'!O$9:O$860,MATCH('2.2'!$A67,'2.2 Daten'!$B$9:$B$860,0))) -> -14.9825784
A68: =CHOOSE('2.2 Daten'!$A$2,'2.2 Daten'!B490,'2.2 Daten'!B39,'2.2 Daten'!B56,'2.2 Daten'!B73,'2.2 Daten'!B76,'2.2 Daten'!B123,'2.2 Daten'!B127,'2.2 Daten'!B182,'2.2 Daten'!B210,'2.2 Daten'!B248,'2.2 Daten'!B294,'2.2 Daten'!B392,'2.2 Daten'!B400,'2.2 Daten'!B403,'2.2 Daten'!B423,'2.2 Daten'!B433,'2.2 Daten'!B448,'2.2 Daten'!B464,x) -> Segeberg | B68: =IF($A68<>0,INDEX('2.2 Daten'!C$9:C$860,MATCH('2.2'!$A68,'2.2 Daten'!$B$9:$B$860,0))," ") -> 1060000 | C68: =IF($A68<>0,INDEX('2.2 Daten'!E$9:E$860,MATCH('2.2'!$A68,'2.2 Daten'!$B$9:$B$860,0))) -> 5209 | D68: =IF($A68<>0,INDEX('2.2 Daten'!F$9:F$860,MATCH('2.2'!$A68,'2.2 Daten'!$B$9:$B$860,0))) -> 981 | E68: =IF($A68<>0,INDEX('2.2 Daten'!G$9:G$860,MATCH('2.2'!$A68,'2.2 Daten'!$B$9:$B$860,0))) -> 966 | F68: =IF($A68<>0,INDEX('2.2 Daten'!H$9:H$860,MATCH('2.2'!$A68,'2.2 Daten'!$B$9:$B$860,0))) -> 2618 | G68: =IF($A68<>0,INDEX('2.2 Daten'!I$9:I$860,MATCH('2.2'!$A68,'2.2 Daten'!$B$9:$B$860,0))) -> 644 | H68: =IF($A68<>0,INDEX('2.2 Daten'!K$9:K$860,MATCH('2.2'!$A68,'2.2 Daten'!$B$9:$B$860,0))) -> -5.308125795 | I68: =IF($A68<>0,INDEX('2.2 Daten'!L$9:L$860,MATCH('2.2'!$A68,'2.2 Daten'!$B$9:$B$860,0))) -> -5.217391304 | J68: =IF($A68<>0,INDEX('2.2 Daten'!M$9:M$860,MATCH('2.2'!$A68,'2.2 Daten'!$B$9:$B$860,0))) -> -8 | K68: =IF($A68<>0,INDEX('2.2 Daten'!N$9:N$860,MATCH('2.2'!$A68,'2.2 Daten'!$B$9:$B$860,0))) -> -2.203959656 | L68: =IF($A68<>0,INDEX('2.2 Daten'!O$9:O$860,MATCH('2.2'!$A68,'2.2 Daten'!$B$9:$B$860,0))) -> -12.85520974
A69: =CHOOSE('2.2 Daten'!$A$2,'2.2 Daten'!B491,'2.2 Daten'!B40,'2.2 Daten'!B57,'2.2 Daten'!B74,'2.2 Daten'!B77,'2.2 Daten'!B124,'2.2 Daten'!B128,'2.2 Daten'!B183,'2.2 Daten'!B211,'2.2 Daten'!B249,'2.2 Daten'!B295,'2.2 Daten'!B393,'2.2 Daten'!B401,'2.2 Daten'!B404,'2.2 Daten'!B424,'2.2 Daten'!B434,'2.2 Daten'!B449,'2.2 Daten'!B465,x) -> Steinburg | B69: =IF($A69<>0,INDEX('2.2 Daten'!C$9:C$860,MATCH('2.2'!$A69,'2.2 Daten'!$B$9:$B$860,0))," ") -> 1061000 | C69: =IF($A69<>0,INDEX('2.2 Daten'!E$9:E$860,MATCH('2.2'!$A69,'2.2 Daten'!$B$9:$B$860,0))) -> 3411 | D69: =IF($A69<>0,INDEX('2.2 Daten'!F$9:F$860,MATCH('2.2'!$A69,'2.2 Daten'!$B$9:$B$860,0))) -> 678 | E69: =IF($A69<>0,INDEX('2.2 Daten'!G$9:G$860,MATCH('2.2'!$A69,'2.2 Daten'!$B$9:$B$860,0))) -> 639 | F69: =IF($A69<>0,INDEX('2.2 Daten'!H$9:H$860,MATCH('2.2'!$A69,'2.2 Daten'!$B$9:$B$860,0))) -> 1713 | G69: =IF($A69<>0,INDEX('2.2 Daten'!I$9:I$860,MATCH('2.2'!$A69,'2.2 Daten'!$B$9:$B$860,0))) -> 381 | H69: =IF($A69<>0,INDEX('2.2 Daten'!K$9:K$860,MATCH('2.2'!$A69,'2.2 Daten'!$B$9:$B$860,0))) -> 0.08802816901 | I69: =IF($A69<>0,INDEX('2.2 Daten'!L$9:L$860,MATCH('2.2'!$A69,'2.2 Daten'!$B$9:$B$860,0))) -> -2.164502165 | J69: =IF($A69<>0,INDEX('2.2 Daten'!M$9:M$860,MATCH('2.2'!$A69,'2.2 Daten'!$B$9:$B$860,0))) -> 1.107594937 | K69: =IF($A69<>0,INDEX('2.2 Daten'!N$9:N$860,MATCH('2.2'!$A69,'2.2 Daten'!$B$9:$B$860,0))) -> 4.007285974 | L69: =IF($A69<>0,INDEX('2.2 Daten'!O$9:O$860,MATCH('2.2'!$A69,'2.2 Daten'!$B$9:$B$860,0))) -> -12.6146789
A70: =CHOOSE('2.2 Daten'!$A$2,'2.2 Daten'!B492,'2.2 Daten'!B41,'2.2 Daten'!B58,'2.2 Daten'!B75,'2.2 Daten'!B78,'2.2 Daten'!B125,'2.2 Daten'!B129,'2.2 Daten'!B184,'2.2 Daten'!B212,'2.2 Daten'!B250,'2.2 Daten'!B296,'2.2 Daten'!B394,'2.2 Daten'!B402,'2.2 Daten'!B405,'2.2 Daten'!B425,'2.2 Daten'!B435,'2.2 Daten'!B450,'2.2 Daten'!B466,x) -> Stormarn | B70: =IF($A70<>0,INDEX('2.2 Daten'!C$9:C$860,MATCH('2.2'!$A70,'2.2 Daten'!$B$9:$B$860,0))," ") -> 1062000 | C70: =IF($A70<>0,INDEX('2.2 Daten'!E$9:E$860,MATCH('2.2'!$A70,'2.2 Daten'!$B$9:$B$860,0))) -> 4053 | D70: =IF($A70<>0,INDEX('2.2 Daten'!F$9:F$860,MATCH('2.2'!$A70,'2.2 Daten'!$B$9:$B$860,0))) -> 732 | E70: =IF($A70<>0,INDEX('2.2 Daten'!G$9:G$860,MATCH('2.2'!$A70,'2.2 Daten'!$B$9:$B$860,0))) -> 721 | F70: =IF($A70<>0,INDEX('2.2 Daten'!H$9:H$860,MATCH('2.2'!$A70,'2.2 Daten'!$B$9:$B$860,0))) -> 2073 | G70: =IF($A70<>0,INDEX('2.2 Daten'!I$9:I$860,MATCH('2.2'!$A70,'2.2 Daten'!$B$9:$B$860,0))) -> 527 | H70: =IF($A70<>0,INDEX('2.2 Daten'!K$9:K$860,MATCH('2.2'!$A70,'2.2 Daten'!$B$9:$B$860,0))) -> -0.3932170066 | I70: =IF($A70<>0,INDEX('2.2 Daten'!L$9:L$860,MATCH('2.2'!$A70,'2.2 Daten'!$B$9:$B$860,0))) -> -0.8130081301 | J70: =IF($A70<>0,INDEX('2.2 Daten'!M$9:M$860,MATCH('2.2'!$A70,'2.2 Daten'!$B$9:$B$860,0))) -> -1.367989056 | K70: =IF($A70<>0,INDEX('2.2 Daten'!N$9:N$860,MATCH('2.2'!$A70,'2.2 Daten'!$B$9:$B$860,0))) -> 1.072647489 | L70: =IF($A70<>0,INDEX('2.2 Daten'!O$9:O$860,MATCH('2.2'!$A70,'2.2 Daten'!$B$9:$B$860,0))) -> -4.007285974
A71: =CHOOSE('2.2 Daten'!$A$2,'2.2 Daten'!B493,'2.2 Daten'!B42,'2.2 Daten'!B59,'2.2 Daten'!B76,'2.2 Daten'!B79,'2.2 Daten'!B126,'2.2 Daten'!B130,'2.2 Daten'!B185,'2.2 Daten'!B213,'2.2 Daten'!B251,'2.2 Daten'!B297,'2.2 Daten'!B395,'2.2 Daten'!B403,'2.2 Daten'!B406,'2.2 Daten'!B426,'2.2 Daten'!B436,'2.2 Daten'!B451,'2.2 Daten'!B467,x) -> 0 | B71: =IF($A71<>0,INDEX('2.2 Daten'!C$9:C$860,MATCH('2.2'!$A71,'2.2 Daten'!$B$9:$B$860,0))," ") ->  | C71: =IF($A71<>0,INDEX('2.2 Daten'!E$9:E$860,MATCH('2.2'!$A71,'2.2 Daten'!$B$9:$B$860,0))) -> FALSE | D71: =IF($A71<>0,INDEX('2.2 Daten'!F$9:F$860,MATCH('2.2'!$A71,'2.2 Daten'!$B$9:$B$860,0))) -> FALSE | E71: =IF($A71<>0,INDEX('2.2 Daten'!G$9:G$860,MATCH('2.2'!$A71,'2.2 Daten'!$B$9:$B$860,0))) -> FALSE | F71: =IF($A71<>0,INDEX('2.2 Daten'!H$9:H$860,MATCH('2.2'!$A71,'2.2 Daten'!$B$9:$B$860,0))) -> FALSE | G71: =IF($A71<>0,INDEX('2.2 Daten'!I$9:I$860,MATCH('2.2'!$A71,'2.2 Daten'!$B$9:$B$860,0))) -> FALSE | H71: =IF($A71<>0,INDEX('2.2 Daten'!K$9:K$860,MATCH('2.2'!$A71,'2.2 Daten'!$B$9:$B$860,0))) -> FALSE | I71: =IF($A71<>0,INDEX('2.2 Daten'!L$9:L$860,MATCH('2.2'!$A71,'2.2 Daten'!$B$9:$B$860,0))) -> FALSE | J71: =IF($A71<>0,INDEX('2.2 Daten'!M$9:M$860,MATCH('2.2'!$A71,'2.2 Daten'!$B$9:$B$860,0))) -> FALSE | K71: =IF($A71<>0,INDEX('2.2 Daten'!N$9:N$860,MATCH('2.2'!$A71,'2.2 Daten'!$B$9:$B$860,0))) -> FALSE | L71: =IF($A71<>0,INDEX('2.2 Daten'!O$9:O$860,MATCH('2.2'!$A71,'2.2 Daten'!$B$9:$B$860,0))) -> FALSE
A72: =CHOOSE('2.2 Daten'!$A$2,'2.2 Daten'!B494,'2.2 Daten'!B43,'2.2 Daten'!B60,'2.2 Daten'!B77,'2.2 Daten'!B80,'2.2 Daten'!B127,'2.2 Daten'!B131,'2.2 Daten'!B186,'2.2 Daten'!B214,'2.2 Daten'!B252,'2.2 Daten'!B298,'2.2 Daten'!B396,'2.2 Daten'!B404,'2.2 Daten'!B407,'2.2 Daten'!B427,'2.2 Daten'!B437,'2.2 Daten'!B452,'2.2 Daten'!B468,x) -> Hamburg | B72: =IF($A72<>0,INDEX('2.2 Daten'!C$9:C$860,MATCH('2.2'!$A72,'2.2 Daten'!$B$9:$B$860,0))," ") -> 02 | C72: =IF($A72<>0,INDEX('2.2 Daten'!E$9:E$860,MATCH('2.2'!$A72,'2.2 Daten'!$B$9:$B$860,0))) -> 61358 | D72: =IF($A72<>0,INDEX('2.2 Daten'!F$9:F$860,MATCH('2.2'!$A72,'2.2 Daten'!$B$9:$B$860,0))) -> 11880 | E72: =IF($A72<>0,INDEX('2.2 Daten'!G$9:G$860,MATCH('2.2'!$A72,'2.2 Daten'!$B$9:$B$860,0))) -> 11119 | F72: =IF($A72<>0,INDEX('2.2 Daten'!H$9:H$860,MATCH('2.2'!$A72,'2.2 Daten'!$B$9:$B$860,0))) -> 30137 | G72: =IF($A72<>0,INDEX('2.2 Daten'!I$9:I$860,MATCH('2.2'!$A72,'2.2 Daten'!$B$9:$B$860,0))) -> 8222 | H72: =IF($A72<>0,INDEX('2.2 Daten'!K$9:K$860,MATCH('2.2'!$A72,'2.2 Daten'!$B$9:$B$860,0))) -> -1.429764812 | I72: =IF($A72<>0,INDEX('2.2 Daten'!L$9:L$860,MATCH('2.2'!$A72,'2.2 Daten'!$B$9:$B$860,0))) -> 0.008418217022 | J72: =IF($A72<>0,INDEX('2.2 Daten'!M$9:M$860,MATCH('2.2'!$A72,'2.2 Daten'!$B$9:$B$860,0))) -> -1.453514136 | K72: =IF($A72<>0,INDEX('2.2 Daten'!N$9:N$860,MATCH('2.2'!$A72,'2.2 Daten'!$B$9:$B$860,0))) -> -1.144787771 | L72: =IF($A72<>0,INDEX('2.2 Daten'!O$9:O$860,MATCH('2.2'!$A72,'2.2 Daten'!$B$9:$B$860,0))) -> -4.395348837
A73: =CHOOSE('2.2 Daten'!$A$2,'2.2 Daten'!B495,'2.2 Daten'!B44,'2.2 Daten'!B61,'2.2 Daten'!B78,'2.2 Daten'!B81,'2.2 Daten'!B128,'2.2 Daten'!B132,'2.2 Daten'!B187,'2.2 Daten'!B215,'2.2 Daten'!B253,'2.2 Daten'!B299,'2.2 Daten'!B397,'2.2 Daten'!B405,'2.2 Daten'!B408,'2.2 Daten'!B428,'2.2 Daten'!B438,'2.2 Daten'!B453,'2.2 Daten'!B469,x) -> Hamburg, Freie und Hansestadt | B73: =IF($A73<>0,INDEX('2.2 Daten'!C$9:C$860,MATCH('2.2'!$A73,'2.2 Daten'!$B$9:$B$860,0))," ") -> 2000000 | C73: =IF($A73<>0,INDEX('2.2 Daten'!E$9:E$860,MATCH('2.2'!$A73,'2.2 Daten'!$B$9:$B$860,0))) -> 61358 | D73: =IF($A73<>0,INDEX('2.2 Daten'!F$9:F$860,MATCH('2.2'!$A73,'2.2 Daten'!$B$9:$B$860,0))) -> 11880 | E73: =IF($A73<>0,INDEX('2.2 Daten'!G$9:G$860,MATCH('2.2'!$A73,'2.2 Daten'!$B$9:$B$860,0))) -> 11119 | F73: =IF($A73<>0,INDEX('2.2 Daten'!H$9:H$860,MATCH('2.2'!$A73,'2.2 Daten'!$B$9:$B$860,0))) -> 30137 | G73: =IF($A73<>0,INDEX('2.2 Daten'!I$9:I$860,MATCH('2.2'!$A73,'2.2 Daten'!$B$9:$B$860,0))) -> 8222 | H73: =IF($A73<>0,INDEX('2.2 Daten'!K$9:K$860,MATCH('2.2'!$A73,'2.2 Daten'!$B$9:$B$860,0))) -> -1.429764812 | I73: =IF($A73<>0,INDEX('2.2 Daten'!L$9:L$860,MATCH('2.2'!$A73,'2.2 Daten'!$B$9:$B$860,0))) -> 0.008418217022 | J73: =IF($A73<>0,INDEX('2.2 Daten'!M$9:M$860,MATCH('2.2'!$A73,'2.2 Daten'!$B$9:$B$860,0))) -> -1.453514136 | K73: =IF($A73<>0,INDEX('2.2 Daten'!N$9:N$860,MATCH('2.2'!$A73,'2.2 Daten'!$B$9:$B$860,0))) -> -1.144787771 | L73: =IF($A73<>0,INDEX('2.2 Daten'!O$9:O$860,MATCH('2.2'!$A73,'2.2 Daten'!$B$9:$B$860,0))) -> -4.395348837
A74: =CHOOSE('2.2 Daten'!$A$2,'2.2 Daten'!B496,'2.2 Daten'!B45,'2.2 Daten'!B62,'2.2 Daten'!B79,'2.2 Daten'!B82,'2.2 Daten'!B129,'2.2 Daten'!B133,'2.2 Daten'!B188,'2.2 Daten'!B216,'2.2 Daten'!B254,'2.2 Daten'!B300,'2.2 Daten'!B398,'2.2 Daten'!B406,'2.2 Daten'!B409,'2.2 Daten'!B429,'2.2 Daten'!B439,'2.2 Daten'!B454,'2.2 Daten'!B470,x) -> 0 | B74: =IF($A74<>0,INDEX('2.2 Daten'!C$9:C$860,MATCH('2.2'!$A74,'2.2 Daten'!$B$9:$B$860,0))," ") ->  | C74: =IF($A74<>0,INDEX('2.2 Daten'!E$9:E$860,MATCH('2.2'!$A74,'2.2 Daten'!$B$9:$B$860,0))) -> FALSE | D74: =IF($A74<>0,INDEX('2.2 Daten'!F$9:F$860,MATCH('2.2'!$A74,'2.2 Daten'!$B$9:$B$860,0))) -> FALSE | E74: =IF($A74<>0,INDEX('2.2 Daten'!G$9:G$860,MATCH('2.2'!$A74,'2.2 Daten'!$B$9:$B$860,0))) -> FALSE | F74: =IF($A74<>0,INDEX('2.2 Daten'!H$9:H$860,MATCH('2.2'!$A74,'2.2 Daten'!$B$9:$B$860,0))) -> FALSE | G74: =IF($A74<>0,INDEX('2.2 Daten'!I$9:I$860,MATCH('2.2'!$A74,'2.2 Daten'!$B$9:$B$860,0))) -> FALSE | H74: =IF($A74<>0,INDEX('2.2 Daten'!K$9:K$860,MATCH('2.2'!$A74,'2.2 Daten'!$B$9:$B$860,0))) -> FALSE | I74: =IF($A74<>0,INDEX('2.2 Daten'!L$9:L$860,MATCH('2.2'!$A74,'2.2 Daten'!$B$9:$B$860,0))) -> FALSE | J74: =IF($A74<>0,INDEX('2.2 Daten'!M$9:M$860,MATCH('2.2'!$A74,'2.2 Daten'!$B$9:$B$860,0))) -> FALSE | K74: =IF($A74<>0,INDEX('2.2 Daten'!N$9:N$860,MATCH('2.2'!$A74,'2.2 Daten'!$B$9:$B$860,0))) -> FALSE | L74: =IF($A74<>0,INDEX('2.2 Daten'!O$9:O$860,MATCH('2.2'!$A74,'2.2 Daten'!$B$9:$B$860,0))) -> FALSE
A75: =CHOOSE('2.2 Daten'!$A$2,'2.2 Daten'!B497,'2.2 Daten'!B46,'2.2 Daten'!B63,'2.2 Daten'!B80,'2.2 Daten'!B83,'2.2 Daten'!B130,'2.2 Daten'!B134,'2.2 Daten'!B189,'2.2 Daten'!B217,'2.2 Daten'!B255,'2.2 Daten'!B301,'2.2 Daten'!B399,'2.2 Daten'!B407,'2.2 Daten'!B410,'2.2 Daten'!B430,'2.2 Daten'!B440,'2.2 Daten'!B455,'2.2 Daten'!B471,x) -> Niedersachsen | B75: =IF($A75<>0,INDEX('2.2 Daten'!C$9:C$860,MATCH('2.2'!$A75,'2.2 Daten'!$B$9:$B$860,0))," ") -> 03 | C75: =IF($A75<>0,INDEX('2.2 Daten'!E$9:E$860,MATCH('2.2'!$A75,'2.2 Daten'!$B$9:$B$860,0))) -> 199474 | D75: =IF($A75<>0,INDEX('2.2 Daten'!F$9:F$860,MATCH('2.2'!$A75,'2.2 Daten'!$B$9:$B$860,0))) -> 37560 | E75: =IF($A75<>0,INDEX('2.2 Daten'!G$9:G$860,MATCH('2.2'!$A75,'2.2 Daten'!$B$9:$B$860,0))) -> 36808 | F75: =IF($A75<>0,INDEX('2.2 Daten'!H$9:H$860,MATCH('2.2'!$A75,'2.2 Daten'!$B$9:$B$860,0))) -> 98240 | G75: =IF($A75<>0,INDEX('2.2 Daten'!I$9:I$860,MATCH('2.2'!$A75,'2.2 Daten'!$B$9:$B$860,0))) -> 26866 | H75: =IF($A75<>0,INDEX('2.2 Daten'!K$9:K$860,MATCH('2.2'!$A75,'2.2 Daten'!$B$9:$B$860,0))) -> -3.313460327 | I75: =IF($A75<>0,INDEX('2.2 Daten'!L$9:L$860,MATCH('2.2'!$A75,'2.2 Daten'!$B$9:$B$860,0))) -> -2.706903251 | J75: =IF($A75<>0,INDEX('2.2 Daten'!M$9:M$860,MATCH('2.2'!$A75,'2.2 Daten'!$B$9:$B$860,0))) -> -2.378994828 | K75: =IF($A75<>0,INDEX('2.2 Daten'!N$9:N$860,MATCH('2.2'!$A75,'2.2 Daten'!$B$9:$B$860,0))) -> -3.178435914 | L75: =IF($A75<>0,INDEX('2.2 Daten'!O$9:O$860,MATCH('2.2'!$A75,'2.2 Daten'!$B$9:$B$860,0))) -> -5.848957421
A76: =CHOOSE('2.2 Daten'!$A$2,'2.2 Daten'!B498,'2.2 Daten'!B47,'2.2 Daten'!B64,'2.2 Daten'!B81,'2.2 Daten'!B84,'2.2 Daten'!B131,'2.2 Daten'!B135,'2.2 Daten'!B190,'2.2 Daten'!B218,'2.2 Daten'!B256,'2.2 Daten'!B302,'2.2 Daten'!B400,'2.2 Daten'!B408,'2.2 Daten'!B411,'2.2 Daten'!B431,'2.2 Daten'!B441,'2.2 Daten'!B456,'2.2 Daten'!B472,x) -> Braunschweig, Stadt | B76: =IF($A76<>0,INDEX('2.2 Daten'!C$9:C$860,MATCH('2.2'!$A76,'2.2 Daten'!$B$9:$B$860,0))," ") -> 3101000 | C76: =IF($A76<>0,INDEX('2.2 Daten'!E$9:E$860,MATCH('2.2'!$A76,'2.2 Daten'!$B$9:$B$860,0))) -> 5236 | D76: =IF($A76<>0,INDEX('2.2 Daten'!F$9:F$860,MATCH('2.2'!$A76,'2.2 Daten'!$B$9:$B$860,0))) -> 980 | E76: =IF($A76<>0,INDEX('2.2 Daten'!G$9:G$860,MATCH('2.2'!$A76,'2.2 Daten'!$B$9:$B$860,0))) -> 981 | F76: =IF($A76<>0,INDEX('2.2 Daten'!H$9:H$860,MATCH('2.2'!$A76,'2.2 Daten'!$B$9:$B$860,0))) -> 2581 | G76: =IF($A76<>0,INDEX('2.2 Daten'!I$9:I$860,MATCH('2.2'!$A76,'2.2 Daten'!$B$9:$B$860,0))) -> 694 | H76: =IF($A76<>0,INDEX('2.2 Daten'!K$9:K$860,MATCH('2.2'!$A76,'2.2 Daten'!$B$9:$B$860,0))) -> -3.287772442 | I76: =IF($A76<>0,INDEX('2.2 Daten'!L$9:L$860,MATCH('2.2'!$A76,'2.2 Daten'!$B$9:$B$860,0))) -> 0.4098360656 | J76: =IF($A76<>0,INDEX('2.2 Daten'!M$9:M$860,MATCH('2.2'!$A76,'2.2 Daten'!$B$9:$B$860,0))) -> 3.919491525 | K76: =IF($A76<>0,INDEX('2.2 Daten'!N$9:N$860,MATCH('2.2'!$A76,'2.2 Daten'!$B$9:$B$860,0))) -> -5.940233236 | L76: =IF($A76<>0,INDEX('2.2 Daten'!O$9:O$860,MATCH('2.2'!$A76,'2.2 Daten'!$B$9:$B$860,0))) -> -7.466666667
A77: =CHOOSE('2.2 Daten'!$A$2,'2.2 Daten'!B499,'2.2 Daten'!B48,'2.2 Daten'!B65,'2.2 Daten'!B82,'2.2 Daten'!B85,'2.2 Daten'!B132,'2.2 Daten'!B136,'2.2 Daten'!B191,'2.2 Daten'!B219,'2.2 Daten'!B257,'2.2 Daten'!B303,'2.2 Daten'!B401,'2.2 Daten'!B409,'2.2 Daten'!B412,'2.2 Daten'!B432,'2.2 Daten'!B442,'2.2 Daten'!B457,'2.2 Daten'!B473,x) -> Salzgitter, Stadt | B77: =IF($A77<>0,INDEX('2.2 Daten'!C$9:C$860,MATCH('2.2'!$A77,'2.2 Daten'!$B$9:$B$860,0))," ") -> 3102000 | C77: =IF($A77<>0,INDEX('2.2 Daten'!E$9:E$860,MATCH('2.2'!$A77,'2.2 Daten'!$B$9:$B$860,0))) -> 5452 | D77: =IF($A77<>0,INDEX('2.2 Daten'!F$9:F$860,MATCH('2.2'!$A77,'2.2 Daten'!$B$9:$B$860,0))) -> 1180 | E77: =IF($A77<>0,INDEX('2.2 Daten'!G$9:G$860,MATCH('2.2'!$A77,'2.2 Daten'!$B$9:$B$860,0))) -> 969 | F77: =IF($A77<>0,INDEX('2.2 Daten'!H$9:H$860,MATCH('2.2'!$A77,'2.2 Daten'!$B$9:$B$860,0))) -> 2618 | G77: =IF($A77<>0,INDEX('2.2 Daten'!I$9:I$860,MATCH('2.2'!$A77,'2.2 Daten'!$B$9:$B$860,0))) -> 685 | H77: =IF($A77<>0,INDEX('2.2 Daten'!K$9:K$860,MATCH('2.2'!$A77,'2.2 Daten'!$B$9:$B$860,0))) -> 1.849430226 | I77: =IF($A77<>0,INDEX('2.2 Daten'!L$9:L$860,MATCH('2.2'!$A77,'2.2 Daten'!$B$9:$B$860,0))) -> 7.959743824 | J77: =IF($A77<>0,INDEX('2.2 Daten'!M$9:M$860,MATCH('2.2'!$A77,'2.2 Daten'!$B$9:$B$860,0))) -> -4.719764012 | K77: =IF($A77<>0,INDEX('2.2 Daten'!N$9:N$860,MATCH('2.2'!$A77,'2.2 Daten'!$B$9:$B$860,0))) -> 1.433552886 | L77: =IF($A77<>0,INDEX('2.2 Daten'!O$9:O$860,MATCH('2.2'!$A77,'2.2 Daten'!$B$9:$B$860,0))) -> 3.474320242
A78: =CHOOSE('2.2 Daten'!$A$2,'2.2 Daten'!B500,'2.2 Daten'!B49,'2.2 Daten'!B66,'2.2 Daten'!B83,'2.2 Daten'!B86,'2.2 Daten'!B133,'2.2 Daten'!B137,'2.2 Daten'!B192,'2.2 Daten'!B220,'2.2 Daten'!B258,'2.2 Daten'!B304,'2.2 Daten'!B402,'2.2 Daten'!B410,'2.2 Daten'!B413,'2.2 Daten'!B433,'2.2 Daten'!B443,'2.2 Daten'!B458,'2.2 Daten'!B474,x) -> Wolfsburg, Stadt | B78: =IF($A78<>0,INDEX('2.2 Daten'!C$9:C$860,MATCH('2.2'!$A78,'2.2 Daten'!$B$9:$B$860,0))," ") -> 3103000 | C78: =IF($A78<>0,INDEX('2.2 Daten'!E$9:E$860,MATCH('2.2'!$A78,'2.2 Daten'!$B$9:$B$860,0))) -> 2866 | D78: =IF($A78<>0,INDEX('2.2 Daten'!F$9:F$860,MATCH('2.2'!$A78,'2.2 Daten'!$B$9:$B$860,0))) -> 591 | E78: =IF($A78<>0,INDEX('2.2 Daten'!G$9:G$860,MATCH('2.2'!$A78,'2.2 Daten'!$B$9:$B$860,0))) -> 578 | F78: =IF($A78<>0,INDEX('2.2 Daten'!H$9:H$860,MATCH('2.2'!$A78,'2.2 Daten'!$B$9:$B$860,0))) -> 1327 | G78: =IF($A78<>0,INDEX('2.2 Daten'!I$9:I$860,MATCH('2.2'!$A78,'2.2 Daten'!$B$9:$B$860,0))) -> 370 | H78: =IF($A78<>0,INDEX('2.2 Daten'!K$9:K$860,MATCH('2.2'!$A78,'2.2 Daten'!$B$9:$B$860,0))) -> -1.57967033 | I78: =IF($A78<>0,INDEX('2.2 Daten'!L$9:L$860,MATCH('2.2'!$A78,'2.2 Daten'!$B$9:$B$860,0))) -> -4.830917874 | J78: =IF($A78<>0,INDEX('2.2 Daten'!M$9:M$860,MATCH('2.2'!$A78,'2.2 Daten'!$B$9:$B$860,0))) -> 12.6705653 | K78: =IF($A78<>0,INDEX('2.2 Daten'!N$9:N$860,MATCH('2.2'!$A78,'2.2 Daten'!$B$9:$B$860,0))) -> -5.819730305 | L78: =IF($A78<>0,INDEX('2.2 Daten'!O$9:O$860,MATCH('2.2'!$A78,'2.2 Daten'!$B$9:$B$860,0))) -> 0.27100271
A79: =CHOOSE('2.2 Daten'!$A$2,'2.2 Daten'!B501,'2.2 Daten'!B50,'2.2 Daten'!B67,'2.2 Daten'!B84,'2.2 Daten'!B87,'2.2 Daten'!B134,'2.2 Daten'!B138,'2.2 Daten'!B193,'2.2 Daten'!B221,'2.2 Daten'!B259,'2.2 Daten'!B305,'2.2 Daten'!B403,'2.2 Daten'!B411,'2.2 Daten'!B414,'2.2 Daten'!B434,'2.2 Daten'!B444,'2.2 Daten'!B459,'2.2 Daten'!B475,x) -> Gifhorn | B79: =IF($A79<>0,INDEX('2.2 Daten'!C$9:C$860,MATCH('2.2'!$A79,'2.2 Daten'!$B$9:$B$860,0))," ") -> 3151000 | C79: =IF($A79<>0,INDEX('2.2 Daten'!E$9:E$860,MATCH('2.2'!$A79,'2.2 Daten'!$B$9:$B$860,0))) -> 3002 | D79: =IF($A79<>0,INDEX('2.2 Daten'!F$9:F$860,MATCH('2.2'!$A79,'2.2 Daten'!$B$9:$B$860,0))) -> 547 | E79: =IF($A79<>0,INDEX('2.2 Daten'!G$9:G$860,MATCH('2.2'!$A79,'2.2 Daten'!$B$9:$B$860,0))) -> 542 | F79: =IF($A79<>0,INDEX('2.2 Daten'!H$9:H$860,MATCH('2.2'!$A79,'2.2 Daten'!$B$9:$B$860,0))) -> 1541 | G79: =IF($A79<>0,INDEX('2.2 Daten'!I$9:I$860,MATCH('2.2'!$A79,'2.2 Daten'!$B$9:$B$860,0))) -> 372 | H79: =IF($A79<>0,INDEX('2.2 Daten'!K$9:K$860,MATCH('2.2'!$A79,'2.2 Daten'!$B$9:$B$860,0))) -> 3.055269482 | I79: =IF($A79<>0,INDEX('2.2 Daten'!L$9:L$860,MATCH('2.2'!$A79,'2.2 Daten'!$B$9:$B$860,0))) -> 7.045009785 | J79: =IF($A79<>0,INDEX('2.2 Daten'!M$9:M$860,MATCH('2.2'!$A79,'2.2 Daten'!$B$9:$B$860,0))) -> -0.1841620626 | K79: =IF($A79<>0,INDEX('2.2 Daten'!N$9:N$860,MATCH('2.2'!$A79,'2.2 Daten'!$B$9:$B$860,0))) -> 6.275862069 | L79: =IF($A79<>0,INDEX('2.2 Daten'!O$9:O$860,MATCH('2.2'!$A79,'2.2 Daten'!$B$9:$B$860,0))) -> -9.046454768
A80: =CHOOSE('2.2 Daten'!$A$2,'2.2 Daten'!B502,'2.2 Daten'!B51,'2.2 Daten'!B68,'2.2 Daten'!B85,'2.2 Daten'!B88,'2.2 Daten'!B135,'2.2 Daten'!B139,'2.2 Daten'!B194,'2.2 Daten'!B222,'2.2 Daten'!B260,'2.2 Daten'!B306,'2.2 Daten'!B404,'2.2 Daten'!B412,'2.2 Daten'!B415,'2.2 Daten'!B435,'2.2 Daten'!B445,'2.2 Daten'!B460,'2.2 Daten'!B476,x) -> Goslar | B80: =IF($A80<>0,INDEX('2.2 Daten'!C$9:C$860,MATCH('2.2'!$A80,'2.2 Daten'!$B$9:$B$860,0))," ") -> 3153000 | C80: =IF($A80<>0,INDEX('2.2 Daten'!E$9:E$860,MATCH('2.2'!$A80,'2.2 Daten'!$B$9:$B$860,0))) -> 3716 | D80: =IF($A80<>0,INDEX('2.2 Daten'!F$9:F$860,MATCH('2.2'!$A80,'2.2 Daten'!$B$9:$B$860,0))) -> 717 | E80: =IF($A80<>0,INDEX('2.2 Daten'!G$9:G$860,MATCH('2.2'!$A80,'2.2 Daten'!$B$9:$B$860,0))) -> 662 | F80: =IF($A80<>0,INDEX('2.2 Daten'!H$9:H$860,MATCH('2.2'!$A80,'2.2 Daten'!$B$9:$B$860,0))) -> 1821 | G80: =IF($A80<>0,INDEX('2.2 Daten'!I$9:I$860,MATCH('2.2'!$A80,'2.2 Daten'!$B$9:$B$860,0))) -> 516 | H80: =IF($A80<>0,INDEX('2.2 Daten'!K$9:K$860,MATCH('2.2'!$A80,'2.2 Daten'!$B$9:$B$860,0))) -> -3.655690952 | I80: =IF($A80<>0,INDEX('2.2 Daten'!L$9:L$860,MATCH('2.2'!$A80,'2.2 Daten'!$B$9:$B$860,0))) -> -0.8298755187 | J80: =IF($A80<>0,INDEX('2.2 Daten'!M$9:M$860,MATCH('2.2'!$A80,'2.2 Daten'!$B$9:$B$860,0))) -> -5.698005698 | K80: =IF($A80<>0,INDEX('2.2 Daten'!N$9:N$860,MATCH('2.2'!$A80,'2.2 Daten'!$B$9:$B$860,0))) -> -2.463845742 | L80: =IF($A80<>0,INDEX('2.2 Daten'!O$9:O$860,MATCH('2.2'!$A80,'2.2 Daten'!$B$9:$B$860,0))) -> -8.672566372
A81: =CHOOSE('2.2 Daten'!$A$2,'2.2 Daten'!B503,'2.2 Daten'!B52,'2.2 Daten'!B69,'2.2 Daten'!B86,'2.2 Daten'!B89,'2.2 Daten'!B136,'2.2 Daten'!B140,'2.2 Daten'!B195,'2.2 Daten'!B223,'2.2 Daten'!B261,'2.2 Daten'!B307,'2.2 Daten'!B405,'2.2 Daten'!B413,'2.2 Daten'!B416,'2.2 Daten'!B436,'2.2 Daten'!B446,'2.2 Daten'!B461,'2.2 Daten'!B477,x) -> Helmstedt | B81: =IF($A81<>0,INDEX('2.2 Daten'!C$9:C$860,MATCH('2.2'!$A81,'2.2 Daten'!$B$9:$B$860,0))," ") -> 3154000 | C81: =IF($A81<>0,INDEX('2.2 Daten'!E$9:E$860,MATCH('2.2'!$A81,'2.2 Daten'!$B$9:$B$860,0))) -> 2198 | D81: =IF($A81<>0,INDEX('2.2 Daten'!F$9:F$860,MATCH('2.2'!$A81,'2.2 Daten'!$B$9:$B$860,0))) -> 415 | E81: =IF($A81<>0,INDEX('2.2 Daten'!G$9:G$860,MATCH('2.2'!$A81,'2.2 Daten'!$B$9:$B$860,0))) -> 410 | F81: =IF($A81<>0,INDEX('2.2 Daten'!H$9:H$860,MATCH('2.2'!$A81,'2.2 Daten'!$B$9:$B$860,0))) -> 1083 | G81: =IF($A81<>0,INDEX('2.2 Daten'!I$9:I$860,MATCH('2.2'!$A81,'2.2 Daten'!$B$9:$B$860,0))) -> 290 | H81: =IF($A81<>0,INDEX('2.2 Daten'!K$9:K$860,MATCH('2.2'!$A81,'2.2 Daten'!$B$9:$B$860,0))) -> -1.257861635 | I81: =IF($A81<>0,INDEX('2.2 Daten'!L$9:L$860,MATCH('2.2'!$A81,'2.2 Daten'!$B$9:$B$860,0))) -> -2.582159624 | J81: =IF($A81<>0,INDEX('2.2 Daten'!M$9:M$860,MATCH('2.2'!$A81,'2.2 Daten'!$B$9:$B$860,0))) -> -0.2433090024 | K81: =IF($A81<>0,INDEX('2.2 Daten'!N$9:N$860,MATCH('2.2'!$A81,'2.2 Daten'!$B$9:$B$860,0))) -> -1.455868972 | L81: =IF($A81<>0,INDEX('2.2 Daten'!O$9:O$860,MATCH('2.2'!$A81,'2.2 Daten'!$B$9:$B$860,0))) -> 0
A82: =CHOOSE('2.2 Daten'!$A$2,'2.2 Daten'!B504,'2.2 Daten'!B53,'2.2 Daten'!B70,'2.2 Daten'!B87,'2.2 Daten'!B90,'2.2 Daten'!B137,'2.2 Daten'!B141,'2.2 Daten'!B196,'2.2 Daten'!B224,'2.2 Daten'!B262,'2.2 Daten'!B308,'2.2 Daten'!B406,'2.2 Daten'!B414,'2.2 Daten'!B417,'2.2 Daten'!B437,'2.2 Daten'!B447,'2.2 Daten'!B462,'2.2 Daten'!B478,x) -> Northeim | B82: =IF($A82<>0,INDEX('2.2 Daten'!C$9:C$860,MATCH('2.2'!$A82,'2.2 Daten'!$B$9:$B$860,0))," ") -> 3155000 | C82: =IF($A82<>0,INDEX('2.2 Daten'!E$9:E$860,MATCH('2.2'!$A82,'2.2 Daten'!$B$9:$B$860,0))) -> 2967 | D82: =IF($A82<>0,INDEX('2.2 Daten'!F$9:F$860,MATCH('2.2'!$A82,'2.2 Daten'!$B$9:$B$860,0))) -> 615 | E82: =IF($A82<>0,INDEX('2.2 Daten'!G$9:G$860,MATCH('2.2'!$A82,'2.2 Daten'!$B$9:$B$860,0))) -> 530 | F82: =IF($A82<>0,INDEX('2.2 Daten'!H$9:H$860,MATCH('2.2'!$A82,'2.2 Daten'!$B$9:$B$860,0))) -> 1460 | G82: =IF($A82<>0,INDEX('2.2 Daten'!I$9:I$860,MATCH('2.2'!$A82,'2.2 Daten'!$B$9:$B$860,0))) -> 362 | H82: =IF($A82<>0,INDEX('2.2 Daten'!K$9:K$860,MATCH('2.2'!$A82,'2.2 Daten'!$B$9:$B$860,0))) -> -2.785058978 | I82: =IF($A82<>0,INDEX('2.2 Daten'!L$9:L$860,MATCH('2.2'!$A82,'2.2 Daten'!$B$9:$B$860,0))) -> 1.990049751 | J82: =IF($A82<>0,INDEX('2.2 Daten'!M$9:M$860,MATCH('2.2'!$A82,'2.2 Daten'!$B$9:$B$860,0))) -> -2.394106814 | K82: =IF($A82<>0,INDEX('2.2 Daten'!N$9:N$860,MATCH('2.2'!$A82,'2.2 Daten'!$B$9:$B$860,0))) -> -3.502974223 | L82: =IF($A82<>0,INDEX('2.2 Daten'!O$9:O$860,MATCH('2.2'!$A82,'2.2 Daten'!$B$9:$B$860,0))) -> -7.888040712
A83: =CHOOSE('2.2 Daten'!$A$2,'2.2 Daten'!B505,'2.2 Daten'!B54,'2.2 Daten'!B71,'2.2 Daten'!B88,'2.2 Daten'!B91,'2.2 Daten'!B138,'2.2 Daten'!B142,'2.2 Daten'!B197,'2.2 Daten'!B225,'2.2 Daten'!B263,'2.2 Daten'!B309,'2.2 Daten'!B407,'2.2 Daten'!B415,'2.2 Daten'!B418,'2.2 Daten'!B438,'2.2 Daten'!B448,'2.2 Daten'!B463,'2.2 Daten'!B479,x) -> Peine | B83: =IF($A83<>0,INDEX('2.2 Daten'!C$9:C$860,MATCH('2.2'!$A83,'2.2 Daten'!$B$9:$B$860,0))," ") -> 3157000 | C83: =IF($A83<>0,INDEX('2.2 Daten'!E$9:E$860,MATCH('2.2'!$A83,'2.2 Daten'!$B$9:$B$860,0))) -> 3640 | D83: =IF($A83<>0,INDEX('2.2 Daten'!F$9:F$860,MATCH('2.2'!$A83,'2.2 Daten'!$B$9:$B$860,0))) -> 663 | E83: =IF($A83<>0,INDEX('2.2 Daten'!G$9:G$860,MATCH('2.2'!$A83,'2.2 Daten'!$B$9:$B$860,0))) -> 672 | F83: =IF($A83<>0,INDEX('2.2 Daten'!H$9:H$860,MATCH('2.2'!$A83,'2.2 Daten'!$B$9:$B$860,0))) -> 1840 | G83: =IF($A83<>0,INDEX('2.2 Daten'!I$9:I$860,MATCH('2.2'!$A83,'2.2 Daten'!$B$9:$B$860,0))) -> 465 | H83: =IF($A83<>0,INDEX('2.2 Daten'!K$9:K$860,MATCH('2.2'!$A83,'2.2 Daten'!$B$9:$B$860,0))) -> -1.060070671 | I83: =IF($A83<>0,INDEX('2.2 Daten'!L$9:L$860,MATCH('2.2'!$A83,'2.2 Daten'!$B$9:$B$860,0))) -> -2.643171806 | J83: =IF($A83<>0,INDEX('2.2 Daten'!M$9:M$860,MATCH('2.2'!$A83,'2.2 Daten'!$B$9:$B$860,0))) -> -6.013986014 | K83: =IF($A83<>0,INDEX('2.2 Daten'!N$9:N$860,MATCH('2.2'!$A83,'2.2 Daten'!$B$9:$B$860,0))) -> 2.05213533 | L83: =IF($A83<>0,INDEX('2.2 Daten'!O$9:O$860,MATCH('2.2'!$A83,'2.2 Daten'!$B$9:$B$860,0))) -> -3.125
A84: =CHOOSE('2.2 Daten'!$A$2,'2.2 Daten'!B506,'2.2 Daten'!B55,'2.2 Daten'!B72,'2.2 Daten'!B89,'2.2 Daten'!B92,'2.2 Daten'!B139,'2.2 Daten'!B143,'2.2 Daten'!B198,'2.2 Daten'!B226,'2.2 Daten'!B264,'2.2 Daten'!B310,'2.2 Daten'!B408,'2.2 Daten'!B416,'2.2 Daten'!B419,'2.2 Daten'!B439,'2.2 Daten'!B449,'2.2 Daten'!B464,'2.2 Daten'!B480,x) -> Wolfenbüttel | B84: =IF($A84<>0,INDEX('2.2 Daten'!C$9:C$860,MATCH('2.2'!$A84,'2.2 Daten'!$B$9:$B$860,0))," ") -> 3158000 | C84: =IF($A84<>0,INDEX('2.2 Daten'!E$9:E$860,MATCH('2.2'!$A84,'2.2 Daten'!$B$9:$B$860,0))) -> 2384 | D84: =IF($A84<>0,INDEX('2.2 Daten'!F$9:F$860,MATCH('2.2'!$A84,'2.2 Daten'!$B$9:$B$860,0))) -> 414 | E84: =IF($A84<>0,INDEX('2.2 Daten'!G$9:G$860,MATCH('2.2'!$A84,'2.2 Daten'!$B$9:$B$860,0))) -> 427 | F84: =IF($A84<>0,INDEX('2.2 Daten'!H$9:H$860,MATCH('2.2'!$A84,'2.2 Daten'!$B$9:$B$860,0))) -> 1212 | G84: =IF($A84<>0,INDEX('2.2 Daten'!I$9:I$860,MATCH('2.2'!$A84,'2.2 Daten'!$B$9:$B$860,0))) -> 331 | H84: =IF($A84<>0,INDEX('2.2 Daten'!K$9:K$860,MATCH('2.2'!$A84,'2.2 Daten'!$B$9:$B$860,0))) -> -6.326129666 | I84: =IF($A84<>0,INDEX('2.2 Daten'!L$9:L$860,MATCH('2.2'!$A84,'2.2 Daten'!$B$9:$B$860,0))) -> -8.407079646 | J84: =IF($A84<>0,INDEX('2.2 Daten'!M$9:M$860,MATCH('2.2'!$A84,'2.2 Daten'!$B$9:$B$860,0))) -> -4.6875 | K84: =IF($A84<>0,INDEX('2.2 Daten'!N$9:N$860,MATCH('2.2'!$A84,'2.2 Daten'!$B$9:$B$860,0))) -> -4.866562009 | L84: =IF($A84<>0,INDEX('2.2 Daten'!O$9:O$860,MATCH('2.2'!$A84,'2.2 Daten'!$B$9:$B$860,0))) -> -10.78167116
A85: =CHOOSE('2.2 Daten'!$A$2,'2.2 Daten'!B507,'2.2 Daten'!B56,'2.2 Daten'!B73,'2.2 Daten'!B90,'2.2 Daten'!B93,'2.2 Daten'!B140,'2.2 Daten'!B144,'2.2 Daten'!B199,'2.2 Daten'!B227,'2.2 Daten'!B265,'2.2 Daten'!B311,'2.2 Daten'!B409,'2.2 Daten'!B417,'2.2 Daten'!B420,'2.2 Daten'!B440,'2.2 Daten'!B450,'2.2 Daten'!B465,'2.2 Daten'!B481,x) -> Göttingen | B85: =IF($A85<>0,INDEX('2.2 Daten'!C$9:C$860,MATCH('2.2'!$A85,'2.2 Daten'!$B$9:$B$860,0))," ") -> 3159000 | C85: =IF($A85<>0,INDEX('2.2 Daten'!E$9:E$860,MATCH('2.2'!$A85,'2.2 Daten'!$B$9:$B$860,0))) -> 6504 | D85: =IF($A85<>0,INDEX('2.2 Daten'!F$9:F$860,MATCH('2.2'!$A85,'2.2 Daten'!$B$9:$B$860,0))) -> 1307 | E85: =IF($A85<>0,INDEX('2.2 Daten'!G$9:G$860,MATCH('2.2'!$A85,'2.2 Daten'!$B$9:$B$860,0))) -> 1150 | F85: =IF($A85<>0,INDEX('2.2 Daten'!H$9:H$860,MATCH('2.2'!$A85,'2.2 Daten'!$B$9:$B$860,0))) -> 3186 | G85: =IF($A85<>0,INDEX('2.2 Daten'!I$9:I$860,MATCH('2.2'!$A85,'2.2 Daten'!$B$9:$B$860,0))) -> 861 | H85: =IF($A85<>0,INDEX('2.2 Daten'!K$9:K$860,MATCH('2.2'!$A85,'2.2 Daten'!$B$9:$B$860,0))) -> -2.400960384 | I85: =IF($A85<>0,INDEX('2.2 Daten'!L$9:L$860,MATCH('2.2'!$A85,'2.2 Daten'!$B$9:$B$860,0))) -> 2.670856245 | J85: =IF($A85<>0,INDEX('2.2 Daten'!M$9:M$860,MATCH('2.2'!$A85,'2.2 Daten'!$B$9:$B$860,0))) -> -4.405652535 | K85: =IF($A85<>0,INDEX('2.2 Daten'!N$9:N$860,MATCH('2.2'!$A85,'2.2 Daten'!$B$9:$B$860,0))) -> -3.01369863 | L85: =IF($A85<>0,INDEX('2.2 Daten'!O$9:O$860,MATCH('2.2'!$A85,'2.2 Daten'!$B$9:$B$860,0))) -> -4.651162791
A86: =CHOOSE('2.2 Daten'!$A$2,'2.2 Daten'!B508,'2.2 Daten'!B57,'2.2 Daten'!B74,'2.2 Daten'!B91,'2.2 Daten'!B94,'2.2 Daten'!B141,'2.2 Daten'!B145,'2.2 Daten'!B200,'2.2 Daten'!B228,'2.2 Daten'!B266,'2.2 Daten'!B312,'2.2 Daten'!B410,'2.2 Daten'!B418,'2.2 Daten'!B421,'2.2 Daten'!B441,'2.2 Daten'!B451,'2.2 Daten'!B466,'2.2 Daten'!B482,x) -> Region Hannover | B86: =IF($A86<>0,INDEX('2.2 Daten'!C$9:C$860,MATCH('2.2'!$A86,'2.2 Daten'!$B$9:$B$860,0))," ") -> 3241000 | C86: =IF($A86<>0,INDEX('2.2 Daten'!E$9:E$860,MATCH('2.2'!$A86,'2.2 Daten'!$B$9:$B$860,0))) -> 40007 | D86: =IF($A86<>0,INDEX('2.2 Daten'!F$9:F$860,MATCH('2.2'!$A86,'2.2 Daten'!$B$9:$B$860,0))) -> 7408 | E86: =IF($A86<>0,INDEX('2.2 Daten'!G$9:G$860,MATCH('2.2'!$A86,'2.2 Daten'!$B$9:$B$860,0))) -> 7370 | F86: =IF($A86<>0,INDEX('2.2 Daten'!H$9:H$860,MATCH('2.2'!$A86,'2.2 Daten'!$B$9:$B$860,0))) -> 19682 | G86: =IF($A86<>0,INDEX('2.2 Daten'!I$9:I$860,MATCH('2.2'!$A86,'2.2 Daten'!$B$9:$B$860,0))) -> 5547 | H86: =IF($A86<>0,INDEX('2.2 Daten'!K$9:K$860,MATCH('2.2'!$A86,'2.2 Daten'!$B$9:$B$860,0))) -> -2.104387403 | I86: =IF($A86<>0,INDEX('2.2 Daten'!L$9:L$860,MATCH('2.2'!$A86,'2.2 Daten'!$B$9:$B$860,0))) -> -2.871377999 | J86: =IF($A86<>0,INDEX('2.2 Daten'!M$9:M$860,MATCH('2.2'!$A86,'2.2 Daten'!$B$9:$B$860,0))) -> -1.073825503 | K86: =IF($A86<>0,INDEX('2.2 Daten'!N$9:N$860,MATCH('2.2'!$A86,'2.2 Daten'!$B$9:$B$860,0))) -> -1.820721305 | L86: =IF($A86<>0,INDEX('2.2 Daten'!O$9:O$860,MATCH('2.2'!$A86,'2.2 Daten'!$B$9:$B$860,0))) -> -3.412850427
A87: =CHOOSE('2.2 Daten'!$A$2,'2.2 Daten'!B509,'2.2 Daten'!B58,'2.2 Daten'!B75,'2.2 Daten'!B92,'2.2 Daten'!B95,'2.2 Daten'!B142,'2.2 Daten'!B146,'2.2 Daten'!B201,'2.2 Daten'!B229,'2.2 Daten'!B267,'2.2 Daten'!B313,'2.2 Daten'!B411,'2.2 Daten'!B419,'2.2 Daten'!B422,'2.2 Daten'!B442,'2.2 Daten'!B452,'2.2 Daten'!B467,'2.2 Daten'!B483,x) -> Diepholz | B87: =IF($A87<>0,INDEX('2.2 Daten'!C$9:C$860,MATCH('2.2'!$A87,'2.2 Daten'!$B$9:$B$860,0))," ") -> 3251000 | C87: =IF($A87<>0,INDEX('2.2 Daten'!E$9:E$860,MATCH('2.2'!$A87,'2.2 Daten'!$B$9:$B$860,0))) -> 4659 | D87: =IF($A87<>0,INDEX('2.2 Daten'!F$9:F$860,MATCH('2.2'!$A87,'2.2 Daten'!$B$9:$B$860,0))) -> 871 | E87: =IF($A87<>0,INDEX('2.2 Daten'!G$9:G$860,MATCH('2.2'!$A87,'2.2 Daten'!$B$9:$B$860,0))) -> 874 | F87: =IF($A87<>0,INDEX('2.2 Daten'!H$9:H$860,MATCH('2.2'!$A87,'2.2 Daten'!$B$9:$B$860,0))) -> 2291 | G87: =IF($A87<>0,INDEX('2.2 Daten'!I$9:I$860,MATCH('2.2'!$A87,'2.2 Daten'!$B$9:$B$860,0))) -> 623 | H87: =IF($A87<>0,INDEX('2.2 Daten'!K$9:K$860,MATCH('2.2'!$A87,'2.2 Daten'!$B$9:$B$860,0))) -> -2.572145546 | I87: =IF($A87<>0,INDEX('2.2 Daten'!L$9:L$860,MATCH('2.2'!$A87,'2.2 Daten'!$B$9:$B$860,0))) -> -3.006681514 | J87: =IF($A87<>0,INDEX('2.2 Daten'!M$9:M$860,MATCH('2.2'!$A87,'2.2 Daten'!$B$9:$B$860,0))) -> -5.308775731 | K87: =IF($A87<>0,INDEX('2.2 Daten'!N$9:N$860,MATCH('2.2'!$A87,'2.2 Daten'!$B$9:$B$860,0))) -> -0.8225108225 | L87: =IF($A87<>0,INDEX('2.2 Daten'!O$9:O$860,MATCH('2.2'!$A87,'2.2 Daten'!$B$9:$B$860,0))) -> -4.301075269
A88: =CHOOSE('2.2 Daten'!$A$2,'2.2 Daten'!B510,'2.2 Daten'!B59,'2.2 Daten'!B76,'2.2 Daten'!B93,'2.2 Daten'!B96,'2.2 Daten'!B143,'2.2 Daten'!B147,'2.2 Daten'!B202,'2.2 Daten'!B230,'2.2 Daten'!B268,'2.2 Daten'!B314,'2.2 Daten'!B412,'2.2 Daten'!B420,'2.2 Daten'!B423,'2.2 Daten'!B443,'2.2 Daten'!B453,'2.2 Daten'!B468,'2.2 Daten'!B484,x) -> Hameln-Pyrmont | B88: =IF($A88<>0,INDEX('2.2 Daten'!C$9:C$860,MATCH('2.2'!$A88,'2.2 Daten'!$B$9:$B$860,0))," ") -> 3252000 | C88: =IF($A88<>0,INDEX('2.2 Daten'!E$9:E$860,MATCH('2.2'!$A88,'2.2 Daten'!$B$9:$B$860,0))) -> 4974 | D88: =IF($A88<>0,INDEX('2.2 Daten'!F$9:F$860,MATCH('2.2'!$A88,'2.2 Daten'!$B$9:$B$860,0))) -> 931 | E88: =IF($A88<>0,INDEX('2.2 Daten'!G$9:G$860,MATCH('2.2'!$A88,'2.2 Daten'!$B$9:$B$860,0))) -> 912 | F88: =IF($A88<>0,INDEX('2.2 Daten'!H$9:H$860,MATCH('2.2'!$A88,'2.2 Daten'!$B$9:$B$860,0))) -> 2436 | G88: =IF($A88<>0,INDEX('2.2 Daten'!I$9:I$860,MATCH('2.2'!$A88,'2.2 Daten'!$B$9:$B$860,0))) -> 695 | H88: =IF($A88<>0,INDEX('2.2 Daten'!K$9:K$860,MATCH('2.2'!$A88,'2.2 Daten'!$B$9:$B$860,0))) -> 0.9539273392 | I88: =IF($A88<>0,INDEX('2.2 Daten'!L$9:L$860,MATCH('2.2'!$A88,'2.2 Daten'!$B$9:$B$860,0))) -> 4.96054115 | J88: =IF($A88<>0,INDEX('2.2 Daten'!M$9:M$860,MATCH('2.2'!$A88,'2.2 Daten'!$B$9:$B$860,0))) -> -0.8695652174 | K88: =IF($A88<>0,INDEX('2.2 Daten'!N$9:N$860,MATCH('2.2'!$A88,'2.2 Daten'!$B$9:$B$860,0))) -> 0.4536082474 | L88: =IF($A88<>0,INDEX('2.2 Daten'!O$9:O$860,MATCH('2.2'!$A88,'2.2 Daten'!$B$9:$B$860,0))) -> 0
A89: =CHOOSE('2.2 Daten'!$A$2,'2.2 Daten'!B511,'2.2 Daten'!B60,'2.2 Daten'!B77,'2.2 Daten'!B94,'2.2 Daten'!B97,'2.2 Daten'!B144,'2.2 Daten'!B148,'2.2 Daten'!B203,'2.2 Daten'!B231,'2.2 Daten'!B269,'2.2 Daten'!B315,'2.2 Daten'!B413,'2.2 Daten'!B421,'2.2 Daten'!B424,'2.2 Daten'!B444,'2.2 Daten'!B454,'2.2 Daten'!B469,'2.2 Daten'!B485,x) -> Hildesheim | B89: =IF($A89<>0,INDEX('2.2 Daten'!C$9:C$860,MATCH('2.2'!$A89,'2.2 Daten'!$B$9:$B$860,0))," ") -> 3254000 | C89: =IF($A89<>0,INDEX('2.2 Daten'!E$9:E$860,MATCH('2.2'!$A89,'2.2 Daten'!$B$9:$B$860,0))) -> 7047 | D89: =IF($A89<>0,INDEX('2.2 Daten'!F$9:F$860,MATCH('2.2'!$A89,'2.2 Daten'!$B$9:$B$860,0))) -> 1318 | E89: =IF($A89<>0,INDEX('2.2 Daten'!G$9:G$860,MATCH('2.2'!$A89,'2.2 Daten'!$B$9:$B$860,0))) -> 1336 | F89: =IF($A89<>0,INDEX('2.2 Daten'!H$9:H$860,MATCH('2.2'!$A89,'2.2 Daten'!$B$9:$B$860,0))) -> 3436 | G89: =IF($A89<>0,INDEX('2.2 Daten'!I$9:I$860,MATCH('2.2'!$A89,'2.2 Daten'!$B$9:$B$860,0))) -> 957 | H89: =IF($A89<>0,INDEX('2.2 Daten'!K$9:K$860,MATCH('2.2'!$A89,'2.2 Daten'!$B$9:$B$860,0))) -> -2.450166113 | I89: =IF($A89<>0,INDEX('2.2 Daten'!L$9:L$860,MATCH('2.2'!$A89,'2.2 Daten'!$B$9:$B$860,0))) -> -1.12528132 | J89: =IF($A89<>0,INDEX('2.2 Daten'!M$9:M$860,MATCH('2.2'!$A89,'2.2 Daten'!$B$9:$B$860,0))) -> -3.258508327 | K89: =IF($A89<>0,INDEX('2.2 Daten'!N$9:N$860,MATCH('2.2'!$A89,'2.2 Daten'!$B$9:$B$860,0))) -> -2.330869812 | L89: =IF($A89<>0,INDEX('2.2 Daten'!O$9:O$860,MATCH('2.2'!$A89,'2.2 Daten'!$B$9:$B$860,0))) -> -3.528225806
A90: =CHOOSE('2.2 Daten'!$A$2,'2.2 Daten'!B512,'2.2 Daten'!B61,'2.2 Daten'!B78,'2.2 Daten'!B95,'2.2 Daten'!B98,'2.2 Daten'!B145,'2.2 Daten'!B149,'2.2 Daten'!B204,'2.2 Daten'!B232,'2.2 Daten'!B270,'2.2 Daten'!B316,'2.2 Daten'!B414,'2.2 Daten'!B422,'2.2 Daten'!B425,'2.2 Daten'!B445,'2.2 Daten'!B455,'2.2 Daten'!B470,'2.2 Daten'!B486,x) -> Holzminden | B90: =IF($A90<>0,INDEX('2.2 Daten'!C$9:C$860,MATCH('2.2'!$A90,'2.2 Daten'!$B$9:$B$860,0))," ") -> 3255000 | C90: =IF($A90<>0,INDEX('2.2 Daten'!E$9:E$860,MATCH('2.2'!$A90,'2.2 Daten'!$B$9:$B$860,0))) -> 1777 | D90: =IF($A90<>0,INDEX('2.2 Daten'!F$9:F$860,MATCH('2.2'!$A90,'2.2 Daten'!$B$9:$B$860,0))) -> 336 | E90: =IF($A90<>0,INDEX('2.2 Daten'!G$9:G$860,MATCH('2.2'!$A90,'2.2 Daten'!$B$9:$B$860,0))) -> 325 | F90: =IF($A90<>0,INDEX('2.2 Daten'!H$9:H$860,MATCH('2.2'!$A90,'2.2 Daten'!$B$9:$B$860,0))) -> 868 | G90: =IF($A90<>0,INDEX('2.2 Daten'!I$9:I$860,MATCH('2.2'!$A90,'2.2 Daten'!$B$9:$B$860,0))) -> 248 | H90: =IF($A90<>0,INDEX('2.2 Daten'!K$9:K$860,MATCH('2.2'!$A90,'2.2 Daten'!$B$9:$B$860,0))) -> -6.816990037 | I90: =IF($A90<>0,INDEX('2.2 Daten'!L$9:L$860,MATCH('2.2'!$A90,'2.2 Daten'!$B$9:$B$860,0))) -> -7.182320442 | J90: =IF($A90<>0,INDEX('2.2 Daten'!M$9:M$860,MATCH('2.2'!$A90,'2.2 Daten'!$B$9:$B$860,0))) -> -9.470752089 | K90: =IF($A90<>0,INDEX('2.2 Daten'!N$9:N$860,MATCH('2.2'!$A90,'2.2 Daten'!$B$9:$B$860,0))) -> -3.76940133 | L90: =IF($A90<>0,INDEX('2.2 Daten'!O$9:O$860,MATCH('2.2'!$A90,'2.2 Daten'!$B$9:$B$860,0))) -> -12.67605634
A91: =CHOOSE('2.2 Daten'!$A$2,'2.2 Daten'!B513,'2.2 Daten'!B62,'2.2 Daten'!B79,'2.2 Daten'!B96,'2.2 Daten'!B99,'2.2 Daten'!B146,'2.2 Daten'!B150,'2.2 Daten'!B205,'2.2 Daten'!B233,'2.2 Daten'!B271,'2.2 Daten'!B317,'2.2 Daten'!B415,'2.2 Daten'!B423,'2.2 Daten'!B426,'2.2 Daten'!B446,'2.2 Daten'!B456,'2.2 Daten'!B471,'2.2 Daten'!B487,x) -> Nienburg (Weser) | B91: =IF($A91<>0,INDEX('2.2 Daten'!C$9:C$860,MATCH('2.2'!$A91,'2.2 Daten'!$B$9:$B$860,0))," ") -> 3256000 | C91: =IF($A91<>0,INDEX('2.2 Daten'!E$9:E$860,MATCH('2.2'!$A91,'2.2 Daten'!$B$9:$B$860,0))) -> 3541 | D91: =IF($A91<>0,INDEX('2.2 Daten'!F$9:F$860,MATCH('2.2'!$A91,'2.2 Daten'!$B$9:$B$860,0))) -> 607 | E91: =IF($A91<>0,INDEX('2.2 Daten'!G$9:G$860,MATCH('2.2'!$A91,'2.2 Daten'!$B$9:$B$860,0))) -> 681 | F91: =IF($A91<>0,INDEX('2.2 Daten'!H$9:H$860,MATCH('2.2'!$A91,'2.2 Daten'!$B$9:$B$860,0))) -> 1777 | G91: =IF($A91<>0,INDEX('2.2 Daten'!I$9:I$860,MATCH('2.2'!$A91,'2.2 Daten'!$B$9:$B$860,0))) -> 476 | H91: =IF($A91<>0,INDEX('2.2 Daten'!K$9:K$860,MATCH('2.2'!$A91,'2.2 Daten'!$B$9:$B$860,0))) -> -4.063939312 | I91: =IF($A91<>0,INDEX('2.2 Daten'!L$9:L$860,MATCH('2.2'!$A91,'2.2 Daten'!$B$9:$B$860,0))) -> -5.745341615 | J91: =IF($A91<>0,INDEX('2.2 Daten'!M$9:M$860,MATCH('2.2'!$A91,'2.2 Daten'!$B$9:$B$860,0))) -> -2.991452991 | K91: =IF($A91<>0,INDEX('2.2 Daten'!N$9:N$860,MATCH('2.2'!$A91,'2.2 Daten'!$B$9:$B$860,0))) -> -3.63340564 | L91: =IF($A91<>0,INDEX('2.2 Daten'!O$9:O$860,MATCH('2.2'!$A91,'2.2 Daten'!$B$9:$B$860,0))) -> -4.99001996
A92: =CHOOSE('2.2 Daten'!$A$2,'2.2 Daten'!B514,'2.2 Daten'!B63,'2.2 Daten'!B80,'2.2 Daten'!B97,'2.2 Daten'!B100,'2.2 Daten'!B147,'2.2 Daten'!B151,'2.2 Daten'!B206,'2.2 Daten'!B234,'2.2 Daten'!B272,'2.2 Daten'!B318,'2.2 Daten'!B416,'2.2 Daten'!B424,'2.2 Daten'!B427,'2.2 Daten'!B447,'2.2 Daten'!B457,'2.2 Daten'!B472,'2.2 Daten'!B488,x) -> Schaumburg | B92: =IF($A92<>0,INDEX('2.2 Daten'!C$9:C$860,MATCH('2.2'!$A92,'2.2 Daten'!$B$9:$B$860,0))," ") -> 3257000 | C92: =IF($A92<>0,INDEX('2.2 Daten'!E$9:E$860,MATCH('2.2'!$A92,'2.2 Daten'!$B$9:$B$860,0))) -> 3914 | D92: =IF($A92<>0,INDEX('2.2 Daten'!F$9:F$860,MATCH('2.2'!$A92,'2.2 Daten'!$B$9:$B$860,0))) -> 739 | E92: =IF($A92<>0,INDEX('2.2 Daten'!G$9:G$860,MATCH('2.2'!$A92,'2.2 Daten'!$B$9:$B$860,0))) -> 721 | F92: =IF($A92<>0,INDEX('2.2 Daten'!H$9:H$860,MATCH('2.2'!$A92,'2.2 Daten'!$B$9:$B$860,0))) -> 1914 | G92: =IF($A92<>0,INDEX('2.2 Daten'!I$9:I$860,MATCH('2.2'!$A92,'2.2 Daten'!$B$9:$B$860,0))) -> 540 | H92: =IF($A92<>0,INDEX('2.2 Daten'!K$9:K$860,MATCH('2.2'!$A92,'2.2 Daten'!$B$9:$B$860,0))) -> -3.856546303 | I92: =IF($A92<>0,INDEX('2.2 Daten'!L$9:L$860,MATCH('2.2'!$A92,'2.2 Daten'!$B$9:$B$860,0))) -> 0.6811989101 | J92: =IF($A92<>0,INDEX('2.2 Daten'!M$9:M$860,MATCH('2.2'!$A92,'2.2 Daten'!$B$9:$B$860,0))) -> -4.62962963 | K92: =IF($A92<>0,INDEX('2.2 Daten'!N$9:N$860,MATCH('2.2'!$A92,'2.2 Daten'!$B$9:$B$860,0))) -> -4.633781764 | L92: =IF($A92<>0,INDEX('2.2 Daten'!O$9:O$860,MATCH('2.2'!$A92,'2.2 Daten'!$B$9:$B$860,0))) -> -5.923344948
A93: =CHOOSE('2.2 Daten'!$A$2,'2.2 Daten'!B515,'2.2 Daten'!B64,'2.2 Daten'!B81,'2.2 Daten'!B98,'2.2 Daten'!B101,'2.2 Daten'!B148,'2.2 Daten'!B152,'2.2 Daten'!B207,'2.2 Daten'!B235,'2.2 Daten'!B273,'2.2 Daten'!B319,'2.2 Daten'!B417,'2.2 Daten'!B425,'2.2 Daten'!B428,'2.2 Daten'!B448,'2.2 Daten'!B458,'2.2 Daten'!B473,'2.2 Daten'!B489,x) -> Celle | B93: =IF($A93<>0,INDEX('2.2 Daten'!C$9:C$860,MATCH('2.2'!$A93,'2.2 Daten'!$B$9:$B$860,0))," ") -> 3351000 | C93: =IF($A93<>0,INDEX('2.2 Daten'!E$9:E$860,MATCH('2.2'!$A93,'2.2 Daten'!$B$9:$B$860,0))) -> 5402 | D93: =IF($A93<>0,INDEX('2.2 Daten'!F$9:F$860,MATCH('2.2'!$A93,'2.2 Daten'!$B$9:$B$860,0))) -> 968 | E93: =IF($A93<>0,INDEX('2.2 Daten'!G$9:G$860,MATCH('2.2'!$A93,'2.2 Daten'!$B$9:$B$860,0))) -> 1041 | F93: =IF($A93<>0,INDEX('2.2 Daten'!H$9:H$860,MATCH('2.2'!$A93,'2.2 Daten'!$B$9:$B$860,0))) -> 2670 | G93: =IF($A93<>0,INDEX('2.2 Daten'!I$9:I$860,MATCH('2.2'!$A93,'2.2 Daten'!$B$9:$B$860,0))) -> 723 | H93: =IF($A93<>0,INDEX('2.2 Daten'!K$9:K$860,MATCH('2.2'!$A93,'2.2 Daten'!$B$9:$B$860,0))) -> -1.995645864 | I93: =IF($A93<>0,INDEX('2.2 Daten'!L$9:L$860,MATCH('2.2'!$A93,'2.2 Daten'!$B$9:$B$860,0))) -> -3.585657371 | J93: =IF($A93<>0,INDEX('2.2 Daten'!M$9:M$860,MATCH('2.2'!$A93,'2.2 Daten'!$B$9:$B$860,0))) -> 2.662721893 | K93: =IF($A93<>0,INDEX('2.2 Daten'!N$9:N$860,MATCH('2.2'!$A93,'2.2 Daten'!$B$9:$B$860,0))) -> -2.018348624 | L93: =IF($A93<>0,INDEX('2.2 Daten'!O$9:O$860,MATCH('2.2'!$A93,'2.2 Daten'!$B$9:$B$860,0))) -> -5.981794538
A94: =CHOOSE('2.2 Daten'!$A$2,'2.2 Daten'!B516,'2.2 Daten'!B65,'2.2 Daten'!B82,'2.2 Daten'!B99,'2.2 Daten'!B102,'2.2 Daten'!B149,'2.2 Daten'!B153,'2.2 Daten'!B208,'2.2 Daten'!B236,'2.2 Daten'!B274,'2.2 Daten'!B320,'2.2 Daten'!B418,'2.2 Daten'!B426,'2.2 Daten'!B429,'2.2 Daten'!B449,'2.2 Daten'!B459,'2.2 Daten'!B474,'2.2 Daten'!B490,x) -> Cuxhaven | B94: =IF($A94<>0,INDEX('2.2 Daten'!C$9:C$860,MATCH('2.2'!$A94,'2.2 Daten'!$B$9:$B$860,0))," ") -> 3352000 | C94: =IF($A94<>0,INDEX('2.2 Daten'!E$9:E$860,MATCH('2.2'!$A94,'2.2 Daten'!$B$9:$B$860,0))) -> 4578 | D94: =IF($A94<>0,INDEX('2.2 Daten'!F$9:F$860,MATCH('2.2'!$A94,'2.2 Daten'!$B$9:$B$860,0))) -> 911 | E94: =IF($A94<>0,INDEX('2.2 Daten'!G$9:G$860,MATCH('2.2'!$A94,'2.2 Daten'!$B$9:$B$860,0))) -> 853 | F94: =IF($A94<>0,INDEX('2.2 Daten'!H$9:H$860,MATCH('2.2'!$A94,'2.2 Daten'!$B$9:$B$860,0))) -> 2184 | G94: =IF($A94<>0,INDEX('2.2 Daten'!I$9:I$860,MATCH('2.2'!$A94,'2.2 Daten'!$B$9:$B$860,0))) -> 630 | H94: =IF($A94<>0,INDEX('2.2 Daten'!K$9:K$860,MATCH('2.2'!$A94,'2.2 Daten'!$B$9:$B$860,0))) -> -7.06455542 | I94: =IF($A94<>0,INDEX('2.2 Daten'!L$9:L$860,MATCH('2.2'!$A94,'2.2 Daten'!$B$9:$B$860,0))) -> -4.004214963 | J94: =IF($A94<>0,INDEX('2.2 Daten'!M$9:M$860,MATCH('2.2'!$A94,'2.2 Daten'!$B$9:$B$860,0))) -> -1.614763552 | K94: =IF($A94<>0,INDEX('2.2 Daten'!N$9:N$860,MATCH('2.2'!$A94,'2.2 Daten'!$B$9:$B$860,0))) -> -9 | L94: =IF($A94<>0,INDEX('2.2 Daten'!O$9:O$860,MATCH('2.2'!$A94,'2.2 Daten'!$B$9:$B$860,0))) -> -11.26760563
A95: =CHOOSE('2.2 Daten'!$A$2,'2.2 Daten'!B517,'2.2 Daten'!B66,'2.2 Daten'!B83,'2.2 Daten'!B100,'2.2 Daten'!B103,'2.2 Daten'!B150,'2.2 Daten'!B154,'2.2 Daten'!B209,'2.2 Daten'!B237,'2.2 Daten'!B275,'2.2 Daten'!B321,'2.2 Daten'!B419,'2.2 Daten'!B427,'2.2 Daten'!B430,'2.2 Daten'!B450,'2.2 Daten'!B460,'2.2 Daten'!B475,'2.2 Daten'!B491,x) -> Harburg | B95: =IF($A95<>0,INDEX('2.2 Daten'!C$9:C$860,MATCH('2.2'!$A95,'2.2 Daten'!$B$9:$B$860,0))," ") -> 3353000 | C95: =IF($A95<>0,INDEX('2.2 Daten'!E$9:E$860,MATCH('2.2'!$A95,'2.2 Daten'!$B$9:$B$860,0))) -> 3974 | D95: =IF($A95<>0,INDEX('2.2 Daten'!F$9:F$860,MATCH('2.2'!$A95,'2.2 Daten'!$B$9:$B$860,0))) -> 732 | E95: =IF($A95<>0,INDEX('2.2 Daten'!G$9:G$860,MATCH('2.2'!$A95,'2.2 Daten'!$B$9:$B$860,0))) -> 718 | F95: =IF($A95<>0,INDEX('2.2 Daten'!H$9:H$860,MATCH('2.2'!$A95,'2.2 Daten'!$B$9:$B$860,0))) -> 1992 | G95: =IF($A95<>0,INDEX('2.2 Daten'!I$9:I$860,MATCH('2.2'!$A95,'2.2 Daten'!$B$9:$B$860,0))) -> 532 | H95: =IF($A95<>0,INDEX('2.2 Daten'!K$9:K$860,MATCH('2.2'!$A95,'2.2 Daten'!$B$9:$B$860,0))) -> -4.700239808 | I95: =IF($A95<>0,INDEX('2.2 Daten'!L$9:L$860,MATCH('2.2'!$A95,'2.2 Daten'!$B$9:$B$860,0))) -> -1.612903226 | J95: =IF($A95<>0,INDEX('2.2 Daten'!M$9:M$860,MATCH('2.2'!$A95,'2.2 Daten'!$B$9:$B$860,0))) -> -4.266666667 | K95: =IF($A95<>0,INDEX('2.2 Daten'!N$9:N$860,MATCH('2.2'!$A95,'2.2 Daten'!$B$9:$B$860,0))) -> -4.91646778 | L95: =IF($A95<>0,INDEX('2.2 Daten'!O$9:O$860,MATCH('2.2'!$A95,'2.2 Daten'!$B$9:$B$860,0))) -> -8.43373494
A96: =CHOOSE('2.2 Daten'!$A$2,'2.2 Daten'!B518,'2.2 Daten'!B67,'2.2 Daten'!B84,'2.2 Daten'!B101,'2.2 Daten'!B104,'2.2 Daten'!B151,'2.2 Daten'!B155,'2.2 Daten'!B210,'2.2 Daten'!B238,'2.2 Daten'!B276,'2.2 Daten'!B322,'2.2 Daten'!B420,'2.2 Daten'!B428,'2.2 Daten'!B431,'2.2 Daten'!B451,'2.2 Daten'!B461,'2.2 Daten'!B476,'2.2 Daten'!B492,x) -> Lüchow-Dannenberg | B96: =IF($A96<>0,INDEX('2.2 Daten'!C$9:C$860,MATCH('2.2'!$A96,'2.2 Daten'!$B$9:$B$860,0))," ") -> 3354000 | C96: =IF($A96<>0,INDEX('2.2 Daten'!E$9:E$860,MATCH('2.2'!$A96,'2.2 Daten'!$B$9:$B$860,0))) -> 1125 | D96: =IF($A96<>0,INDEX('2.2 Daten'!F$9:F$860,MATCH('2.2'!$A96,'2.2 Daten'!$B$9:$B$860,0))) -> 189 | E96: =IF($A96<>0,INDEX('2.2 Daten'!G$9:G$860,MATCH('2.2'!$A96,'2.2 Daten'!$B$9:$B$860,0))) -> 218 | F96: =IF($A96<>0,INDEX('2.2 Daten'!H$9:H$860,MATCH('2.2'!$A96,'2.2 Daten'!$B$9:$B$860,0))) -> 565 | G96: =IF($A96<>0,INDEX('2.2 Daten'!I$9:I$860,MATCH('2.2'!$A96,'2.2 Daten'!$B$9:$B$860,0))) -> 153 | H96: =IF($A96<>0,INDEX('2.2 Daten'!K$9:K$860,MATCH('2.2'!$A96,'2.2 Daten'!$B$9:$B$860,0))) -> -6.561461794 | I96: =IF($A96<>0,INDEX('2.2 Daten'!L$9:L$860,MATCH('2.2'!$A96,'2.2 Daten'!$B$9:$B$860,0))) -> -11.26760563 | J96: =IF($A96<>0,INDEX('2.2 Daten'!M$9:M$860,MATCH('2.2'!$A96,'2.2 Daten'!$B$9:$B$860,0))) -> -0.4566210046 | K96: =IF($A96<>0,INDEX('2.2 Daten'!N$9:N$860,MATCH('2.2'!$A96,'2.2 Daten'!$B$9:$B$860,0))) -> -4.721753794 | L96: =IF($A96<>0,INDEX('2.2 Daten'!O$9:O$860,MATCH('2.2'!$A96,'2.2 Daten'!$B$9:$B$860,0))) -> -14.52513966
A97: =CHOOSE('2.2 Daten'!$A$2,'2.2 Daten'!B519,'2.2 Daten'!B68,'2.2 Daten'!B85,'2.2 Daten'!B102,'2.2 Daten'!B105,'2.2 Daten'!B152,'2.2 Daten'!B156,'2.2 Daten'!B211,'2.2 Daten'!B239,'2.2 Daten'!B277,'2.2 Daten'!B323,'2.2 Daten'!B421,'2.2 Daten'!B429,'2.2 Daten'!B432,'2.2 Daten'!B452,'2.2 Daten'!B462,'2.2 Daten'!B477,'2.2 Daten'!B493,x) -> Lüneburg | B97: =IF($A97<>0,INDEX('2.2 Daten'!C$9:C$860,MATCH('2.2'!$A97,'2.2 Daten'!$B$9:$B$860,0))," ") -> 3355000 | C97: =IF($A97<>0,INDEX('2.2 Daten'!E$9:E$860,MATCH('2.2'!$A97,'2.2 Daten'!$B$9:$B$860,0))) -> 4486 | D97: =IF($A97<>0,INDEX('2.2 Daten'!F$9:F$860,MATCH('2.2'!$A97,'2.2 Daten'!$B$9:$B$860,0))) -> 792 | E97: =IF($A97<>0,INDEX('2.2 Daten'!G$9:G$860,MATCH('2.2'!$A97,'2.2 Daten'!$B$9:$B$860,0))) -> 812 | F97: =IF($A97<>0,INDEX('2.2 Daten'!H$9:H$860,MATCH('2.2'!$A97,'2.2 Daten'!$B$9:$B$860,0))) -> 2251 | G97: =IF($A97<>0,INDEX('2.2 Daten'!I$9:I$860,MATCH('2.2'!$A97,'2.2 Daten'!$B$9:$B$860,0))) -> 631 | H97: =IF($A97<>0,INDEX('2.2 Daten'!K$9:K$860,MATCH('2.2'!$A97,'2.2 Daten'!$B$9:$B$860,0))) -> 0.3579418345 | I97: =IF($A97<>0,INDEX('2.2 Daten'!L$9:L$860,MATCH('2.2'!$A97,'2.2 Daten'!$B$9:$B$860,0))) -> 0.253164557 | J97: =IF($A97<>0,INDEX('2.2 Daten'!M$9:M$860,MATCH('2.2'!$A97,'2.2 Daten'!$B$9:$B$860,0))) -> 1.627033792 | K97: =IF($A97<>0,INDEX('2.2 Daten'!N$9:N$860,MATCH('2.2'!$A97,'2.2 Daten'!$B$9:$B$860,0))) -> 0.1334519573 | L97: =IF($A97<>0,INDEX('2.2 Daten'!O$9:O$860,MATCH('2.2'!$A97,'2.2 Daten'!$B$9:$B$860,0))) -> -0.3159557662
A98: =CHOOSE('2.2 Daten'!$A$2,'2.2 Daten'!B520,'2.2 Daten'!B69,'2.2 Daten'!B86,'2.2 Daten'!B103,'2.2 Daten'!B106,'2.2 Daten'!B153,'2.2 Daten'!B157,'2.2 Daten'!B212,'2.2 Daten'!B240,'2.2 Daten'!B278,'2.2 Daten'!B324,'2.2 Daten'!B422,'2.2 Daten'!B430,'2.2 Daten'!B433,'2.2 Daten'!B453,'2.2 Daten'!B463,'2.2 Daten'!B478,'2.2 Daten'!B494,x) -> Osterholz | B98: =IF($A98<>0,INDEX('2.2 Daten'!C$9:C$860,MATCH('2.2'!$A98,'2.2 Daten'!$B$9:$B$860,0))," ") -> 3356000 | C98: =IF($A98<>0,INDEX('2.2 Daten'!E$9:E$860,MATCH('2.2'!$A98,'2.2 Daten'!$B$9:$B$860,0))) -> 1800 | D98: =IF($A98<>0,INDEX('2.2 Daten'!F$9:F$860,MATCH('2.2'!$A98,'2.2 Daten'!$B$9:$B$860,0))) -> 366 | E98: =IF($A98<>0,INDEX('2.2 Daten'!G$9:G$860,MATCH('2.2'!$A98,'2.2 Daten'!$B$9:$B$860,0))) -> 359 | F98: =IF($A98<>0,INDEX('2.2 Daten'!H$9:H$860,MATCH('2.2'!$A98,'2.2 Daten'!$B$9:$B$860,0))) -> 863 | G98: =IF($A98<>0,INDEX('2.2 Daten'!I$9:I$860,MATCH('2.2'!$A98,'2.2 Daten'!$B$9:$B$860,0))) -> 212 | H98: =IF($A98<>0,INDEX('2.2 Daten'!K$9:K$860,MATCH('2.2'!$A98,'2.2 Daten'!$B$9:$B$860,0))) -> -5.213270142 | I98: =IF($A98<>0,INDEX('2.2 Daten'!L$9:L$860,MATCH('2.2'!$A98,'2.2 Daten'!$B$9:$B$860,0))) -> -7.341772152 | J98: =IF($A98<>0,INDEX('2.2 Daten'!M$9:M$860,MATCH('2.2'!$A98,'2.2 Daten'!$B$9:$B$860,0))) -> 1.126760563 | K98: =IF($A98<>0,INDEX('2.2 Daten'!N$9:N$860,MATCH('2.2'!$A98,'2.2 Daten'!$B$9:$B$860,0))) -> -3.033707865 | L98: =IF($A98<>0,INDEX('2.2 Daten'!O$9:O$860,MATCH('2.2'!$A98,'2.2 Daten'!$B$9:$B$860,0))) -> -18.14671815
A99: =CHOOSE('2.2 Daten'!$A$2,'2.2 Daten'!B521,'2.2 Daten'!B70,'2.2 Daten'!B87,'2.2 Daten'!B104,'2.2 Daten'!B107,'2.2 Daten'!B154,'2.2 Daten'!B158,'2.2 Daten'!B213,'2.2 Daten'!B241,'2.2 Daten'!B279,'2.2 Daten'!B325,'2.2 Daten'!B423,'2.2 Daten'!B431,'2.2 Daten'!B434,'2.2 Daten'!B454,'2.2 Daten'!B464,'2.2 Daten'!B479,'2.2 Daten'!B495,x) -> Rotenburg (Wümme) | B99: =IF($A99<>0,INDEX('2.2 Daten'!C$9:C$860,MATCH('2.2'!$A99,'2.2 Daten'!$B$9:$B$860,0))," ") -> 3357000 | C99: =IF($A99<>0,INDEX('2.2 Daten'!E$9:E$860,MATCH('2.2'!$A99,'2.2 Daten'!$B$9:$B$860,0))) -> 2537 | D99: =IF($A99<>0,INDEX('2.2 Daten'!F$9:F$860,MATCH('2.2'!$A99,'2.2 Daten'!$B$9:$B$860,0))) -> 512 | E99: =IF($A99<>0,INDEX('2.2 Daten'!G$9:G$860,MATCH('2.2'!$A99,'2.2 Daten'!$B$9:$B$860,0))) -> 507 | F99: =IF($A99<>0,INDEX('2.2 Daten'!H$9:H$860,MATCH('2.2'!$A99,'2.2 Daten'!$B$9:$B$860,0))) -> 1205 | G99: =IF($A99<>0,INDEX('2.2 Daten'!I$9:I$860,MATCH('2.2'!$A99,'2.2 Daten'!$B$9:$B$860,0))) -> 313 | H99: =IF($A99<>0,INDEX('2.2 Daten'!K$9:K$860,MATCH('2.2'!$A99,'2.2 Daten'!$B$9:$B$860,0))) -> -9.939652112 | I99: =IF($A99<>0,INDEX('2.2 Daten'!L$9:L$860,MATCH('2.2'!$A99,'2.2 Daten'!$B$9:$B$860,0))) -> -12.17838765 | J99: =IF($A99<>0,INDEX('2.2 Daten'!M$9:M$860,MATCH('2.2'!$A99,'2.2 Daten'!$B$9:$B$860,0))) -> -4.87804878 | K99: =IF($A99<>0,INDEX('2.2 Daten'!N$9:N$860,MATCH('2.2'!$A99,'2.2 Daten'!$B$9:$B$860,0))) -> -9.330323552 | L99: =IF($A99<>0,INDEX('2.2 Daten'!O$9:O$860,MATCH('2.2'!$A99,'2.2 Daten'!$B$9:$B$860,0))) -> -15.86021505
A100: =CHOOSE('2.2 Daten'!$A$2,'2.2 Daten'!B522,'2.2 Daten'!B71,'2.2 Daten'!B88,'2.2 Daten'!B105,'2.2 Daten'!B108,'2.2 Daten'!B155,'2.2 Daten'!B159,'2.2 Daten'!B214,'2.2 Daten'!B242,'2.2 Daten'!B280,'2.2 Daten'!B326,'2.2 Daten'!B424,'2.2 Daten'!B432,'2.2 Daten'!B435,'2.2 Daten'!B455,'2.2 Daten'!B465,'2.2 Daten'!B480,'2.2 Daten'!B496,x) -> Heidekreis | B100: =IF($A100<>0,INDEX('2.2 Daten'!C$9:C$860,MATCH('2.2'!$A100,'2.2 Daten'!$B$9:$B$860,0))," ") -> 3358000 | C100: =IF($A100<>0,INDEX('2.2 Daten'!E$9:E$860,MATCH('2.2'!$A100,'2.2 Daten'!$B$9:$B$860,0))) -> 3319 | D100: =IF($A100<>0,INDEX('2.2 Daten'!F$9:F$860,MATCH('2.2'!$A100,'2.2 Daten'!$B$9:$B$860,0))) -> 640 | E100: =IF($A100<>0,INDEX('2.2 Daten'!G$9:G$860,MATCH('2.2'!$A100,'2.2 Daten'!$B$9:$B$860,0))) -> 636 | F100: =IF($A100<>0,INDEX('2.2 Daten'!H$9:H$860,MATCH('2.2'!$A100,'2.2 Daten'!$B$9:$B$860,0))) -> 1606 | G100: =IF($A100<>0,INDEX('2.2 Daten'!I$9:I$860,MATCH('2.2'!$A100,'2.2 Daten'!$B$9:$B$860,0))) -> 437 | H100: =IF($A100<>0,INDEX('2.2 Daten'!K$9:K$860,MATCH('2.2'!$A100,'2.2 Daten'!$B$9:$B$860,0))) -> -2.49706228 | I100: =IF($A100<>0,INDEX('2.2 Daten'!L$9:L$860,MATCH('2.2'!$A100,'2.2 Daten'!$B$9:$B$860,0))) -> 0 | J100: =IF($A100<>0,INDEX('2.2 Daten'!M$9:M$860,MATCH('2.2'!$A100,'2.2 Daten'!$B$9:$B$860,0))) -> 0.6329113924 | K100: =IF($A100<>0,INDEX('2.2 Daten'!N$9:N$860,MATCH('2.2'!$A100,'2.2 Daten'!$B$9:$B$860,0))) -> -2.370820669 | L100: =IF($A100<>0,INDEX('2.2 Daten'!O$9:O$860,MATCH('2.2'!$A100,'2.2 Daten'!$B$9:$B$860,0))) -> -10.26694045
A101: =CHOOSE('2.2 Daten'!$A$2,'2.2 Daten'!B523,'2.2 Daten'!B72,'2.2 Daten'!B89,'2.2 Daten'!B106,'2.2 Daten'!B109,'2.2 Daten'!B156,'2.2 Daten'!B160,'2.2 Daten'!B215,'2.2 Daten'!B243,'2.2 Daten'!B281,'2.2 Daten'!B327,'2.2 Daten'!B425,'2.2 Daten'!B433,'2.2 Daten'!B436,'2.2 Daten'!B456,'2.2 Daten'!B466,'2.2 Daten'!B481,'2.2 Daten'!B497,x) -> Stade | B101: =IF($A101<>0,INDEX('2.2 Daten'!C$9:C$860,MATCH('2.2'!$A101,'2.2 Daten'!$B$9:$B$860,0))," ") -> 3359000 | C101: =IF($A101<>0,INDEX('2.2 Daten'!E$9:E$860,MATCH('2.2'!$A101,'2.2 Daten'!$B$9:$B$860,0))) -> 5405 | D101: =IF($A101<>0,INDEX('2.2 Daten'!F$9:F$860,MATCH('2.2'!$A101,'2.2 Daten'!$B$9:$B$860,0))) -> 1017 | E101: =IF($A101<>0,INDEX('2.2 Daten'!G$9:G$860,MATCH('2.2'!$A101,'2.2 Daten'!$B$9:$B$860,0))) -> 1012 | F101: =IF($A101<>0,INDEX('2.2 Daten'!H$9:H$860,MATCH('2.2'!$A101,'2.2 Daten'!$B$9:$B$860,0))) -> 2658 | G101: =IF($A101<>0,INDEX('2.2 Daten'!I$9:I$860,MATCH('2.2'!$A101,'2.2 Daten'!$B$9:$B$860,0))) -> 718 | H101: =IF($A101<>0,INDEX('2.2 Daten'!K$9:K$860,MATCH('2.2'!$A101,'2.2 Daten'!$B$9:$B$860,0))) -> -3.68852459 | I101: =IF($A101<>0,INDEX('2.2 Daten'!L$9:L$860,MATCH('2.2'!$A101,'2.2 Daten'!$B$9:$B$860,0))) -> -7.208029197 | J101: =IF($A101<>0,INDEX('2.2 Daten'!M$9:M$860,MATCH('2.2'!$A101,'2.2 Daten'!$B$9:$B$860,0))) -> -4.528301887 | K101: =IF($A101<>0,INDEX('2.2 Daten'!N$9:N$860,MATCH('2.2'!$A101,'2.2 Daten'!$B$9:$B$860,0))) -> -1.918819188 | L101: =IF($A101<>0,INDEX('2.2 Daten'!O$9:O$860,MATCH('2.2'!$A101,'2.2 Daten'!$B$9:$B$860,0))) -> -3.753351206
A102: =CHOOSE('2.2 Daten'!$A$2,'2.2 Daten'!B524,'2.2 Daten'!B73,'2.2 Daten'!B90,'2.2 Daten'!B107,'2.2 Daten'!B110,'2.2 Daten'!B157,'2.2 Daten'!B161,'2.2 Daten'!B216,'2.2 Daten'!B244,'2.2 Daten'!B282,'2.2 Daten'!B328,'2.2 Daten'!B426,'2.2 Daten'!B434,'2.2 Daten'!B437,'2.2 Daten'!B457,'2.2 Daten'!B467,'2.2 Daten'!B482,'2.2 Daten'!B498,x) -> Uelzen | B102: =IF($A102<>0,INDEX('2.2 Daten'!C$9:C$860,MATCH('2.2'!$A102,'2.2 Daten'!$B$9:$B$860,0))," ") -> 3360000 | C102: =IF($A102<>0,INDEX('2.2 Daten'!E$9:E$860,MATCH('2.2'!$A102,'2.2 Daten'!$B$9:$B$860,0))) -> 1912 | D102: =IF($A102<>0,INDEX('2.2 Daten'!F$9:F$860,MATCH('2.2'!$A102,'2.2 Daten'!$B$9:$B$860,0))) -> 376 | E102: =IF($A102<>0,INDEX('2.2 Daten'!G$9:G$860,MATCH('2.2'!$A102,'2.2 Daten'!$B$9:$B$860,0))) -> 375 | F102: =IF($A102<>0,INDEX('2.2 Daten'!H$9:H$860,MATCH('2.2'!$A102,'2.2 Daten'!$B$9:$B$860,0))) -> 942 | G102: =IF($A102<>0,INDEX('2.2 Daten'!I$9:I$860,MATCH('2.2'!$A102,'2.2 Daten'!$B$9:$B$860,0))) -> 219 | H102: =IF($A102<>0,INDEX('2.2 Daten'!K$9:K$860,MATCH('2.2'!$A102,'2.2 Daten'!$B$9:$B$860,0))) -> -5.766387383 | I102: =IF($A102<>0,INDEX('2.2 Daten'!L$9:L$860,MATCH('2.2'!$A102,'2.2 Daten'!$B$9:$B$860,0))) -> -1.052631579 | J102: =IF($A102<>0,INDEX('2.2 Daten'!M$9:M$860,MATCH('2.2'!$A102,'2.2 Daten'!$B$9:$B$860,0))) -> -8.536585366 | K102: =IF($A102<>0,INDEX('2.2 Daten'!N$9:N$860,MATCH('2.2'!$A102,'2.2 Daten'!$B$9:$B$860,0))) -> -3.483606557 | L102: =IF($A102<>0,INDEX('2.2 Daten'!O$9:O$860,MATCH('2.2'!$A102,'2.2 Daten'!$B$9:$B$860,0))) -> -16.73003802
A103: =CHOOSE('2.2 Daten'!$A$2,'2.2 Daten'!B525,'2.2 Daten'!B74,'2.2 Daten'!B91,'2.2 Daten'!B108,'2.2 Daten'!B111,'2.2 Daten'!B158,'2.2 Daten'!B162,'2.2 Daten'!B217,'2.2 Daten'!B245,'2.2 Daten'!B283,'2.2 Daten'!B329,'2.2 Daten'!B427,'2.2 Daten'!B435,'2.2 Daten'!B438,'2.2 Daten'!B458,'2.2 Daten'!B468,'2.2 Daten'!B483,'2.2 Daten'!B499,x) -> Verden | B103: =IF($A103<>0,INDEX('2.2 Daten'!C$9:C$860,MATCH('2.2'!$A103,'2.2 Daten'!$B$9:$B$860,0))," ") -> 3361000 | C103: =IF($A103<>0,INDEX('2.2 Daten'!E$9:E$860,MATCH('2.2'!$A103,'2.2 Daten'!$B$9:$B$860,0))) -> 2953 | D103: =IF($A103<>0,INDEX('2.2 Daten'!F$9:F$860,MATCH('2.2'!$A103,'2.2 Daten'!$B$9:$B$860,0))) -> 575 | E103: =IF($A103<>0,INDEX('2.2 Daten'!G$9:G$860,MATCH('2.2'!$A103,'2.2 Daten'!$B$9:$B$860,0))) -> 559 | F103: =IF($A103<>0,INDEX('2.2 Daten'!H$9:H$860,MATCH('2.2'!$A103,'2.2 Daten'!$B$9:$B$860,0))) -> 1394 | G103: =IF($A103<>0,INDEX('2.2 Daten'!I$9:I$860,MATCH('2.2'!$A103,'2.2 Daten'!$B$9:$B$860,0))) -> 425 | H103: =IF($A103<>0,INDEX('2.2 Daten'!K$9:K$860,MATCH('2.2'!$A103,'2.2 Daten'!$B$9:$B$860,0))) -> -4.464574571 | I103: =IF($A103<>0,INDEX('2.2 Daten'!L$9:L$860,MATCH('2.2'!$A103,'2.2 Daten'!$B$9:$B$860,0))) -> -4.485049834 | J103: =IF($A103<>0,INDEX('2.2 Daten'!M$9:M$860,MATCH('2.2'!$A103,'2.2 Daten'!$B$9:$B$860,0))) -> -2.443280977 | K103: =IF($A103<>0,INDEX('2.2 Daten'!N$9:N$860,MATCH('2.2'!$A103,'2.2 Daten'!$B$9:$B$860,0))) -> -5.23453433 | L103: =IF($A103<>0,INDEX('2.2 Daten'!O$9:O$860,MATCH('2.2'!$A103,'2.2 Daten'!$B$9:$B$860,0))) -> -4.494382022
A104: =CHOOSE('2.2 Daten'!$A$2,'2.2 Daten'!B526,'2.2 Daten'!B75,'2.2 Daten'!B92,'2.2 Daten'!B109,'2.2 Daten'!B112,'2.2 Daten'!B159,'2.2 Daten'!B163,'2.2 Daten'!B218,'2.2 Daten'!B246,'2.2 Daten'!B284,'2.2 Daten'!B330,'2.2 Daten'!B428,'2.2 Daten'!B436,'2.2 Daten'!B439,'2.2 Daten'!B459,'2.2 Daten'!B469,'2.2 Daten'!B484,'2.2 Daten'!B500,x) -> Delmenhorst, Stadt | B104: =IF($A104<>0,INDEX('2.2 Daten'!C$9:C$860,MATCH('2.2'!$A104,'2.2 Daten'!$B$9:$B$860,0))," ") -> 3401000 | C104: =IF($A104<>0,INDEX('2.2 Daten'!E$9:E$860,MATCH('2.2'!$A104,'2.2 Daten'!$B$9:$B$860,0))) -> 4129 | D104: =IF($A104<>0,INDEX('2.2 Daten'!F$9:F$860,MATCH('2.2'!$A104,'2.2 Daten'!$B$9:$B$860,0))) -> 776 | E104: =IF($A104<>0,INDEX('2.2 Daten'!G$9:G$860,MATCH('2.2'!$A104,'2.2 Daten'!$B$9:$B$860,0))) -> 767 | F104: =IF($A104<>0,INDEX('2.2 Daten'!H$9:H$860,MATCH('2.2'!$A104,'2.2 Daten'!$B$9:$B$860,0))) -> 2027 | G104: =IF($A104<>0,INDEX('2.2 Daten'!I$9:I$860,MATCH('2.2'!$A104,'2.2 Daten'!$B$9:$B$860,0))) -> 559 | H104: =IF($A104<>0,INDEX('2.2 Daten'!K$9:K$860,MATCH('2.2'!$A104,'2.2 Daten'!$B$9:$B$860,0))) -> -0.7213272421 | I104: =IF($A104<>0,INDEX('2.2 Daten'!L$9:L$860,MATCH('2.2'!$A104,'2.2 Daten'!$B$9:$B$860,0))) -> -4.315659679 | J104: =IF($A104<>0,INDEX('2.2 Daten'!M$9:M$860,MATCH('2.2'!$A104,'2.2 Daten'!$B$9:$B$860,0))) -> 1.054018445 | K104: =IF($A104<>0,INDEX('2.2 Daten'!N$9:N$860,MATCH('2.2'!$A104,'2.2 Daten'!$B$9:$B$860,0))) -> -0.9286412512 | L104: =IF($A104<>0,INDEX('2.2 Daten'!O$9:O$860,MATCH('2.2'!$A104,'2.2 Daten'!$B$9:$B$860,0))) -> 2.946593002
A105: =CHOOSE('2.2 Daten'!$A$2,'2.2 Daten'!B527,'2.2 Daten'!B76,'2.2 Daten'!B93,'2.2 Daten'!B110,'2.2 Daten'!B113,'2.2 Daten'!B160,'2.2 Daten'!B164,'2.2 Daten'!B219,'2.2 Daten'!B247,'2.2 Daten'!B285,'2.2 Daten'!B331,'2.2 Daten'!B429,'2.2 Daten'!B437,'2.2 Daten'!B440,'2.2 Daten'!B460,'2.2 Daten'!B470,'2.2 Daten'!B485,'2.2 Daten'!B501,x) -> Emden, Stadt | B105: =IF($A105<>0,INDEX('2.2 Daten'!C$9:C$860,MATCH('2.2'!$A105,'2.2 Daten'!$B$9:$B$860,0))," ") -> 3402000 | C105: =IF($A105<>0,INDEX('2.2 Daten'!E$9:E$860,MATCH('2.2'!$A105,'2.2 Daten'!$B$9:$B$860,0))) -> 2018 | D105: =IF($A105<>0,INDEX('2.2 Daten'!F$9:F$860,MATCH('2.2'!$A105,'2.2 Daten'!$B$9:$B$860,0))) -> 417 | E105: =IF($A105<>0,INDEX('2.2 Daten'!G$9:G$860,MATCH('2.2'!$A105,'2.2 Daten'!$B$9:$B$860,0))) -> 384 | F105: =IF($A105<>0,INDEX('2.2 Daten'!H$9:H$860,MATCH('2.2'!$A105,'2.2 Daten'!$B$9:$B$860,0))) -> 982 | G105: =IF($A105<>0,INDEX('2.2 Daten'!I$9:I$860,MATCH('2.2'!$A105,'2.2 Daten'!$B$9:$B$860,0))) -> 235 | H105: =IF($A105<>0,INDEX('2.2 Daten'!K$9:K$860,MATCH('2.2'!$A105,'2.2 Daten'!$B$9:$B$860,0))) -> 1.001001001 | I105: =IF($A105<>0,INDEX('2.2 Daten'!L$9:L$860,MATCH('2.2'!$A105,'2.2 Daten'!$B$9:$B$860,0))) -> 1.213592233 | J105: =IF($A105<>0,INDEX('2.2 Daten'!M$9:M$860,MATCH('2.2'!$A105,'2.2 Daten'!$B$9:$B$860,0))) -> 2.4 | K105: =IF($A105<>0,INDEX('2.2 Daten'!N$9:N$860,MATCH('2.2'!$A105,'2.2 Daten'!$B$9:$B$860,0))) -> 1.551189245 | L105: =IF($A105<>0,INDEX('2.2 Daten'!O$9:O$860,MATCH('2.2'!$A105,'2.2 Daten'!$B$9:$B$860,0))) -> -3.68852459
A106: =CHOOSE('2.2 Daten'!$A$2,'2.2 Daten'!B528,'2.2 Daten'!B77,'2.2 Daten'!B94,'2.2 Daten'!B111,'2.2 Daten'!B114,'2.2 Daten'!B161,'2.2 Daten'!B165,'2.2 Daten'!B220,'2.2 Daten'!B248,'2.2 Daten'!B286,'2.2 Daten'!B332,'2.2 Daten'!B430,'2.2 Daten'!B438,'2.2 Daten'!B441,'2.2 Daten'!B461,'2.2 Daten'!B471,'2.2 Daten'!B486,'2.2 Daten'!B502,x) -> Oldenburg (Oldenburg), Stadt | B106: =IF($A106<>0,INDEX('2.2 Daten'!C$9:C$860,MATCH('2.2'!$A106,'2.2 Daten'!$B$9:$B$860,0))," ") -> 3403000 | C106: =IF($A106<>0,INDEX('2.2 Daten'!E$9:E$860,MATCH('2.2'!$A106,'2.2 Daten'!$B$9:$B$860,0))) -> 5632 | D106: =IF($A106<>0,INDEX('2.2 Daten'!F$9:F$860,MATCH('2.2'!$A106,'2.2 Daten'!$B$9:$B$860,0))) -> 1039 | E106: =IF($A106<>0,INDEX('2.2 Daten'!G$9:G$860,MATCH('2.2'!$A106,'2.2 Daten'!$B$9:$B$860,0))) -> 1051 | F106: =IF($A106<>0,INDEX('2.2 Daten'!H$9:H$860,MATCH('2.2'!$A106,'2.2 Daten'!$B$9:$B$860,0))) -> 2781 | G106: =IF($A106<>0,INDEX('2.2 Daten'!I$9:I$860,MATCH('2.2'!$A106,'2.2 Daten'!$B$9:$B$860,0))) -> 761 | H106: =IF($A106<>0,INDEX('2.2 Daten'!K$9:K$860,MATCH('2.2'!$A106,'2.2 Daten'!$B$9:$B$860,0))) -> -3.013604271 | I106: =IF($A106<>0,INDEX('2.2 Daten'!L$9:L$860,MATCH('2.2'!$A106,'2.2 Daten'!$B$9:$B$860,0))) -> -1.235741445 | J106: =IF($A106<>0,INDEX('2.2 Daten'!M$9:M$860,MATCH('2.2'!$A106,'2.2 Daten'!$B$9:$B$860,0))) -> -2.685185185 | K106: =IF($A106<>0,INDEX('2.2 Daten'!N$9:N$860,MATCH('2.2'!$A106,'2.2 Daten'!$B$9:$B$860,0))) -> -2.830188679 | L106: =IF($A106<>0,INDEX('2.2 Daten'!O$9:O$860,MATCH('2.2'!$A106,'2.2 Daten'!$B$9:$B$860,0))) -> -6.396063961
A107: =CHOOSE('2.2 Daten'!$A$2,'2.2 Daten'!B529,'2.2 Daten'!B78,'2.2 Daten'!B95,'2.2 Daten'!B112,'2.2 Daten'!B115,'2.2 Daten'!B162,'2.2 Daten'!B166,'2.2 Daten'!B221,'2.2 Daten'!B249,'2.2 Daten'!B287,'2.2 Daten'!B333,'2.2 Daten'!B431,'2.2 Daten'!B439,'2.2 Daten'!B442,'2.2 Daten'!B462,'2.2 Daten'!B472,'2.2 Daten'!B487,'2.2 Daten'!B503,x) -> Osnabrück, Stadt | B107: =IF($A107<>0,INDEX('2.2 Daten'!C$9:C$860,MATCH('2.2'!$A107,'2.2 Daten'!$B$9:$B$860,0))," ") -> 3404000 | C107: =IF($A107<>0,INDEX('2.2 Daten'!E$9:E$860,MATCH('2.2'!$A107,'2.2 Daten'!$B$9:$B$860,0))) -> 5443 | D107: =IF($A107<>0,INDEX('2.2 Daten'!F$9:F$860,MATCH('2.2'!$A107,'2.2 Daten'!$B$9:$B$860,0))) -> 1004 | E107: =IF($A107<>0,INDEX('2.2 Daten'!G$9:G$860,MATCH('2.2'!$A107,'2.2 Daten'!$B$9:$B$860,0))) -> 980 | F107: =IF($A107<>0,INDEX('2.2 Daten'!H$9:H$860,MATCH('2.2'!$A107,'2.2 Daten'!$B$9:$B$860,0))) -> 2737 | G107: =IF($A107<>0,INDEX('2.2 Daten'!I$9:I$860,MATCH('2.2'!$A107,'2.2 Daten'!$B$9:$B$860,0))) -> 722 | H107: =IF($A107<>0,INDEX('2.2 Daten'!K$9:K$860,MATCH('2.2'!$A107,'2.2 Daten'!$B$9:$B$860,0))) -> -4.408148929 | I107: =IF($A107<>0,INDEX('2.2 Daten'!L$9:L$860,MATCH('2.2'!$A107,'2.2 Daten'!$B$9:$B$860,0))) -> -3.923444976 | J107: =IF($A107<>0,INDEX('2.2 Daten'!M$9:M$860,MATCH('2.2'!$A107,'2.2 Daten'!$B$9:$B$860,0))) -> -4.761904762 | K107: =IF($A107<>0,INDEX('2.2 Daten'!N$9:N$860,MATCH('2.2'!$A107,'2.2 Daten'!$B$9:$B$860,0))) -> -3.115044248 | L107: =IF($A107<>0,INDEX('2.2 Daten'!O$9:O$860,MATCH('2.2'!$A107,'2.2 Daten'!$B$9:$B$860,0))) -> -9.182389937
A108: =CHOOSE('2.2 Daten'!$A$2,'2.2 Daten'!B530,'2.2 Daten'!B79,'2.2 Daten'!B96,'2.2 Daten'!B113,'2.2 Daten'!B116,'2.2 Daten'!B163,'2.2 Daten'!B167,'2.2 Daten'!B222,'2.2 Daten'!B250,'2.2 Daten'!B288,'2.2 Daten'!B334,'2.2 Daten'!B432,'2.2 Daten'!B440,'2.2 Daten'!B443,'2.2 Daten'!B463,'2.2 Daten'!B473,'2.2 Daten'!B488,'2.2 Daten'!B504,x) -> Wilhelmshaven, Stadt | B108: =IF($A108<>0,INDEX('2.2 Daten'!C$9:C$860,MATCH('2.2'!$A108,'2.2 Daten'!$B$9:$B$860,0))," ") -> 3405000 | C108: =IF($A108<>0,INDEX('2.2 Daten'!E$9:E$860,MATCH('2.2'!$A108,'2.2 Daten'!$B$9:$B$860,0))) -> 3858 | D108: =IF($A108<>0,INDEX('2.2 Daten'!F$9:F$860,MATCH('2.2'!$A108,'2.2 Daten'!$B$9:$B$860,0))) -> 839 | E108: =IF($A108<>0,INDEX('2.2 Daten'!G$9:G$860,MATCH('2.2'!$A108,'2.2 Daten'!$B$9:$B$860,0))) -> 708 | F108: =IF($A108<>0,INDEX('2.2 Daten'!H$9:H$860,MATCH('2.2'!$A108,'2.2 Daten'!$B$9:$B$860,0))) -> 1816 | G108: =IF($A108<>0,INDEX('2.2 Daten'!I$9:I$860,MATCH('2.2'!$A108,'2.2 Daten'!$B$9:$B$860,0))) -> 495 | H108: =IF($A108<>0,INDEX('2.2 Daten'!K$9:K$860,MATCH('2.2'!$A108,'2.2 Daten'!$B$9:$B$860,0))) -> -0.5157297576 | I108: =IF($A108<>0,INDEX('2.2 Daten'!L$9:L$860,MATCH('2.2'!$A108,'2.2 Daten'!$B$9:$B$860,0))) -> 4.483188045 | J108: =IF($A108<>0,INDEX('2.2 Daten'!M$9:M$860,MATCH('2.2'!$A108,'2.2 Daten'!$B$9:$B$860,0))) -> -0.4219409283 | K108: =IF($A108<>0,INDEX('2.2 Daten'!N$9:N$860,MATCH('2.2'!$A108,'2.2 Daten'!$B$9:$B$860,0))) -> -1.996762008 | L108: =IF($A108<>0,INDEX('2.2 Daten'!O$9:O$860,MATCH('2.2'!$A108,'2.2 Daten'!$B$9:$B$860,0))) -> -3.13111546
A109: =CHOOSE('2.2 Daten'!$A$2,'2.2 Daten'!B531,'2.2 Daten'!B80,'2.2 Daten'!B97,'2.2 Daten'!B114,'2.2 Daten'!B117,'2.2 Daten'!B164,'2.2 Daten'!B168,'2.2 Daten'!B223,'2.2 Daten'!B251,'2.2 Daten'!B289,'2.2 Daten'!B335,'2.2 Daten'!B433,'2.2 Daten'!B441,'2.2 Daten'!B444,'2.2 Daten'!B464,'2.2 Daten'!B474,'2.2 Daten'!B489,'2.2 Daten'!B505,x) -> Ammerland | B109: =IF($A109<>0,INDEX('2.2 Daten'!C$9:C$860,MATCH('2.2'!$A109,'2.2 Daten'!$B$9:$B$860,0))," ") -> 3451000 | C109: =IF($A109<>0,INDEX('2.2 Daten'!E$9:E$860,MATCH('2.2'!$A109,'2.2 Daten'!$B$9:$B$860,0))) -> 2340 | D109: =IF($A109<>0,INDEX('2.2 Daten'!F$9:F$860,MATCH('2.2'!$A109,'2.2 Daten'!$B$9:$B$860,0))) -> 374 | E109: =IF($A109<>0,INDEX('2.2 Daten'!G$9:G$860,MATCH('2.2'!$A109,'2.2 Daten'!$B$9:$B$860,0))) -> 427 | F109: =IF($A109<>0,INDEX('2.2 Daten'!H$9:H$860,MATCH('2.2'!$A109,'2.2 Daten'!$B$9:$B$860,0))) -> 1185 | G109: =IF($A109<>0,INDEX('2.2 Daten'!I$9:I$860,MATCH('2.2'!$A109,'2.2 Daten'!$B$9:$B$860,0))) -> 354 | H109: =IF($A109<>0,INDEX('2.2 Daten'!K$9:K$860,MATCH('2.2'!$A109,'2.2 Daten'!$B$9:$B$860,0))) -> -5.530884134 | I109: =IF($A109<>0,INDEX('2.2 Daten'!L$9:L$860,MATCH('2.2'!$A109,'2.2 Daten'!$B$9:$B$860,0))) -> -6.030150754 | J109: =IF($A109<>0,INDEX('2.2 Daten'!M$9:M$860,MATCH('2.2'!$A109,'2.2 Daten'!$B$9:$B$860,0))) -> 1.184834123 | K109: =IF($A109<>0,INDEX('2.2 Daten'!N$9:N$860,MATCH('2.2'!$A109,'2.2 Daten'!$B$9:$B$860,0))) -> -7.131661442 | L109: =IF($A109<>0,INDEX('2.2 Daten'!O$9:O$860,MATCH('2.2'!$A109,'2.2 Daten'!$B$9:$B$860,0))) -> -7.086614173
A110: =CHOOSE('2.2 Daten'!$A$2,'2.2 Daten'!B532,'2.2 Daten'!B81,'2.2 Daten'!B98,'2.2 Daten'!B115,'2.2 Daten'!B118,'2.2 Daten'!B165,'2.2 Daten'!B169,'2.2 Daten'!B224,'2.2 Daten'!B252,'2.2 Daten'!B290,'2.2 Daten'!B336,'2.2 Daten'!B434,'2.2 Daten'!B442,'2.2 Daten'!B445,'2.2 Daten'!B465,'2.2 Daten'!B475,'2.2 Daten'!B490,'2.2 Daten'!B506,x) -> Aurich | B110: =IF($A110<>0,INDEX('2.2 Daten'!C$9:C$860,MATCH('2.2'!$A110,'2.2 Daten'!$B$9:$B$860,0))," ") -> 3452000 | C110: =IF($A110<>0,INDEX('2.2 Daten'!E$9:E$860,MATCH('2.2'!$A110,'2.2 Daten'!$B$9:$B$860,0))) -> 4762 | D110: =IF($A110<>0,INDEX('2.2 Daten'!F$9:F$860,MATCH('2.2'!$A110,'2.2 Daten'!$B$9:$B$860,0))) -> 910 | E110: =IF($A110<>0,INDEX('2.2 Daten'!G$9:G$860,MATCH('2.2'!$A110,'2.2 Daten'!$B$9:$B$860,0))) -> 842 | F110: =IF($A110<>0,INDEX('2.2 Daten'!H$9:H$860,MATCH('2.2'!$A110,'2.2 Daten'!$B$9:$B$860,0))) -> 2398 | G110: =IF($A110<>0,INDEX('2.2 Daten'!I$9:I$860,MATCH('2.2'!$A110,'2.2 Daten'!$B$9:$B$860,0))) -> 612 | H110: =IF($A110<>0,INDEX('2.2 Daten'!K$9:K$860,MATCH('2.2'!$A110,'2.2 Daten'!$B$9:$B$860,0))) -> -1.489449731 | I110: =IF($A110<>0,INDEX('2.2 Daten'!L$9:L$860,MATCH('2.2'!$A110,'2.2 Daten'!$B$9:$B$860,0))) -> -0.6550218341 | J110: =IF($A110<>0,INDEX('2.2 Daten'!M$9:M$860,MATCH('2.2'!$A110,'2.2 Daten'!$B$9:$B$860,0))) -> 3.43980344 | K110: =IF($A110<>0,INDEX('2.2 Daten'!N$9:N$860,MATCH('2.2'!$A110,'2.2 Daten'!$B$9:$B$860,0))) -> -1.640689089 | L110: =IF($A110<>0,INDEX('2.2 Daten'!O$9:O$860,MATCH('2.2'!$A110,'2.2 Daten'!$B$9:$B$860,0))) -> -8.108108108
A111: =CHOOSE('2.2 Daten'!$A$2,'2.2 Daten'!B533,'2.2 Daten'!B82,'2.2 Daten'!B99,'2.2 Daten'!B116,'2.2 Daten'!B119,'2.2 Daten'!B166,'2.2 Daten'!B170,'2.2 Daten'!B225,'2.2 Daten'!B253,'2.2 Daten'!B291,'2.2 Daten'!B337,'2.2 Daten'!B435,'2.2 Daten'!B443,'2.2 Daten'!B446,'2.2 Daten'!B466,'2.2 Daten'!B476,'2.2 Daten'!B491,'2.2 Daten'!B507,x) -> Cloppenburg | B111: =IF($A111<>0,INDEX('2.2 Daten'!C$9:C$860,MATCH('2.2'!$A111,'2.2 Daten'!$B$9:$B$860,0))," ") -> 3453000 | C111: =IF($A111<>0,INDEX('2.2 Daten'!E$9:E$860,MATCH('2.2'!$A111,'2.2 Daten'!$B$9:$B$860,0))) -> 3556 | D111: =IF($A111<>0,INDEX('2.2 Daten'!F$9:F$860,MATCH('2.2'!$A111,'2.2 Daten'!$B$9:$B$860,0))) -> 667 | E111: =IF($A111<>0,INDEX('2.2 Daten'!G$9:G$860,MATCH('2.2'!$A111,'2.2 Daten'!$B$9:$B$860,0))) -> 620 | F111: =IF($A111<>0,INDEX('2.2 Daten'!H$9:H$860,MATCH('2.2'!$A111,'2.2 Daten'!$B$9:$B$860,0))) -> 1769 | G111: =IF($A111<>0,INDEX('2.2 Daten'!I$9:I$860,MATCH('2.2'!$A111,'2.2 Daten'!$B$9:$B$860,0))) -> 500 | H111: =IF($A111<>0,INDEX('2.2 Daten'!K$9:K$860,MATCH('2.2'!$A111,'2.2 Daten'!$B$9:$B$860,0))) -> -8.633093525 | I111: =IF($A111<>0,INDEX('2.2 Daten'!L$9:L$860,MATCH('2.2'!$A111,'2.2 Daten'!$B$9:$B$860,0))) -> -4.985754986 | J111: =IF($A111<>0,INDEX('2.2 Daten'!M$9:M$860,MATCH('2.2'!$A111,'2.2 Daten'!$B$9:$B$860,0))) -> -9.356725146 | K111: =IF($A111<>0,INDEX('2.2 Daten'!N$9:N$860,MATCH('2.2'!$A111,'2.2 Daten'!$B$9:$B$860,0))) -> -9.095580678 | L111: =IF($A111<>0,INDEX('2.2 Daten'!O$9:O$860,MATCH('2.2'!$A111,'2.2 Daten'!$B$9:$B$860,0))) -> -10.71428571
A112: =CHOOSE('2.2 Daten'!$A$2,'2.2 Daten'!B534,'2.2 Daten'!B83,'2.2 Daten'!B100,'2.2 Daten'!B117,'2.2 Daten'!B120,'2.2 Daten'!B167,'2.2 Daten'!B171,'2.2 Daten'!B226,'2.2 Daten'!B254,'2.2 Daten'!B292,'2.2 Daten'!B338,'2.2 Daten'!B436,'2.2 Daten'!B444,'2.2 Daten'!B447,'2.2 Daten'!B467,'2.2 Daten'!B477,'2.2 Daten'!B492,'2.2 Daten'!B508,x) -> Emsland | B112: =IF($A112<>0,INDEX('2.2 Daten'!C$9:C$860,MATCH('2.2'!$A112,'2.2 Daten'!$B$9:$B$860,0))," ") -> 3454000 | C112: =IF($A112<>0,INDEX('2.2 Daten'!E$9:E$860,MATCH('2.2'!$A112,'2.2 Daten'!$B$9:$B$860,0))) -> 5191 | D112: =IF($A112<>0,INDEX('2.2 Daten'!F$9:F$860,MATCH('2.2'!$A112,'2.2 Daten'!$B$9:$B$860,0))) -> 955 | E112: =IF($A112<>0,INDEX('2.2 Daten'!G$9:G$860,MATCH('2.2'!$A112,'2.2 Daten'!$B$9:$B$860,0))) -> 938 | F112: =IF($A112<>0,INDEX('2.2 Daten'!H$9:H$860,MATCH('2.2'!$A112,'2.2 Daten'!$B$9:$B$860,0))) -> 2585 | G112: =IF($A112<>0,INDEX('2.2 Daten'!I$9:I$860,MATCH('2.2'!$A112,'2.2 Daten'!$B$9:$B$860,0))) -> 713 | H112: =IF($A112<>0,INDEX('2.2 Daten'!K$9:K$860,MATCH('2.2'!$A112,'2.2 Daten'!$B$9:$B$860,0))) -> -4.383864432 | I112: =IF($A112<>0,INDEX('2.2 Daten'!L$9:L$860,MATCH('2.2'!$A112,'2.2 Daten'!$B$9:$B$860,0))) -> -3.144016227 | J112: =IF($A112<>0,INDEX('2.2 Daten'!M$9:M$860,MATCH('2.2'!$A112,'2.2 Daten'!$B$9:$B$860,0))) -> -4.187946885 | K112: =IF($A112<>0,INDEX('2.2 Daten'!N$9:N$860,MATCH('2.2'!$A112,'2.2 Daten'!$B$9:$B$860,0))) -> -4.117210682 | L112: =IF($A112<>0,INDEX('2.2 Daten'!O$9:O$860,MATCH('2.2'!$A112,'2.2 Daten'!$B$9:$B$860,0))) -> -7.161458333
A113: =CHOOSE('2.2 Daten'!$A$2,'2.2 Daten'!B535,'2.2 Daten'!B84,'2.2 Daten'!B101,'2.2 Daten'!B118,'2.2 Daten'!B121,'2.2 Daten'!B168,'2.2 Daten'!B172,'2.2 Daten'!B227,'2.2 Daten'!B255,'2.2 Daten'!B293,'2.2 Daten'!B339,'2.2 Daten'!B437,'2.2 Daten'!B445,'2.2 Daten'!B448,'2.2 Daten'!B468,'2.2 Daten'!B478,'2.2 Daten'!B493,'2.2 Daten'!B509,x) -> Friesland | B113: =IF($A113<>0,INDEX('2.2 Daten'!C$9:C$860,MATCH('2.2'!$A113,'2.2 Daten'!$B$9:$B$860,0))," ") -> 3455000 | C113: =IF($A113<>0,INDEX('2.2 Daten'!E$9:E$860,MATCH('2.2'!$A113,'2.2 Daten'!$B$9:$B$860,0))) -> 1938 | D113: =IF($A113<>0,INDEX('2.2 Daten'!F$9:F$860,MATCH('2.2'!$A113,'2.2 Daten'!$B$9:$B$860,0))) -> 385 | E113: =IF($A113<>0,INDEX('2.2 Daten'!G$9:G$860,MATCH('2.2'!$A113,'2.2 Daten'!$B$9:$B$860,0))) -> 363 | F113: =IF($A113<>0,INDEX('2.2 Daten'!H$9:H$860,MATCH('2.2'!$A113,'2.2 Daten'!$B$9:$B$860,0))) -> 938 | G113: =IF($A113<>0,INDEX('2.2 Daten'!I$9:I$860,MATCH('2.2'!$A113,'2.2 Daten'!$B$9:$B$860,0))) -> 252 | H113: =IF($A113<>0,INDEX('2.2 Daten'!K$9:K$860,MATCH('2.2'!$A113,'2.2 Daten'!$B$9:$B$860,0))) -> -9.776536313 | I113: =IF($A113<>0,INDEX('2.2 Daten'!L$9:L$860,MATCH('2.2'!$A113,'2.2 Daten'!$B$9:$B$860,0))) -> -8.767772512 | J113: =IF($A113<>0,INDEX('2.2 Daten'!M$9:M$860,MATCH('2.2'!$A113,'2.2 Daten'!$B$9:$B$860,0))) -> -7.633587786 | K113: =IF($A113<>0,INDEX('2.2 Daten'!N$9:N$860,MATCH('2.2'!$A113,'2.2 Daten'!$B$9:$B$860,0))) -> -11.09004739 | L113: =IF($A113<>0,INDEX('2.2 Daten'!O$9:O$860,MATCH('2.2'!$A113,'2.2 Daten'!$B$9:$B$860,0))) -> -9.352517986
A114: =CHOOSE('2.2 Daten'!$A$2,'2.2 Daten'!B536,'2.2 Daten'!B85,'2.2 Daten'!B102,'2.2 Daten'!B119,'2.2 Daten'!B122,'2.2 Daten'!B169,'2.2 Daten'!B173,'2.2 Daten'!B228,'2.2 Daten'!B256,'2.2 Daten'!B294,'2.2 Daten'!B340,'2.2 Daten'!B438,'2.2 Daten'!B446,'2.2 Daten'!B449,'2.2 Daten'!B469,'2.2 Daten'!B479,'2.2 Daten'!B494,'2.2 Daten'!B510,x) -> Grafschaft Bentheim | B114: =IF($A114<>0,INDEX('2.2 Daten'!C$9:C$860,MATCH('2.2'!$A114,'2.2 Daten'!$B$9:$B$860,0))," ") -> 3456000 | C114: =IF($A114<>0,INDEX('2.2 Daten'!E$9:E$860,MATCH('2.2'!$A114,'2.2 Daten'!$B$9:$B$860,0))) -> 2310 | D114: =IF($A114<>0,INDEX('2.2 Daten'!F$9:F$860,MATCH('2.2'!$A114,'2.2 Daten'!$B$9:$B$860,0))) -> 370 | E114: =IF($A114<>0,INDEX('2.2 Daten'!G$9:G$860,MATCH('2.2'!$A114,'2.2 Daten'!$B$9:$B$860,0))) -> 392 | F114: =IF($A114<>0,INDEX('2.2 Daten'!H$9:H$860,MATCH('2.2'!$A114,'2.2 Daten'!$B$9:$B$860,0))) -> 1196 | G114: =IF($A114<>0,INDEX('2.2 Daten'!I$9:I$860,MATCH('2.2'!$A114,'2.2 Daten'!$B$9:$B$860,0))) -> 352 | H114: =IF($A114<>0,INDEX('2.2 Daten'!K$9:K$860,MATCH('2.2'!$A114,'2.2 Daten'!$B$9:$B$860,0))) -> -10.25641026 | I114: =IF($A114<>0,INDEX('2.2 Daten'!L$9:L$860,MATCH('2.2'!$A114,'2.2 Daten'!$B$9:$B$860,0))) -> -17.04035874 | J114: =IF($A114<>0,INDEX('2.2 Daten'!M$9:M$860,MATCH('2.2'!$A114,'2.2 Daten'!$B$9:$B$860,0))) -> -18.5031185 | K114: =IF($A114<>0,INDEX('2.2 Daten'!N$9:N$860,MATCH('2.2'!$A114,'2.2 Daten'!$B$9:$B$860,0))) -> -3.8585209 | L114: =IF($A114<>0,INDEX('2.2 Daten'!O$9:O$860,MATCH('2.2'!$A114,'2.2 Daten'!$B$9:$B$860,0))) -> -12.65508685
A115: =CHOOSE('2.2 Daten'!$A$2,'2.2 Daten'!B537,'2.2 Daten'!B86,'2.2 Daten'!B103,'2.2 Daten'!B120,'2.2 Daten'!B123,'2.2 Daten'!B170,'2.2 Daten'!B174,'2.2 Daten'!B229,'2.2 Daten'!B257,'2.2 Daten'!B295,'2.2 Daten'!B341,'2.2 Daten'!B439,'2.2 Daten'!B447,'2.2 Daten'!B450,'2.2 Daten'!B470,'2.2 Daten'!B480,'2.2 Daten'!B495,'2.2 Daten'!B511,x) -> Leer | B115: =IF($A115<>0,INDEX('2.2 Daten'!C$9:C$860,MATCH('2.2'!$A115,'2.2 Daten'!$B$9:$B$860,0))," ") -> 3457000 | C115: =IF($A115<>0,INDEX('2.2 Daten'!E$9:E$860,MATCH('2.2'!$A115,'2.2 Daten'!$B$9:$B$860,0))) -> 3402 | D115: =IF($A115<>0,INDEX('2.2 Daten'!F$9:F$860,MATCH('2.2'!$A115,'2.2 Daten'!$B$9:$B$860,0))) -> 623 | E115: =IF($A115<>0,INDEX('2.2 Daten'!G$9:G$860,MATCH('2.2'!$A115,'2.2 Daten'!$B$9:$B$860,0))) -> 633 | F115: =IF($A115<>0,INDEX('2.2 Daten'!H$9:H$860,MATCH('2.2'!$A115,'2.2 Daten'!$B$9:$B$860,0))) -> 1693 | G115: =IF($A115<>0,INDEX('2.2 Daten'!I$9:I$860,MATCH('2.2'!$A115,'2.2 Daten'!$B$9:$B$860,0))) -> 453 | H115: =IF($A115<>0,INDEX('2.2 Daten'!K$9:K$860,MATCH('2.2'!$A115,'2.2 Daten'!$B$9:$B$860,0))) -> -1.789838337 | I115: =IF($A115<>0,INDEX('2.2 Daten'!L$9:L$860,MATCH('2.2'!$A115,'2.2 Daten'!$B$9:$B$860,0))) -> -4.006163328 | J115: =IF($A115<>0,INDEX('2.2 Daten'!M$9:M$860,MATCH('2.2'!$A115,'2.2 Daten'!$B$9:$B$860,0))) -> 8.762886598 | K115: =IF($A115<>0,INDEX('2.2 Daten'!N$9:N$860,MATCH('2.2'!$A115,'2.2 Daten'!$B$9:$B$860,0))) -> -4.296212549 | L115: =IF($A115<>0,INDEX('2.2 Daten'!O$9:O$860,MATCH('2.2'!$A115,'2.2 Daten'!$B$9:$B$860,0))) -> -2.370689655
A116: =CHOOSE('2.2 Daten'!$A$2,'2.2 Daten'!B538,'2.2 Daten'!B87,'2.2 Daten'!B104,'2.2 Daten'!B121,'2.2 Daten'!B124,'2.2 Daten'!B171,'2.2 Daten'!B175,'2.2 Daten'!B230,'2.2 Daten'!B258,'2.2 Daten'!B296,'2.2 Daten'!B342,'2.2 Daten'!B440,'2.2 Daten'!B448,'2.2 Daten'!B451,'2.2 Daten'!B471,'2.2 Daten'!B481,'2.2 Daten'!B496,'2.2 Daten'!B512,x) -> Oldenburg | B116: =IF($A116<>0,INDEX('2.2 Daten'!C$9:C$860,MATCH('2.2'!$A116,'2.2 Daten'!$B$9:$B$860,0))," ") -> 3458000 | C116: =IF($A116<>0,INDEX('2.2 Daten'!E$9:E$860,MATCH('2.2'!$A116,'2.2 Daten'!$B$9:$B$860,0))) -> 2279 | D116: =IF($A116<>0,INDEX('2.2 Daten'!F$9:F$860,MATCH('2.2'!$A116,'2.2 Daten'!$B$9:$B$860,0))) -> 398 | E116: =IF($A116<>0,INDEX('2.2 Daten'!G$9:G$860,MATCH('2.2'!$A116,'2.2 Daten'!$B$9:$B$860,0))) -> 383 | F116: =IF($A116<>0,INDEX('2.2 Daten'!H$9:H$860,MATCH('2.2'!$A116,'2.2 Daten'!$B$9:$B$860,0))) -> 1166 | G116: =IF($A116<>0,INDEX('2.2 Daten'!I$9:I$860,MATCH('2.2'!$A116,'2.2 Daten'!$B$9:$B$860,0))) -> 332 | H116: =IF($A116<>0,INDEX('2.2 Daten'!K$9:K$860,MATCH('2.2'!$A116,'2.2 Daten'!$B$9:$B$860,0))) -> -9.992101106 | I116: =IF($A116<>0,INDEX('2.2 Daten'!L$9:L$860,MATCH('2.2'!$A116,'2.2 Daten'!$B$9:$B$860,0))) -> -7.009345794 | J116: =IF($A116<>0,INDEX('2.2 Daten'!M$9:M$860,MATCH('2.2'!$A116,'2.2 Daten'!$B$9:$B$860,0))) -> -10.30444965 | K116: =IF($A116<>0,INDEX('2.2 Daten'!N$9:N$860,MATCH('2.2'!$A116,'2.2 Daten'!$B$9:$B$860,0))) -> -7.971586425 | L116: =IF($A116<>0,INDEX('2.2 Daten'!O$9:O$860,MATCH('2.2'!$A116,'2.2 Daten'!$B$9:$B$860,0))) -> -19.02439024
A117: =CHOOSE('2.2 Daten'!$A$2,'2.2 Daten'!B539,'2.2 Daten'!B88,'2.2 Daten'!B105,'2.2 Daten'!B122,'2.2 Daten'!B125,'2.2 Daten'!B172,'2.2 Daten'!B176,'2.2 Daten'!B231,'2.2 Daten'!B259,'2.2 Daten'!B297,'2.2 Daten'!B343,'2.2 Daten'!B441,'2.2 Daten'!B449,'2.2 Daten'!B452,'2.2 Daten'!B472,'2.2 Daten'!B482,'2.2 Daten'!B497,'2.2 Daten'!B513,x) -> Osnabrück | B117: =IF($A117<>0,INDEX('2.2 Daten'!C$9:C$860,MATCH('2.2'!$A117,'2.2 Daten'!$B$9:$B$860,0))," ") -> 3459000 | C117: =IF($A117<>0,INDEX('2.2 Daten'!E$9:E$860,MATCH('2.2'!$A117,'2.2 Daten'!$B$9:$B$860,0))) -> 4816 | D117: =IF($A117<>0,INDEX('2.2 Daten'!F$9:F$860,MATCH('2.2'!$A117,'2.2 Daten'!$B$9:$B$860,0))) -> 873 | E117: =IF($A117<>0,INDEX('2.2 Daten'!G$9:G$860,MATCH('2.2'!$A117,'2.2 Daten'!$B$9:$B$860,0))) -> 933 | F117: =IF($A117<>0,INDEX('2.2 Daten'!H$9:H$860,MATCH('2.2'!$A117,'2.2 Daten'!$B$9:$B$860,0))) -> 2376 | G117: =IF($A117<>0,INDEX('2.2 Daten'!I$9:I$860,MATCH('2.2'!$A117,'2.2 Daten'!$B$9:$B$860,0))) -> 634 | H117: =IF($A117<>0,INDEX('2.2 Daten'!K$9:K$860,MATCH('2.2'!$A117,'2.2 Daten'!$B$9:$B$860,0))) -> -10.86433463 | I117: =IF($A117<>0,INDEX('2.2 Daten'!L$9:L$860,MATCH('2.2'!$A117,'2.2 Daten'!$B$9:$B$860,0))) -> -14.41176471 | J117: =IF($A117<>0,INDEX('2.2 Daten'!M$9:M$860,MATCH('2.2'!$A117,'2.2 Daten'!$B$9:$B$860,0))) -> -10.11560694 | K117: =IF($A117<>0,INDEX('2.2 Daten'!N$9:N$860,MATCH('2.2'!$A117,'2.2 Daten'!$B$9:$B$860,0))) -> -10.40723982 | L117: =IF($A117<>0,INDEX('2.2 Daten'!O$9:O$860,MATCH('2.2'!$A117,'2.2 Daten'!$B$9:$B$860,0))) -> -8.513708514
A118: =CHOOSE('2.2 Daten'!$A$2,'2.2 Daten'!B540,'2.2 Daten'!B89,'2.2 Daten'!B106,'2.2 Daten'!B123,'2.2 Daten'!B126,'2.2 Daten'!B173,'2.2 Daten'!B177,'2.2 Daten'!B232,'2.2 Daten'!B260,'2.2 Daten'!B298,'2.2 Daten'!B344,'2.2 Daten'!B442,'2.2 Daten'!B450,'2.2 Daten'!B453,'2.2 Daten'!B473,'2.2 Daten'!B483,'2.2 Daten'!B498,'2.2 Daten'!B514,x) -> Vechta | B118: =IF($A118<>0,INDEX('2.2 Daten'!C$9:C$860,MATCH('2.2'!$A118,'2.2 Daten'!$B$9:$B$860,0))," ") -> 3460000 | C118: =IF($A118<>0,INDEX('2.2 Daten'!E$9:E$860,MATCH('2.2'!$A118,'2.2 Daten'!$B$9:$B$860,0))) -> 2831 | D118: =IF($A118<>0,INDEX('2.2 Daten'!F$9:F$860,MATCH('2.2'!$A118,'2.2 Daten'!$B$9:$B$860,0))) -> 536 | E118: =IF($A118<>0,INDEX('2.2 Daten'!G$9:G$860,MATCH('2.2'!$A118,'2.2 Daten'!$B$9:$B$860,0))) -> 457 | F118: =IF($A118<>0,INDEX('2.2 Daten'!H$9:H$860,MATCH('2.2'!$A118,'2.2 Daten'!$B$9:$B$860,0))) -> 1437 | G118: =IF($A118<>0,INDEX('2.2 Daten'!I$9:I$860,MATCH('2.2'!$A118,'2.2 Daten'!$B$9:$B$860,0))) -> 401 | H118: =IF($A118<>0,INDEX('2.2 Daten'!K$9:K$860,MATCH('2.2'!$A118,'2.2 Daten'!$B$9:$B$860,0))) -> -5.317725753 | I118: =IF($A118<>0,INDEX('2.2 Daten'!L$9:L$860,MATCH('2.2'!$A118,'2.2 Daten'!$B$9:$B$860,0))) -> -2.898550725 | J118: =IF($A118<>0,INDEX('2.2 Daten'!M$9:M$860,MATCH('2.2'!$A118,'2.2 Daten'!$B$9:$B$860,0))) -> -9.145129225 | K118: =IF($A118<>0,INDEX('2.2 Daten'!N$9:N$860,MATCH('2.2'!$A118,'2.2 Daten'!$B$9:$B$860,0))) -> -5.584756899 | L118: =IF($A118<>0,INDEX('2.2 Daten'!O$9:O$860,MATCH('2.2'!$A118,'2.2 Daten'!$B$9:$B$860,0))) -> -2.905569007
A119: =CHOOSE('2.2 Daten'!$A$2,'2.2 Daten'!B541,'2.2 Daten'!B90,'2.2 Daten'!B107,'2.2 Daten'!B124,'2.2 Daten'!B127,'2.2 Daten'!B174,'2.2 Daten'!B178,'2.2 Daten'!B233,'2.2 Daten'!B261,'2.2 Daten'!B299,'2.2 Daten'!B345,'2.2 Daten'!B443,'2.2 Daten'!B451,'2.2 Daten'!B454,'2.2 Daten'!B474,'2.2 Daten'!B484,'2.2 Daten'!B499,'2.2 Daten'!B515,x) -> Wesermarsch | B119: =IF($A119<>0,INDEX('2.2 Daten'!C$9:C$860,MATCH('2.2'!$A119,'2.2 Daten'!$B$9:$B$860,0))," ") -> 3461000 | C119: =IF($A119<>0,INDEX('2.2 Daten'!E$9:E$860,MATCH('2.2'!$A119,'2.2 Daten'!$B$9:$B$860,0))) -> 2436 | D119: =IF($A119<>0,INDEX('2.2 Daten'!F$9:F$860,MATCH('2.2'!$A119,'2.2 Daten'!$B$9:$B$860,0))) -> 483 | E119: =IF($A119<>0,INDEX('2.2 Daten'!G$9:G$860,MATCH('2.2'!$A119,'2.2 Daten'!$B$9:$B$860,0))) -> 482 | F119: =IF($A119<>0,INDEX('2.2 Daten'!H$9:H$860,MATCH('2.2'!$A119,'2.2 Daten'!$B$9:$B$860,0))) -> 1175 | G119: =IF($A119<>0,INDEX('2.2 Daten'!I$9:I$860,MATCH('2.2'!$A119,'2.2 Daten'!$B$9:$B$860,0))) -> 296 | H119: =IF($A119<>0,INDEX('2.2 Daten'!K$9:K$860,MATCH('2.2'!$A119,'2.2 Daten'!$B$9:$B$860,0))) -> -5.361305361 | I119: =IF($A119<>0,INDEX('2.2 Daten'!L$9:L$860,MATCH('2.2'!$A119,'2.2 Daten'!$B$9:$B$860,0))) -> -5.294117647 | J119: =IF($A119<>0,INDEX('2.2 Daten'!M$9:M$860,MATCH('2.2'!$A119,'2.2 Daten'!$B$9:$B$860,0))) -> 2.118644068 | K119: =IF($A119<>0,INDEX('2.2 Daten'!N$9:N$860,MATCH('2.2'!$A119,'2.2 Daten'!$B$9:$B$860,0))) -> -6.523468576 | L119: =IF($A119<>0,INDEX('2.2 Daten'!O$9:O$860,MATCH('2.2'!$A119,'2.2 Daten'!$B$9:$B$860,0))) -> -11.64179104
A120: =CHOOSE('2.2 Daten'!$A$2,'2.2 Daten'!B542,'2.2 Daten'!B91,'2.2 Daten'!B108,'2.2 Daten'!B125,'2.2 Daten'!B128,'2.2 Daten'!B175,'2.2 Daten'!B179,'2.2 Daten'!B234,'2.2 Daten'!B262,'2.2 Daten'!B300,'2.2 Daten'!B346,'2.2 Daten'!B444,'2.2 Daten'!B452,'2.2 Daten'!B455,'2.2 Daten'!B475,'2.2 Daten'!B485,'2.2 Daten'!B500,'2.2 Daten'!B516,x) -> Wittmund | B120: =IF($A120<>0,INDEX('2.2 Daten'!C$9:C$860,MATCH('2.2'!$A120,'2.2 Daten'!$B$9:$B$860,0))," ") -> 3462000 | C120: =IF($A120<>0,INDEX('2.2 Daten'!E$9:E$860,MATCH('2.2'!$A120,'2.2 Daten'!$B$9:$B$860,0))) -> 1158 | D120: =IF($A120<>0,INDEX('2.2 Daten'!F$9:F$860,MATCH('2.2'!$A120,'2.2 Daten'!$B$9:$B$860,0))) -> 194 | E120: =IF($A120<>0,INDEX('2.2 Daten'!G$9:G$860,MATCH('2.2'!$A120,'2.2 Daten'!$B$9:$B$860,0))) -> 218 | F120: =IF($A120<>0,INDEX('2.2 Daten'!H$9:H$860,MATCH('2.2'!$A120,'2.2 Daten'!$B$9:$B$860,0))) -> 576 | G120: =IF($A120<>0,INDEX('2.2 Daten'!I$9:I$860,MATCH('2.2'!$A120,'2.2 Daten'!$B$9:$B$860,0))) -> 170 | H120: =IF($A120<>0,INDEX('2.2 Daten'!K$9:K$860,MATCH('2.2'!$A120,'2.2 Daten'!$B$9:$B$860,0))) -> -6.537530266 | I120: =IF($A120<>0,INDEX('2.2 Daten'!L$9:L$860,MATCH('2.2'!$A120,'2.2 Daten'!$B$9:$B$860,0))) -> -8.920187793 | J120: =IF($A120<>0,INDEX('2.2 Daten'!M$9:M$860,MATCH('2.2'!$A120,'2.2 Daten'!$B$9:$B$860,0))) -> 1.869158879 | K120: =IF($A120<>0,INDEX('2.2 Daten'!N$9:N$860,MATCH('2.2'!$A120,'2.2 Daten'!$B$9:$B$860,0))) -> -8.571428571 | L120: =IF($A120<>0,INDEX('2.2 Daten'!O$9:O$860,MATCH('2.2'!$A120,'2.2 Daten'!$B$9:$B$860,0))) -> -6.593406593
A121: =CHOOSE('2.2 Daten'!$A$2,'2.2 Daten'!B543,'2.2 Daten'!B92,'2.2 Daten'!B109,'2.2 Daten'!B126,'2.2 Daten'!B129,'2.2 Daten'!B176,'2.2 Daten'!B180,'2.2 Daten'!B235,'2.2 Daten'!B263,'2.2 Daten'!B301,'2.2 Daten'!B347,'2.2 Daten'!B445,'2.2 Daten'!B453,'2.2 Daten'!B456,'2.2 Daten'!B476,'2.2 Daten'!B486,'2.2 Daten'!B501,'2.2 Daten'!B517,x) -> 0 | B121: =IF($A121<>0,INDEX('2.2 Daten'!C$9:C$860,MATCH('2.2'!$A121,'2.2 Daten'!$B$9:$B$860,0))," ") ->  | C121: =IF($A121<>0,INDEX('2.2 Daten'!E$9:E$860,MATCH('2.2'!$A121,'2.2 Daten'!$B$9:$B$860,0))) -> FALSE | D121: =IF($A121<>0,INDEX('2.2 Daten'!F$9:F$860,MATCH('2.2'!$A121,'2.2 Daten'!$B$9:$B$860,0))) -> FALSE | E121: =IF($A121<>0,INDEX('2.2 Daten'!G$9:G$860,MATCH('2.2'!$A121,'2.2 Daten'!$B$9:$B$860,0))) -> FALSE | F121: =IF($A121<>0,INDEX('2.2 Daten'!H$9:H$860,MATCH('2.2'!$A121,'2.2 Daten'!$B$9:$B$860,0))) -> FALSE | G121: =IF($A121<>0,INDEX('2.2 Daten'!I$9:I$860,MATCH('2.2'!$A121,'2.2 Daten'!$B$9:$B$860,0))) -> FALSE | H121: =IF($A121<>0,INDEX('2.2 Daten'!K$9:K$860,MATCH('2.2'!$A121,'2.2 Daten'!$B$9:$B$860,0))) -> FALSE | I121: =IF($A121<>0,INDEX('2.2 Daten'!L$9:L$860,MATCH('2.2'!$A121,'2.2 Daten'!$B$9:$B$860,0))) -> FALSE | J121: =IF($A121<>0,INDEX('2.2 Daten'!M$9:M$860,MATCH('2.2'!$A121,'2.2 Daten'!$B$9:$B$860,0))) -> FALSE | K121: =IF($A121<>0,INDEX('2.2 Daten'!N$9:N$860,MATCH('2.2'!$A121,'2.2 Daten'!$B$9:$B$860,0))) -> FALSE | L121: =IF($A121<>0,INDEX('2.2 Daten'!O$9:O$860,MATCH('2.2'!$A121,'2.2 Daten'!$B$9:$B$860,0))) -> FALSE
A122: =CHOOSE('2.2 Daten'!$A$2,'2.2 Daten'!B544,'2.2 Daten'!B93,'2.2 Daten'!B110,'2.2 Daten'!B127,'2.2 Daten'!B130,'2.2 Daten'!B177,'2.2 Daten'!B181,'2.2 Daten'!B236,'2.2 Daten'!B264,'2.2 Daten'!B302,'2.2 Daten'!B348,'2.2 Daten'!B446,'2.2 Daten'!B454,'2.2 Daten'!B457,'2.2 Daten'!B477,'2.2 Daten'!B487,'2.2 Daten'!B502,'2.2 Daten'!B518,x) -> Bremen | B122: =IF($A122<>0,INDEX('2.2 Daten'!C$9:C$860,MATCH('2.2'!$A122,'2.2 Daten'!$B$9:$B$860,0))," ") -> 04 | C122: =IF($A122<>0,INDEX('2.2 Daten'!E$9:E$860,MATCH('2.2'!$A122,'2.2 Daten'!$B$9:$B$860,0))) -> 35066 | D122: =IF($A122<>0,INDEX('2.2 Daten'!F$9:F$860,MATCH('2.2'!$A122,'2.2 Daten'!$B$9:$B$860,0))) -> 7138 | E122: =IF($A122<>0,INDEX('2.2 Daten'!G$9:G$860,MATCH('2.2'!$A122,'2.2 Daten'!$B$9:$B$860,0))) -> 6657 | F122: =IF($A122<>0,INDEX('2.2 Daten'!H$9:H$860,MATCH('2.2'!$A122,'2.2 Daten'!$B$9:$B$860,0))) -> 16694 | G122: =IF($A122<>0,INDEX('2.2 Daten'!I$9:I$860,MATCH('2.2'!$A122,'2.2 Daten'!$B$9:$B$860,0))) -> 4577 | H122: =IF($A122<>0,INDEX('2.2 Daten'!K$9:K$860,MATCH('2.2'!$A122,'2.2 Daten'!$B$9:$B$860,0))) -> -0.4457314823 | I122: =IF($A122<>0,INDEX('2.2 Daten'!L$9:L$860,MATCH('2.2'!$A122,'2.2 Daten'!$B$9:$B$860,0))) -> -0.04201092284 | J122: =IF($A122<>0,INDEX('2.2 Daten'!M$9:M$860,MATCH('2.2'!$A122,'2.2 Daten'!$B$9:$B$860,0))) -> 4.292652358 | K122: =IF($A122<>0,INDEX('2.2 Daten'!N$9:N$860,MATCH('2.2'!$A122,'2.2 Daten'!$B$9:$B$860,0))) -> -1.446366373 | L122: =IF($A122<>0,INDEX('2.2 Daten'!O$9:O$860,MATCH('2.2'!$A122,'2.2 Daten'!$B$9:$B$860,0))) -> -3.844537815
A123: =CHOOSE('2.2 Daten'!$A$2,'2.2 Daten'!B545,'2.2 Daten'!B94,'2.2 Daten'!B111,'2.2 Daten'!B128,'2.2 Daten'!B131,'2.2 Daten'!B178,'2.2 Daten'!B182,'2.2 Daten'!B237,'2.2 Daten'!B265,'2.2 Daten'!B303,'2.2 Daten'!B349,'2.2 Daten'!B447,'2.2 Daten'!B455,'2.2 Daten'!B458,'2.2 Daten'!B478,'2.2 Daten'!B488,'2.2 Daten'!B503,'2.2 Daten'!B519,x) -> Bremen, Stadt | B123: =IF($A123<>0,INDEX('2.2 Daten'!C$9:C$860,MATCH('2.2'!$A123,'2.2 Daten'!$B$9:$B$860,0))," ") -> 4011000 | C123: =IF($A123<>0,INDEX('2.2 Daten'!E$9:E$860,MATCH('2.2'!$A123,'2.2 Daten'!$B$9:$B$860,0))) -> 27969 | D123: =IF($A123<>0,INDEX('2.2 Daten'!F$9:F$860,MATCH('2.2'!$A123,'2.2 Daten'!$B$9:$B$860,0))) -> 5730 | E123: =IF($A123<>0,INDEX('2.2 Daten'!G$9:G$860,MATCH('2.2'!$A123,'2.2 Daten'!$B$9:$B$860,0))) -> 5305 | F123: =IF($A123<>0,INDEX('2.2 Daten'!H$9:H$860,MATCH('2.2'!$A123,'2.2 Daten'!$B$9:$B$860,0))) -> 13306 | G123: =IF($A123<>0,INDEX('2.2 Daten'!I$9:I$860,MATCH('2.2'!$A123,'2.2 Daten'!$B$9:$B$860,0))) -> 3628 | H123: =IF($A123<>0,INDEX('2.2 Daten'!K$9:K$860,MATCH('2.2'!$A123,'2.2 Daten'!$B$9:$B$860,0))) -> 0.4814082989 | I123: =IF($A123<>0,INDEX('2.2 Daten'!L$9:L$860,MATCH('2.2'!$A123,'2.2 Daten'!$B$9:$B$860,0))) -> 1.667849539 | J123: =IF($A123<>0,INDEX('2.2 Daten'!M$9:M$860,MATCH('2.2'!$A123,'2.2 Daten'!$B$9:$B$860,0))) -> 4.57323083 | K123: =IF($A123<>0,INDEX('2.2 Daten'!N$9:N$860,MATCH('2.2'!$A123,'2.2 Daten'!$B$9:$B$860,0))) -> -0.560496226 | L123: =IF($A123<>0,INDEX('2.2 Daten'!O$9:O$860,MATCH('2.2'!$A123,'2.2 Daten'!$B$9:$B$860,0))) -> -3.124165554
A124: =CHOOSE('2.2 Daten'!$A$2,'2.2 Daten'!B546,'2.2 Daten'!B95,'2.2 Daten'!B112,'2.2 Daten'!B129,'2.2 Daten'!B132,'2.2 Daten'!B179,'2.2 Daten'!B183,'2.2 Daten'!B238,'2.2 Daten'!B266,'2.2 Daten'!B304,'2.2 Daten'!B350,'2.2 Daten'!B448,'2.2 Daten'!B456,'2.2 Daten'!B459,'2.2 Daten'!B479,'2.2 Daten'!B489,'2.2 Daten'!B504,'2.2 Daten'!B520,x) -> Bremerhaven, Stadt | B124: =IF($A124<>0,INDEX('2.2 Daten'!C$9:C$860,MATCH('2.2'!$A124,'2.2 Daten'!$B$9:$B$860,0))," ") -> 4012000 | C124: =IF($A124<>0,INDEX('2.2 Daten'!E$9:E$860,MATCH('2.2'!$A124,'2.2 Daten'!$B$9:$B$860,0))) -> 7097 | D124: =IF($A124<>0,INDEX('2.2 Daten'!F$9:F$860,MATCH('2.2'!$A124,'2.2 Daten'!$B$9:$B$860,0))) -> 1408 | E124: =IF($A124<>0,INDEX('2.2 Daten'!G$9:G$860,MATCH('2.2'!$A124,'2.2 Daten'!$B$9:$B$860,0))) -> 1352 | F124: =IF($A124<>0,INDEX('2.2 Daten'!H$9:H$860,MATCH('2.2'!$A124,'2.2 Daten'!$B$9:$B$860,0))) -> 3388 | G124: =IF($A124<>0,INDEX('2.2 Daten'!I$9:I$860,MATCH('2.2'!$A124,'2.2 Daten'!$B$9:$B$860,0))) -> 949 | H124: =IF($A124<>0,INDEX('2.2 Daten'!K$9:K$860,MATCH('2.2'!$A124,'2.2 Daten'!$B$9:$B$860,0))) -> -3.938819708 | I124: =IF($A124<>0,INDEX('2.2 Daten'!L$9:L$860,MATCH('2.2'!$A124,'2.2 Daten'!$B$9:$B$860,0))) -> -6.445182724 | J124: =IF($A124<>0,INDEX('2.2 Daten'!M$9:M$860,MATCH('2.2'!$A124,'2.2 Daten'!$B$9:$B$860,0))) -> 3.20610687 | K124: =IF($A124<>0,INDEX('2.2 Daten'!N$9:N$860,MATCH('2.2'!$A124,'2.2 Daten'!$B$9:$B$860,0))) -> -4.777965149 | L124: =IF($A124<>0,INDEX('2.2 Daten'!O$9:O$860,MATCH('2.2'!$A124,'2.2 Daten'!$B$9:$B$860,0))) -> -6.502463054
A125: =CHOOSE('2.2 Daten'!$A$2,'2.2 Daten'!B547,'2.2 Daten'!B96,'2.2 Daten'!B113,'2.2 Daten'!B130,'2.2 Daten'!B133,'2.2 Daten'!B180,'2.2 Daten'!B184,'2.2 Daten'!B239,'2.2 Daten'!B267,'2.2 Daten'!B305,'2.2 Daten'!B351,'2.2 Daten'!B449,'2.2 Daten'!B457,'2.2 Daten'!B460,'2.2 Daten'!B480,'2.2 Daten'!B490,'2.2 Daten'!B505,'2.2 Daten'!B521,x) -> 0 | B125: =IF($A125<>0,INDEX('2.2 Daten'!C$9:C$860,MATCH('2.2'!$A125,'2.2 Daten'!$B$9:$B$860,0))," ") ->  | C125: =IF($A125<>0,INDEX('2.2 Daten'!E$9:E$860,MATCH('2.2'!$A125,'2.2 Daten'!$B$9:$B$860,0))) -> FALSE | D125: =IF($A125<>0,INDEX('2.2 Daten'!F$9:F$860,MATCH('2.2'!$A125,'2.2 Daten'!$B$9:$B$860,0))) -> FALSE | E125: =IF($A125<>0,INDEX('2.2 Daten'!G$9:G$860,MATCH('2.2'!$A125,'2.2 Daten'!$B$9:$B$860,0))) -> FALSE | F125: =IF($A125<>0,INDEX('2.2 Daten'!H$9:H$860,MATCH('2.2'!$A125,'2.2 Daten'!$B$9:$B$860,0))) -> FALSE | G125: =IF($A125<>0,INDEX('2.2 Daten'!I$9:I$860,MATCH('2.2'!$A125,'2.2 Daten'!$B$9:$B$860,0))) -> FALSE | H125: =IF($A125<>0,INDEX('2.2 Daten'!K$9:K$860,MATCH('2.2'!$A125,'2.2 Daten'!$B$9:$B$860,0))) -> FALSE | I125: =IF($A125<>0,INDEX('2.2 Daten'!L$9:L$860,MATCH('2.2'!$A125,'2.2 Daten'!$B$9:$B$860,0))) -> FALSE | J125: =IF($A125<>0,INDEX('2.2 Daten'!M$9:M$860,MATCH('2.2'!$A125,'2.2 Daten'!$B$9:$B$860,0))) -> FALSE | K125: =IF($A125<>0,INDEX('2.2 Daten'!N$9:N$860,MATCH('2.2'!$A125,'2.2 Daten'!$B$9:$B$860,0))) -> FALSE | L125: =IF($A125<>0,INDEX('2.2 Daten'!O$9:O$860,MATCH('2.2'!$A125,'2.2 Daten'!$B$9:$B$860,0))) -> FALSE
A126: =CHOOSE('2.2 Daten'!$A$2,'2.2 Daten'!B548,'2.2 Daten'!B97,'2.2 Daten'!B114,'2.2 Daten'!B131,'2.2 Daten'!B134,'2.2 Daten'!B181,'2.2 Daten'!B185,'2.2 Daten'!B240,'2.2 Daten'!B268,'2.2 Daten'!B306,'2.2 Daten'!B352,'2.2 Daten'!B450,'2.2 Daten'!B458,'2.2 Daten'!B461,'2.2 Daten'!B481,'2.2 Daten'!B491,'2.2 Daten'!B506,'2.2 Daten'!B522,x) -> Nordrhein-Westfalen | B126: =IF($A126<>0,INDEX('2.2 Daten'!C$9:C$860,MATCH('2.2'!$A126,'2.2 Daten'!$B$9:$B$860,0))," ") -> 05 | C126: =IF($A126<>0,INDEX('2.2 Daten'!E$9:E$860,MATCH('2.2'!$A126,'2.2 Daten'!$B$9:$B$860,0))) -> 566470 | D126: =IF($A126<>0,INDEX('2.2 Daten'!F$9:F$860,MATCH('2.2'!$A126,'2.2 Daten'!$B$9:$B$860,0))) -> 105160 | E126: =IF($A126<>0,INDEX('2.2 Daten'!G$9:G$860,MATCH('2.2'!$A126,'2.2 Daten'!$B$9:$B$860,0))) -> 102461 | F126: =IF($A126<>0,INDEX('2.2 Daten'!H$9:H$860,MATCH('2.2'!$A126,'2.2 Daten'!$B$9:$B$860,0))) -> 281280 | G126: =IF($A126<>0,INDEX('2.2 Daten'!I$9:I$860,MATCH('2.2'!$A126,'2.2 Daten'!$B$9:$B$860,0))) -> 77569 | H126: =IF($A126<>0,INDEX('2.2 Daten'!K$9:K$860,MATCH('2.2'!$A126,'2.2 Daten'!$B$9:$B$860,0))) -> -2.177254187 | I126: =IF($A126<>0,INDEX('2.2 Daten'!L$9:L$860,MATCH('2.2'!$A126,'2.2 Daten'!$B$9:$B$860,0))) -> -2.59625983 | J126: =IF($A126<>0,INDEX('2.2 Daten'!M$9:M$860,MATCH('2.2'!$A126,'2.2 Daten'!$B$9:$B$860,0))) -> -1.102284683 | K126: =IF($A126<>0,INDEX('2.2 Daten'!N$9:N$860,MATCH('2.2'!$A126,'2.2 Daten'!$B$9:$B$860,0))) -> -1.81684905 | L126: =IF($A126<>0,INDEX('2.2 Daten'!O$9:O$860,MATCH('2.2'!$A126,'2.2 Daten'!$B$9:$B$860,0))) -> -4.267713231
A127: =CHOOSE('2.2 Daten'!$A$2,'2.2 Daten'!B549,'2.2 Daten'!B98,'2.2 Daten'!B115,'2.2 Daten'!B132,'2.2 Daten'!B135,'2.2 Daten'!B182,'2.2 Daten'!B186,'2.2 Daten'!B241,'2.2 Daten'!B269,'2.2 Daten'!B307,'2.2 Daten'!B353,'2.2 Daten'!B451,'2.2 Daten'!B459,'2.2 Daten'!B462,'2.2 Daten'!B482,'2.2 Daten'!B492,'2.2 Daten'!B507,'2.2 Daten'!B523,x) -> Düsseldorf, Stadt | B127: =IF($A127<>0,INDEX('2.2 Daten'!C$9:C$860,MATCH('2.2'!$A127,'2.2 Daten'!$B$9:$B$860,0))," ") -> 5111000 | C127: =IF($A127<>0,INDEX('2.2 Daten'!E$9:E$860,MATCH('2.2'!$A127,'2.2 Daten'!$B$9:$B$860,0))) -> 19464 | D127: =IF($A127<>0,INDEX('2.2 Daten'!F$9:F$860,MATCH('2.2'!$A127,'2.2 Daten'!$B$9:$B$860,0))) -> 3375 | E127: =IF($A127<>0,INDEX('2.2 Daten'!G$9:G$860,MATCH('2.2'!$A127,'2.2 Daten'!$B$9:$B$860,0))) -> 3484 | F127: =IF($A127<>0,INDEX('2.2 Daten'!H$9:H$860,MATCH('2.2'!$A127,'2.2 Daten'!$B$9:$B$860,0))) -> 9926 | G127: =IF($A127<>0,INDEX('2.2 Daten'!I$9:I$860,MATCH('2.2'!$A127,'2.2 Daten'!$B$9:$B$860,0))) -> 2679 | H127: =IF($A127<>0,INDEX('2.2 Daten'!K$9:K$860,MATCH('2.2'!$A127,'2.2 Daten'!$B$9:$B$860,0))) -> -3.909952607 | I127: =IF($A127<>0,INDEX('2.2 Daten'!L$9:L$860,MATCH('2.2'!$A127,'2.2 Daten'!$B$9:$B$860,0))) -> -5.382674516 | J127: =IF($A127<>0,INDEX('2.2 Daten'!M$9:M$860,MATCH('2.2'!$A127,'2.2 Daten'!$B$9:$B$860,0))) -> -5.60823625 | K127: =IF($A127<>0,INDEX('2.2 Daten'!N$9:N$860,MATCH('2.2'!$A127,'2.2 Daten'!$B$9:$B$860,0))) -> -2.857702094 | L127: =IF($A127<>0,INDEX('2.2 Daten'!O$9:O$860,MATCH('2.2'!$A127,'2.2 Daten'!$B$9:$B$860,0))) -> -3.633093525
A128: =CHOOSE('2.2 Daten'!$A$2,'2.2 Daten'!B550,'2.2 Daten'!B99,'2.2 Daten'!B116,'2.2 Daten'!B133,'2.2 Daten'!B136,'2.2 Daten'!B183,'2.2 Daten'!B187,'2.2 Daten'!B242,'2.2 Daten'!B270,'2.2 Daten'!B308,'2.2 Daten'!B354,'2.2 Daten'!B452,'2.2 Daten'!B460,'2.2 Daten'!B463,'2.2 Daten'!B483,'2.2 Daten'!B493,'2.2 Daten'!B508,'2.2 Daten'!B524,x) -> Duisburg, Stadt | B128: =IF($A128<>0,INDEX('2.2 Daten'!C$9:C$860,MATCH('2.2'!$A128,'2.2 Daten'!$B$9:$B$860,0))," ") -> 5112000 | C128: =IF($A128<>0,INDEX('2.2 Daten'!E$9:E$860,MATCH('2.2'!$A128,'2.2 Daten'!$B$9:$B$860,0))) -> 25893 | D128: =IF($A128<>0,INDEX('2.2 Daten'!F$9:F$860,MATCH('2.2'!$A128,'2.2 Daten'!$B$9:$B$860,0))) -> 4867 | E128: =IF($A128<>0,INDEX('2.2 Daten'!G$9:G$860,MATCH('2.2'!$A128,'2.2 Daten'!$B$9:$B$860,0))) -> 4705 | F128: =IF($A128<>0,INDEX('2.2 Daten'!H$9:H$860,MATCH('2.2'!$A128,'2.2 Daten'!$B$9:$B$860,0))) -> 12878 | G128: =IF($A128<>0,INDEX('2.2 Daten'!I$9:I$860,MATCH('2.2'!$A128,'2.2 Daten'!$B$9:$B$860,0))) -> 3443 | H128: =IF($A128<>0,INDEX('2.2 Daten'!K$9:K$860,MATCH('2.2'!$A128,'2.2 Daten'!$B$9:$B$860,0))) -> -1.913023714 | I128: =IF($A128<>0,INDEX('2.2 Daten'!L$9:L$860,MATCH('2.2'!$A128,'2.2 Daten'!$B$9:$B$860,0))) -> -3.009166999 | J128: =IF($A128<>0,INDEX('2.2 Daten'!M$9:M$860,MATCH('2.2'!$A128,'2.2 Daten'!$B$9:$B$860,0))) -> 1.950162514 | K128: =IF($A128<>0,INDEX('2.2 Daten'!N$9:N$860,MATCH('2.2'!$A128,'2.2 Daten'!$B$9:$B$860,0))) -> -1.799603477 | L128: =IF($A128<>0,INDEX('2.2 Daten'!O$9:O$860,MATCH('2.2'!$A128,'2.2 Daten'!$B$9:$B$860,0))) -> -5.697069296
A129: =CHOOSE('2.2 Daten'!$A$2,'2.2 Daten'!B551,'2.2 Daten'!B100,'2.2 Daten'!B117,'2.2 Daten'!B134,'2.2 Daten'!B137,'2.2 Daten'!B184,'2.2 Daten'!B188,'2.2 Daten'!B243,'2.2 Daten'!B271,'2.2 Daten'!B309,'2.2 Daten'!B355,'2.2 Daten'!B453,'2.2 Daten'!B461,'2.2 Daten'!B464,'2.2 Daten'!B484,'2.2 Daten'!B494,'2.2 Daten'!B509,'2.2 Daten'!B525,x) -> Essen, Stadt | B129: =IF($A129<>0,INDEX('2.2 Daten'!C$9:C$860,MATCH('2.2'!$A129,'2.2 Daten'!$B$9:$B$860,0))," ") -> 5113000 | C129: =IF($A129<>0,INDEX('2.2 Daten'!E$9:E$860,MATCH('2.2'!$A129,'2.2 Daten'!$B$9:$B$860,0))) -> 31472 | D129: =IF($A129<>0,INDEX('2.2 Daten'!F$9:F$860,MATCH('2.2'!$A129,'2.2 Daten'!$B$9:$B$860,0))) -> 6005 | E129: =IF($A129<>0,INDEX('2.2 Daten'!G$9:G$860,MATCH('2.2'!$A129,'2.2 Daten'!$B$9:$B$860,0))) -> 5801 | F129: =IF($A129<>0,INDEX('2.2 Daten'!H$9:H$860,MATCH('2.2'!$A129,'2.2 Daten'!$B$9:$B$860,0))) -> 15511 | G129: =IF($A129<>0,INDEX('2.2 Daten'!I$9:I$860,MATCH('2.2'!$A129,'2.2 Daten'!$B$9:$B$860,0))) -> 4155 | H129: =IF($A129<>0,INDEX('2.2 Daten'!K$9:K$860,MATCH('2.2'!$A129,'2.2 Daten'!$B$9:$B$860,0))) -> -0.1586193769 | I129: =IF($A129<>0,INDEX('2.2 Daten'!L$9:L$860,MATCH('2.2'!$A129,'2.2 Daten'!$B$9:$B$860,0))) -> 0.6705783738 | J129: =IF($A129<>0,INDEX('2.2 Daten'!M$9:M$860,MATCH('2.2'!$A129,'2.2 Daten'!$B$9:$B$860,0))) -> 0.4676134396 | K129: =IF($A129<>0,INDEX('2.2 Daten'!N$9:N$860,MATCH('2.2'!$A129,'2.2 Daten'!$B$9:$B$860,0))) -> 0.1808435058 | L129: =IF($A129<>0,INDEX('2.2 Daten'!O$9:O$860,MATCH('2.2'!$A129,'2.2 Daten'!$B$9:$B$860,0))) -> -3.372093023
A130: =CHOOSE('2.2 Daten'!$A$2,'2.2 Daten'!B552,'2.2 Daten'!B101,'2.2 Daten'!B118,'2.2 Daten'!B135,'2.2 Daten'!B138,'2.2 Daten'!B185,'2.2 Daten'!B189,'2.2 Daten'!B244,'2.2 Daten'!B272,'2.2 Daten'!B310,'2.2 Daten'!B356,'2.2 Daten'!B454,'2.2 Daten'!B462,'2.2 Daten'!B465,'2.2 Daten'!B485,'2.2 Daten'!B495,'2.2 Daten'!B510,'2.2 Daten'!B526,x) -> Krefeld, Stadt | B130: =IF($A130<>0,INDEX('2.2 Daten'!C$9:C$860,MATCH('2.2'!$A130,'2.2 Daten'!$B$9:$B$860,0))," ") -> 5114000 | C130: =IF($A130<>0,INDEX('2.2 Daten'!E$9:E$860,MATCH('2.2'!$A130,'2.2 Daten'!$B$9:$B$860,0))) -> 9044 | D130: =IF($A130<>0,INDEX('2.2 Daten'!F$9:F$860,MATCH('2.2'!$A130,'2.2 Daten'!$B$9:$B$860,0))) -> 1639 | E130: =IF($A130<>0,INDEX('2.2 Daten'!G$9:G$860,MATCH('2.2'!$A130,'2.2 Daten'!$B$9:$B$860,0))) -> 1645 | F130: =IF($A130<>0,INDEX('2.2 Daten'!H$9:H$860,MATCH('2.2'!$A130,'2.2 Daten'!$B$9:$B$860,0))) -> 4527 | G130: =IF($A130<>0,INDEX('2.2 Daten'!I$9:I$860,MATCH('2.2'!$A130,'2.2 Daten'!$B$9:$B$860,0))) -> 1233 | H130: =IF($A130<>0,INDEX('2.2 Daten'!K$9:K$860,MATCH('2.2'!$A130,'2.2 Daten'!$B$9:$B$860,0))) -> -1.18006993 | I130: =IF($A130<>0,INDEX('2.2 Daten'!L$9:L$860,MATCH('2.2'!$A130,'2.2 Daten'!$B$9:$B$860,0))) -> -1.561561562 | J130: =IF($A130<>0,INDEX('2.2 Daten'!M$9:M$860,MATCH('2.2'!$A130,'2.2 Daten'!$B$9:$B$860,0))) -> 1.168511685 | K130: =IF($A130<>0,INDEX('2.2 Daten'!N$9:N$860,MATCH('2.2'!$A130,'2.2 Daten'!$B$9:$B$860,0))) -> -1.221907048 | L130: =IF($A130<>0,INDEX('2.2 Daten'!O$9:O$860,MATCH('2.2'!$A130,'2.2 Daten'!$B$9:$B$860,0))) -> -3.521126761
A131: =CHOOSE('2.2 Daten'!$A$2,'2.2 Daten'!B553,'2.2 Daten'!B102,'2.2 Daten'!B119,'2.2 Daten'!B136,'2.2 Daten'!B139,'2.2 Daten'!B186,'2.2 Daten'!B190,'2.2 Daten'!B245,'2.2 Daten'!B273,'2.2 Daten'!B311,'2.2 Daten'!B357,'2.2 Daten'!B455,'2.2 Daten'!B463,'2.2 Daten'!B466,'2.2 Daten'!B486,'2.2 Daten'!B496,'2.2 Daten'!B511,'2.2 Daten'!B527,x) -> Mönchengladbach, Stadt | B131: =IF($A131<>0,INDEX('2.2 Daten'!C$9:C$860,MATCH('2.2'!$A131,'2.2 Daten'!$B$9:$B$860,0))," ") -> 5116000 | C131: =IF($A131<>0,INDEX('2.2 Daten'!E$9:E$860,MATCH('2.2'!$A131,'2.2 Daten'!$B$9:$B$860,0))) -> 13396 | D131: =IF($A131<>0,INDEX('2.2 Daten'!F$9:F$860,MATCH('2.2'!$A131,'2.2 Daten'!$B$9:$B$860,0))) -> 2492 | E131: =IF($A131<>0,INDEX('2.2 Daten'!G$9:G$860,MATCH('2.2'!$A131,'2.2 Daten'!$B$9:$B$860,0))) -> 2412 | F131: =IF($A131<>0,INDEX('2.2 Daten'!H$9:H$860,MATCH('2.2'!$A131,'2.2 Daten'!$B$9:$B$860,0))) -> 6633 | G131: =IF($A131<>0,INDEX('2.2 Daten'!I$9:I$860,MATCH('2.2'!$A131,'2.2 Daten'!$B$9:$B$860,0))) -> 1859 | H131: =IF($A131<>0,INDEX('2.2 Daten'!K$9:K$860,MATCH('2.2'!$A131,'2.2 Daten'!$B$9:$B$860,0))) -> -2.814857806 | I131: =IF($A131<>0,INDEX('2.2 Daten'!L$9:L$860,MATCH('2.2'!$A131,'2.2 Daten'!$B$9:$B$860,0))) -> -4.63069269 | J131: =IF($A131<>0,INDEX('2.2 Daten'!M$9:M$860,MATCH('2.2'!$A131,'2.2 Daten'!$B$9:$B$860,0))) -> -3.558576569 | K131: =IF($A131<>0,INDEX('2.2 Daten'!N$9:N$860,MATCH('2.2'!$A131,'2.2 Daten'!$B$9:$B$860,0))) -> -0.8520179372 | L131: =IF($A131<>0,INDEX('2.2 Daten'!O$9:O$860,MATCH('2.2'!$A131,'2.2 Daten'!$B$9:$B$860,0))) -> -6.111111111
A132: =CHOOSE('2.2 Daten'!$A$2,'2.2 Daten'!B554,'2.2 Daten'!B103,'2.2 Daten'!B120,'2.2 Daten'!B137,'2.2 Daten'!B140,'2.2 Daten'!B187,'2.2 Daten'!B191,'2.2 Daten'!B246,'2.2 Daten'!B274,'2.2 Daten'!B312,'2.2 Daten'!B358,'2.2 Daten'!B456,'2.2 Daten'!B464,'2.2 Daten'!B467,'2.2 Daten'!B487,'2.2 Daten'!B497,'2.2 Daten'!B512,'2.2 Daten'!B528,x) -> Mülheim an der Ruhr, Stadt | B132: =IF($A132<>0,INDEX('2.2 Daten'!C$9:C$860,MATCH('2.2'!$A132,'2.2 Daten'!$B$9:$B$860,0))," ") -> 5117000 | C132: =IF($A132<>0,INDEX('2.2 Daten'!E$9:E$860,MATCH('2.2'!$A132,'2.2 Daten'!$B$9:$B$860,0))) -> 7758 | D132: =IF($A132<>0,INDEX('2.2 Daten'!F$9:F$860,MATCH('2.2'!$A132,'2.2 Daten'!$B$9:$B$860,0))) -> 1461 | E132: =IF($A132<>0,INDEX('2.2 Daten'!G$9:G$860,MATCH('2.2'!$A132,'2.2 Daten'!$B$9:$B$860,0))) -> 1386 | F132: =IF($A132<>0,INDEX('2.2 Daten'!H$9:H$860,MATCH('2.2'!$A132,'2.2 Daten'!$B$9:$B$860,0))) -> 3838 | G132: =IF($A132<>0,INDEX('2.2 Daten'!I$9:I$860,MATCH('2.2'!$A132,'2.2 Daten'!$B$9:$B$860,0))) -> 1073 | H132: =IF($A132<>0,INDEX('2.2 Daten'!K$9:K$860,MATCH('2.2'!$A132,'2.2 Daten'!$B$9:$B$860,0))) -> -0.3724155644 | I132: =IF($A132<>0,INDEX('2.2 Daten'!L$9:L$860,MATCH('2.2'!$A132,'2.2 Daten'!$B$9:$B$860,0))) -> -1.016260163 | J132: =IF($A132<>0,INDEX('2.2 Daten'!M$9:M$860,MATCH('2.2'!$A132,'2.2 Daten'!$B$9:$B$860,0))) -> 1.241782323 | K132: =IF($A132<>0,INDEX('2.2 Daten'!N$9:N$860,MATCH('2.2'!$A132,'2.2 Daten'!$B$9:$B$860,0))) -> -0.6214396686 | L132: =IF($A132<>0,INDEX('2.2 Daten'!O$9:O$860,MATCH('2.2'!$A132,'2.2 Daten'!$B$9:$B$860,0))) -> -0.6481481481
A133: =CHOOSE('2.2 Daten'!$A$2,'2.2 Daten'!B555,'2.2 Daten'!B104,'2.2 Daten'!B121,'2.2 Daten'!B138,'2.2 Daten'!B141,'2.2 Daten'!B188,'2.2 Daten'!B192,'2.2 Daten'!B247,'2.2 Daten'!B275,'2.2 Daten'!B313,'2.2 Daten'!B359,'2.2 Daten'!B457,'2.2 Daten'!B465,'2.2 Daten'!B468,'2.2 Daten'!B488,'2.2 Daten'!B498,'2.2 Daten'!B513,'2.2 Daten'!B529,x) -> Oberhausen, Stadt | B133: =IF($A133<>0,INDEX('2.2 Daten'!C$9:C$860,MATCH('2.2'!$A133,'2.2 Daten'!$B$9:$B$860,0))," ") -> 5119000 | C133: =IF($A133<>0,INDEX('2.2 Daten'!E$9:E$860,MATCH('2.2'!$A133,'2.2 Daten'!$B$9:$B$860,0))) -> 9661 | D133: =IF($A133<>0,INDEX('2.2 Daten'!F$9:F$860,MATCH('2.2'!$A133,'2.2 Daten'!$B$9:$B$860,0))) -> 1892 | E133: =IF($A133<>0,INDEX('2.2 Daten'!G$9:G$860,MATCH('2.2'!$A133,'2.2 Daten'!$B$9:$B$860,0))) -> 1776 | F133: =IF($A133<>0,INDEX('2.2 Daten'!H$9:H$860,MATCH('2.2'!$A133,'2.2 Daten'!$B$9:$B$860,0))) -> 4689 | G133: =IF($A133<>0,INDEX('2.2 Daten'!I$9:I$860,MATCH('2.2'!$A133,'2.2 Daten'!$B$9:$B$860,0))) -> 1304 | H133: =IF($A133<>0,INDEX('2.2 Daten'!K$9:K$860,MATCH('2.2'!$A133,'2.2 Daten'!$B$9:$B$860,0))) -> 0.740354536 | I133: =IF($A133<>0,INDEX('2.2 Daten'!L$9:L$860,MATCH('2.2'!$A133,'2.2 Daten'!$B$9:$B$860,0))) -> -0.3161222339 | J133: =IF($A133<>0,INDEX('2.2 Daten'!M$9:M$860,MATCH('2.2'!$A133,'2.2 Daten'!$B$9:$B$860,0))) -> 3.920421299 | K133: =IF($A133<>0,INDEX('2.2 Daten'!N$9:N$860,MATCH('2.2'!$A133,'2.2 Daten'!$B$9:$B$860,0))) -> 1.208720052 | L133: =IF($A133<>0,INDEX('2.2 Daten'!O$9:O$860,MATCH('2.2'!$A133,'2.2 Daten'!$B$9:$B$860,0))) -> -3.407407407
A134: =CHOOSE('2.2 Daten'!$A$2,'2.2 Daten'!B556,'2.2 Daten'!B105,'2.2 Daten'!B122,'2.2 Daten'!B139,'2.2 Daten'!B142,'2.2 Daten'!B189,'2.2 Daten'!B193,'2.2 Daten'!B248,'2.2 Daten'!B276,'2.2 Daten'!B314,'2.2 Daten'!B360,'2.2 Daten'!B458,'2.2 Daten'!B466,'2.2 Daten'!B469,'2.2 Daten'!B489,'2.2 Daten'!B499,'2.2 Daten'!B514,'2.2 Daten'!B530,x) -> Remscheid, Stadt | B134: =IF($A134<>0,INDEX('2.2 Daten'!C$9:C$860,MATCH('2.2'!$A134,'2.2 Daten'!$B$9:$B$860,0))," ") -> 5120000 | C134: =IF($A134<>0,INDEX('2.2 Daten'!E$9:E$860,MATCH('2.2'!$A134,'2.2 Daten'!$B$9:$B$860,0))) -> 3849 | D134: =IF($A134<>0,INDEX('2.2 Daten'!F$9:F$860,MATCH('2.2'!$A134,'2.2 Daten'!$B$9:$B$860,0))) -> 733 | E134: =IF($A134<>0,INDEX('2.2 Daten'!G$9:G$860,MATCH('2.2'!$A134,'2.2 Daten'!$B$9:$B$860,0))) -> 740 | F134: =IF($A134<>0,INDEX('2.2 Daten'!H$9:H$860,MATCH('2.2'!$A134,'2.2 Daten'!$B$9:$B$860,0))) -> 1893 | G134: =IF($A134<>0,INDEX('2.2 Daten'!I$9:I$860,MATCH('2.2'!$A134,'2.2 Daten'!$B$9:$B$860,0))) -> 483 | H134: =IF($A134<>0,INDEX('2.2 Daten'!K$9:K$860,MATCH('2.2'!$A134,'2.2 Daten'!$B$9:$B$860,0))) -> -4.110612855 | I134: =IF($A134<>0,INDEX('2.2 Daten'!L$9:L$860,MATCH('2.2'!$A134,'2.2 Daten'!$B$9:$B$860,0))) -> -6.265984655 | J134: =IF($A134<>0,INDEX('2.2 Daten'!M$9:M$860,MATCH('2.2'!$A134,'2.2 Daten'!$B$9:$B$860,0))) -> 1.928374656 | K134: =IF($A134<>0,INDEX('2.2 Daten'!N$9:N$860,MATCH('2.2'!$A134,'2.2 Daten'!$B$9:$B$860,0))) -> -5.065195587 | L134: =IF($A134<>0,INDEX('2.2 Daten'!O$9:O$860,MATCH('2.2'!$A134,'2.2 Daten'!$B$9:$B$860,0))) -> -5.6640625
A135: =CHOOSE('2.2 Daten'!$A$2,'2.2 Daten'!B557,'2.2 Daten'!B106,'2.2 Daten'!B123,'2.2 Daten'!B140,'2.2 Daten'!B143,'2.2 Daten'!B190,'2.2 Daten'!B194,'2.2 Daten'!B249,'2.2 Daten'!B277,'2.2 Daten'!B315,'2.2 Daten'!B361,'2.2 Daten'!B459,'2.2 Daten'!B467,'2.2 Daten'!B470,'2.2 Daten'!B490,'2.2 Daten'!B500,'2.2 Daten'!B515,'2.2 Daten'!B531,x) -> Solingen, Stadt | B135: =IF($A135<>0,INDEX('2.2 Daten'!C$9:C$860,MATCH('2.2'!$A135,'2.2 Daten'!$B$9:$B$860,0))," ") -> 5122000 | C135: =IF($A135<>0,INDEX('2.2 Daten'!E$9:E$860,MATCH('2.2'!$A135,'2.2 Daten'!$B$9:$B$860,0))) -> 5107 | D135: =IF($A135<>0,INDEX('2.2 Daten'!F$9:F$860,MATCH('2.2'!$A135,'2.2 Daten'!$B$9:$B$860,0))) -> 911 | E135: =IF($A135<>0,INDEX('2.2 Daten'!G$9:G$860,MATCH('2.2'!$A135,'2.2 Daten'!$B$9:$B$860,0))) -> 919 | F135: =IF($A135<>0,INDEX('2.2 Daten'!H$9:H$860,MATCH('2.2'!$A135,'2.2 Daten'!$B$9:$B$860,0))) -> 2552 | G135: =IF($A135<>0,INDEX('2.2 Daten'!I$9:I$860,MATCH('2.2'!$A135,'2.2 Daten'!$B$9:$B$860,0))) -> 725 | H135: =IF($A135<>0,INDEX('2.2 Daten'!K$9:K$860,MATCH('2.2'!$A135,'2.2 Daten'!$B$9:$B$860,0))) -> -4.720149254 | I135: =IF($A135<>0,INDEX('2.2 Daten'!L$9:L$860,MATCH('2.2'!$A135,'2.2 Daten'!$B$9:$B$860,0))) -> -6.945863126 | J135: =IF($A135<>0,INDEX('2.2 Daten'!M$9:M$860,MATCH('2.2'!$A135,'2.2 Daten'!$B$9:$B$860,0))) -> -4.569055036 | K135: =IF($A135<>0,INDEX('2.2 Daten'!N$9:N$860,MATCH('2.2'!$A135,'2.2 Daten'!$B$9:$B$860,0))) -> -3.443057132 | L135: =IF($A135<>0,INDEX('2.2 Daten'!O$9:O$860,MATCH('2.2'!$A135,'2.2 Daten'!$B$9:$B$860,0))) -> -6.451612903
A136: =CHOOSE('2.2 Daten'!$A$2,'2.2 Daten'!B558,'2.2 Daten'!B107,'2.2 Daten'!B124,'2.2 Daten'!B141,'2.2 Daten'!B144,'2.2 Daten'!B191,'2.2 Daten'!B195,'2.2 Daten'!B250,'2.2 Daten'!B278,'2.2 Daten'!B316,'2.2 Daten'!B362,'2.2 Daten'!B460,'2.2 Daten'!B468,'2.2 Daten'!B471,'2.2 Daten'!B491,'2.2 Daten'!B501,'2.2 Daten'!B516,'2.2 Daten'!B532,x) -> Wuppertal, Stadt | B136: =IF($A136<>0,INDEX('2.2 Daten'!C$9:C$860,MATCH('2.2'!$A136,'2.2 Daten'!$B$9:$B$860,0))," ") -> 5124000 | C136: =IF($A136<>0,INDEX('2.2 Daten'!E$9:E$860,MATCH('2.2'!$A136,'2.2 Daten'!$B$9:$B$860,0))) -> 18149 | D136: =IF($A136<>0,INDEX('2.2 Daten'!F$9:F$860,MATCH('2.2'!$A136,'2.2 Daten'!$B$9:$B$860,0))) -> 3428 | E136: =IF($A136<>0,INDEX('2.2 Daten'!G$9:G$860,MATCH('2.2'!$A136,'2.2 Daten'!$B$9:$B$860,0))) -> 3346 | F136: =IF($A136<>0,INDEX('2.2 Daten'!H$9:H$860,MATCH('2.2'!$A136,'2.2 Daten'!$B$9:$B$860,0))) -> 9003 | G136: =IF($A136<>0,INDEX('2.2 Daten'!I$9:I$860,MATCH('2.2'!$A136,'2.2 Daten'!$B$9:$B$860,0))) -> 2372 | H136: =IF($A136<>0,INDEX('2.2 Daten'!K$9:K$860,MATCH('2.2'!$A136,'2.2 Daten'!$B$9:$B$860,0))) -> 0.5930606363 | I136: =IF($A136<>0,INDEX('2.2 Daten'!L$9:L$860,MATCH('2.2'!$A136,'2.2 Daten'!$B$9:$B$860,0))) -> 1.150781942 | J136: =IF($A136<>0,INDEX('2.2 Daten'!M$9:M$860,MATCH('2.2'!$A136,'2.2 Daten'!$B$9:$B$860,0))) -> 2.167938931 | K136: =IF($A136<>0,INDEX('2.2 Daten'!N$9:N$860,MATCH('2.2'!$A136,'2.2 Daten'!$B$9:$B$860,0))) -> 1.214165261 | L136: =IF($A136<>0,INDEX('2.2 Daten'!O$9:O$860,MATCH('2.2'!$A136,'2.2 Daten'!$B$9:$B$860,0))) -> -4.470398711
A137: =CHOOSE('2.2 Daten'!$A$2,'2.2 Daten'!B559,'2.2 Daten'!B108,'2.2 Daten'!B125,'2.2 Daten'!B142,'2.2 Daten'!B145,'2.2 Daten'!B192,'2.2 Daten'!B196,'2.2 Daten'!B251,'2.2 Daten'!B279,'2.2 Daten'!B317,'2.2 Daten'!B363,'2.2 Daten'!B461,'2.2 Daten'!B469,'2.2 Daten'!B472,'2.2 Daten'!B492,'2.2 Daten'!B502,'2.2 Daten'!B517,'2.2 Daten'!B533,x) -> Kleve | B137: =IF($A137<>0,INDEX('2.2 Daten'!C$9:C$860,MATCH('2.2'!$A137,'2.2 Daten'!$B$9:$B$860,0))," ") -> 5154000 | C137: =IF($A137<>0,INDEX('2.2 Daten'!E$9:E$860,MATCH('2.2'!$A137,'2.2 Daten'!$B$9:$B$860,0))) -> 6186 | D137: =IF($A137<>0,INDEX('2.2 Daten'!F$9:F$860,MATCH('2.2'!$A137,'2.2 Daten'!$B$9:$B$860,0))) -> 1199 | E137: =IF($A137<>0,INDEX('2.2 Daten'!G$9:G$860,MATCH('2.2'!$A137,'2.2 Daten'!$B$9:$B$860,0))) -> 1132 | F137: =IF($A137<>0,INDEX('2.2 Daten'!H$9:H$860,MATCH('2.2'!$A137,'2.2 Daten'!$B$9:$B$860,0))) -> 3058 | G137: =IF($A137<>0,INDEX('2.2 Daten'!I$9:I$860,MATCH('2.2'!$A137,'2.2 Daten'!$B$9:$B$860,0))) -> 797 | H137: =IF($A137<>0,INDEX('2.2 Daten'!K$9:K$860,MATCH('2.2'!$A137,'2.2 Daten'!$B$9:$B$860,0))) -> -6.612318841 | I137: =IF($A137<>0,INDEX('2.2 Daten'!L$9:L$860,MATCH('2.2'!$A137,'2.2 Daten'!$B$9:$B$860,0))) -> -8.751902588 | J137: =IF($A137<>0,INDEX('2.2 Daten'!M$9:M$860,MATCH('2.2'!$A137,'2.2 Daten'!$B$9:$B$860,0))) -> -5.033557047 | K137: =IF($A137<>0,INDEX('2.2 Daten'!N$9:N$860,MATCH('2.2'!$A137,'2.2 Daten'!$B$9:$B$860,0))) -> -4.407627384 | L137: =IF($A137<>0,INDEX('2.2 Daten'!O$9:O$860,MATCH('2.2'!$A137,'2.2 Daten'!$B$9:$B$860,0))) -> -13.27529924
A138: =CHOOSE('2.2 Daten'!$A$2,'2.2 Daten'!B560,'2.2 Daten'!B109,'2.2 Daten'!B126,'2.2 Daten'!B143,'2.2 Daten'!B146,'2.2 Daten'!B193,'2.2 Daten'!B197,'2.2 Daten'!B252,'2.2 Daten'!B280,'2.2 Daten'!B318,'2.2 Daten'!B364,'2.2 Daten'!B462,'2.2 Daten'!B470,'2.2 Daten'!B473,'2.2 Daten'!B493,'2.2 Daten'!B503,'2.2 Daten'!B518,'2.2 Daten'!B534,x) -> Mettmann | B138: =IF($A138<>0,INDEX('2.2 Daten'!C$9:C$860,MATCH('2.2'!$A138,'2.2 Daten'!$B$9:$B$860,0))," ") -> 5158000 | C138: =IF($A138<>0,INDEX('2.2 Daten'!E$9:E$860,MATCH('2.2'!$A138,'2.2 Daten'!$B$9:$B$860,0))) -> 12767 | D138: =IF($A138<>0,INDEX('2.2 Daten'!F$9:F$860,MATCH('2.2'!$A138,'2.2 Daten'!$B$9:$B$860,0))) -> 2419 | E138: =IF($A138<>0,INDEX('2.2 Daten'!G$9:G$860,MATCH('2.2'!$A138,'2.2 Daten'!$B$9:$B$860,0))) -> 2321 | F138: =IF($A138<>0,INDEX('2.2 Daten'!H$9:H$860,MATCH('2.2'!$A138,'2.2 Daten'!$B$9:$B$860,0))) -> 6254 | G138: =IF($A138<>0,INDEX('2.2 Daten'!I$9:I$860,MATCH('2.2'!$A138,'2.2 Daten'!$B$9:$B$860,0))) -> 1773 | H138: =IF($A138<>0,INDEX('2.2 Daten'!K$9:K$860,MATCH('2.2'!$A138,'2.2 Daten'!$B$9:$B$860,0))) -> -2.191067188 | I138: =IF($A138<>0,INDEX('2.2 Daten'!L$9:L$860,MATCH('2.2'!$A138,'2.2 Daten'!$B$9:$B$860,0))) -> -1.905920519 | J138: =IF($A138<>0,INDEX('2.2 Daten'!M$9:M$860,MATCH('2.2'!$A138,'2.2 Daten'!$B$9:$B$860,0))) -> -1.569126378 | K138: =IF($A138<>0,INDEX('2.2 Daten'!N$9:N$860,MATCH('2.2'!$A138,'2.2 Daten'!$B$9:$B$860,0))) -> -1.790201005 | L138: =IF($A138<>0,INDEX('2.2 Daten'!O$9:O$860,MATCH('2.2'!$A138,'2.2 Daten'!$B$9:$B$860,0))) -> -4.728640516
A139: =CHOOSE('2.2 Daten'!$A$2,'2.2 Daten'!B561,'2.2 Daten'!B110,'2.2 Daten'!B127,'2.2 Daten'!B144,'2.2 Daten'!B147,'2.2 Daten'!B194,'2.2 Daten'!B198,'2.2 Daten'!B253,'2.2 Daten'!B281,'2.2 Daten'!B319,'2.2 Daten'!B365,'2.2 Daten'!B463,'2.2 Daten'!B471,'2.2 Daten'!B474,'2.2 Daten'!B494,'2.2 Daten'!B504,'2.2 Daten'!B519,'2.2 Daten'!B535,x) -> Rhein-Kreis Neuss | B139: =IF($A139<>0,INDEX('2.2 Daten'!C$9:C$860,MATCH('2.2'!$A139,'2.2 Daten'!$B$9:$B$860,0))," ") -> 5162000 | C139: =IF($A139<>0,INDEX('2.2 Daten'!E$9:E$860,MATCH('2.2'!$A139,'2.2 Daten'!$B$9:$B$860,0))) -> 10949 | D139: =IF($A139<>0,INDEX('2.2 Daten'!F$9:F$860,MATCH('2.2'!$A139,'2.2 Daten'!$B$9:$B$860,0))) -> 2093 | E139: =IF($A139<>0,INDEX('2.2 Daten'!G$9:G$860,MATCH('2.2'!$A139,'2.2 Daten'!$B$9:$B$860,0))) -> 2054 | F139: =IF($A139<>0,INDEX('2.2 Daten'!H$9:H$860,MATCH('2.2'!$A139,'2.2 Daten'!$B$9:$B$860,0))) -> 5372 | G139: =IF($A139<>0,INDEX('2.2 Daten'!I$9:I$860,MATCH('2.2'!$A139,'2.2 Daten'!$B$9:$B$860,0))) -> 1430 | H139: =IF($A139<>0,INDEX('2.2 Daten'!K$9:K$860,MATCH('2.2'!$A139,'2.2 Daten'!$B$9:$B$860,0))) -> -1.696893518 | I139: =IF($A139<>0,INDEX('2.2 Daten'!L$9:L$860,MATCH('2.2'!$A139,'2.2 Daten'!$B$9:$B$860,0))) -> -2.69642027 | J139: =IF($A139<>0,INDEX('2.2 Daten'!M$9:M$860,MATCH('2.2'!$A139,'2.2 Daten'!$B$9:$B$860,0))) -> 0.5876591577 | K139: =IF($A139<>0,INDEX('2.2 Daten'!N$9:N$860,MATCH('2.2'!$A139,'2.2 Daten'!$B$9:$B$860,0))) -> -1.809541217 | L139: =IF($A139<>0,INDEX('2.2 Daten'!O$9:O$860,MATCH('2.2'!$A139,'2.2 Daten'!$B$9:$B$860,0))) -> -2.985074627
A140: =CHOOSE('2.2 Daten'!$A$2,'2.2 Daten'!B562,'2.2 Daten'!B111,'2.2 Daten'!B128,'2.2 Daten'!B145,'2.2 Daten'!B148,'2.2 Daten'!B195,'2.2 Daten'!B199,'2.2 Daten'!B254,'2.2 Daten'!B282,'2.2 Daten'!B320,'2.2 Daten'!B366,'2.2 Daten'!B464,'2.2 Daten'!B472,'2.2 Daten'!B475,'2.2 Daten'!B495,'2.2 Daten'!B505,'2.2 Daten'!B520,'2.2 Daten'!B536,x) -> Viersen | B140: =IF($A140<>0,INDEX('2.2 Daten'!C$9:C$860,MATCH('2.2'!$A140,'2.2 Daten'!$B$9:$B$860,0))," ") -> 5166000 | C140: =IF($A140<>0,INDEX('2.2 Daten'!E$9:E$860,MATCH('2.2'!$A140,'2.2 Daten'!$B$9:$B$860,0))) -> 6332 | D140: =IF($A140<>0,INDEX('2.2 Daten'!F$9:F$860,MATCH('2.2'!$A140,'2.2 Daten'!$B$9:$B$860,0))) -> 1138 | E140: =IF($A140<>0,INDEX('2.2 Daten'!G$9:G$860,MATCH('2.2'!$A140,'2.2 Daten'!$B$9:$B$860,0))) -> 1149 | F140: =IF($A140<>0,INDEX('2.2 Daten'!H$9:H$860,MATCH('2.2'!$A140,'2.2 Daten'!$B$9:$B$860,0))) -> 3158 | G140: =IF($A140<>0,INDEX('2.2 Daten'!I$9:I$860,MATCH('2.2'!$A140,'2.2 Daten'!$B$9:$B$860,0))) -> 887 | H140: =IF($A140<>0,INDEX('2.2 Daten'!K$9:K$860,MATCH('2.2'!$A140,'2.2 Daten'!$B$9:$B$860,0))) -> -5.591173401 | I140: =IF($A140<>0,INDEX('2.2 Daten'!L$9:L$860,MATCH('2.2'!$A140,'2.2 Daten'!$B$9:$B$860,0))) -> -2.983802217 | J140: =IF($A140<>0,INDEX('2.2 Daten'!M$9:M$860,MATCH('2.2'!$A140,'2.2 Daten'!$B$9:$B$860,0))) -> -4.329725229 | K140: =IF($A140<>0,INDEX('2.2 Daten'!N$9:N$860,MATCH('2.2'!$A140,'2.2 Daten'!$B$9:$B$860,0))) -> -6.401896858 | L140: =IF($A140<>0,INDEX('2.2 Daten'!O$9:O$860,MATCH('2.2'!$A140,'2.2 Daten'!$B$9:$B$860,0))) -> -7.507820647
A141: =CHOOSE('2.2 Daten'!$A$2,'2.2 Daten'!B563,'2.2 Daten'!B112,'2.2 Daten'!B129,'2.2 Daten'!B146,'2.2 Daten'!B149,'2.2 Daten'!B196,'2.2 Daten'!B200,'2.2 Daten'!B255,'2.2 Daten'!B283,'2.2 Daten'!B321,'2.2 Daten'!B367,'2.2 Daten'!B465,'2.2 Daten'!B473,'2.2 Daten'!B476,'2.2 Daten'!B496,'2.2 Daten'!B506,'2.2 Daten'!B521,'2.2 Daten'!B537,x) -> Wesel | B141: =IF($A141<>0,INDEX('2.2 Daten'!C$9:C$860,MATCH('2.2'!$A141,'2.2 Daten'!$B$9:$B$860,0))," ") -> 5170000 | C141: =IF($A141<>0,INDEX('2.2 Daten'!E$9:E$860,MATCH('2.2'!$A141,'2.2 Daten'!$B$9:$B$860,0))) -> 11544 | D141: =IF($A141<>0,INDEX('2.2 Daten'!F$9:F$860,MATCH('2.2'!$A141,'2.2 Daten'!$B$9:$B$860,0))) -> 2066 | E141: =IF($A141<>0,INDEX('2.2 Daten'!G$9:G$860,MATCH('2.2'!$A141,'2.2 Daten'!$B$9:$B$860,0))) -> 2086 | F141: =IF($A141<>0,INDEX('2.2 Daten'!H$9:H$860,MATCH('2.2'!$A141,'2.2 Daten'!$B$9:$B$860,0))) -> 5727 | G141: =IF($A141<>0,INDEX('2.2 Daten'!I$9:I$860,MATCH('2.2'!$A141,'2.2 Daten'!$B$9:$B$860,0))) -> 1665 | H141: =IF($A141<>0,INDEX('2.2 Daten'!K$9:K$860,MATCH('2.2'!$A141,'2.2 Daten'!$B$9:$B$860,0))) -> -3.542780749 | I141: =IF($A141<>0,INDEX('2.2 Daten'!L$9:L$860,MATCH('2.2'!$A141,'2.2 Daten'!$B$9:$B$860,0))) -> -6.005459509 | J141: =IF($A141<>0,INDEX('2.2 Daten'!M$9:M$860,MATCH('2.2'!$A141,'2.2 Daten'!$B$9:$B$860,0))) -> -5.310939628 | K141: =IF($A141<>0,INDEX('2.2 Daten'!N$9:N$860,MATCH('2.2'!$A141,'2.2 Daten'!$B$9:$B$860,0))) -> -2.651708312 | L141: =IF($A141<>0,INDEX('2.2 Daten'!O$9:O$860,MATCH('2.2'!$A141,'2.2 Daten'!$B$9:$B$860,0))) -> -1.128266033
A142: =CHOOSE('2.2 Daten'!$A$2,'2.2 Daten'!B564,'2.2 Daten'!B113,'2.2 Daten'!B130,'2.2 Daten'!B147,'2.2 Daten'!B150,'2.2 Daten'!B197,'2.2 Daten'!B201,'2.2 Daten'!B256,'2.2 Daten'!B284,'2.2 Daten'!B322,'2.2 Daten'!B368,'2.2 Daten'!B466,'2.2 Daten'!B474,'2.2 Daten'!B477,'2.2 Daten'!B497,'2.2 Daten'!B507,'2.2 Daten'!B522,'2.2 Daten'!B538,x) -> Bonn, Stadt | B142: =IF($A142<>0,INDEX('2.2 Daten'!C$9:C$860,MATCH('2.2'!$A142,'2.2 Daten'!$B$9:$B$860,0))," ") -> 5314000 | C142: =IF($A142<>0,INDEX('2.2 Daten'!E$9:E$860,MATCH('2.2'!$A142,'2.2 Daten'!$B$9:$B$860,0))) -> 11578 | D142: =IF($A142<>0,INDEX('2.2 Daten'!F$9:F$860,MATCH('2.2'!$A142,'2.2 Daten'!$B$9:$B$860,0))) -> 2004 | E142: =IF($A142<>0,INDEX('2.2 Daten'!G$9:G$860,MATCH('2.2'!$A142,'2.2 Daten'!$B$9:$B$860,0))) -> 2035 | F142: =IF($A142<>0,INDEX('2.2 Daten'!H$9:H$860,MATCH('2.2'!$A142,'2.2 Daten'!$B$9:$B$860,0))) -> 5914 | G142: =IF($A142<>0,INDEX('2.2 Daten'!I$9:I$860,MATCH('2.2'!$A142,'2.2 Daten'!$B$9:$B$860,0))) -> 1625 | H142: =IF($A142<>0,INDEX('2.2 Daten'!K$9:K$860,MATCH('2.2'!$A142,'2.2 Daten'!$B$9:$B$860,0))) -> -0.5070035232 | I142: =IF($A142<>0,INDEX('2.2 Daten'!L$9:L$860,MATCH('2.2'!$A142,'2.2 Daten'!$B$9:$B$860,0))) -> -2.906976744 | J142: =IF($A142<>0,INDEX('2.2 Daten'!M$9:M$860,MATCH('2.2'!$A142,'2.2 Daten'!$B$9:$B$860,0))) -> 1.042701092 | K142: =IF($A142<>0,INDEX('2.2 Daten'!N$9:N$860,MATCH('2.2'!$A142,'2.2 Daten'!$B$9:$B$860,0))) -> -0.3370407819 | L142: =IF($A142<>0,INDEX('2.2 Daten'!O$9:O$860,MATCH('2.2'!$A142,'2.2 Daten'!$B$9:$B$860,0))) -> 0
A143: =CHOOSE('2.2 Daten'!$A$2,'2.2 Daten'!B565,'2.2 Daten'!B114,'2.2 Daten'!B131,'2.2 Daten'!B148,'2.2 Daten'!B151,'2.2 Daten'!B198,'2.2 Daten'!B202,'2.2 Daten'!B257,'2.2 Daten'!B285,'2.2 Daten'!B323,'2.2 Daten'!B369,'2.2 Daten'!B467,'2.2 Daten'!B475,'2.2 Daten'!B478,'2.2 Daten'!B498,'2.2 Daten'!B508,'2.2 Daten'!B523,'2.2 Daten'!B539,x) -> Köln, Stadt | B143: =IF($A143<>0,INDEX('2.2 Daten'!C$9:C$860,MATCH('2.2'!$A143,'2.2 Daten'!$B$9:$B$860,0))," ") -> 5315000 | C143: =IF($A143<>0,INDEX('2.2 Daten'!E$9:E$860,MATCH('2.2'!$A143,'2.2 Daten'!$B$9:$B$860,0))) -> 38265 | D143: =IF($A143<>0,INDEX('2.2 Daten'!F$9:F$860,MATCH('2.2'!$A143,'2.2 Daten'!$B$9:$B$860,0))) -> 6792 | E143: =IF($A143<>0,INDEX('2.2 Daten'!G$9:G$860,MATCH('2.2'!$A143,'2.2 Daten'!$B$9:$B$860,0))) -> 6898 | F143: =IF($A143<>0,INDEX('2.2 Daten'!H$9:H$860,MATCH('2.2'!$A143,'2.2 Daten'!$B$9:$B$860,0))) -> 19217 | G143: =IF($A143<>0,INDEX('2.2 Daten'!I$9:I$860,MATCH('2.2'!$A143,'2.2 Daten'!$B$9:$B$860,0))) -> 5358 | H143: =IF($A143<>0,INDEX('2.2 Daten'!K$9:K$860,MATCH('2.2'!$A143,'2.2 Daten'!$B$9:$B$860,0))) -> -1.172550944 | I143: =IF($A143<>0,INDEX('2.2 Daten'!L$9:L$860,MATCH('2.2'!$A143,'2.2 Daten'!$B$9:$B$860,0))) -> -3.192702395 | J143: =IF($A143<>0,INDEX('2.2 Daten'!M$9:M$860,MATCH('2.2'!$A143,'2.2 Daten'!$B$9:$B$860,0))) -> -0.4473950065 | K143: =IF($A143<>0,INDEX('2.2 Daten'!N$9:N$860,MATCH('2.2'!$A143,'2.2 Daten'!$B$9:$B$860,0))) -> -0.6308495786 | L143: =IF($A143<>0,INDEX('2.2 Daten'!O$9:O$860,MATCH('2.2'!$A143,'2.2 Daten'!$B$9:$B$860,0))) -> -1.41674333
A144: =CHOOSE('2.2 Daten'!$A$2,'2.2 Daten'!B566,'2.2 Daten'!B115,'2.2 Daten'!B132,'2.2 Daten'!B149,'2.2 Daten'!B152,'2.2 Daten'!B199,'2.2 Daten'!B203,'2.2 Daten'!B258,'2.2 Daten'!B286,'2.2 Daten'!B324,'2.2 Daten'!B370,'2.2 Daten'!B468,'2.2 Daten'!B476,'2.2 Daten'!B479,'2.2 Daten'!B499,'2.2 Daten'!B509,'2.2 Daten'!B524,'2.2 Daten'!B540,x) -> Leverkusen, Stadt | B144: =IF($A144<>0,INDEX('2.2 Daten'!C$9:C$860,MATCH('2.2'!$A144,'2.2 Daten'!$B$9:$B$860,0))," ") -> 5316000 | C144: =IF($A144<>0,INDEX('2.2 Daten'!E$9:E$860,MATCH('2.2'!$A144,'2.2 Daten'!$B$9:$B$860,0))) -> 6353 | D144: =IF($A144<>0,INDEX('2.2 Daten'!F$9:F$860,MATCH('2.2'!$A144,'2.2 Daten'!$B$9:$B$860,0))) -> 1228 | E144: =IF($A144<>0,INDEX('2.2 Daten'!G$9:G$860,MATCH('2.2'!$A144,'2.2 Daten'!$B$9:$B$860,0))) -> 1190 | F144: =IF($A144<>0,INDEX('2.2 Daten'!H$9:H$860,MATCH('2.2'!$A144,'2.2 Daten'!$B$9:$B$860,0))) -> 3088 | G144: =IF($A144<>0,INDEX('2.2 Daten'!I$9:I$860,MATCH('2.2'!$A144,'2.2 Daten'!$B$9:$B$860,0))) -> 847 | H144: =IF($A144<>0,INDEX('2.2 Daten'!K$9:K$860,MATCH('2.2'!$A144,'2.2 Daten'!$B$9:$B$860,0))) -> 2.039832959 | I144: =IF($A144<>0,INDEX('2.2 Daten'!L$9:L$860,MATCH('2.2'!$A144,'2.2 Daten'!$B$9:$B$860,0))) -> 6.044905009 | J144: =IF($A144<>0,INDEX('2.2 Daten'!M$9:M$860,MATCH('2.2'!$A144,'2.2 Daten'!$B$9:$B$860,0))) -> -0.1677852349 | K144: =IF($A144<>0,INDEX('2.2 Daten'!N$9:N$860,MATCH('2.2'!$A144,'2.2 Daten'!$B$9:$B$860,0))) -> 1.813386086 | L144: =IF($A144<>0,INDEX('2.2 Daten'!O$9:O$860,MATCH('2.2'!$A144,'2.2 Daten'!$B$9:$B$860,0))) -> 0.4744958482
A145: =CHOOSE('2.2 Daten'!$A$2,'2.2 Daten'!B567,'2.2 Daten'!B116,'2.2 Daten'!B133,'2.2 Daten'!B150,'2.2 Daten'!B153,'2.2 Daten'!B200,'2.2 Daten'!B204,'2.2 Daten'!B259,'2.2 Daten'!B287,'2.2 Daten'!B325,'2.2 Daten'!B371,'2.2 Daten'!B469,'2.2 Daten'!B477,'2.2 Daten'!B480,'2.2 Daten'!B500,'2.2 Daten'!B510,'2.2 Daten'!B525,'2.2 Daten'!B541,x) -> Städteregion Aachen | B145: =IF($A145<>0,INDEX('2.2 Daten'!C$9:C$860,MATCH('2.2'!$A145,'2.2 Daten'!$B$9:$B$860,0))," ") -> 5334000 | C145: =IF($A145<>0,INDEX('2.2 Daten'!E$9:E$860,MATCH('2.2'!$A145,'2.2 Daten'!$B$9:$B$860,0))) -> 16592 | D145: =IF($A145<>0,INDEX('2.2 Daten'!F$9:F$860,MATCH('2.2'!$A145,'2.2 Daten'!$B$9:$B$860,0))) -> 3068 | E145: =IF($A145<>0,INDEX('2.2 Daten'!G$9:G$860,MATCH('2.2'!$A145,'2.2 Daten'!$B$9:$B$860,0))) -> 3028 | F145: =IF($A145<>0,INDEX('2.2 Daten'!H$9:H$860,MATCH('2.2'!$A145,'2.2 Daten'!$B$9:$B$860,0))) -> 8240 | G145: =IF($A145<>0,INDEX('2.2 Daten'!I$9:I$860,MATCH('2.2'!$A145,'2.2 Daten'!$B$9:$B$860,0))) -> 2256 | H145: =IF($A145<>0,INDEX('2.2 Daten'!K$9:K$860,MATCH('2.2'!$A145,'2.2 Daten'!$B$9:$B$860,0))) -> -3.736365746 | I145: =IF($A145<>0,INDEX('2.2 Daten'!L$9:L$860,MATCH('2.2'!$A145,'2.2 Daten'!$B$9:$B$860,0))) -> -7.562518831 | J145: =IF($A145<>0,INDEX('2.2 Daten'!M$9:M$860,MATCH('2.2'!$A145,'2.2 Daten'!$B$9:$B$860,0))) -> -1.174934726 | K145: =IF($A145<>0,INDEX('2.2 Daten'!N$9:N$860,MATCH('2.2'!$A145,'2.2 Daten'!$B$9:$B$860,0))) -> -2.818728624 | L145: =IF($A145<>0,INDEX('2.2 Daten'!O$9:O$860,MATCH('2.2'!$A145,'2.2 Daten'!$B$9:$B$860,0))) -> -4.970513901
A146: =CHOOSE('2.2 Daten'!$A$2,'2.2 Daten'!B568,'2.2 Daten'!B117,'2.2 Daten'!B134,'2.2 Daten'!B151,'2.2 Daten'!B154,'2.2 Daten'!B201,'2.2 Daten'!B205,'2.2 Daten'!B260,'2.2 Daten'!B288,'2.2 Daten'!B326,'2.2 Daten'!B372,'2.2 Daten'!B470,'2.2 Daten'!B478,'2.2 Daten'!B481,'2.2 Daten'!B501,'2.2 Daten'!B511,'2.2 Daten'!B526,'2.2 Daten'!B542,x) -> Düren | B146: =IF($A146<>0,INDEX('2.2 Daten'!C$9:C$860,MATCH('2.2'!$A146,'2.2 Daten'!$B$9:$B$860,0))," ") -> 5358000 | C146: =IF($A146<>0,INDEX('2.2 Daten'!E$9:E$860,MATCH('2.2'!$A146,'2.2 Daten'!$B$9:$B$860,0))) -> 7710 | D146: =IF($A146<>0,INDEX('2.2 Daten'!F$9:F$860,MATCH('2.2'!$A146,'2.2 Daten'!$B$9:$B$860,0))) -> 1471 | E146: =IF($A146<>0,INDEX('2.2 Daten'!G$9:G$860,MATCH('2.2'!$A146,'2.2 Daten'!$B$9:$B$860,0))) -> 1435 | F146: =IF($A146<>0,INDEX('2.2 Daten'!H$9:H$860,MATCH('2.2'!$A146,'2.2 Daten'!$B$9:$B$860,0))) -> 3776 | G146: =IF($A146<>0,INDEX('2.2 Daten'!I$9:I$860,MATCH('2.2'!$A146,'2.2 Daten'!$B$9:$B$860,0))) -> 1028 | H146: =IF($A146<>0,INDEX('2.2 Daten'!K$9:K$860,MATCH('2.2'!$A146,'2.2 Daten'!$B$9:$B$860,0))) -> -1.255122951 | I146: =IF($A146<>0,INDEX('2.2 Daten'!L$9:L$860,MATCH('2.2'!$A146,'2.2 Daten'!$B$9:$B$860,0))) -> 0.5468215995 | J146: =IF($A146<>0,INDEX('2.2 Daten'!M$9:M$860,MATCH('2.2'!$A146,'2.2 Daten'!$B$9:$B$860,0))) -> 2.646638054 | K146: =IF($A146<>0,INDEX('2.2 Daten'!N$9:N$860,MATCH('2.2'!$A146,'2.2 Daten'!$B$9:$B$860,0))) -> -2.479338843 | L146: =IF($A146<>0,INDEX('2.2 Daten'!O$9:O$860,MATCH('2.2'!$A146,'2.2 Daten'!$B$9:$B$860,0))) -> -4.372093023
A147: =CHOOSE('2.2 Daten'!$A$2,'2.2 Daten'!B569,'2.2 Daten'!B118,'2.2 Daten'!B135,'2.2 Daten'!B152,'2.2 Daten'!B155,'2.2 Daten'!B202,'2.2 Daten'!B206,'2.2 Daten'!B261,'2.2 Daten'!B289,'2.2 Daten'!B327,'2.2 Daten'!B373,'2.2 Daten'!B471,'2.2 Daten'!B479,'2.2 Daten'!B482,'2.2 Daten'!B502,'2.2 Daten'!B512,'2.2 Daten'!B527,'2.2 Daten'!B543,x) -> Rhein-Erft-Kreis | B147: =IF($A147<>0,INDEX('2.2 Daten'!C$9:C$860,MATCH('2.2'!$A147,'2.2 Daten'!$B$9:$B$860,0))," ") -> 5362000 | C147: =IF($A147<>0,INDEX('2.2 Daten'!E$9:E$860,MATCH('2.2'!$A147,'2.2 Daten'!$B$9:$B$860,0))) -> 12537 | D147: =IF($A147<>0,INDEX('2.2 Daten'!F$9:F$860,MATCH('2.2'!$A147,'2.2 Daten'!$B$9:$B$860,0))) -> 2346 | E147: =IF($A147<>0,INDEX('2.2 Daten'!G$9:G$860,MATCH('2.2'!$A147,'2.2 Daten'!$B$9:$B$860,0))) -> 2286 | F147: =IF($A147<>0,INDEX('2.2 Daten'!H$9:H$860,MATCH('2.2'!$A147,'2.2 Daten'!$B$9:$B$860,0))) -> 6163 | G147: =IF($A147<>0,INDEX('2.2 Daten'!I$9:I$860,MATCH('2.2'!$A147,'2.2 Daten'!$B$9:$B$860,0))) -> 1742 | H147: =IF($A147<>0,INDEX('2.2 Daten'!K$9:K$860,MATCH('2.2'!$A147,'2.2 Daten'!$B$9:$B$860,0))) -> -3.606027987 | I147: =IF($A147<>0,INDEX('2.2 Daten'!L$9:L$860,MATCH('2.2'!$A147,'2.2 Daten'!$B$9:$B$860,0))) -> -2.005012531 | J147: =IF($A147<>0,INDEX('2.2 Daten'!M$9:M$860,MATCH('2.2'!$A147,'2.2 Daten'!$B$9:$B$860,0))) -> -0.3921568627 | K147: =IF($A147<>0,INDEX('2.2 Daten'!N$9:N$860,MATCH('2.2'!$A147,'2.2 Daten'!$B$9:$B$860,0))) -> -5.576834687 | L147: =IF($A147<>0,INDEX('2.2 Daten'!O$9:O$860,MATCH('2.2'!$A147,'2.2 Daten'!$B$9:$B$860,0))) -> -2.681564246
A148: =CHOOSE('2.2 Daten'!$A$2,'2.2 Daten'!B570,'2.2 Daten'!B119,'2.2 Daten'!B136,'2.2 Daten'!B153,'2.2 Daten'!B156,'2.2 Daten'!B203,'2.2 Daten'!B207,'2.2 Daten'!B262,'2.2 Daten'!B290,'2.2 Daten'!B328,'2.2 Daten'!B374,'2.2 Daten'!B472,'2.2 Daten'!B480,'2.2 Daten'!B483,'2.2 Daten'!B503,'2.2 Daten'!B513,'2.2 Daten'!B528,'2.2 Daten'!B544,x) -> Euskirchen | B148: =IF($A148<>0,INDEX('2.2 Daten'!C$9:C$860,MATCH('2.2'!$A148,'2.2 Daten'!$B$9:$B$860,0))," ") -> 5366000 | C148: =IF($A148<>0,INDEX('2.2 Daten'!E$9:E$860,MATCH('2.2'!$A148,'2.2 Daten'!$B$9:$B$860,0))) -> 4104 | D148: =IF($A148<>0,INDEX('2.2 Daten'!F$9:F$860,MATCH('2.2'!$A148,'2.2 Daten'!$B$9:$B$860,0))) -> 812 | E148: =IF($A148<>0,INDEX('2.2 Daten'!G$9:G$860,MATCH('2.2'!$A148,'2.2 Daten'!$B$9:$B$860,0))) -> 792 | F148: =IF($A148<>0,INDEX('2.2 Daten'!H$9:H$860,MATCH('2.2'!$A148,'2.2 Daten'!$B$9:$B$860,0))) -> 1981 | G148: =IF($A148<>0,INDEX('2.2 Daten'!I$9:I$860,MATCH('2.2'!$A148,'2.2 Daten'!$B$9:$B$860,0))) -> 519 | H148: =IF($A148<>0,INDEX('2.2 Daten'!K$9:K$860,MATCH('2.2'!$A148,'2.2 Daten'!$B$9:$B$860,0))) -> -2.075876879 | I148: =IF($A148<>0,INDEX('2.2 Daten'!L$9:L$860,MATCH('2.2'!$A148,'2.2 Daten'!$B$9:$B$860,0))) -> -2.637889688 | J148: =IF($A148<>0,INDEX('2.2 Daten'!M$9:M$860,MATCH('2.2'!$A148,'2.2 Daten'!$B$9:$B$860,0))) -> -0.8760951189 | K148: =IF($A148<>0,INDEX('2.2 Daten'!N$9:N$860,MATCH('2.2'!$A148,'2.2 Daten'!$B$9:$B$860,0))) -> -0.9995002499 | L148: =IF($A148<>0,INDEX('2.2 Daten'!O$9:O$860,MATCH('2.2'!$A148,'2.2 Daten'!$B$9:$B$860,0))) -> -6.822262118
A149: =CHOOSE('2.2 Daten'!$A$2,'2.2 Daten'!B571,'2.2 Daten'!B120,'2.2 Daten'!B137,'2.2 Daten'!B154,'2.2 Daten'!B157,'2.2 Daten'!B204,'2.2 Daten'!B208,'2.2 Daten'!B263,'2.2 Daten'!B291,'2.2 Daten'!B329,'2.2 Daten'!B375,'2.2 Daten'!B473,'2.2 Daten'!B481,'2.2 Daten'!B484,'2.2 Daten'!B504,'2.2 Daten'!B514,'2.2 Daten'!B529,'2.2 Daten'!B545,x) -> Heinsberg | B149: =IF($A149<>0,INDEX('2.2 Daten'!C$9:C$860,MATCH('2.2'!$A149,'2.2 Daten'!$B$9:$B$860,0))," ") -> 5370000 | C149: =IF($A149<>0,INDEX('2.2 Daten'!E$9:E$860,MATCH('2.2'!$A149,'2.2 Daten'!$B$9:$B$860,0))) -> 5908 | D149: =IF($A149<>0,INDEX('2.2 Daten'!F$9:F$860,MATCH('2.2'!$A149,'2.2 Daten'!$B$9:$B$860,0))) -> 1077 | E149: =IF($A149<>0,INDEX('2.2 Daten'!G$9:G$860,MATCH('2.2'!$A149,'2.2 Daten'!$B$9:$B$860,0))) -> 1043 | F149: =IF($A149<>0,INDEX('2.2 Daten'!H$9:H$860,MATCH('2.2'!$A149,'2.2 Daten'!$B$9:$B$860,0))) -> 3038 | G149: =IF($A149<>0,INDEX('2.2 Daten'!I$9:I$860,MATCH('2.2'!$A149,'2.2 Daten'!$B$9:$B$860,0))) -> 750 | H149: =IF($A149<>0,INDEX('2.2 Daten'!K$9:K$860,MATCH('2.2'!$A149,'2.2 Daten'!$B$9:$B$860,0))) -> -2.185430464 | I149: =IF($A149<>0,INDEX('2.2 Daten'!L$9:L$860,MATCH('2.2'!$A149,'2.2 Daten'!$B$9:$B$860,0))) -> -1.101928375 | J149: =IF($A149<>0,INDEX('2.2 Daten'!M$9:M$860,MATCH('2.2'!$A149,'2.2 Daten'!$B$9:$B$860,0))) -> -5.866425993 | K149: =IF($A149<>0,INDEX('2.2 Daten'!N$9:N$860,MATCH('2.2'!$A149,'2.2 Daten'!$B$9:$B$860,0))) -> -0.1314924392 | L149: =IF($A149<>0,INDEX('2.2 Daten'!O$9:O$860,MATCH('2.2'!$A149,'2.2 Daten'!$B$9:$B$860,0))) -> -6.367041199
A150: =CHOOSE('2.2 Daten'!$A$2,'2.2 Daten'!B572,'2.2 Daten'!B121,'2.2 Daten'!B138,'2.2 Daten'!B155,'2.2 Daten'!B158,'2.2 Daten'!B205,'2.2 Daten'!B209,'2.2 Daten'!B264,'2.2 Daten'!B292,'2.2 Daten'!B330,'2.2 Daten'!B376,'2.2 Daten'!B474,'2.2 Daten'!B482,'2.2 Daten'!B485,'2.2 Daten'!B505,'2.2 Daten'!B515,'2.2 Daten'!B530,'2.2 Daten'!B546,x) -> Oberbergischer Kreis | B150: =IF($A150<>0,INDEX('2.2 Daten'!C$9:C$860,MATCH('2.2'!$A150,'2.2 Daten'!$B$9:$B$860,0))," ") -> 5374000 | C150: =IF($A150<>0,INDEX('2.2 Daten'!E$9:E$860,MATCH('2.2'!$A150,'2.2 Daten'!$B$9:$B$860,0))) -> 4917 | D150: =IF($A150<>0,INDEX('2.2 Daten'!F$9:F$860,MATCH('2.2'!$A150,'2.2 Daten'!$B$9:$B$860,0))) -> 977 | E150: =IF($A150<>0,INDEX('2.2 Daten'!G$9:G$860,MATCH('2.2'!$A150,'2.2 Daten'!$B$9:$B$860,0))) -> 867 | F150: =IF($A150<>0,INDEX('2.2 Daten'!H$9:H$860,MATCH('2.2'!$A150,'2.2 Daten'!$B$9:$B$860,0))) -> 2421 | G150: =IF($A150<>0,INDEX('2.2 Daten'!I$9:I$860,MATCH('2.2'!$A150,'2.2 Daten'!$B$9:$B$860,0))) -> 652 | H150: =IF($A150<>0,INDEX('2.2 Daten'!K$9:K$860,MATCH('2.2'!$A150,'2.2 Daten'!$B$9:$B$860,0))) -> -4.357128963 | I150: =IF($A150<>0,INDEX('2.2 Daten'!L$9:L$860,MATCH('2.2'!$A150,'2.2 Daten'!$B$9:$B$860,0))) -> -7.481060606 | J150: =IF($A150<>0,INDEX('2.2 Daten'!M$9:M$860,MATCH('2.2'!$A150,'2.2 Daten'!$B$9:$B$860,0))) -> -3.344481605 | K150: =IF($A150<>0,INDEX('2.2 Daten'!N$9:N$860,MATCH('2.2'!$A150,'2.2 Daten'!$B$9:$B$860,0))) -> -2.221324717 | L150: =IF($A150<>0,INDEX('2.2 Daten'!O$9:O$860,MATCH('2.2'!$A150,'2.2 Daten'!$B$9:$B$860,0))) -> -8.426966292
A151: =CHOOSE('2.2 Daten'!$A$2,'2.2 Daten'!B573,'2.2 Daten'!B122,'2.2 Daten'!B139,'2.2 Daten'!B156,'2.2 Daten'!B159,'2.2 Daten'!B206,'2.2 Daten'!B210,'2.2 Daten'!B265,'2.2 Daten'!B293,'2.2 Daten'!B331,'2.2 Daten'!B377,'2.2 Daten'!B475,'2.2 Daten'!B483,'2.2 Daten'!B486,'2.2 Daten'!B506,'2.2 Daten'!B516,'2.2 Daten'!B531,'2.2 Daten'!B547,x) -> Rheinisch-Bergischer Kreis | B151: =IF($A151<>0,INDEX('2.2 Daten'!C$9:C$860,MATCH('2.2'!$A151,'2.2 Daten'!$B$9:$B$860,0))," ") -> 5378000 | C151: =IF($A151<>0,INDEX('2.2 Daten'!E$9:E$860,MATCH('2.2'!$A151,'2.2 Daten'!$B$9:$B$860,0))) -> 5735 | D151: =IF($A151<>0,INDEX('2.2 Daten'!F$9:F$860,MATCH('2.2'!$A151,'2.2 Daten'!$B$9:$B$860,0))) -> 1083 | E151: =IF($A151<>0,INDEX('2.2 Daten'!G$9:G$860,MATCH('2.2'!$A151,'2.2 Daten'!$B$9:$B$860,0))) -> 1023 | F151: =IF($A151<>0,INDEX('2.2 Daten'!H$9:H$860,MATCH('2.2'!$A151,'2.2 Daten'!$B$9:$B$860,0))) -> 2840 | G151: =IF($A151<>0,INDEX('2.2 Daten'!I$9:I$860,MATCH('2.2'!$A151,'2.2 Daten'!$B$9:$B$860,0))) -> 789 | H151: =IF($A151<>0,INDEX('2.2 Daten'!K$9:K$860,MATCH('2.2'!$A151,'2.2 Daten'!$B$9:$B$860,0))) -> -0.9156876296 | I151: =IF($A151<>0,INDEX('2.2 Daten'!L$9:L$860,MATCH('2.2'!$A151,'2.2 Daten'!$B$9:$B$860,0))) -> -1.990950226 | J151: =IF($A151<>0,INDEX('2.2 Daten'!M$9:M$860,MATCH('2.2'!$A151,'2.2 Daten'!$B$9:$B$860,0))) -> -1.063829787 | K151: =IF($A151<>0,INDEX('2.2 Daten'!N$9:N$860,MATCH('2.2'!$A151,'2.2 Daten'!$B$9:$B$860,0))) -> 0.3888299753 | L151: =IF($A151<>0,INDEX('2.2 Daten'!O$9:O$860,MATCH('2.2'!$A151,'2.2 Daten'!$B$9:$B$860,0))) -> -3.780487805
A152: =CHOOSE('2.2 Daten'!$A$2,'2.2 Daten'!B574,'2.2 Daten'!B123,'2.2 Daten'!B140,'2.2 Daten'!B157,'2.2 Daten'!B160,'2.2 Daten'!B207,'2.2 Daten'!B211,'2.2 Daten'!B266,'2.2 Daten'!B294,'2.2 Daten'!B332,'2.2 Daten'!B378,'2.2 Daten'!B476,'2.2 Daten'!B484,'2.2 Daten'!B487,'2.2 Daten'!B507,'2.2 Daten'!B517,'2.2 Daten'!B532,'2.2 Daten'!B548,x) -> Rhein-Sieg-Kreis | B152: =IF($A152<>0,INDEX('2.2 Daten'!C$9:C$860,MATCH('2.2'!$A152,'2.2 Daten'!$B$9:$B$860,0))," ") -> 5382000 | C152: =IF($A152<>0,INDEX('2.2 Daten'!E$9:E$860,MATCH('2.2'!$A152,'2.2 Daten'!$B$9:$B$860,0))) -> 12986 | D152: =IF($A152<>0,INDEX('2.2 Daten'!F$9:F$860,MATCH('2.2'!$A152,'2.2 Daten'!$B$9:$B$860,0))) -> 2349 | E152: =IF($A152<>0,INDEX('2.2 Daten'!G$9:G$860,MATCH('2.2'!$A152,'2.2 Daten'!$B$9:$B$860,0))) -> 2334 | F152: =IF($A152<>0,INDEX('2.2 Daten'!H$9:H$860,MATCH('2.2'!$A152,'2.2 Daten'!$B$9:$B$860,0))) -> 6509 | G152: =IF($A152<>0,INDEX('2.2 Daten'!I$9:I$860,MATCH('2.2'!$A152,'2.2 Daten'!$B$9:$B$860,0))) -> 1794 | H152: =IF($A152<>0,INDEX('2.2 Daten'!K$9:K$860,MATCH('2.2'!$A152,'2.2 Daten'!$B$9:$B$860,0))) -> -2.566026411 | I152: =IF($A152<>0,INDEX('2.2 Daten'!L$9:L$860,MATCH('2.2'!$A152,'2.2 Daten'!$B$9:$B$860,0))) -> -2.369077307 | J152: =IF($A152<>0,INDEX('2.2 Daten'!M$9:M$860,MATCH('2.2'!$A152,'2.2 Daten'!$B$9:$B$860,0))) -> -4.147843943 | K152: =IF($A152<>0,INDEX('2.2 Daten'!N$9:N$860,MATCH('2.2'!$A152,'2.2 Daten'!$B$9:$B$860,0))) -> -1.780594537 | L152: =IF($A152<>0,INDEX('2.2 Daten'!O$9:O$860,MATCH('2.2'!$A152,'2.2 Daten'!$B$9:$B$860,0))) -> -3.548387097
A153: =CHOOSE('2.2 Daten'!$A$2,'2.2 Daten'!B575,'2.2 Daten'!B124,'2.2 Daten'!B141,'2.2 Daten'!B158,'2.2 Daten'!B161,'2.2 Daten'!B208,'2.2 Daten'!B212,'2.2 Daten'!B267,'2.2 Daten'!B295,'2.2 Daten'!B333,'2.2 Daten'!B379,'2.2 Daten'!B477,'2.2 Daten'!B485,'2.2 Daten'!B488,'2.2 Daten'!B508,'2.2 Daten'!B518,'2.2 Daten'!B533,'2.2 Daten'!B549,x) -> Bottrop, Stadt | B153: =IF($A153<>0,INDEX('2.2 Daten'!C$9:C$860,MATCH('2.2'!$A153,'2.2 Daten'!$B$9:$B$860,0))," ") -> 5512000 | C153: =IF($A153<>0,INDEX('2.2 Daten'!E$9:E$860,MATCH('2.2'!$A153,'2.2 Daten'!$B$9:$B$860,0))) -> 4041 | D153: =IF($A153<>0,INDEX('2.2 Daten'!F$9:F$860,MATCH('2.2'!$A153,'2.2 Daten'!$B$9:$B$860,0))) -> 717 | E153: =IF($A153<>0,INDEX('2.2 Daten'!G$9:G$860,MATCH('2.2'!$A153,'2.2 Daten'!$B$9:$B$860,0))) -> 713 | F153: =IF($A153<>0,INDEX('2.2 Daten'!H$9:H$860,MATCH('2.2'!$A153,'2.2 Daten'!$B$9:$B$860,0))) -> 1999 | G153: =IF($A153<>0,INDEX('2.2 Daten'!I$9:I$860,MATCH('2.2'!$A153,'2.2 Daten'!$B$9:$B$860,0))) -> 612 | H153: =IF($A153<>0,INDEX('2.2 Daten'!K$9:K$860,MATCH('2.2'!$A153,'2.2 Daten'!$B$9:$B$860,0))) -> 0.02475247525 | I153: =IF($A153<>0,INDEX('2.2 Daten'!L$9:L$860,MATCH('2.2'!$A153,'2.2 Daten'!$B$9:$B$860,0))) -> -1.780821918 | J153: =IF($A153<>0,INDEX('2.2 Daten'!M$9:M$860,MATCH('2.2'!$A153,'2.2 Daten'!$B$9:$B$860,0))) -> 5.00736377 | K153: =IF($A153<>0,INDEX('2.2 Daten'!N$9:N$860,MATCH('2.2'!$A153,'2.2 Daten'!$B$9:$B$860,0))) -> -0.5472636816 | L153: =IF($A153<>0,INDEX('2.2 Daten'!O$9:O$860,MATCH('2.2'!$A153,'2.2 Daten'!$B$9:$B$860,0))) -> -1.449275362
A154: =CHOOSE('2.2 Daten'!$A$2,'2.2 Daten'!B576,'2.2 Daten'!B125,'2.2 Daten'!B142,'2.2 Daten'!B159,'2.2 Daten'!B162,'2.2 Daten'!B209,'2.2 Daten'!B213,'2.2 Daten'!B268,'2.2 Daten'!B296,'2.2 Daten'!B334,'2.2 Daten'!B380,'2.2 Daten'!B478,'2.2 Daten'!B486,'2.2 Daten'!B489,'2.2 Daten'!B509,'2.2 Daten'!B519,'2.2 Daten'!B534,'2.2 Daten'!B550,x) -> Gelsenkirchen, Stadt | B154: =IF($A154<>0,INDEX('2.2 Daten'!C$9:C$860,MATCH('2.2'!$A154,'2.2 Daten'!$B$9:$B$860,0))," ") -> 5513000 | C154: =IF($A154<>0,INDEX('2.2 Daten'!E$9:E$860,MATCH('2.2'!$A154,'2.2 Daten'!$B$9:$B$860,0))) -> 18998 | D154: =IF($A154<>0,INDEX('2.2 Daten'!F$9:F$860,MATCH('2.2'!$A154,'2.2 Daten'!$B$9:$B$860,0))) -> 3524 | E154: =IF($A154<>0,INDEX('2.2 Daten'!G$9:G$860,MATCH('2.2'!$A154,'2.2 Daten'!$B$9:$B$860,0))) -> 3414 | F154: =IF($A154<>0,INDEX('2.2 Daten'!H$9:H$860,MATCH('2.2'!$A154,'2.2 Daten'!$B$9:$B$860,0))) -> 9397 | G154: =IF($A154<>0,INDEX('2.2 Daten'!I$9:I$860,MATCH('2.2'!$A154,'2.2 Daten'!$B$9:$B$860,0))) -> 2663 | H154: =IF($A154<>0,INDEX('2.2 Daten'!K$9:K$860,MATCH('2.2'!$A154,'2.2 Daten'!$B$9:$B$860,0))) -> 1.588150366 | I154: =IF($A154<>0,INDEX('2.2 Daten'!L$9:L$860,MATCH('2.2'!$A154,'2.2 Daten'!$B$9:$B$860,0))) -> 2.62085032 | J154: =IF($A154<>0,INDEX('2.2 Daten'!M$9:M$860,MATCH('2.2'!$A154,'2.2 Daten'!$B$9:$B$860,0))) -> 3.990252818 | K154: =IF($A154<>0,INDEX('2.2 Daten'!N$9:N$860,MATCH('2.2'!$A154,'2.2 Daten'!$B$9:$B$860,0))) -> 1.293521613 | L154: =IF($A154<>0,INDEX('2.2 Daten'!O$9:O$860,MATCH('2.2'!$A154,'2.2 Daten'!$B$9:$B$860,0))) -> -1.625415589
A155: =CHOOSE('2.2 Daten'!$A$2,'2.2 Daten'!B577,'2.2 Daten'!B126,'2.2 Daten'!B143,'2.2 Daten'!B160,'2.2 Daten'!B163,'2.2 Daten'!B210,'2.2 Daten'!B214,'2.2 Daten'!B269,'2.2 Daten'!B297,'2.2 Daten'!B335,'2.2 Daten'!B381,'2.2 Daten'!B479,'2.2 Daten'!B487,'2.2 Daten'!B490,'2.2 Daten'!B510,'2.2 Daten'!B520,'2.2 Daten'!B535,'2.2 Daten'!B551,x) -> Münster, Stadt | B155: =IF($A155<>0,INDEX('2.2 Daten'!C$9:C$860,MATCH('2.2'!$A155,'2.2 Daten'!$B$9:$B$860,0))," ") -> 5515000 | C155: =IF($A155<>0,INDEX('2.2 Daten'!E$9:E$860,MATCH('2.2'!$A155,'2.2 Daten'!$B$9:$B$860,0))) -> 7412 | D155: =IF($A155<>0,INDEX('2.2 Daten'!F$9:F$860,MATCH('2.2'!$A155,'2.2 Daten'!$B$9:$B$860,0))) -> 1445 | E155: =IF($A155<>0,INDEX('2.2 Daten'!G$9:G$860,MATCH('2.2'!$A155,'2.2 Daten'!$B$9:$B$860,0))) -> 1361 | F155: =IF($A155<>0,INDEX('2.2 Daten'!H$9:H$860,MATCH('2.2'!$A155,'2.2 Daten'!$B$9:$B$860,0))) -> 3631 | G155: =IF($A155<>0,INDEX('2.2 Daten'!I$9:I$860,MATCH('2.2'!$A155,'2.2 Daten'!$B$9:$B$860,0))) -> 975 | H155: =IF($A155<>0,INDEX('2.2 Daten'!K$9:K$860,MATCH('2.2'!$A155,'2.2 Daten'!$B$9:$B$860,0))) -> -4.949987176 | I155: =IF($A155<>0,INDEX('2.2 Daten'!L$9:L$860,MATCH('2.2'!$A155,'2.2 Daten'!$B$9:$B$860,0))) -> -6.532988357 | J155: =IF($A155<>0,INDEX('2.2 Daten'!M$9:M$860,MATCH('2.2'!$A155,'2.2 Daten'!$B$9:$B$860,0))) -> -3.816254417 | K155: =IF($A155<>0,INDEX('2.2 Daten'!N$9:N$860,MATCH('2.2'!$A155,'2.2 Daten'!$B$9:$B$860,0))) -> -4.848008386 | L155: =IF($A155<>0,INDEX('2.2 Daten'!O$9:O$860,MATCH('2.2'!$A155,'2.2 Daten'!$B$9:$B$860,0))) -> -4.505386876
A156: =CHOOSE('2.2 Daten'!$A$2,'2.2 Daten'!B578,'2.2 Daten'!B127,'2.2 Daten'!B144,'2.2 Daten'!B161,'2.2 Daten'!B164,'2.2 Daten'!B211,'2.2 Daten'!B215,'2.2 Daten'!B270,'2.2 Daten'!B298,'2.2 Daten'!B336,'2.2 Daten'!B382,'2.2 Daten'!B480,'2.2 Daten'!B488,'2.2 Daten'!B491,'2.2 Daten'!B511,'2.2 Daten'!B521,'2.2 Daten'!B536,'2.2 Daten'!B552,x) -> Borken | B156: =IF($A156<>0,INDEX('2.2 Daten'!C$9:C$860,MATCH('2.2'!$A156,'2.2 Daten'!$B$9:$B$860,0))," ") -> 5554000 | C156: =IF($A156<>0,INDEX('2.2 Daten'!E$9:E$860,MATCH('2.2'!$A156,'2.2 Daten'!$B$9:$B$860,0))) -> 5892 | D156: =IF($A156<>0,INDEX('2.2 Daten'!F$9:F$860,MATCH('2.2'!$A156,'2.2 Daten'!$B$9:$B$860,0))) -> 1032 | E156: =IF($A156<>0,INDEX('2.2 Daten'!G$9:G$860,MATCH('2.2'!$A156,'2.2 Daten'!$B$9:$B$860,0))) -> 1081 | F156: =IF($A156<>0,INDEX('2.2 Daten'!H$9:H$860,MATCH('2.2'!$A156,'2.2 Daten'!$B$9:$B$860,0))) -> 2954 | G156: =IF($A156<>0,INDEX('2.2 Daten'!I$9:I$860,MATCH('2.2'!$A156,'2.2 Daten'!$B$9:$B$860,0))) -> 825 | H156: =IF($A156<>0,INDEX('2.2 Daten'!K$9:K$860,MATCH('2.2'!$A156,'2.2 Daten'!$B$9:$B$860,0))) -> -6.520704426 | I156: =IF($A156<>0,INDEX('2.2 Daten'!L$9:L$860,MATCH('2.2'!$A156,'2.2 Daten'!$B$9:$B$860,0))) -> -11.18760757 | J156: =IF($A156<>0,INDEX('2.2 Daten'!M$9:M$860,MATCH('2.2'!$A156,'2.2 Daten'!$B$9:$B$860,0))) -> -3.825622776 | K156: =IF($A156<>0,INDEX('2.2 Daten'!N$9:N$860,MATCH('2.2'!$A156,'2.2 Daten'!$B$9:$B$860,0))) -> -5.83359898 | L156: =IF($A156<>0,INDEX('2.2 Daten'!O$9:O$860,MATCH('2.2'!$A156,'2.2 Daten'!$B$9:$B$860,0))) -> -6.25
A157: =CHOOSE('2.2 Daten'!$A$2,'2.2 Daten'!B579,'2.2 Daten'!B128,'2.2 Daten'!B145,'2.2 Daten'!B162,'2.2 Daten'!B165,'2.2 Daten'!B212,'2.2 Daten'!B216,'2.2 Daten'!B271,'2.2 Daten'!B299,'2.2 Daten'!B337,'2.2 Daten'!B383,'2.2 Daten'!B481,'2.2 Daten'!B489,'2.2 Daten'!B492,'2.2 Daten'!B512,'2.2 Daten'!B522,'2.2 Daten'!B537,'2.2 Daten'!B553,x) -> Coesfeld | B157: =IF($A157<>0,INDEX('2.2 Daten'!C$9:C$860,MATCH('2.2'!$A157,'2.2 Daten'!$B$9:$B$860,0))," ") -> 5558000 | C157: =IF($A157<>0,INDEX('2.2 Daten'!E$9:E$860,MATCH('2.2'!$A157,'2.2 Daten'!$B$9:$B$860,0))) -> 3207 | D157: =IF($A157<>0,INDEX('2.2 Daten'!F$9:F$860,MATCH('2.2'!$A157,'2.2 Daten'!$B$9:$B$860,0))) -> 616 | E157: =IF($A157<>0,INDEX('2.2 Daten'!G$9:G$860,MATCH('2.2'!$A157,'2.2 Daten'!$B$9:$B$860,0))) -> 585 | F157: =IF($A157<>0,INDEX('2.2 Daten'!H$9:H$860,MATCH('2.2'!$A157,'2.2 Daten'!$B$9:$B$860,0))) -> 1576 | G157: =IF($A157<>0,INDEX('2.2 Daten'!I$9:I$860,MATCH('2.2'!$A157,'2.2 Daten'!$B$9:$B$860,0))) -> 430 | H157: =IF($A157<>0,INDEX('2.2 Daten'!K$9:K$860,MATCH('2.2'!$A157,'2.2 Daten'!$B$9:$B$860,0))) -> 0.6275494195 | I157: =IF($A157<>0,INDEX('2.2 Daten'!L$9:L$860,MATCH('2.2'!$A157,'2.2 Daten'!$B$9:$B$860,0))) -> 1.482701812 | J157: =IF($A157<>0,INDEX('2.2 Daten'!M$9:M$860,MATCH('2.2'!$A157,'2.2 Daten'!$B$9:$B$860,0))) -> 0.6884681583 | K157: =IF($A157<>0,INDEX('2.2 Daten'!N$9:N$860,MATCH('2.2'!$A157,'2.2 Daten'!$B$9:$B$860,0))) -> 0.9609224856 | L157: =IF($A157<>0,INDEX('2.2 Daten'!O$9:O$860,MATCH('2.2'!$A157,'2.2 Daten'!$B$9:$B$860,0))) -> -1.826484018
A158: =CHOOSE('2.2 Daten'!$A$2,'2.2 Daten'!B580,'2.2 Daten'!B129,'2.2 Daten'!B146,'2.2 Daten'!B163,'2.2 Daten'!B166,'2.2 Daten'!B213,'2.2 Daten'!B217,'2.2 Daten'!B272,'2.2 Daten'!B300,'2.2 Daten'!B338,'2.2 Daten'!B384,'2.2 Daten'!B482,'2.2 Daten'!B490,'2.2 Daten'!B493,'2.2 Daten'!B513,'2.2 Daten'!B523,'2.2 Daten'!B538,'2.2 Daten'!B554,x) -> Recklinghausen | B158: =IF($A158<>0,INDEX('2.2 Daten'!C$9:C$860,MATCH('2.2'!$A158,'2.2 Daten'!$B$9:$B$860,0))," ") -> 5562000 | C158: =IF($A158<>0,INDEX('2.2 Daten'!E$9:E$860,MATCH('2.2'!$A158,'2.2 Daten'!$B$9:$B$860,0))) -> 24780 | D158: =IF($A158<>0,INDEX('2.2 Daten'!F$9:F$860,MATCH('2.2'!$A158,'2.2 Daten'!$B$9:$B$860,0))) -> 4613 | E158: =IF($A158<>0,INDEX('2.2 Daten'!G$9:G$860,MATCH('2.2'!$A158,'2.2 Daten'!$B$9:$B$860,0))) -> 4359 | F158: =IF($A158<>0,INDEX('2.2 Daten'!H$9:H$860,MATCH('2.2'!$A158,'2.2 Daten'!$B$9:$B$860,0))) -> 12298 | G158: =IF($A158<>0,INDEX('2.2 Daten'!I$9:I$860,MATCH('2.2'!$A158,'2.2 Daten'!$B$9:$B$860,0))) -> 3510 | H158: =IF($A158<>0,INDEX('2.2 Daten'!K$9:K$860,MATCH('2.2'!$A158,'2.2 Daten'!$B$9:$B$860,0))) -> -0.6534899571 | I158: =IF($A158<>0,INDEX('2.2 Daten'!L$9:L$860,MATCH('2.2'!$A158,'2.2 Daten'!$B$9:$B$860,0))) -> 0.5010893246 | J158: =IF($A158<>0,INDEX('2.2 Daten'!M$9:M$860,MATCH('2.2'!$A158,'2.2 Daten'!$B$9:$B$860,0))) -> 0.7628294036 | K158: =IF($A158<>0,INDEX('2.2 Daten'!N$9:N$860,MATCH('2.2'!$A158,'2.2 Daten'!$B$9:$B$860,0))) -> -0.9024979855 | L158: =IF($A158<>0,INDEX('2.2 Daten'!O$9:O$860,MATCH('2.2'!$A158,'2.2 Daten'!$B$9:$B$860,0))) -> -2.958252696
A159: =CHOOSE('2.2 Daten'!$A$2,'2.2 Daten'!B581,'2.2 Daten'!B130,'2.2 Daten'!B147,'2.2 Daten'!B164,'2.2 Daten'!B167,'2.2 Daten'!B214,'2.2 Daten'!B218,'2.2 Daten'!B273,'2.2 Daten'!B301,'2.2 Daten'!B339,'2.2 Daten'!B385,'2.2 Daten'!B483,'2.2 Daten'!B491,'2.2 Daten'!B494,'2.2 Daten'!B514,'2.2 Daten'!B524,'2.2 Daten'!B539,'2.2 Daten'!B555,x) -> Steinfurt | B159: =IF($A159<>0,INDEX('2.2 Daten'!C$9:C$860,MATCH('2.2'!$A159,'2.2 Daten'!$B$9:$B$860,0))," ") -> 5566000 | C159: =IF($A159<>0,INDEX('2.2 Daten'!E$9:E$860,MATCH('2.2'!$A159,'2.2 Daten'!$B$9:$B$860,0))) -> 8665 | D159: =IF($A159<>0,INDEX('2.2 Daten'!F$9:F$860,MATCH('2.2'!$A159,'2.2 Daten'!$B$9:$B$860,0))) -> 1774 | E159: =IF($A159<>0,INDEX('2.2 Daten'!G$9:G$860,MATCH('2.2'!$A159,'2.2 Daten'!$B$9:$B$860,0))) -> 1611 | F159: =IF($A159<>0,INDEX('2.2 Daten'!H$9:H$860,MATCH('2.2'!$A159,'2.2 Daten'!$B$9:$B$860,0))) -> 4198 | G159: =IF($A159<>0,INDEX('2.2 Daten'!I$9:I$860,MATCH('2.2'!$A159,'2.2 Daten'!$B$9:$B$860,0))) -> 1082 | H159: =IF($A159<>0,INDEX('2.2 Daten'!K$9:K$860,MATCH('2.2'!$A159,'2.2 Daten'!$B$9:$B$860,0))) -> -5.04109589 | I159: =IF($A159<>0,INDEX('2.2 Daten'!L$9:L$860,MATCH('2.2'!$A159,'2.2 Daten'!$B$9:$B$860,0))) -> -3.639326453 | J159: =IF($A159<>0,INDEX('2.2 Daten'!M$9:M$860,MATCH('2.2'!$A159,'2.2 Daten'!$B$9:$B$860,0))) -> -7.360552041 | K159: =IF($A159<>0,INDEX('2.2 Daten'!N$9:N$860,MATCH('2.2'!$A159,'2.2 Daten'!$B$9:$B$860,0))) -> -3.737674845 | L159: =IF($A159<>0,INDEX('2.2 Daten'!O$9:O$860,MATCH('2.2'!$A159,'2.2 Daten'!$B$9:$B$860,0))) -> -8.614864865
A160: =CHOOSE('2.2 Daten'!$A$2,'2.2 Daten'!B582,'2.2 Daten'!B131,'2.2 Daten'!B148,'2.2 Daten'!B165,'2.2 Daten'!B168,'2.2 Daten'!B215,'2.2 Daten'!B219,'2.2 Daten'!B274,'2.2 Daten'!B302,'2.2 Daten'!B340,'2.2 Daten'!B386,'2.2 Daten'!B484,'2.2 Daten'!B492,'2.2 Daten'!B495,'2.2 Daten'!B515,'2.2 Daten'!B525,'2.2 Daten'!B540,'2.2 Daten'!B556,x) -> Warendorf | B160: =IF($A160<>0,INDEX('2.2 Daten'!C$9:C$860,MATCH('2.2'!$A160,'2.2 Daten'!$B$9:$B$860,0))," ") -> 5570000 | C160: =IF($A160<>0,INDEX('2.2 Daten'!E$9:E$860,MATCH('2.2'!$A160,'2.2 Daten'!$B$9:$B$860,0))) -> 5790 | D160: =IF($A160<>0,INDEX('2.2 Daten'!F$9:F$860,MATCH('2.2'!$A160,'2.2 Daten'!$B$9:$B$860,0))) -> 985 | E160: =IF($A160<>0,INDEX('2.2 Daten'!G$9:G$860,MATCH('2.2'!$A160,'2.2 Daten'!$B$9:$B$860,0))) -> 1028 | F160: =IF($A160<>0,INDEX('2.2 Daten'!H$9:H$860,MATCH('2.2'!$A160,'2.2 Daten'!$B$9:$B$860,0))) -> 2963 | G160: =IF($A160<>0,INDEX('2.2 Daten'!I$9:I$860,MATCH('2.2'!$A160,'2.2 Daten'!$B$9:$B$860,0))) -> 814 | H160: =IF($A160<>0,INDEX('2.2 Daten'!K$9:K$860,MATCH('2.2'!$A160,'2.2 Daten'!$B$9:$B$860,0))) -> -3.047555258 | I160: =IF($A160<>0,INDEX('2.2 Daten'!L$9:L$860,MATCH('2.2'!$A160,'2.2 Daten'!$B$9:$B$860,0))) -> -2.66798419 | J160: =IF($A160<>0,INDEX('2.2 Daten'!M$9:M$860,MATCH('2.2'!$A160,'2.2 Daten'!$B$9:$B$860,0))) -> -0.9633911368 | K160: =IF($A160<>0,INDEX('2.2 Daten'!N$9:N$860,MATCH('2.2'!$A160,'2.2 Daten'!$B$9:$B$860,0))) -> -2.243483999 | L160: =IF($A160<>0,INDEX('2.2 Daten'!O$9:O$860,MATCH('2.2'!$A160,'2.2 Daten'!$B$9:$B$860,0))) -> -8.641975309
A161: =CHOOSE('2.2 Daten'!$A$2,'2.2 Daten'!B583,'2.2 Daten'!B132,'2.2 Daten'!B149,'2.2 Daten'!B166,'2.2 Daten'!B169,'2.2 Daten'!B216,'2.2 Daten'!B220,'2.2 Daten'!B275,'2.2 Daten'!B303,'2.2 Daten'!B341,'2.2 Daten'!B387,'2.2 Daten'!B485,'2.2 Daten'!B493,'2.2 Daten'!B496,'2.2 Daten'!B516,'2.2 Daten'!B526,'2.2 Daten'!B541,'2.2 Daten'!B557,x) -> Bielefeld, Stadt | B161: =IF($A161<>0,INDEX('2.2 Daten'!C$9:C$860,MATCH('2.2'!$A161,'2.2 Daten'!$B$9:$B$860,0))," ") -> 5711000 | C161: =IF($A161<>0,INDEX('2.2 Daten'!E$9:E$860,MATCH('2.2'!$A161,'2.2 Daten'!$B$9:$B$860,0))) -> 12759 | D161: =IF($A161<>0,INDEX('2.2 Daten'!F$9:F$860,MATCH('2.2'!$A161,'2.2 Daten'!$B$9:$B$860,0))) -> 2198 | E161: =IF($A161<>0,INDEX('2.2 Daten'!G$9:G$860,MATCH('2.2'!$A161,'2.2 Daten'!$B$9:$B$860,0))) -> 2212 | F161: =IF($A161<>0,INDEX('2.2 Daten'!H$9:H$860,MATCH('2.2'!$A161,'2.2 Daten'!$B$9:$B$860,0))) -> 6427 | G161: =IF($A161<>0,INDEX('2.2 Daten'!I$9:I$860,MATCH('2.2'!$A161,'2.2 Daten'!$B$9:$B$860,0))) -> 1922 | H161: =IF($A161<>0,INDEX('2.2 Daten'!K$9:K$860,MATCH('2.2'!$A161,'2.2 Daten'!$B$9:$B$860,0))) -> -3.785536536 | I161: =IF($A161<>0,INDEX('2.2 Daten'!L$9:L$860,MATCH('2.2'!$A161,'2.2 Daten'!$B$9:$B$860,0))) -> -4.10122164 | J161: =IF($A161<>0,INDEX('2.2 Daten'!M$9:M$860,MATCH('2.2'!$A161,'2.2 Daten'!$B$9:$B$860,0))) -> -4.407951599 | K161: =IF($A161<>0,INDEX('2.2 Daten'!N$9:N$860,MATCH('2.2'!$A161,'2.2 Daten'!$B$9:$B$860,0))) -> -3.061840121 | L161: =IF($A161<>0,INDEX('2.2 Daten'!O$9:O$860,MATCH('2.2'!$A161,'2.2 Daten'!$B$9:$B$860,0))) -> -5.086419753
A162: =CHOOSE('2.2 Daten'!$A$2,'2.2 Daten'!B584,'2.2 Daten'!B133,'2.2 Daten'!B150,'2.2 Daten'!B167,'2.2 Daten'!B170,'2.2 Daten'!B217,'2.2 Daten'!B221,'2.2 Daten'!B276,'2.2 Daten'!B304,'2.2 Daten'!B342,'2.2 Daten'!B388,'2.2 Daten'!B486,'2.2 Daten'!B494,'2.2 Daten'!B497,'2.2 Daten'!B517,'2.2 Daten'!B527,'2.2 Daten'!B542,'2.2 Daten'!B558,x) -> Gütersloh | B162: =IF($A162<>0,INDEX('2.2 Daten'!C$9:C$860,MATCH('2.2'!$A162,'2.2 Daten'!$B$9:$B$860,0))," ") -> 5754000 | C162: =IF($A162<>0,INDEX('2.2 Daten'!E$9:E$860,MATCH('2.2'!$A162,'2.2 Daten'!$B$9:$B$860,0))) -> 6764 | D162: =IF($A162<>0,INDEX('2.2 Daten'!F$9:F$860,MATCH('2.2'!$A162,'2.2 Daten'!$B$9:$B$860,0))) -> 1214 | E162: =IF($A162<>0,INDEX('2.2 Daten'!G$9:G$860,MATCH('2.2'!$A162,'2.2 Daten'!$B$9:$B$860,0))) -> 1215 | F162: =IF($A162<>0,INDEX('2.2 Daten'!H$9:H$860,MATCH('2.2'!$A162,'2.2 Daten'!$B$9:$B$860,0))) -> 3404 | G162: =IF($A162<>0,INDEX('2.2 Daten'!I$9:I$860,MATCH('2.2'!$A162,'2.2 Daten'!$B$9:$B$860,0))) -> 931 | H162: =IF($A162<>0,INDEX('2.2 Daten'!K$9:K$860,MATCH('2.2'!$A162,'2.2 Daten'!$B$9:$B$860,0))) -> -3.45418213 | I162: =IF($A162<>0,INDEX('2.2 Daten'!L$9:L$860,MATCH('2.2'!$A162,'2.2 Daten'!$B$9:$B$860,0))) -> -5.964368706 | J162: =IF($A162<>0,INDEX('2.2 Daten'!M$9:M$860,MATCH('2.2'!$A162,'2.2 Daten'!$B$9:$B$860,0))) -> -2.722177742 | K162: =IF($A162<>0,INDEX('2.2 Daten'!N$9:N$860,MATCH('2.2'!$A162,'2.2 Daten'!$B$9:$B$860,0))) -> -2.436228146 | L162: =IF($A162<>0,INDEX('2.2 Daten'!O$9:O$860,MATCH('2.2'!$A162,'2.2 Daten'!$B$9:$B$860,0))) -> -4.708290686
A163: =CHOOSE('2.2 Daten'!$A$2,'2.2 Daten'!B585,'2.2 Daten'!B134,'2.2 Daten'!B151,'2.2 Daten'!B168,'2.2 Daten'!B171,'2.2 Daten'!B218,'2.2 Daten'!B222,'2.2 Daten'!B277,'2.2 Daten'!B305,'2.2 Daten'!B343,'2.2 Daten'!B389,'2.2 Daten'!B487,'2.2 Daten'!B495,'2.2 Daten'!B498,'2.2 Daten'!B518,'2.2 Daten'!B528,'2.2 Daten'!B543,'2.2 Daten'!B559,x) -> Herford | B163: =IF($A163<>0,INDEX('2.2 Daten'!C$9:C$860,MATCH('2.2'!$A163,'2.2 Daten'!$B$9:$B$860,0))," ") -> 5758000 | C163: =IF($A163<>0,INDEX('2.2 Daten'!E$9:E$860,MATCH('2.2'!$A163,'2.2 Daten'!$B$9:$B$860,0))) -> 5961 | D163: =IF($A163<>0,INDEX('2.2 Daten'!F$9:F$860,MATCH('2.2'!$A163,'2.2 Daten'!$B$9:$B$860,0))) -> 1124 | E163: =IF($A163<>0,INDEX('2.2 Daten'!G$9:G$860,MATCH('2.2'!$A163,'2.2 Daten'!$B$9:$B$860,0))) -> 1073 | F163: =IF($A163<>0,INDEX('2.2 Daten'!H$9:H$860,MATCH('2.2'!$A163,'2.2 Daten'!$B$9:$B$860,0))) -> 2951 | G163: =IF($A163<>0,INDEX('2.2 Daten'!I$9:I$860,MATCH('2.2'!$A163,'2.2 Daten'!$B$9:$B$860,0))) -> 813 | H163: =IF($A163<>0,INDEX('2.2 Daten'!K$9:K$860,MATCH('2.2'!$A163,'2.2 Daten'!$B$9:$B$860,0))) -> -3.277624534 | I163: =IF($A163<>0,INDEX('2.2 Daten'!L$9:L$860,MATCH('2.2'!$A163,'2.2 Daten'!$B$9:$B$860,0))) -> -3.767123288 | J163: =IF($A163<>0,INDEX('2.2 Daten'!M$9:M$860,MATCH('2.2'!$A163,'2.2 Daten'!$B$9:$B$860,0))) -> -5.295675199 | K163: =IF($A163<>0,INDEX('2.2 Daten'!N$9:N$860,MATCH('2.2'!$A163,'2.2 Daten'!$B$9:$B$860,0))) -> -2.735662492 | L163: =IF($A163<>0,INDEX('2.2 Daten'!O$9:O$860,MATCH('2.2'!$A163,'2.2 Daten'!$B$9:$B$860,0))) -> -1.811594203
A164: =CHOOSE('2.2 Daten'!$A$2,'2.2 Daten'!B586,'2.2 Daten'!B135,'2.2 Daten'!B152,'2.2 Daten'!B169,'2.2 Daten'!B172,'2.2 Daten'!B219,'2.2 Daten'!B223,'2.2 Daten'!B278,'2.2 Daten'!B306,'2.2 Daten'!B344,'2.2 Daten'!B390,'2.2 Daten'!B488,'2.2 Daten'!B496,'2.2 Daten'!B499,'2.2 Daten'!B519,'2.2 Daten'!B529,'2.2 Daten'!B544,'2.2 Daten'!B560,x) -> Höxter | B164: =IF($A164<>0,INDEX('2.2 Daten'!C$9:C$860,MATCH('2.2'!$A164,'2.2 Daten'!$B$9:$B$860,0))," ") -> 5762000 | C164: =IF($A164<>0,INDEX('2.2 Daten'!E$9:E$860,MATCH('2.2'!$A164,'2.2 Daten'!$B$9:$B$860,0))) -> 2180 | D164: =IF($A164<>0,INDEX('2.2 Daten'!F$9:F$860,MATCH('2.2'!$A164,'2.2 Daten'!$B$9:$B$860,0))) -> 457 | E164: =IF($A164<>0,INDEX('2.2 Daten'!G$9:G$860,MATCH('2.2'!$A164,'2.2 Daten'!$B$9:$B$860,0))) -> 407 | F164: =IF($A164<>0,INDEX('2.2 Daten'!H$9:H$860,MATCH('2.2'!$A164,'2.2 Daten'!$B$9:$B$860,0))) -> 1053 | G164: =IF($A164<>0,INDEX('2.2 Daten'!I$9:I$860,MATCH('2.2'!$A164,'2.2 Daten'!$B$9:$B$860,0))) -> 263 | H164: =IF($A164<>0,INDEX('2.2 Daten'!K$9:K$860,MATCH('2.2'!$A164,'2.2 Daten'!$B$9:$B$860,0))) -> -5.176163549 | I164: =IF($A164<>0,INDEX('2.2 Daten'!L$9:L$860,MATCH('2.2'!$A164,'2.2 Daten'!$B$9:$B$860,0))) -> -9.145129225 | J164: =IF($A164<>0,INDEX('2.2 Daten'!M$9:M$860,MATCH('2.2'!$A164,'2.2 Daten'!$B$9:$B$860,0))) -> -1.452784504 | K164: =IF($A164<>0,INDEX('2.2 Daten'!N$9:N$860,MATCH('2.2'!$A164,'2.2 Daten'!$B$9:$B$860,0))) -> -4.7920434 | L164: =IF($A164<>0,INDEX('2.2 Daten'!O$9:O$860,MATCH('2.2'!$A164,'2.2 Daten'!$B$9:$B$860,0))) -> -5.054151625
A165: =CHOOSE('2.2 Daten'!$A$2,'2.2 Daten'!B587,'2.2 Daten'!B136,'2.2 Daten'!B153,'2.2 Daten'!B170,'2.2 Daten'!B173,'2.2 Daten'!B220,'2.2 Daten'!B224,'2.2 Daten'!B279,'2.2 Daten'!B307,'2.2 Daten'!B345,'2.2 Daten'!B391,'2.2 Daten'!B489,'2.2 Daten'!B497,'2.2 Daten'!B500,'2.2 Daten'!B520,'2.2 Daten'!B530,'2.2 Daten'!B545,'2.2 Daten'!B561,x) -> Lippe | B165: =IF($A165<>0,INDEX('2.2 Daten'!C$9:C$860,MATCH('2.2'!$A165,'2.2 Daten'!$B$9:$B$860,0))," ") -> 5766000 | C165: =IF($A165<>0,INDEX('2.2 Daten'!E$9:E$860,MATCH('2.2'!$A165,'2.2 Daten'!$B$9:$B$860,0))) -> 9422 | D165: =IF($A165<>0,INDEX('2.2 Daten'!F$9:F$860,MATCH('2.2'!$A165,'2.2 Daten'!$B$9:$B$860,0))) -> 1793 | E165: =IF($A165<>0,INDEX('2.2 Daten'!G$9:G$860,MATCH('2.2'!$A165,'2.2 Daten'!$B$9:$B$860,0))) -> 1713 | F165: =IF($A165<>0,INDEX('2.2 Daten'!H$9:H$860,MATCH('2.2'!$A165,'2.2 Daten'!$B$9:$B$860,0))) -> 4643 | G165: =IF($A165<>0,INDEX('2.2 Daten'!I$9:I$860,MATCH('2.2'!$A165,'2.2 Daten'!$B$9:$B$860,0))) -> 1273 | H165: =IF($A165<>0,INDEX('2.2 Daten'!K$9:K$860,MATCH('2.2'!$A165,'2.2 Daten'!$B$9:$B$860,0))) -> -1.669797537 | I165: =IF($A165<>0,INDEX('2.2 Daten'!L$9:L$860,MATCH('2.2'!$A165,'2.2 Daten'!$B$9:$B$860,0))) -> 2.398629355 | J165: =IF($A165<>0,INDEX('2.2 Daten'!M$9:M$860,MATCH('2.2'!$A165,'2.2 Daten'!$B$9:$B$860,0))) -> 1.061946903 | K165: =IF($A165<>0,INDEX('2.2 Daten'!N$9:N$860,MATCH('2.2'!$A165,'2.2 Daten'!$B$9:$B$860,0))) -> -2.906733584 | L165: =IF($A165<>0,INDEX('2.2 Daten'!O$9:O$860,MATCH('2.2'!$A165,'2.2 Daten'!$B$9:$B$860,0))) -> -5.982274742
A166: =CHOOSE('2.2 Daten'!$A$2,'2.2 Daten'!B588,'2.2 Daten'!B137,'2.2 Daten'!B154,'2.2 Daten'!B171,'2.2 Daten'!B174,'2.2 Daten'!B221,'2.2 Daten'!B225,'2.2 Daten'!B280,'2.2 Daten'!B308,'2.2 Daten'!B346,'2.2 Daten'!B392,'2.2 Daten'!B490,'2.2 Daten'!B498,'2.2 Daten'!B501,'2.2 Daten'!B521,'2.2 Daten'!B531,'2.2 Daten'!B546,'2.2 Daten'!B562,x) -> Minden-Lübbecke | B166: =IF($A166<>0,INDEX('2.2 Daten'!C$9:C$860,MATCH('2.2'!$A166,'2.2 Daten'!$B$9:$B$860,0))," ") -> 5770000 | C166: =IF($A166<>0,INDEX('2.2 Daten'!E$9:E$860,MATCH('2.2'!$A166,'2.2 Daten'!$B$9:$B$860,0))) -> 8149 | D166: =IF($A166<>0,INDEX('2.2 Daten'!F$9:F$860,MATCH('2.2'!$A166,'2.2 Daten'!$B$9:$B$860,0))) -> 1559 | E166: =IF($A166<>0,INDEX('2.2 Daten'!G$9:G$860,MATCH('2.2'!$A166,'2.2 Daten'!$B$9:$B$860,0))) -> 1439 | F166: =IF($A166<>0,INDEX('2.2 Daten'!H$9:H$860,MATCH('2.2'!$A166,'2.2 Daten'!$B$9:$B$860,0))) -> 4059 | G166: =IF($A166<>0,INDEX('2.2 Daten'!I$9:I$860,MATCH('2.2'!$A166,'2.2 Daten'!$B$9:$B$860,0))) -> 1092 | H166: =IF($A166<>0,INDEX('2.2 Daten'!K$9:K$860,MATCH('2.2'!$A166,'2.2 Daten'!$B$9:$B$860,0))) -> -1.248182259 | I166: =IF($A166<>0,INDEX('2.2 Daten'!L$9:L$860,MATCH('2.2'!$A166,'2.2 Daten'!$B$9:$B$860,0))) -> 0.2572347267 | J166: =IF($A166<>0,INDEX('2.2 Daten'!M$9:M$860,MATCH('2.2'!$A166,'2.2 Daten'!$B$9:$B$860,0))) -> -0.7586206897 | K166: =IF($A166<>0,INDEX('2.2 Daten'!N$9:N$860,MATCH('2.2'!$A166,'2.2 Daten'!$B$9:$B$860,0))) -> -1.336898396 | L166: =IF($A166<>0,INDEX('2.2 Daten'!O$9:O$860,MATCH('2.2'!$A166,'2.2 Daten'!$B$9:$B$860,0))) -> -3.618711386
A167: =CHOOSE('2.2 Daten'!$A$2,'2.2 Daten'!B589,'2.2 Daten'!B138,'2.2 Daten'!B155,'2.2 Daten'!B172,'2.2 Daten'!B175,'2.2 Daten'!B222,'2.2 Daten'!B226,'2.2 Daten'!B281,'2.2 Daten'!B309,'2.2 Daten'!B347,'2.2 Daten'!B393,'2.2 Daten'!B491,'2.2 Daten'!B499,'2.2 Daten'!B502,'2.2 Daten'!B522,'2.2 Daten'!B532,'2.2 Daten'!B547,'2.2 Daten'!B563,x) -> Paderborn | B167: =IF($A167<>0,INDEX('2.2 Daten'!C$9:C$860,MATCH('2.2'!$A167,'2.2 Daten'!$B$9:$B$860,0))," ") -> 5774000 | C167: =IF($A167<>0,INDEX('2.2 Daten'!E$9:E$860,MATCH('2.2'!$A167,'2.2 Daten'!$B$9:$B$860,0))) -> 6914 | D167: =IF($A167<>0,INDEX('2.2 Daten'!F$9:F$860,MATCH('2.2'!$A167,'2.2 Daten'!$B$9:$B$860,0))) -> 1288 | E167: =IF($A167<>0,INDEX('2.2 Daten'!G$9:G$860,MATCH('2.2'!$A167,'2.2 Daten'!$B$9:$B$860,0))) -> 1239 | F167: =IF($A167<>0,INDEX('2.2 Daten'!H$9:H$860,MATCH('2.2'!$A167,'2.2 Daten'!$B$9:$B$860,0))) -> 3408 | G167: =IF($A167<>0,INDEX('2.2 Daten'!I$9:I$860,MATCH('2.2'!$A167,'2.2 Daten'!$B$9:$B$860,0))) -> 979 | H167: =IF($A167<>0,INDEX('2.2 Daten'!K$9:K$860,MATCH('2.2'!$A167,'2.2 Daten'!$B$9:$B$860,0))) -> -4.726470994 | I167: =IF($A167<>0,INDEX('2.2 Daten'!L$9:L$860,MATCH('2.2'!$A167,'2.2 Daten'!$B$9:$B$860,0))) -> -7.802433787 | J167: =IF($A167<>0,INDEX('2.2 Daten'!M$9:M$860,MATCH('2.2'!$A167,'2.2 Daten'!$B$9:$B$860,0))) -> -2.517702596 | K167: =IF($A167<>0,INDEX('2.2 Daten'!N$9:N$860,MATCH('2.2'!$A167,'2.2 Daten'!$B$9:$B$860,0))) -> -3.592644979 | L167: =IF($A167<>0,INDEX('2.2 Daten'!O$9:O$860,MATCH('2.2'!$A167,'2.2 Daten'!$B$9:$B$860,0))) -> -7.115749526
A168: =CHOOSE('2.2 Daten'!$A$2,'2.2 Daten'!B590,'2.2 Daten'!B139,'2.2 Daten'!B156,'2.2 Daten'!B173,'2.2 Daten'!B176,'2.2 Daten'!B223,'2.2 Daten'!B227,'2.2 Daten'!B282,'2.2 Daten'!B310,'2.2 Daten'!B348,'2.2 Daten'!B394,'2.2 Daten'!B492,'2.2 Daten'!B500,'2.2 Daten'!B503,'2.2 Daten'!B523,'2.2 Daten'!B533,'2.2 Daten'!B548,'2.2 Daten'!B564,x) -> Bochum, Stadt | B168: =IF($A168<>0,INDEX('2.2 Daten'!C$9:C$860,MATCH('2.2'!$A168,'2.2 Daten'!$B$9:$B$860,0))," ") -> 5911000 | C168: =IF($A168<>0,INDEX('2.2 Daten'!E$9:E$860,MATCH('2.2'!$A168,'2.2 Daten'!$B$9:$B$860,0))) -> 14409 | D168: =IF($A168<>0,INDEX('2.2 Daten'!F$9:F$860,MATCH('2.2'!$A168,'2.2 Daten'!$B$9:$B$860,0))) -> 2700 | E168: =IF($A168<>0,INDEX('2.2 Daten'!G$9:G$860,MATCH('2.2'!$A168,'2.2 Daten'!$B$9:$B$860,0))) -> 2589 | F168: =IF($A168<>0,INDEX('2.2 Daten'!H$9:H$860,MATCH('2.2'!$A168,'2.2 Daten'!$B$9:$B$860,0))) -> 7110 | G168: =IF($A168<>0,INDEX('2.2 Daten'!I$9:I$860,MATCH('2.2'!$A168,'2.2 Daten'!$B$9:$B$860,0))) -> 2010 | H168: =IF($A168<>0,INDEX('2.2 Daten'!K$9:K$860,MATCH('2.2'!$A168,'2.2 Daten'!$B$9:$B$860,0))) -> -0.8191079295 | I168: =IF($A168<>0,INDEX('2.2 Daten'!L$9:L$860,MATCH('2.2'!$A168,'2.2 Daten'!$B$9:$B$860,0))) -> -2.138455962 | J168: =IF($A168<>0,INDEX('2.2 Daten'!M$9:M$860,MATCH('2.2'!$A168,'2.2 Daten'!$B$9:$B$860,0))) -> 1.728880157 | K168: =IF($A168<>0,INDEX('2.2 Daten'!N$9:N$860,MATCH('2.2'!$A168,'2.2 Daten'!$B$9:$B$860,0))) -> -1.043841336 | L168: =IF($A168<>0,INDEX('2.2 Daten'!O$9:O$860,MATCH('2.2'!$A168,'2.2 Daten'!$B$9:$B$860,0))) -> -1.422265817
A169: =CHOOSE('2.2 Daten'!$A$2,'2.2 Daten'!B591,'2.2 Daten'!B140,'2.2 Daten'!B157,'2.2 Daten'!B174,'2.2 Daten'!B177,'2.2 Daten'!B224,'2.2 Daten'!B228,'2.2 Daten'!B283,'2.2 Daten'!B311,'2.2 Daten'!B349,'2.2 Daten'!B395,'2.2 Daten'!B493,'2.2 Daten'!B501,'2.2 Daten'!B504,'2.2 Daten'!B524,'2.2 Daten'!B534,'2.2 Daten'!B549,'2.2 Daten'!B565,x) -> Dortmund, Stadt | B169: =IF($A169<>0,INDEX('2.2 Daten'!C$9:C$860,MATCH('2.2'!$A169,'2.2 Daten'!$B$9:$B$860,0))," ") -> 5913000 | C169: =IF($A169<>0,INDEX('2.2 Daten'!E$9:E$860,MATCH('2.2'!$A169,'2.2 Daten'!$B$9:$B$860,0))) -> 28607 | D169: =IF($A169<>0,INDEX('2.2 Daten'!F$9:F$860,MATCH('2.2'!$A169,'2.2 Daten'!$B$9:$B$860,0))) -> 5285 | E169: =IF($A169<>0,INDEX('2.2 Daten'!G$9:G$860,MATCH('2.2'!$A169,'2.2 Daten'!$B$9:$B$860,0))) -> 5134 | F169: =IF($A169<>0,INDEX('2.2 Daten'!H$9:H$860,MATCH('2.2'!$A169,'2.2 Daten'!$B$9:$B$860,0))) -> 14205 | G169: =IF($A169<>0,INDEX('2.2 Daten'!I$9:I$860,MATCH('2.2'!$A169,'2.2 Daten'!$B$9:$B$860,0))) -> 3983 | H169: =IF($A169<>0,INDEX('2.2 Daten'!K$9:K$860,MATCH('2.2'!$A169,'2.2 Daten'!$B$9:$B$860,0))) -> -2.050948435 | I169: =IF($A169<>0,INDEX('2.2 Daten'!L$9:L$860,MATCH('2.2'!$A169,'2.2 Daten'!$B$9:$B$860,0))) -> -1.893447188 | J169: =IF($A169<>0,INDEX('2.2 Daten'!M$9:M$860,MATCH('2.2'!$A169,'2.2 Daten'!$B$9:$B$860,0))) -> -0.3300330033 | K169: =IF($A169<>0,INDEX('2.2 Daten'!N$9:N$860,MATCH('2.2'!$A169,'2.2 Daten'!$B$9:$B$860,0))) -> -2.431485679 | L169: =IF($A169<>0,INDEX('2.2 Daten'!O$9:O$860,MATCH('2.2'!$A169,'2.2 Daten'!$B$9:$B$860,0))) -> -3.066439523
A170: =CHOOSE('2.2 Daten'!$A$2,'2.2 Daten'!B592,'2.2 Daten'!B141,'2.2 Daten'!B158,'2.2 Daten'!B175,'2.2 Daten'!B178,'2.2 Daten'!B225,'2.2 Daten'!B229,'2.2 Daten'!B284,'2.2 Daten'!B312,'2.2 Daten'!B350,'2.2 Daten'!B396,'2.2 Daten'!B494,'2.2 Daten'!B502,'2.2 Daten'!B505,'2.2 Daten'!B525,'2.2 Daten'!B535,'2.2 Daten'!B550,'2.2 Daten'!B566,x) -> Hagen, Stadt | B170: =IF($A170<>0,INDEX('2.2 Daten'!C$9:C$860,MATCH('2.2'!$A170,'2.2 Daten'!$B$9:$B$860,0))," ") -> 5914000 | C170: =IF($A170<>0,INDEX('2.2 Daten'!E$9:E$860,MATCH('2.2'!$A170,'2.2 Daten'!$B$9:$B$860,0))) -> 9509 | D170: =IF($A170<>0,INDEX('2.2 Daten'!F$9:F$860,MATCH('2.2'!$A170,'2.2 Daten'!$B$9:$B$860,0))) -> 1720 | E170: =IF($A170<>0,INDEX('2.2 Daten'!G$9:G$860,MATCH('2.2'!$A170,'2.2 Daten'!$B$9:$B$860,0))) -> 1729 | F170: =IF($A170<>0,INDEX('2.2 Daten'!H$9:H$860,MATCH('2.2'!$A170,'2.2 Daten'!$B$9:$B$860,0))) -> 4731 | G170: =IF($A170<>0,INDEX('2.2 Daten'!I$9:I$860,MATCH('2.2'!$A170,'2.2 Daten'!$B$9:$B$860,0))) -> 1329 | H170: =IF($A170<>0,INDEX('2.2 Daten'!K$9:K$860,MATCH('2.2'!$A170,'2.2 Daten'!$B$9:$B$860,0))) -> -4.862431216 | I170: =IF($A170<>0,INDEX('2.2 Daten'!L$9:L$860,MATCH('2.2'!$A170,'2.2 Daten'!$B$9:$B$860,0))) -> -5.129619415 | J170: =IF($A170<>0,INDEX('2.2 Daten'!M$9:M$860,MATCH('2.2'!$A170,'2.2 Daten'!$B$9:$B$860,0))) -> -4.422332781 | K170: =IF($A170<>0,INDEX('2.2 Daten'!N$9:N$860,MATCH('2.2'!$A170,'2.2 Daten'!$B$9:$B$860,0))) -> -4.462843296 | L170: =IF($A170<>0,INDEX('2.2 Daten'!O$9:O$860,MATCH('2.2'!$A170,'2.2 Daten'!$B$9:$B$860,0))) -> -6.474313863
A171: =CHOOSE('2.2 Daten'!$A$2,'2.2 Daten'!B593,'2.2 Daten'!B142,'2.2 Daten'!B159,'2.2 Daten'!B176,'2.2 Daten'!B179,'2.2 Daten'!B226,'2.2 Daten'!B230,'2.2 Daten'!B285,'2.2 Daten'!B313,'2.2 Daten'!B351,'2.2 Daten'!B397,'2.2 Daten'!B495,'2.2 Daten'!B503,'2.2 Daten'!B506,'2.2 Daten'!B526,'2.2 Daten'!B536,'2.2 Daten'!B551,'2.2 Daten'!B567,x) -> Hamm, Stadt | B171: =IF($A171<>0,INDEX('2.2 Daten'!C$9:C$860,MATCH('2.2'!$A171,'2.2 Daten'!$B$9:$B$860,0))," ") -> 5915000 | C171: =IF($A171<>0,INDEX('2.2 Daten'!E$9:E$860,MATCH('2.2'!$A171,'2.2 Daten'!$B$9:$B$860,0))) -> 6455 | D171: =IF($A171<>0,INDEX('2.2 Daten'!F$9:F$860,MATCH('2.2'!$A171,'2.2 Daten'!$B$9:$B$860,0))) -> 1184 | E171: =IF($A171<>0,INDEX('2.2 Daten'!G$9:G$860,MATCH('2.2'!$A171,'2.2 Daten'!$B$9:$B$860,0))) -> 1238 | F171: =IF($A171<>0,INDEX('2.2 Daten'!H$9:H$860,MATCH('2.2'!$A171,'2.2 Daten'!$B$9:$B$860,0))) -> 3061 | G171: =IF($A171<>0,INDEX('2.2 Daten'!I$9:I$860,MATCH('2.2'!$A171,'2.2 Daten'!$B$9:$B$860,0))) -> 972 | H171: =IF($A171<>0,INDEX('2.2 Daten'!K$9:K$860,MATCH('2.2'!$A171,'2.2 Daten'!$B$9:$B$860,0))) -> -7.122302158 | I171: =IF($A171<>0,INDEX('2.2 Daten'!L$9:L$860,MATCH('2.2'!$A171,'2.2 Daten'!$B$9:$B$860,0))) -> -6.550907656 | J171: =IF($A171<>0,INDEX('2.2 Daten'!M$9:M$860,MATCH('2.2'!$A171,'2.2 Daten'!$B$9:$B$860,0))) -> 1.06122449 | K171: =IF($A171<>0,INDEX('2.2 Daten'!N$9:N$860,MATCH('2.2'!$A171,'2.2 Daten'!$B$9:$B$860,0))) -> -9.705014749 | L171: =IF($A171<>0,INDEX('2.2 Daten'!O$9:O$860,MATCH('2.2'!$A171,'2.2 Daten'!$B$9:$B$860,0))) -> -8.988764045
A172: =CHOOSE('2.2 Daten'!$A$2,'2.2 Daten'!B594,'2.2 Daten'!B143,'2.2 Daten'!B160,'2.2 Daten'!B177,'2.2 Daten'!B180,'2.2 Daten'!B227,'2.2 Daten'!B231,'2.2 Daten'!B286,'2.2 Daten'!B314,'2.2 Daten'!B352,'2.2 Daten'!B398,'2.2 Daten'!B496,'2.2 Daten'!B504,'2.2 Daten'!B507,'2.2 Daten'!B527,'2.2 Daten'!B537,'2.2 Daten'!B552,'2.2 Daten'!B568,x) -> Herne, Stadt | B172: =IF($A172<>0,INDEX('2.2 Daten'!C$9:C$860,MATCH('2.2'!$A172,'2.2 Daten'!$B$9:$B$860,0))," ") -> 5916000 | C172: =IF($A172<>0,INDEX('2.2 Daten'!E$9:E$860,MATCH('2.2'!$A172,'2.2 Daten'!$B$9:$B$860,0))) -> 7783 | D172: =IF($A172<>0,INDEX('2.2 Daten'!F$9:F$860,MATCH('2.2'!$A172,'2.2 Daten'!$B$9:$B$860,0))) -> 1431 | E172: =IF($A172<>0,INDEX('2.2 Daten'!G$9:G$860,MATCH('2.2'!$A172,'2.2 Daten'!$B$9:$B$860,0))) -> 1399 | F172: =IF($A172<>0,INDEX('2.2 Daten'!H$9:H$860,MATCH('2.2'!$A172,'2.2 Daten'!$B$9:$B$860,0))) -> 3805 | G172: =IF($A172<>0,INDEX('2.2 Daten'!I$9:I$860,MATCH('2.2'!$A172,'2.2 Daten'!$B$9:$B$860,0))) -> 1148 | H172: =IF($A172<>0,INDEX('2.2 Daten'!K$9:K$860,MATCH('2.2'!$A172,'2.2 Daten'!$B$9:$B$860,0))) -> -0.866131703 | I172: =IF($A172<>0,INDEX('2.2 Daten'!L$9:L$860,MATCH('2.2'!$A172,'2.2 Daten'!$B$9:$B$860,0))) -> 1.202263083 | J172: =IF($A172<>0,INDEX('2.2 Daten'!M$9:M$860,MATCH('2.2'!$A172,'2.2 Daten'!$B$9:$B$860,0))) -> 5.824508321 | K172: =IF($A172<>0,INDEX('2.2 Daten'!N$9:N$860,MATCH('2.2'!$A172,'2.2 Daten'!$B$9:$B$860,0))) -> -1.245782507 | L172: =IF($A172<>0,INDEX('2.2 Daten'!O$9:O$860,MATCH('2.2'!$A172,'2.2 Daten'!$B$9:$B$860,0))) -> -9.033280507
A173: =CHOOSE('2.2 Daten'!$A$2,'2.2 Daten'!B595,'2.2 Daten'!B144,'2.2 Daten'!B161,'2.2 Daten'!B178,'2.2 Daten'!B181,'2.2 Daten'!B228,'2.2 Daten'!B232,'2.2 Daten'!B287,'2.2 Daten'!B315,'2.2 Daten'!B353,'2.2 Daten'!B399,'2.2 Daten'!B497,'2.2 Daten'!B505,'2.2 Daten'!B508,'2.2 Daten'!B528,'2.2 Daten'!B538,'2.2 Daten'!B553,'2.2 Daten'!B569,x) -> Ennepe-Ruhr-Kreis | B173: =IF($A173<>0,INDEX('2.2 Daten'!C$9:C$860,MATCH('2.2'!$A173,'2.2 Daten'!$B$9:$B$860,0))," ") -> 5954000 | C173: =IF($A173<>0,INDEX('2.2 Daten'!E$9:E$860,MATCH('2.2'!$A173,'2.2 Daten'!$B$9:$B$860,0))) -> 8534 | D173: =IF($A173<>0,INDEX('2.2 Daten'!F$9:F$860,MATCH('2.2'!$A173,'2.2 Daten'!$B$9:$B$860,0))) -> 1759 | E173: =IF($A173<>0,INDEX('2.2 Daten'!G$9:G$860,MATCH('2.2'!$A173,'2.2 Daten'!$B$9:$B$860,0))) -> 1557 | F173: =IF($A173<>0,INDEX('2.2 Daten'!H$9:H$860,MATCH('2.2'!$A173,'2.2 Daten'!$B$9:$B$860,0))) -> 4144 | G173: =IF($A173<>0,INDEX('2.2 Daten'!I$9:I$860,MATCH('2.2'!$A173,'2.2 Daten'!$B$9:$B$860,0))) -> 1074 | H173: =IF($A173<>0,INDEX('2.2 Daten'!K$9:K$860,MATCH('2.2'!$A173,'2.2 Daten'!$B$9:$B$860,0))) -> -2.934485896 | I173: =IF($A173<>0,INDEX('2.2 Daten'!L$9:L$860,MATCH('2.2'!$A173,'2.2 Daten'!$B$9:$B$860,0))) -> 2.208018594 | J173: =IF($A173<>0,INDEX('2.2 Daten'!M$9:M$860,MATCH('2.2'!$A173,'2.2 Daten'!$B$9:$B$860,0))) -> -4.828850856 | K173: =IF($A173<>0,INDEX('2.2 Daten'!N$9:N$860,MATCH('2.2'!$A173,'2.2 Daten'!$B$9:$B$860,0))) -> -3.448275862 | L173: =IF($A173<>0,INDEX('2.2 Daten'!O$9:O$860,MATCH('2.2'!$A173,'2.2 Daten'!$B$9:$B$860,0))) -> -6.036745407
A174: =CHOOSE('2.2 Daten'!$A$2,'2.2 Daten'!B596,'2.2 Daten'!B145,'2.2 Daten'!B162,'2.2 Daten'!B179,'2.2 Daten'!B182,'2.2 Daten'!B229,'2.2 Daten'!B233,'2.2 Daten'!B288,'2.2 Daten'!B316,'2.2 Daten'!B354,'2.2 Daten'!B400,'2.2 Daten'!B498,'2.2 Daten'!B506,'2.2 Daten'!B509,'2.2 Daten'!B529,'2.2 Daten'!B539,'2.2 Daten'!B554,'2.2 Daten'!B570,x) -> Hochsauerlandkreis | B174: =IF($A174<>0,INDEX('2.2 Daten'!C$9:C$860,MATCH('2.2'!$A174,'2.2 Daten'!$B$9:$B$860,0))," ") -> 5958000 | C174: =IF($A174<>0,INDEX('2.2 Daten'!E$9:E$860,MATCH('2.2'!$A174,'2.2 Daten'!$B$9:$B$860,0))) -> 4580 | D174: =IF($A174<>0,INDEX('2.2 Daten'!F$9:F$860,MATCH('2.2'!$A174,'2.2 Daten'!$B$9:$B$860,0))) -> 840 | E174: =IF($A174<>0,INDEX('2.2 Daten'!G$9:G$860,MATCH('2.2'!$A174,'2.2 Daten'!$B$9:$B$860,0))) -> 854 | F174: =IF($A174<>0,INDEX('2.2 Daten'!H$9:H$860,MATCH('2.2'!$A174,'2.2 Daten'!$B$9:$B$860,0))) -> 2305 | G174: =IF($A174<>0,INDEX('2.2 Daten'!I$9:I$860,MATCH('2.2'!$A174,'2.2 Daten'!$B$9:$B$860,0))) -> 581 | H174: =IF($A174<>0,INDEX('2.2 Daten'!K$9:K$860,MATCH('2.2'!$A174,'2.2 Daten'!$B$9:$B$860,0))) -> -3.150771833 | I174: =IF($A174<>0,INDEX('2.2 Daten'!L$9:L$860,MATCH('2.2'!$A174,'2.2 Daten'!$B$9:$B$860,0))) -> -7.894736842 | J174: =IF($A174<>0,INDEX('2.2 Daten'!M$9:M$860,MATCH('2.2'!$A174,'2.2 Daten'!$B$9:$B$860,0))) -> -4.260089686 | K174: =IF($A174<>0,INDEX('2.2 Daten'!N$9:N$860,MATCH('2.2'!$A174,'2.2 Daten'!$B$9:$B$860,0))) -> -0.2164502165 | L174: =IF($A174<>0,INDEX('2.2 Daten'!O$9:O$860,MATCH('2.2'!$A174,'2.2 Daten'!$B$9:$B$860,0))) -> -5.528455285
A175: =CHOOSE('2.2 Daten'!$A$2,'2.2 Daten'!B597,'2.2 Daten'!B146,'2.2 Daten'!B163,'2.2 Daten'!B180,'2.2 Daten'!B183,'2.2 Daten'!B230,'2.2 Daten'!B234,'2.2 Daten'!B289,'2.2 Daten'!B317,'2.2 Daten'!B355,'2.2 Daten'!B401,'2.2 Daten'!B499,'2.2 Daten'!B507,'2.2 Daten'!B510,'2.2 Daten'!B530,'2.2 Daten'!B540,'2.2 Daten'!B555,'2.2 Daten'!B571,x) -> Märkischer Kreis | B175: =IF($A175<>0,INDEX('2.2 Daten'!C$9:C$860,MATCH('2.2'!$A175,'2.2 Daten'!$B$9:$B$860,0))," ") -> 5962000 | C175: =IF($A175<>0,INDEX('2.2 Daten'!E$9:E$860,MATCH('2.2'!$A175,'2.2 Daten'!$B$9:$B$860,0))) -> 10947 | D175: =IF($A175<>0,INDEX('2.2 Daten'!F$9:F$860,MATCH('2.2'!$A175,'2.2 Daten'!$B$9:$B$860,0))) -> 2034 | E175: =IF($A175<>0,INDEX('2.2 Daten'!G$9:G$860,MATCH('2.2'!$A175,'2.2 Daten'!$B$9:$B$860,0))) -> 1885 | F175: =IF($A175<>0,INDEX('2.2 Daten'!H$9:H$860,MATCH('2.2'!$A175,'2.2 Daten'!$B$9:$B$860,0))) -> 5582 | G175: =IF($A175<>0,INDEX('2.2 Daten'!I$9:I$860,MATCH('2.2'!$A175,'2.2 Daten'!$B$9:$B$860,0))) -> 1446 | H175: =IF($A175<>0,INDEX('2.2 Daten'!K$9:K$860,MATCH('2.2'!$A175,'2.2 Daten'!$B$9:$B$860,0))) -> -2.075319796 | I175: =IF($A175<>0,INDEX('2.2 Daten'!L$9:L$860,MATCH('2.2'!$A175,'2.2 Daten'!$B$9:$B$860,0))) -> -2.679425837 | J175: =IF($A175<>0,INDEX('2.2 Daten'!M$9:M$860,MATCH('2.2'!$A175,'2.2 Daten'!$B$9:$B$860,0))) -> -3.184386235 | K175: =IF($A175<>0,INDEX('2.2 Daten'!N$9:N$860,MATCH('2.2'!$A175,'2.2 Daten'!$B$9:$B$860,0))) -> -0.3214285714 | L175: =IF($A175<>0,INDEX('2.2 Daten'!O$9:O$860,MATCH('2.2'!$A175,'2.2 Daten'!$B$9:$B$860,0))) -> -6.225680934
A176: =CHOOSE('2.2 Daten'!$A$2,'2.2 Daten'!B598,'2.2 Daten'!B147,'2.2 Daten'!B164,'2.2 Daten'!B181,'2.2 Daten'!B184,'2.2 Daten'!B231,'2.2 Daten'!B235,'2.2 Daten'!B290,'2.2 Daten'!B318,'2.2 Daten'!B356,'2.2 Daten'!B402,'2.2 Daten'!B500,'2.2 Daten'!B508,'2.2 Daten'!B511,'2.2 Daten'!B531,'2.2 Daten'!B541,'2.2 Daten'!B556,'2.2 Daten'!B572,x) -> Olpe | B176: =IF($A176<>0,INDEX('2.2 Daten'!C$9:C$860,MATCH('2.2'!$A176,'2.2 Daten'!$B$9:$B$860,0))," ") -> 5966000 | C176: =IF($A176<>0,INDEX('2.2 Daten'!E$9:E$860,MATCH('2.2'!$A176,'2.2 Daten'!$B$9:$B$860,0))) -> 1964 | D176: =IF($A176<>0,INDEX('2.2 Daten'!F$9:F$860,MATCH('2.2'!$A176,'2.2 Daten'!$B$9:$B$860,0))) -> 350 | E176: =IF($A176<>0,INDEX('2.2 Daten'!G$9:G$860,MATCH('2.2'!$A176,'2.2 Daten'!$B$9:$B$860,0))) -> 368 | F176: =IF($A176<>0,INDEX('2.2 Daten'!H$9:H$860,MATCH('2.2'!$A176,'2.2 Daten'!$B$9:$B$860,0))) -> 1001 | G176: =IF($A176<>0,INDEX('2.2 Daten'!I$9:I$860,MATCH('2.2'!$A176,'2.2 Daten'!$B$9:$B$860,0))) -> 245 | H176: =IF($A176<>0,INDEX('2.2 Daten'!K$9:K$860,MATCH('2.2'!$A176,'2.2 Daten'!$B$9:$B$860,0))) -> -10.84884249 | I176: =IF($A176<>0,INDEX('2.2 Daten'!L$9:L$860,MATCH('2.2'!$A176,'2.2 Daten'!$B$9:$B$860,0))) -> -15.86538462 | J176: =IF($A176<>0,INDEX('2.2 Daten'!M$9:M$860,MATCH('2.2'!$A176,'2.2 Daten'!$B$9:$B$860,0))) -> -13.81733021 | K176: =IF($A176<>0,INDEX('2.2 Daten'!N$9:N$860,MATCH('2.2'!$A176,'2.2 Daten'!$B$9:$B$860,0))) -> -6.797020484 | L176: =IF($A176<>0,INDEX('2.2 Daten'!O$9:O$860,MATCH('2.2'!$A176,'2.2 Daten'!$B$9:$B$860,0))) -> -14.33566434
A177: =CHOOSE('2.2 Daten'!$A$2,'2.2 Daten'!B599,'2.2 Daten'!B148,'2.2 Daten'!B165,'2.2 Daten'!B182,'2.2 Daten'!B185,'2.2 Daten'!B232,'2.2 Daten'!B236,'2.2 Daten'!B291,'2.2 Daten'!B319,'2.2 Daten'!B357,'2.2 Daten'!B403,'2.2 Daten'!B501,'2.2 Daten'!B509,'2.2 Daten'!B512,'2.2 Daten'!B532,'2.2 Daten'!B542,'2.2 Daten'!B557,'2.2 Daten'!B573,x) -> Siegen-Wittgenstein | B177: =IF($A177<>0,INDEX('2.2 Daten'!C$9:C$860,MATCH('2.2'!$A177,'2.2 Daten'!$B$9:$B$860,0))," ") -> 5970000 | C177: =IF($A177<>0,INDEX('2.2 Daten'!E$9:E$860,MATCH('2.2'!$A177,'2.2 Daten'!$B$9:$B$860,0))) -> 6039 | D177: =IF($A177<>0,INDEX('2.2 Daten'!F$9:F$860,MATCH('2.2'!$A177,'2.2 Daten'!$B$9:$B$860,0))) -> 1168 | E177: =IF($A177<>0,INDEX('2.2 Daten'!G$9:G$860,MATCH('2.2'!$A177,'2.2 Daten'!$B$9:$B$860,0))) -> 1100 | F177: =IF($A177<>0,INDEX('2.2 Daten'!H$9:H$860,MATCH('2.2'!$A177,'2.2 Daten'!$B$9:$B$860,0))) -> 2932 | G177: =IF($A177<>0,INDEX('2.2 Daten'!I$9:I$860,MATCH('2.2'!$A177,'2.2 Daten'!$B$9:$B$860,0))) -> 839 | H177: =IF($A177<>0,INDEX('2.2 Daten'!K$9:K$860,MATCH('2.2'!$A177,'2.2 Daten'!$B$9:$B$860,0))) -> 0.9191176471 | I177: =IF($A177<>0,INDEX('2.2 Daten'!L$9:L$860,MATCH('2.2'!$A177,'2.2 Daten'!$B$9:$B$860,0))) -> -0.8488964346 | J177: =IF($A177<>0,INDEX('2.2 Daten'!M$9:M$860,MATCH('2.2'!$A177,'2.2 Daten'!$B$9:$B$860,0))) -> 1.195952162 | K177: =IF($A177<>0,INDEX('2.2 Daten'!N$9:N$860,MATCH('2.2'!$A177,'2.2 Daten'!$B$9:$B$860,0))) -> 0.3765833619 | L177: =IF($A177<>0,INDEX('2.2 Daten'!O$9:O$860,MATCH('2.2'!$A177,'2.2 Daten'!$B$9:$B$860,0))) -> 5.137844612
A178: =CHOOSE('2.2 Daten'!$A$2,'2.2 Daten'!B600,'2.2 Daten'!B149,'2.2 Daten'!B166,'2.2 Daten'!B183,'2.2 Daten'!B186,'2.2 Daten'!B233,'2.2 Daten'!B237,'2.2 Daten'!B292,'2.2 Daten'!B320,'2.2 Daten'!B358,'2.2 Daten'!B404,'2.2 Daten'!B502,'2.2 Daten'!B510,'2.2 Daten'!B513,'2.2 Daten'!B533,'2.2 Daten'!B543,'2.2 Daten'!B558,'2.2 Daten'!B574,x) -> Soest | B178: =IF($A178<>0,INDEX('2.2 Daten'!C$9:C$860,MATCH('2.2'!$A178,'2.2 Daten'!$B$9:$B$860,0))," ") -> 5974000 | C178: =IF($A178<>0,INDEX('2.2 Daten'!E$9:E$860,MATCH('2.2'!$A178,'2.2 Daten'!$B$9:$B$860,0))) -> 6102 | D178: =IF($A178<>0,INDEX('2.2 Daten'!F$9:F$860,MATCH('2.2'!$A178,'2.2 Daten'!$B$9:$B$860,0))) -> 1127 | E178: =IF($A178<>0,INDEX('2.2 Daten'!G$9:G$860,MATCH('2.2'!$A178,'2.2 Daten'!$B$9:$B$860,0))) -> 1077 | F178: =IF($A178<>0,INDEX('2.2 Daten'!H$9:H$860,MATCH('2.2'!$A178,'2.2 Daten'!$B$9:$B$860,0))) -> 3076 | G178: =IF($A178<>0,INDEX('2.2 Daten'!I$9:I$860,MATCH('2.2'!$A178,'2.2 Daten'!$B$9:$B$860,0))) -> 822 | H178: =IF($A178<>0,INDEX('2.2 Daten'!K$9:K$860,MATCH('2.2'!$A178,'2.2 Daten'!$B$9:$B$860,0))) -> -4.327375353 | I178: =IF($A178<>0,INDEX('2.2 Daten'!L$9:L$860,MATCH('2.2'!$A178,'2.2 Daten'!$B$9:$B$860,0))) -> -6.705298013 | J178: =IF($A178<>0,INDEX('2.2 Daten'!M$9:M$860,MATCH('2.2'!$A178,'2.2 Daten'!$B$9:$B$860,0))) -> -8.105802048 | K178: =IF($A178<>0,INDEX('2.2 Daten'!N$9:N$860,MATCH('2.2'!$A178,'2.2 Daten'!$B$9:$B$860,0))) -> -1.881977671 | L178: =IF($A178<>0,INDEX('2.2 Daten'!O$9:O$860,MATCH('2.2'!$A178,'2.2 Daten'!$B$9:$B$860,0))) -> -4.750869061
A179: =CHOOSE('2.2 Daten'!$A$2,'2.2 Daten'!B601,'2.2 Daten'!B150,'2.2 Daten'!B167,'2.2 Daten'!B184,'2.2 Daten'!B187,'2.2 Daten'!B234,'2.2 Daten'!B238,'2.2 Daten'!B293,'2.2 Daten'!B321,'2.2 Daten'!B359,'2.2 Daten'!B405,'2.2 Daten'!B503,'2.2 Daten'!B511,'2.2 Daten'!B514,'2.2 Daten'!B534,'2.2 Daten'!B544,'2.2 Daten'!B559,'2.2 Daten'!B575,x) -> Unna | B179: =IF($A179<>0,INDEX('2.2 Daten'!C$9:C$860,MATCH('2.2'!$A179,'2.2 Daten'!$B$9:$B$860,0))," ") -> 5978000 | C179: =IF($A179<>0,INDEX('2.2 Daten'!E$9:E$860,MATCH('2.2'!$A179,'2.2 Daten'!$B$9:$B$860,0))) -> 12351 | D179: =IF($A179<>0,INDEX('2.2 Daten'!F$9:F$860,MATCH('2.2'!$A179,'2.2 Daten'!$B$9:$B$860,0))) -> 2298 | E179: =IF($A179<>0,INDEX('2.2 Daten'!G$9:G$860,MATCH('2.2'!$A179,'2.2 Daten'!$B$9:$B$860,0))) -> 2194 | F179: =IF($A179<>0,INDEX('2.2 Daten'!H$9:H$860,MATCH('2.2'!$A179,'2.2 Daten'!$B$9:$B$860,0))) -> 6161 | G179: =IF($A179<>0,INDEX('2.2 Daten'!I$9:I$860,MATCH('2.2'!$A179,'2.2 Daten'!$B$9:$B$860,0))) -> 1698 | H179: =IF($A179<>0,INDEX('2.2 Daten'!K$9:K$860,MATCH('2.2'!$A179,'2.2 Daten'!$B$9:$B$860,0))) -> -4.099697181 | I179: =IF($A179<>0,INDEX('2.2 Daten'!L$9:L$860,MATCH('2.2'!$A179,'2.2 Daten'!$B$9:$B$860,0))) -> -2.668360864 | J179: =IF($A179<>0,INDEX('2.2 Daten'!M$9:M$860,MATCH('2.2'!$A179,'2.2 Daten'!$B$9:$B$860,0))) -> -3.348017621 | K179: =IF($A179<>0,INDEX('2.2 Daten'!N$9:N$860,MATCH('2.2'!$A179,'2.2 Daten'!$B$9:$B$860,0))) -> -3.006926952 | L179: =IF($A179<>0,INDEX('2.2 Daten'!O$9:O$860,MATCH('2.2'!$A179,'2.2 Daten'!$B$9:$B$860,0))) -> -10.44303797
A180: =CHOOSE('2.2 Daten'!$A$2,'2.2 Daten'!B602,'2.2 Daten'!B151,'2.2 Daten'!B168,'2.2 Daten'!B185,'2.2 Daten'!B188,'2.2 Daten'!B235,'2.2 Daten'!B239,'2.2 Daten'!B294,'2.2 Daten'!B322,'2.2 Daten'!B360,'2.2 Daten'!B406,'2.2 Daten'!B504,'2.2 Daten'!B512,'2.2 Daten'!B515,'2.2 Daten'!B535,'2.2 Daten'!B545,'2.2 Daten'!B560,'2.2 Daten'!B576,x) -> 0 | B180: =IF($A180<>0,INDEX('2.2 Daten'!C$9:C$860,MATCH('2.2'!$A180,'2.2 Daten'!$B$9:$B$860,0))," ") ->  | C180: =IF($A180<>0,INDEX('2.2 Daten'!E$9:E$860,MATCH('2.2'!$A180,'2.2 Daten'!$B$9:$B$860,0))) -> FALSE | D180: =IF($A180<>0,INDEX('2.2 Daten'!F$9:F$860,MATCH('2.2'!$A180,'2.2 Daten'!$B$9:$B$860,0))) -> FALSE | E180: =IF($A180<>0,INDEX('2.2 Daten'!G$9:G$860,MATCH('2.2'!$A180,'2.2 Daten'!$B$9:$B$860,0))) -> FALSE | F180: =IF($A180<>0,INDEX('2.2 Daten'!H$9:H$860,MATCH('2.2'!$A180,'2.2 Daten'!$B$9:$B$860,0))) -> FALSE | G180: =IF($A180<>0,INDEX('2.2 Daten'!I$9:I$860,MATCH('2.2'!$A180,'2.2 Daten'!$B$9:$B$860,0))) -> FALSE | H180: =IF($A180<>0,INDEX('2.2 Daten'!K$9:K$860,MATCH('2.2'!$A180,'2.2 Daten'!$B$9:$B$860,0))) -> FALSE | I180: =IF($A180<>0,INDEX('2.2 Daten'!L$9:L$860,MATCH('2.2'!$A180,'2.2 Daten'!$B$9:$B$860,0))) -> FALSE | J180: =IF($A180<>0,INDEX('2.2 Daten'!M$9:M$860,MATCH('2.2'!$A180,'2.2 Daten'!$B$9:$B$860,0))) -> FALSE | K180: =IF($A180<>0,INDEX('2.2 Daten'!N$9:N$860,MATCH('2.2'!$A180,'2.2 Daten'!$B$9:$B$860,0))) -> FALSE | L180: =IF($A180<>0,INDEX('2.2 Daten'!O$9:O$860,MATCH('2.2'!$A180,'2.2 Daten'!$B$9:$B$860,0))) -> FALSE
A181: =CHOOSE('2.2 Daten'!$A$2,'2.2 Daten'!B603,'2.2 Daten'!B152,'2.2 Daten'!B169,'2.2 Daten'!B186,'2.2 Daten'!B189,'2.2 Daten'!B236,'2.2 Daten'!B240,'2.2 Daten'!B295,'2.2 Daten'!B323,'2.2 Daten'!B361,'2.2 Daten'!B407,'2.2 Daten'!B505,'2.2 Daten'!B513,'2.2 Daten'!B516,'2.2 Daten'!B536,'2.2 Daten'!B546,'2.2 Daten'!B561,'2.2 Daten'!B577,x) -> Hessen | B181: =IF($A181<>0,INDEX('2.2 Daten'!C$9:C$860,MATCH('2.2'!$A181,'2.2 Daten'!$B$9:$B$860,0))," ") -> 06 | C181: =IF($A181<>0,INDEX('2.2 Daten'!E$9:E$860,MATCH('2.2'!$A181,'2.2 Daten'!$B$9:$B$860,0))) -> 149345 | D181: =IF($A181<>0,INDEX('2.2 Daten'!F$9:F$860,MATCH('2.2'!$A181,'2.2 Daten'!$B$9:$B$860,0))) -> 29449 | E181: =IF($A181<>0,INDEX('2.2 Daten'!G$9:G$860,MATCH('2.2'!$A181,'2.2 Daten'!$B$9:$B$860,0))) -> 27422 | F181: =IF($A181<>0,INDEX('2.2 Daten'!H$9:H$860,MATCH('2.2'!$A181,'2.2 Daten'!$B$9:$B$860,0))) -> 73330 | G181: =IF($A181<>0,INDEX('2.2 Daten'!I$9:I$860,MATCH('2.2'!$A181,'2.2 Daten'!$B$9:$B$860,0))) -> 19144 | H181: =IF($A181<>0,INDEX('2.2 Daten'!K$9:K$860,MATCH('2.2'!$A181,'2.2 Daten'!$B$9:$B$860,0))) -> -3.229173594 | I181: =IF($A181<>0,INDEX('2.2 Daten'!L$9:L$860,MATCH('2.2'!$A181,'2.2 Daten'!$B$9:$B$860,0))) -> -2.800313716 | J181: =IF($A181<>0,INDEX('2.2 Daten'!M$9:M$860,MATCH('2.2'!$A181,'2.2 Daten'!$B$9:$B$860,0))) -> -1.960999131 | K181: =IF($A181<>0,INDEX('2.2 Daten'!N$9:N$860,MATCH('2.2'!$A181,'2.2 Daten'!$B$9:$B$860,0))) -> -3.117847831 | L181: =IF($A181<>0,INDEX('2.2 Daten'!O$9:O$860,MATCH('2.2'!$A181,'2.2 Daten'!$B$9:$B$860,0))) -> -6.021960002
A182: =CHOOSE('2.2 Daten'!$A$2,'2.2 Daten'!B604,'2.2 Daten'!B153,'2.2 Daten'!B170,'2.2 Daten'!B187,'2.2 Daten'!B190,'2.2 Daten'!B237,'2.2 Daten'!B241,'2.2 Daten'!B296,'2.2 Daten'!B324,'2.2 Daten'!B362,'2.2 Daten'!B408,'2.2 Daten'!B506,'2.2 Daten'!B514,'2.2 Daten'!B517,'2.2 Daten'!B537,'2.2 Daten'!B547,'2.2 Daten'!B562,'2.2 Daten'!B578,x) -> Darmstadt, Wissenschaftsstadt | B182: =IF($A182<>0,INDEX('2.2 Daten'!C$9:C$860,MATCH('2.2'!$A182,'2.2 Daten'!$B$9:$B$860,0))," ") -> 6411000 | C182: =IF($A182<>0,INDEX('2.2 Daten'!E$9:E$860,MATCH('2.2'!$A182,'2.2 Daten'!$B$9:$B$860,0))) -> 5135 | D182: =IF($A182<>0,INDEX('2.2 Daten'!F$9:F$860,MATCH('2.2'!$A182,'2.2 Daten'!$B$9:$B$860,0))) -> 995 | E182: =IF($A182<>0,INDEX('2.2 Daten'!G$9:G$860,MATCH('2.2'!$A182,'2.2 Daten'!$B$9:$B$860,0))) -> 943 | F182: =IF($A182<>0,INDEX('2.2 Daten'!H$9:H$860,MATCH('2.2'!$A182,'2.2 Daten'!$B$9:$B$860,0))) -> 2555 | G182: =IF($A182<>0,INDEX('2.2 Daten'!I$9:I$860,MATCH('2.2'!$A182,'2.2 Daten'!$B$9:$B$860,0))) -> 642 | H182: =IF($A182<>0,INDEX('2.2 Daten'!K$9:K$860,MATCH('2.2'!$A182,'2.2 Daten'!$B$9:$B$860,0))) -> -3.477443609 | I182: =IF($A182<>0,INDEX('2.2 Daten'!L$9:L$860,MATCH('2.2'!$A182,'2.2 Daten'!$B$9:$B$860,0))) -> -3.678606002 | J182: =IF($A182<>0,INDEX('2.2 Daten'!M$9:M$860,MATCH('2.2'!$A182,'2.2 Daten'!$B$9:$B$860,0))) -> -3.578732106 | K182: =IF($A182<>0,INDEX('2.2 Daten'!N$9:N$860,MATCH('2.2'!$A182,'2.2 Daten'!$B$9:$B$860,0))) -> -2.331804281 | L182: =IF($A182<>0,INDEX('2.2 Daten'!O$9:O$860,MATCH('2.2'!$A182,'2.2 Daten'!$B$9:$B$860,0))) -> -7.359307359
A183: =CHOOSE('2.2 Daten'!$A$2,'2.2 Daten'!B605,'2.2 Daten'!B154,'2.2 Daten'!B171,'2.2 Daten'!B188,'2.2 Daten'!B191,'2.2 Daten'!B238,'2.2 Daten'!B242,'2.2 Daten'!B297,'2.2 Daten'!B325,'2.2 Daten'!B363,'2.2 Daten'!B409,'2.2 Daten'!B507,'2.2 Daten'!B515,'2.2 Daten'!B518,'2.2 Daten'!B538,'2.2 Daten'!B548,'2.2 Daten'!B563,'2.2 Daten'!B579,x) -> Frankfurt am Main, Stadt | B183: =IF($A183<>0,INDEX('2.2 Daten'!C$9:C$860,MATCH('2.2'!$A183,'2.2 Daten'!$B$9:$B$860,0))," ") -> 6412000 | C183: =IF($A183<>0,INDEX('2.2 Daten'!E$9:E$860,MATCH('2.2'!$A183,'2.2 Daten'!$B$9:$B$860,0))) -> 24146 | D183: =IF($A183<>0,INDEX('2.2 Daten'!F$9:F$860,MATCH('2.2'!$A183,'2.2 Daten'!$B$9:$B$860,0))) -> 4793 | E183: =IF($A183<>0,INDEX('2.2 Daten'!G$9:G$860,MATCH('2.2'!$A183,'2.2 Daten'!$B$9:$B$860,0))) -> 4483 | F183: =IF($A183<>0,INDEX('2.2 Daten'!H$9:H$860,MATCH('2.2'!$A183,'2.2 Daten'!$B$9:$B$860,0))) -> 11795 | G183: =IF($A183<>0,INDEX('2.2 Daten'!I$9:I$860,MATCH('2.2'!$A183,'2.2 Daten'!$B$9:$B$860,0))) -> 3075 | H183: =IF($A183<>0,INDEX('2.2 Daten'!K$9:K$860,MATCH('2.2'!$A183,'2.2 Daten'!$B$9:$B$860,0))) -> -4.493315402 | I183: =IF($A183<>0,INDEX('2.2 Daten'!L$9:L$860,MATCH('2.2'!$A183,'2.2 Daten'!$B$9:$B$860,0))) -> -4.120824165 | J183: =IF($A183<>0,INDEX('2.2 Daten'!M$9:M$860,MATCH('2.2'!$A183,'2.2 Daten'!$B$9:$B$860,0))) -> -2.245965983 | K183: =IF($A183<>0,INDEX('2.2 Daten'!N$9:N$860,MATCH('2.2'!$A183,'2.2 Daten'!$B$9:$B$860,0))) -> -5.458480282 | L183: =IF($A183<>0,INDEX('2.2 Daten'!O$9:O$860,MATCH('2.2'!$A183,'2.2 Daten'!$B$9:$B$860,0))) -> -4.532753803
A184: =CHOOSE('2.2 Daten'!$A$2,'2.2 Daten'!B606,'2.2 Daten'!B155,'2.2 Daten'!B172,'2.2 Daten'!B189,'2.2 Daten'!B192,'2.2 Daten'!B239,'2.2 Daten'!B243,'2.2 Daten'!B298,'2.2 Daten'!B326,'2.2 Daten'!B364,'2.2 Daten'!B410,'2.2 Daten'!B508,'2.2 Daten'!B516,'2.2 Daten'!B519,'2.2 Daten'!B539,'2.2 Daten'!B549,'2.2 Daten'!B564,'2.2 Daten'!B580,x) -> Offenbach am Main, Stadt | B184: =IF($A184<>0,INDEX('2.2 Daten'!C$9:C$860,MATCH('2.2'!$A184,'2.2 Daten'!$B$9:$B$860,0))," ") -> 6413000 | C184: =IF($A184<>0,INDEX('2.2 Daten'!E$9:E$860,MATCH('2.2'!$A184,'2.2 Daten'!$B$9:$B$860,0))) -> 6237 | D184: =IF($A184<>0,INDEX('2.2 Daten'!F$9:F$860,MATCH('2.2'!$A184,'2.2 Daten'!$B$9:$B$860,0))) -> 1048 | E184: =IF($A184<>0,INDEX('2.2 Daten'!G$9:G$860,MATCH('2.2'!$A184,'2.2 Daten'!$B$9:$B$860,0))) -> 1132 | F184: =IF($A184<>0,INDEX('2.2 Daten'!H$9:H$860,MATCH('2.2'!$A184,'2.2 Daten'!$B$9:$B$860,0))) -> 3248 | G184: =IF($A184<>0,INDEX('2.2 Daten'!I$9:I$860,MATCH('2.2'!$A184,'2.2 Daten'!$B$9:$B$860,0))) -> 809 | H184: =IF($A184<>0,INDEX('2.2 Daten'!K$9:K$860,MATCH('2.2'!$A184,'2.2 Daten'!$B$9:$B$860,0))) -> -6.069277108 | I184: =IF($A184<>0,INDEX('2.2 Daten'!L$9:L$860,MATCH('2.2'!$A184,'2.2 Daten'!$B$9:$B$860,0))) -> -5.072463768 | J184: =IF($A184<>0,INDEX('2.2 Daten'!M$9:M$860,MATCH('2.2'!$A184,'2.2 Daten'!$B$9:$B$860,0))) -> -6.213753107 | K184: =IF($A184<>0,INDEX('2.2 Daten'!N$9:N$860,MATCH('2.2'!$A184,'2.2 Daten'!$B$9:$B$860,0))) -> -5.361305361 | L184: =IF($A184<>0,INDEX('2.2 Daten'!O$9:O$860,MATCH('2.2'!$A184,'2.2 Daten'!$B$9:$B$860,0))) -> -9.810479376
A185: =CHOOSE('2.2 Daten'!$A$2,'2.2 Daten'!B607,'2.2 Daten'!B156,'2.2 Daten'!B173,'2.2 Daten'!B190,'2.2 Daten'!B193,'2.2 Daten'!B240,'2.2 Daten'!B244,'2.2 Daten'!B299,'2.2 Daten'!B327,'2.2 Daten'!B365,'2.2 Daten'!B411,'2.2 Daten'!B509,'2.2 Daten'!B517,'2.2 Daten'!B520,'2.2 Daten'!B540,'2.2 Daten'!B550,'2.2 Daten'!B565,'2.2 Daten'!B581,x) -> Wiesbaden, Landeshauptstadt | B185: =IF($A185<>0,INDEX('2.2 Daten'!C$9:C$860,MATCH('2.2'!$A185,'2.2 Daten'!$B$9:$B$860,0))," ") -> 6414000 | C185: =IF($A185<>0,INDEX('2.2 Daten'!E$9:E$860,MATCH('2.2'!$A185,'2.2 Daten'!$B$9:$B$860,0))) -> 11134 | D185: =IF($A185<>0,INDEX('2.2 Daten'!F$9:F$860,MATCH('2.2'!$A185,'2.2 Daten'!$B$9:$B$860,0))) -> 2032 | E185: =IF($A185<>0,INDEX('2.2 Daten'!G$9:G$860,MATCH('2.2'!$A185,'2.2 Daten'!$B$9:$B$860,0))) -> 2010 | F185: =IF($A185<>0,INDEX('2.2 Daten'!H$9:H$860,MATCH('2.2'!$A185,'2.2 Daten'!$B$9:$B$860,0))) -> 5584 | G185: =IF($A185<>0,INDEX('2.2 Daten'!I$9:I$860,MATCH('2.2'!$A185,'2.2 Daten'!$B$9:$B$860,0))) -> 1508 | H185: =IF($A185<>0,INDEX('2.2 Daten'!K$9:K$860,MATCH('2.2'!$A185,'2.2 Daten'!$B$9:$B$860,0))) -> -3.317124001 | I185: =IF($A185<>0,INDEX('2.2 Daten'!L$9:L$860,MATCH('2.2'!$A185,'2.2 Daten'!$B$9:$B$860,0))) -> -5.268065268 | J185: =IF($A185<>0,INDEX('2.2 Daten'!M$9:M$860,MATCH('2.2'!$A185,'2.2 Daten'!$B$9:$B$860,0))) -> -2.379796017 | K185: =IF($A185<>0,INDEX('2.2 Daten'!N$9:N$860,MATCH('2.2'!$A185,'2.2 Daten'!$B$9:$B$860,0))) -> -3.357563171 | L185: =IF($A185<>0,INDEX('2.2 Daten'!O$9:O$860,MATCH('2.2'!$A185,'2.2 Daten'!$B$9:$B$860,0))) -> -1.694915254
A186: =CHOOSE('2.2 Daten'!$A$2,'2.2 Daten'!B608,'2.2 Daten'!B157,'2.2 Daten'!B174,'2.2 Daten'!B191,'2.2 Daten'!B194,'2.2 Daten'!B241,'2.2 Daten'!B245,'2.2 Daten'!B300,'2.2 Daten'!B328,'2.2 Daten'!B366,'2.2 Daten'!B412,'2.2 Daten'!B510,'2.2 Daten'!B518,'2.2 Daten'!B521,'2.2 Daten'!B541,'2.2 Daten'!B551,'2.2 Daten'!B566,'2.2 Daten'!B582,x) -> Bergstraße | B186: =IF($A186<>0,INDEX('2.2 Daten'!C$9:C$860,MATCH('2.2'!$A186,'2.2 Daten'!$B$9:$B$860,0))," ") -> 6431000 | C186: =IF($A186<>0,INDEX('2.2 Daten'!E$9:E$860,MATCH('2.2'!$A186,'2.2 Daten'!$B$9:$B$860,0))) -> 4807 | D186: =IF($A186<>0,INDEX('2.2 Daten'!F$9:F$860,MATCH('2.2'!$A186,'2.2 Daten'!$B$9:$B$860,0))) -> 973 | E186: =IF($A186<>0,INDEX('2.2 Daten'!G$9:G$860,MATCH('2.2'!$A186,'2.2 Daten'!$B$9:$B$860,0))) -> 894 | F186: =IF($A186<>0,INDEX('2.2 Daten'!H$9:H$860,MATCH('2.2'!$A186,'2.2 Daten'!$B$9:$B$860,0))) -> 2352 | G186: =IF($A186<>0,INDEX('2.2 Daten'!I$9:I$860,MATCH('2.2'!$A186,'2.2 Daten'!$B$9:$B$860,0))) -> 588 | H186: =IF($A186<>0,INDEX('2.2 Daten'!K$9:K$860,MATCH('2.2'!$A186,'2.2 Daten'!$B$9:$B$860,0))) -> -1.957984907 | I186: =IF($A186<>0,INDEX('2.2 Daten'!L$9:L$860,MATCH('2.2'!$A186,'2.2 Daten'!$B$9:$B$860,0))) -> 3.731343284 | J186: =IF($A186<>0,INDEX('2.2 Daten'!M$9:M$860,MATCH('2.2'!$A186,'2.2 Daten'!$B$9:$B$860,0))) -> -2.188183807 | K186: =IF($A186<>0,INDEX('2.2 Daten'!N$9:N$860,MATCH('2.2'!$A186,'2.2 Daten'!$B$9:$B$860,0))) -> -2.040816327 | L186: =IF($A186<>0,INDEX('2.2 Daten'!O$9:O$860,MATCH('2.2'!$A186,'2.2 Daten'!$B$9:$B$860,0))) -> -9.538461538
A187: =CHOOSE('2.2 Daten'!$A$2,'2.2 Daten'!B609,'2.2 Daten'!B158,'2.2 Daten'!B175,'2.2 Daten'!B192,'2.2 Daten'!B195,'2.2 Daten'!B242,'2.2 Daten'!B246,'2.2 Daten'!B301,'2.2 Daten'!B329,'2.2 Daten'!B367,'2.2 Daten'!B413,'2.2 Daten'!B511,'2.2 Daten'!B519,'2.2 Daten'!B522,'2.2 Daten'!B542,'2.2 Daten'!B552,'2.2 Daten'!B567,'2.2 Daten'!B583,x) -> Darmstadt-Dieburg | B187: =IF($A187<>0,INDEX('2.2 Daten'!C$9:C$860,MATCH('2.2'!$A187,'2.2 Daten'!$B$9:$B$860,0))," ") -> 6432000 | C187: =IF($A187<>0,INDEX('2.2 Daten'!E$9:E$860,MATCH('2.2'!$A187,'2.2 Daten'!$B$9:$B$860,0))) -> 5567 | D187: =IF($A187<>0,INDEX('2.2 Daten'!F$9:F$860,MATCH('2.2'!$A187,'2.2 Daten'!$B$9:$B$860,0))) -> 1137 | E187: =IF($A187<>0,INDEX('2.2 Daten'!G$9:G$860,MATCH('2.2'!$A187,'2.2 Daten'!$B$9:$B$860,0))) -> 987 | F187: =IF($A187<>0,INDEX('2.2 Daten'!H$9:H$860,MATCH('2.2'!$A187,'2.2 Daten'!$B$9:$B$860,0))) -> 2717 | G187: =IF($A187<>0,INDEX('2.2 Daten'!I$9:I$860,MATCH('2.2'!$A187,'2.2 Daten'!$B$9:$B$860,0))) -> 726 | H187: =IF($A187<>0,INDEX('2.2 Daten'!K$9:K$860,MATCH('2.2'!$A187,'2.2 Daten'!$B$9:$B$860,0))) -> -4.116431278 | I187: =IF($A187<>0,INDEX('2.2 Daten'!L$9:L$860,MATCH('2.2'!$A187,'2.2 Daten'!$B$9:$B$860,0))) -> -3.234042553 | J187: =IF($A187<>0,INDEX('2.2 Daten'!M$9:M$860,MATCH('2.2'!$A187,'2.2 Daten'!$B$9:$B$860,0))) -> -2.949852507 | K187: =IF($A187<>0,INDEX('2.2 Daten'!N$9:N$860,MATCH('2.2'!$A187,'2.2 Daten'!$B$9:$B$860,0))) -> -2.26618705 | L187: =IF($A187<>0,INDEX('2.2 Daten'!O$9:O$860,MATCH('2.2'!$A187,'2.2 Daten'!$B$9:$B$860,0))) -> -12.94964029
A188: =CHOOSE('2.2 Daten'!$A$2,'2.2 Daten'!B610,'2.2 Daten'!B159,'2.2 Daten'!B176,'2.2 Daten'!B193,'2.2 Daten'!B196,'2.2 Daten'!B243,'2.2 Daten'!B247,'2.2 Daten'!B302,'2.2 Daten'!B330,'2.2 Daten'!B368,'2.2 Daten'!B414,'2.2 Daten'!B512,'2.2 Daten'!B520,'2.2 Daten'!B523,'2.2 Daten'!B543,'2.2 Daten'!B553,'2.2 Daten'!B568,'2.2 Daten'!B584,x) -> Groß-Gerau | B188: =IF($A188<>0,INDEX('2.2 Daten'!C$9:C$860,MATCH('2.2'!$A188,'2.2 Daten'!$B$9:$B$860,0))," ") -> 6433000 | C188: =IF($A188<>0,INDEX('2.2 Daten'!E$9:E$860,MATCH('2.2'!$A188,'2.2 Daten'!$B$9:$B$860,0))) -> 7575 | D188: =IF($A188<>0,INDEX('2.2 Daten'!F$9:F$860,MATCH('2.2'!$A188,'2.2 Daten'!$B$9:$B$860,0))) -> 1474 | E188: =IF($A188<>0,INDEX('2.2 Daten'!G$9:G$860,MATCH('2.2'!$A188,'2.2 Daten'!$B$9:$B$860,0))) -> 1341 | F188: =IF($A188<>0,INDEX('2.2 Daten'!H$9:H$860,MATCH('2.2'!$A188,'2.2 Daten'!$B$9:$B$860,0))) -> 3737 | G188: =IF($A188<>0,INDEX('2.2 Daten'!I$9:I$860,MATCH('2.2'!$A188,'2.2 Daten'!$B$9:$B$860,0))) -> 1023 | H188: =IF($A188<>0,INDEX('2.2 Daten'!K$9:K$860,MATCH('2.2'!$A188,'2.2 Daten'!$B$9:$B$860,0))) -> -5.865539953 | I188: =IF($A188<>0,INDEX('2.2 Daten'!L$9:L$860,MATCH('2.2'!$A188,'2.2 Daten'!$B$9:$B$860,0))) -> -5.391527599 | J188: =IF($A188<>0,INDEX('2.2 Daten'!M$9:M$860,MATCH('2.2'!$A188,'2.2 Daten'!$B$9:$B$860,0))) -> -4.419101924 | K188: =IF($A188<>0,INDEX('2.2 Daten'!N$9:N$860,MATCH('2.2'!$A188,'2.2 Daten'!$B$9:$B$860,0))) -> -5.488113303 | L188: =IF($A188<>0,INDEX('2.2 Daten'!O$9:O$860,MATCH('2.2'!$A188,'2.2 Daten'!$B$9:$B$860,0))) -> -9.628975265
A189: =CHOOSE('2.2 Daten'!$A$2,'2.2 Daten'!B611,'2.2 Daten'!B160,'2.2 Daten'!B177,'2.2 Daten'!B194,'2.2 Daten'!B197,'2.2 Daten'!B244,'2.2 Daten'!B248,'2.2 Daten'!B303,'2.2 Daten'!B331,'2.2 Daten'!B369,'2.2 Daten'!B415,'2.2 Daten'!B513,'2.2 Daten'!B521,'2.2 Daten'!B524,'2.2 Daten'!B544,'2.2 Daten'!B554,'2.2 Daten'!B569,'2.2 Daten'!B585,x) -> Hochtaunuskreis | B189: =IF($A189<>0,INDEX('2.2 Daten'!C$9:C$860,MATCH('2.2'!$A189,'2.2 Daten'!$B$9:$B$860,0))," ") -> 6434000 | C189: =IF($A189<>0,INDEX('2.2 Daten'!E$9:E$860,MATCH('2.2'!$A189,'2.2 Daten'!$B$9:$B$860,0))) -> 3880 | D189: =IF($A189<>0,INDEX('2.2 Daten'!F$9:F$860,MATCH('2.2'!$A189,'2.2 Daten'!$B$9:$B$860,0))) -> 733 | E189: =IF($A189<>0,INDEX('2.2 Daten'!G$9:G$860,MATCH('2.2'!$A189,'2.2 Daten'!$B$9:$B$860,0))) -> 698 | F189: =IF($A189<>0,INDEX('2.2 Daten'!H$9:H$860,MATCH('2.2'!$A189,'2.2 Daten'!$B$9:$B$860,0))) -> 1922 | G189: =IF($A189<>0,INDEX('2.2 Daten'!I$9:I$860,MATCH('2.2'!$A189,'2.2 Daten'!$B$9:$B$860,0))) -> 527 | H189: =IF($A189<>0,INDEX('2.2 Daten'!K$9:K$860,MATCH('2.2'!$A189,'2.2 Daten'!$B$9:$B$860,0))) -> -1.871522509 | I189: =IF($A189<>0,INDEX('2.2 Daten'!L$9:L$860,MATCH('2.2'!$A189,'2.2 Daten'!$B$9:$B$860,0))) -> 3.385049365 | J189: =IF($A189<>0,INDEX('2.2 Daten'!M$9:M$860,MATCH('2.2'!$A189,'2.2 Daten'!$B$9:$B$860,0))) -> -6.434316354 | K189: =IF($A189<>0,INDEX('2.2 Daten'!N$9:N$860,MATCH('2.2'!$A189,'2.2 Daten'!$B$9:$B$860,0))) -> -2.929292929 | L189: =IF($A189<>0,INDEX('2.2 Daten'!O$9:O$860,MATCH('2.2'!$A189,'2.2 Daten'!$B$9:$B$860,0))) -> 1.541425819
A190: =CHOOSE('2.2 Daten'!$A$2,'2.2 Daten'!B612,'2.2 Daten'!B161,'2.2 Daten'!B178,'2.2 Daten'!B195,'2.2 Daten'!B198,'2.2 Daten'!B245,'2.2 Daten'!B249,'2.2 Daten'!B304,'2.2 Daten'!B332,'2.2 Daten'!B370,'2.2 Daten'!B416,'2.2 Daten'!B514,'2.2 Daten'!B522,'2.2 Daten'!B525,'2.2 Daten'!B545,'2.2 Daten'!B555,'2.2 Daten'!B570,'2.2 Daten'!B586,x) -> Main-Kinzig-Kreis | B190: =IF($A190<>0,INDEX('2.2 Daten'!C$9:C$860,MATCH('2.2'!$A190,'2.2 Daten'!$B$9:$B$860,0))," ") -> 6435000 | C190: =IF($A190<>0,INDEX('2.2 Daten'!E$9:E$860,MATCH('2.2'!$A190,'2.2 Daten'!$B$9:$B$860,0))) -> 9243 | D190: =IF($A190<>0,INDEX('2.2 Daten'!F$9:F$860,MATCH('2.2'!$A190,'2.2 Daten'!$B$9:$B$860,0))) -> 1729 | E190: =IF($A190<>0,INDEX('2.2 Daten'!G$9:G$860,MATCH('2.2'!$A190,'2.2 Daten'!$B$9:$B$860,0))) -> 1759 | F190: =IF($A190<>0,INDEX('2.2 Daten'!H$9:H$860,MATCH('2.2'!$A190,'2.2 Daten'!$B$9:$B$860,0))) -> 4568 | G190: =IF($A190<>0,INDEX('2.2 Daten'!I$9:I$860,MATCH('2.2'!$A190,'2.2 Daten'!$B$9:$B$860,0))) -> 1187 | H190: =IF($A190<>0,INDEX('2.2 Daten'!K$9:K$860,MATCH('2.2'!$A190,'2.2 Daten'!$B$9:$B$860,0))) -> -2.899464229 | I190: =IF($A190<>0,INDEX('2.2 Daten'!L$9:L$860,MATCH('2.2'!$A190,'2.2 Daten'!$B$9:$B$860,0))) -> -5.363984674 | J190: =IF($A190<>0,INDEX('2.2 Daten'!M$9:M$860,MATCH('2.2'!$A190,'2.2 Daten'!$B$9:$B$860,0))) -> 2.26744186 | K190: =IF($A190<>0,INDEX('2.2 Daten'!N$9:N$860,MATCH('2.2'!$A190,'2.2 Daten'!$B$9:$B$860,0))) -> -2.121277052 | L190: =IF($A190<>0,INDEX('2.2 Daten'!O$9:O$860,MATCH('2.2'!$A190,'2.2 Daten'!$B$9:$B$860,0))) -> -9.042145594
A191: =CHOOSE('2.2 Daten'!$A$2,'2.2 Daten'!B613,'2.2 Daten'!B162,'2.2 Daten'!B179,'2.2 Daten'!B196,'2.2 Daten'!B199,'2.2 Daten'!B246,'2.2 Daten'!B250,'2.2 Daten'!B305,'2.2 Daten'!B333,'2.2 Daten'!B371,'2.2 Daten'!B417,'2.2 Daten'!B515,'2.2 Daten'!B523,'2.2 Daten'!B526,'2.2 Daten'!B546,'2.2 Daten'!B556,'2.2 Daten'!B571,'2.2 Daten'!B587,x) -> Main-Taunus-Kreis | B191: =IF($A191<>0,INDEX('2.2 Daten'!C$9:C$860,MATCH('2.2'!$A191,'2.2 Daten'!$B$9:$B$860,0))," ") -> 6436000 | C191: =IF($A191<>0,INDEX('2.2 Daten'!E$9:E$860,MATCH('2.2'!$A191,'2.2 Daten'!$B$9:$B$860,0))) -> 3949 | D191: =IF($A191<>0,INDEX('2.2 Daten'!F$9:F$860,MATCH('2.2'!$A191,'2.2 Daten'!$B$9:$B$860,0))) -> 751 | E191: =IF($A191<>0,INDEX('2.2 Daten'!G$9:G$860,MATCH('2.2'!$A191,'2.2 Daten'!$B$9:$B$860,0))) -> 681 | F191: =IF($A191<>0,INDEX('2.2 Daten'!H$9:H$860,MATCH('2.2'!$A191,'2.2 Daten'!$B$9:$B$860,0))) -> 2023 | G191: =IF($A191<>0,INDEX('2.2 Daten'!I$9:I$860,MATCH('2.2'!$A191,'2.2 Daten'!$B$9:$B$860,0))) -> 494 | H191: =IF($A191<>0,INDEX('2.2 Daten'!K$9:K$860,MATCH('2.2'!$A191,'2.2 Daten'!$B$9:$B$860,0))) -> -3.70641307 | I191: =IF($A191<>0,INDEX('2.2 Daten'!L$9:L$860,MATCH('2.2'!$A191,'2.2 Daten'!$B$9:$B$860,0))) -> -2.340702211 | J191: =IF($A191<>0,INDEX('2.2 Daten'!M$9:M$860,MATCH('2.2'!$A191,'2.2 Daten'!$B$9:$B$860,0))) -> -8.344549125 | K191: =IF($A191<>0,INDEX('2.2 Daten'!N$9:N$860,MATCH('2.2'!$A191,'2.2 Daten'!$B$9:$B$860,0))) -> -1.02739726 | L191: =IF($A191<>0,INDEX('2.2 Daten'!O$9:O$860,MATCH('2.2'!$A191,'2.2 Daten'!$B$9:$B$860,0))) -> -9.357798165
A192: =CHOOSE('2.2 Daten'!$A$2,'2.2 Daten'!B614,'2.2 Daten'!B163,'2.2 Daten'!B180,'2.2 Daten'!B197,'2.2 Daten'!B200,'2.2 Daten'!B247,'2.2 Daten'!B251,'2.2 Daten'!B306,'2.2 Daten'!B334,'2.2 Daten'!B372,'2.2 Daten'!B418,'2.2 Daten'!B516,'2.2 Daten'!B524,'2.2 Daten'!B527,'2.2 Daten'!B547,'2.2 Daten'!B557,'2.2 Daten'!B572,'2.2 Daten'!B588,x) -> Odenwaldkreis | B192: =IF($A192<>0,INDEX('2.2 Daten'!C$9:C$860,MATCH('2.2'!$A192,'2.2 Daten'!$B$9:$B$860,0))," ") -> 6437000 | C192: =IF($A192<>0,INDEX('2.2 Daten'!E$9:E$860,MATCH('2.2'!$A192,'2.2 Daten'!$B$9:$B$860,0))) -> 1793 | D192: =IF($A192<>0,INDEX('2.2 Daten'!F$9:F$860,MATCH('2.2'!$A192,'2.2 Daten'!$B$9:$B$860,0))) -> 337 | E192: =IF($A192<>0,INDEX('2.2 Daten'!G$9:G$860,MATCH('2.2'!$A192,'2.2 Daten'!$B$9:$B$860,0))) -> 324 | F192: =IF($A192<>0,INDEX('2.2 Daten'!H$9:H$860,MATCH('2.2'!$A192,'2.2 Daten'!$B$9:$B$860,0))) -> 881 | G192: =IF($A192<>0,INDEX('2.2 Daten'!I$9:I$860,MATCH('2.2'!$A192,'2.2 Daten'!$B$9:$B$860,0))) -> 251 | H192: =IF($A192<>0,INDEX('2.2 Daten'!K$9:K$860,MATCH('2.2'!$A192,'2.2 Daten'!$B$9:$B$860,0))) -> -7.050285122 | I192: =IF($A192<>0,INDEX('2.2 Daten'!L$9:L$860,MATCH('2.2'!$A192,'2.2 Daten'!$B$9:$B$860,0))) -> -2.034883721 | J192: =IF($A192<>0,INDEX('2.2 Daten'!M$9:M$860,MATCH('2.2'!$A192,'2.2 Daten'!$B$9:$B$860,0))) -> -2.702702703 | K192: =IF($A192<>0,INDEX('2.2 Daten'!N$9:N$860,MATCH('2.2'!$A192,'2.2 Daten'!$B$9:$B$860,0))) -> -8.41995842 | L192: =IF($A192<>0,INDEX('2.2 Daten'!O$9:O$860,MATCH('2.2'!$A192,'2.2 Daten'!$B$9:$B$860,0))) -> -13.44827586
A193: =CHOOSE('2.2 Daten'!$A$2,'2.2 Daten'!B615,'2.2 Daten'!B164,'2.2 Daten'!B181,'2.2 Daten'!B198,'2.2 Daten'!B201,'2.2 Daten'!B248,'2.2 Daten'!B252,'2.2 Daten'!B307,'2.2 Daten'!B335,'2.2 Daten'!B373,'2.2 Daten'!B419,'2.2 Daten'!B517,'2.2 Daten'!B525,'2.2 Daten'!B528,'2.2 Daten'!B548,'2.2 Daten'!B558,'2.2 Daten'!B573,'2.2 Daten'!B589,x) -> Offenbach | B193: =IF($A193<>0,INDEX('2.2 Daten'!C$9:C$860,MATCH('2.2'!$A193,'2.2 Daten'!$B$9:$B$860,0))," ") -> 6438000 | C193: =IF($A193<>0,INDEX('2.2 Daten'!E$9:E$860,MATCH('2.2'!$A193,'2.2 Daten'!$B$9:$B$860,0))) -> 8113 | D193: =IF($A193<>0,INDEX('2.2 Daten'!F$9:F$860,MATCH('2.2'!$A193,'2.2 Daten'!$B$9:$B$860,0))) -> 1546 | E193: =IF($A193<>0,INDEX('2.2 Daten'!G$9:G$860,MATCH('2.2'!$A193,'2.2 Daten'!$B$9:$B$860,0))) -> 1467 | F193: =IF($A193<>0,INDEX('2.2 Daten'!H$9:H$860,MATCH('2.2'!$A193,'2.2 Daten'!$B$9:$B$860,0))) -> 3978 | G193: =IF($A193<>0,INDEX('2.2 Daten'!I$9:I$860,MATCH('2.2'!$A193,'2.2 Daten'!$B$9:$B$860,0))) -> 1122 | H193: =IF($A193<>0,INDEX('2.2 Daten'!K$9:K$860,MATCH('2.2'!$A193,'2.2 Daten'!$B$9:$B$860,0))) -> -5.365682958 | I193: =IF($A193<>0,INDEX('2.2 Daten'!L$9:L$860,MATCH('2.2'!$A193,'2.2 Daten'!$B$9:$B$860,0))) -> -6.416464891 | J193: =IF($A193<>0,INDEX('2.2 Daten'!M$9:M$860,MATCH('2.2'!$A193,'2.2 Daten'!$B$9:$B$860,0))) -> 0.1365187713 | K193: =IF($A193<>0,INDEX('2.2 Daten'!N$9:N$860,MATCH('2.2'!$A193,'2.2 Daten'!$B$9:$B$860,0))) -> -6.707317073 | L193: =IF($A193<>0,INDEX('2.2 Daten'!O$9:O$860,MATCH('2.2'!$A193,'2.2 Daten'!$B$9:$B$860,0))) -> -5.872483221
A194: =CHOOSE('2.2 Daten'!$A$2,'2.2 Daten'!B616,'2.2 Daten'!B165,'2.2 Daten'!B182,'2.2 Daten'!B199,'2.2 Daten'!B202,'2.2 Daten'!B249,'2.2 Daten'!B253,'2.2 Daten'!B308,'2.2 Daten'!B336,'2.2 Daten'!B374,'2.2 Daten'!B420,'2.2 Daten'!B518,'2.2 Daten'!B526,'2.2 Daten'!B529,'2.2 Daten'!B549,'2.2 Daten'!B559,'2.2 Daten'!B574,'2.2 Daten'!B590,x) -> Rheingau-Taunus-Kreis | B194: =IF($A194<>0,INDEX('2.2 Daten'!C$9:C$860,MATCH('2.2'!$A194,'2.2 Daten'!$B$9:$B$860,0))," ") -> 6439000 | C194: =IF($A194<>0,INDEX('2.2 Daten'!E$9:E$860,MATCH('2.2'!$A194,'2.2 Daten'!$B$9:$B$860,0))) -> 3309 | D194: =IF($A194<>0,INDEX('2.2 Daten'!F$9:F$860,MATCH('2.2'!$A194,'2.2 Daten'!$B$9:$B$860,0))) -> 680 | E194: =IF($A194<>0,INDEX('2.2 Daten'!G$9:G$860,MATCH('2.2'!$A194,'2.2 Daten'!$B$9:$B$860,0))) -> 580 | F194: =IF($A194<>0,INDEX('2.2 Daten'!H$9:H$860,MATCH('2.2'!$A194,'2.2 Daten'!$B$9:$B$860,0))) -> 1612 | G194: =IF($A194<>0,INDEX('2.2 Daten'!I$9:I$860,MATCH('2.2'!$A194,'2.2 Daten'!$B$9:$B$860,0))) -> 437 | H194: =IF($A194<>0,INDEX('2.2 Daten'!K$9:K$860,MATCH('2.2'!$A194,'2.2 Daten'!$B$9:$B$860,0))) -> 0.3031221582 | I194: =IF($A194<>0,INDEX('2.2 Daten'!L$9:L$860,MATCH('2.2'!$A194,'2.2 Daten'!$B$9:$B$860,0))) -> 5.919003115 | J194: =IF($A194<>0,INDEX('2.2 Daten'!M$9:M$860,MATCH('2.2'!$A194,'2.2 Daten'!$B$9:$B$860,0))) -> -2.521008403 | K194: =IF($A194<>0,INDEX('2.2 Daten'!N$9:N$860,MATCH('2.2'!$A194,'2.2 Daten'!$B$9:$B$860,0))) -> -2.362204724 | L194: =IF($A194<>0,INDEX('2.2 Daten'!O$9:O$860,MATCH('2.2'!$A194,'2.2 Daten'!$B$9:$B$860,0))) -> 6.326034063
A195: =CHOOSE('2.2 Daten'!$A$2,'2.2 Daten'!B617,'2.2 Daten'!B166,'2.2 Daten'!B183,'2.2 Daten'!B200,'2.2 Daten'!B203,'2.2 Daten'!B250,'2.2 Daten'!B254,'2.2 Daten'!B309,'2.2 Daten'!B337,'2.2 Daten'!B375,'2.2 Daten'!B421,'2.2 Daten'!B519,'2.2 Daten'!B527,'2.2 Daten'!B530,'2.2 Daten'!B550,'2.2 Daten'!B560,'2.2 Daten'!B575,'2.2 Daten'!B591,x) -> Wetteraukreis | B195: =IF($A195<>0,INDEX('2.2 Daten'!C$9:C$860,MATCH('2.2'!$A195,'2.2 Daten'!$B$9:$B$860,0))," ") -> 6440000 | C195: =IF($A195<>0,INDEX('2.2 Daten'!E$9:E$860,MATCH('2.2'!$A195,'2.2 Daten'!$B$9:$B$860,0))) -> 5425 | D195: =IF($A195<>0,INDEX('2.2 Daten'!F$9:F$860,MATCH('2.2'!$A195,'2.2 Daten'!$B$9:$B$860,0))) -> 1079 | E195: =IF($A195<>0,INDEX('2.2 Daten'!G$9:G$860,MATCH('2.2'!$A195,'2.2 Daten'!$B$9:$B$860,0))) -> 963 | F195: =IF($A195<>0,INDEX('2.2 Daten'!H$9:H$860,MATCH('2.2'!$A195,'2.2 Daten'!$B$9:$B$860,0))) -> 2663 | G195: =IF($A195<>0,INDEX('2.2 Daten'!I$9:I$860,MATCH('2.2'!$A195,'2.2 Daten'!$B$9:$B$860,0))) -> 720 | H195: =IF($A195<>0,INDEX('2.2 Daten'!K$9:K$860,MATCH('2.2'!$A195,'2.2 Daten'!$B$9:$B$860,0))) -> -1.614073268 | I195: =IF($A195<>0,INDEX('2.2 Daten'!L$9:L$860,MATCH('2.2'!$A195,'2.2 Daten'!$B$9:$B$860,0))) -> -1.461187215 | J195: =IF($A195<>0,INDEX('2.2 Daten'!M$9:M$860,MATCH('2.2'!$A195,'2.2 Daten'!$B$9:$B$860,0))) -> -3.410230692 | K195: =IF($A195<>0,INDEX('2.2 Daten'!N$9:N$860,MATCH('2.2'!$A195,'2.2 Daten'!$B$9:$B$860,0))) -> 1.100987092 | L195: =IF($A195<>0,INDEX('2.2 Daten'!O$9:O$860,MATCH('2.2'!$A195,'2.2 Daten'!$B$9:$B$860,0))) -> -8.629441624
A196: =CHOOSE('2.2 Daten'!$A$2,'2.2 Daten'!B618,'2.2 Daten'!B167,'2.2 Daten'!B184,'2.2 Daten'!B201,'2.2 Daten'!B204,'2.2 Daten'!B251,'2.2 Daten'!B255,'2.2 Daten'!B310,'2.2 Daten'!B338,'2.2 Daten'!B376,'2.2 Daten'!B422,'2.2 Daten'!B520,'2.2 Daten'!B528,'2.2 Daten'!B531,'2.2 Daten'!B551,'2.2 Daten'!B561,'2.2 Daten'!B576,'2.2 Daten'!B592,x) -> Gießen | B196: =IF($A196<>0,INDEX('2.2 Daten'!C$9:C$860,MATCH('2.2'!$A196,'2.2 Daten'!$B$9:$B$860,0))," ") -> 6531000 | C196: =IF($A196<>0,INDEX('2.2 Daten'!E$9:E$860,MATCH('2.2'!$A196,'2.2 Daten'!$B$9:$B$860,0))) -> 6619 | D196: =IF($A196<>0,INDEX('2.2 Daten'!F$9:F$860,MATCH('2.2'!$A196,'2.2 Daten'!$B$9:$B$860,0))) -> 1380 | E196: =IF($A196<>0,INDEX('2.2 Daten'!G$9:G$860,MATCH('2.2'!$A196,'2.2 Daten'!$B$9:$B$860,0))) -> 1199 | F196: =IF($A196<>0,INDEX('2.2 Daten'!H$9:H$860,MATCH('2.2'!$A196,'2.2 Daten'!$B$9:$B$860,0))) -> 3195 | G196: =IF($A196<>0,INDEX('2.2 Daten'!I$9:I$860,MATCH('2.2'!$A196,'2.2 Daten'!$B$9:$B$860,0))) -> 845 | H196: =IF($A196<>0,INDEX('2.2 Daten'!K$9:K$860,MATCH('2.2'!$A196,'2.2 Daten'!$B$9:$B$860,0))) -> 0.1210104372 | I196: =IF($A196<>0,INDEX('2.2 Daten'!L$9:L$860,MATCH('2.2'!$A196,'2.2 Daten'!$B$9:$B$860,0))) -> 1.02489019 | J196: =IF($A196<>0,INDEX('2.2 Daten'!M$9:M$860,MATCH('2.2'!$A196,'2.2 Daten'!$B$9:$B$860,0))) -> 0.418760469 | K196: =IF($A196<>0,INDEX('2.2 Daten'!N$9:N$860,MATCH('2.2'!$A196,'2.2 Daten'!$B$9:$B$860,0))) -> 0.566572238 | L196: =IF($A196<>0,INDEX('2.2 Daten'!O$9:O$860,MATCH('2.2'!$A196,'2.2 Daten'!$B$9:$B$860,0))) -> -3.318077803
A197: =CHOOSE('2.2 Daten'!$A$2,'2.2 Daten'!B619,'2.2 Daten'!B168,'2.2 Daten'!B185,'2.2 Daten'!B202,'2.2 Daten'!B205,'2.2 Daten'!B252,'2.2 Daten'!B256,'2.2 Daten'!B311,'2.2 Daten'!B339,'2.2 Daten'!B377,'2.2 Daten'!B423,'2.2 Daten'!B521,'2.2 Daten'!B529,'2.2 Daten'!B532,'2.2 Daten'!B552,'2.2 Daten'!B562,'2.2 Daten'!B577,'2.2 Daten'!B593,x) -> Lahn-Dill-Kreis | B197: =IF($A197<>0,INDEX('2.2 Daten'!C$9:C$860,MATCH('2.2'!$A197,'2.2 Daten'!$B$9:$B$860,0))," ") -> 6532000 | C197: =IF($A197<>0,INDEX('2.2 Daten'!E$9:E$860,MATCH('2.2'!$A197,'2.2 Daten'!$B$9:$B$860,0))) -> 6024 | D197: =IF($A197<>0,INDEX('2.2 Daten'!F$9:F$860,MATCH('2.2'!$A197,'2.2 Daten'!$B$9:$B$860,0))) -> 1241 | E197: =IF($A197<>0,INDEX('2.2 Daten'!G$9:G$860,MATCH('2.2'!$A197,'2.2 Daten'!$B$9:$B$860,0))) -> 1051 | F197: =IF($A197<>0,INDEX('2.2 Daten'!H$9:H$860,MATCH('2.2'!$A197,'2.2 Daten'!$B$9:$B$860,0))) -> 2952 | G197: =IF($A197<>0,INDEX('2.2 Daten'!I$9:I$860,MATCH('2.2'!$A197,'2.2 Daten'!$B$9:$B$860,0))) -> 780 | H197: =IF($A197<>0,INDEX('2.2 Daten'!K$9:K$860,MATCH('2.2'!$A197,'2.2 Daten'!$B$9:$B$860,0))) -> . | I197: =IF($A197<>0,INDEX('2.2 Daten'!L$9:L$860,MATCH('2.2'!$A197,'2.2 Daten'!$B$9:$B$860,0))) -> . | J197: =IF($A197<>0,INDEX('2.2 Daten'!M$9:M$860,MATCH('2.2'!$A197,'2.2 Daten'!$B$9:$B$860,0))) -> . | K197: =IF($A197<>0,INDEX('2.2 Daten'!N$9:N$860,MATCH('2.2'!$A197,'2.2 Daten'!$B$9:$B$860,0))) -> . | L197: =IF($A197<>0,INDEX('2.2 Daten'!O$9:O$860,MATCH('2.2'!$A197,'2.2 Daten'!$B$9:$B$860,0))) -> .
A198: =CHOOSE('2.2 Daten'!$A$2,'2.2 Daten'!B620,'2.2 Daten'!B169,'2.2 Daten'!B186,'2.2 Daten'!B203,'2.2 Daten'!B206,'2.2 Daten'!B253,'2.2 Daten'!B257,'2.2 Daten'!B312,'2.2 Daten'!B340,'2.2 Daten'!B378,'2.2 Daten'!B424,'2.2 Daten'!B522,'2.2 Daten'!B530,'2.2 Daten'!B533,'2.2 Daten'!B553,'2.2 Daten'!B563,'2.2 Daten'!B578,'2.2 Daten'!B594,x) -> Limburg-Weilburg | B198: =IF($A198<>0,INDEX('2.2 Daten'!C$9:C$860,MATCH('2.2'!$A198,'2.2 Daten'!$B$9:$B$860,0))," ") -> 6533000 | C198: =IF($A198<>0,INDEX('2.2 Daten'!E$9:E$860,MATCH('2.2'!$A198,'2.2 Daten'!$B$9:$B$860,0))) -> 3941 | D198: =IF($A198<>0,INDEX('2.2 Daten'!F$9:F$860,MATCH('2.2'!$A198,'2.2 Daten'!$B$9:$B$860,0))) -> 757 | E198: =IF($A198<>0,INDEX('2.2 Daten'!G$9:G$860,MATCH('2.2'!$A198,'2.2 Daten'!$B$9:$B$860,0))) -> 675 | F198: =IF($A198<>0,INDEX('2.2 Daten'!H$9:H$860,MATCH('2.2'!$A198,'2.2 Daten'!$B$9:$B$860,0))) -> 1964 | G198: =IF($A198<>0,INDEX('2.2 Daten'!I$9:I$860,MATCH('2.2'!$A198,'2.2 Daten'!$B$9:$B$860,0))) -> 545 | H198: =IF($A198<>0,INDEX('2.2 Daten'!K$9:K$860,MATCH('2.2'!$A198,'2.2 Daten'!$B$9:$B$860,0))) -> -7.553366174 | I198: =IF($A198<>0,INDEX('2.2 Daten'!L$9:L$860,MATCH('2.2'!$A198,'2.2 Daten'!$B$9:$B$860,0))) -> -7.682926829 | J198: =IF($A198<>0,INDEX('2.2 Daten'!M$9:M$860,MATCH('2.2'!$A198,'2.2 Daten'!$B$9:$B$860,0))) -> -11.53342071 | K198: =IF($A198<>0,INDEX('2.2 Daten'!N$9:N$860,MATCH('2.2'!$A198,'2.2 Daten'!$B$9:$B$860,0))) -> -6.698337292 | L198: =IF($A198<>0,INDEX('2.2 Daten'!O$9:O$860,MATCH('2.2'!$A198,'2.2 Daten'!$B$9:$B$860,0))) -> -5.217391304
A199: =CHOOSE('2.2 Daten'!$A$2,'2.2 Daten'!B621,'2.2 Daten'!B170,'2.2 Daten'!B187,'2.2 Daten'!B204,'2.2 Daten'!B207,'2.2 Daten'!B254,'2.2 Daten'!B258,'2.2 Daten'!B313,'2.2 Daten'!B341,'2.2 Daten'!B379,'2.2 Daten'!B425,'2.2 Daten'!B523,'2.2 Daten'!B531,'2.2 Daten'!B534,'2.2 Daten'!B554,'2.2 Daten'!B564,'2.2 Daten'!B579,'2.2 Daten'!B595,x) -> Marburg-Biedenkopf | B199: =IF($A199<>0,INDEX('2.2 Daten'!C$9:C$860,MATCH('2.2'!$A199,'2.2 Daten'!$B$9:$B$860,0))," ") -> 6534000 | C199: =IF($A199<>0,INDEX('2.2 Daten'!E$9:E$860,MATCH('2.2'!$A199,'2.2 Daten'!$B$9:$B$860,0))) -> 4714 | D199: =IF($A199<>0,INDEX('2.2 Daten'!F$9:F$860,MATCH('2.2'!$A199,'2.2 Daten'!$B$9:$B$860,0))) -> 930 | E199: =IF($A199<>0,INDEX('2.2 Daten'!G$9:G$860,MATCH('2.2'!$A199,'2.2 Daten'!$B$9:$B$860,0))) -> 906 | F199: =IF($A199<>0,INDEX('2.2 Daten'!H$9:H$860,MATCH('2.2'!$A199,'2.2 Daten'!$B$9:$B$860,0))) -> 2298 | G199: =IF($A199<>0,INDEX('2.2 Daten'!I$9:I$860,MATCH('2.2'!$A199,'2.2 Daten'!$B$9:$B$860,0))) -> 580 | H199: =IF($A199<>0,INDEX('2.2 Daten'!K$9:K$860,MATCH('2.2'!$A199,'2.2 Daten'!$B$9:$B$860,0))) -> -0.464527027 | I199: =IF($A199<>0,INDEX('2.2 Daten'!L$9:L$860,MATCH('2.2'!$A199,'2.2 Daten'!$B$9:$B$860,0))) -> -3.526970954 | J199: =IF($A199<>0,INDEX('2.2 Daten'!M$9:M$860,MATCH('2.2'!$A199,'2.2 Daten'!$B$9:$B$860,0))) -> 4.739884393 | K199: =IF($A199<>0,INDEX('2.2 Daten'!N$9:N$860,MATCH('2.2'!$A199,'2.2 Daten'!$B$9:$B$860,0))) -> -2.709568163 | L199: =IF($A199<>0,INDEX('2.2 Daten'!O$9:O$860,MATCH('2.2'!$A199,'2.2 Daten'!$B$9:$B$860,0))) -> 6.422018349
A200: =CHOOSE('2.2 Daten'!$A$2,'2.2 Daten'!B622,'2.2 Daten'!B171,'2.2 Daten'!B188,'2.2 Daten'!B205,'2.2 Daten'!B208,'2.2 Daten'!B255,'2.2 Daten'!B259,'2.2 Daten'!B314,'2.2 Daten'!B342,'2.2 Daten'!B380,'2.2 Daten'!B426,'2.2 Daten'!B524,'2.2 Daten'!B532,'2.2 Daten'!B535,'2.2 Daten'!B555,'2.2 Daten'!B565,'2.2 Daten'!B580,'2.2 Daten'!B596,x) -> Vogelsbergkreis | B200: =IF($A200<>0,INDEX('2.2 Daten'!C$9:C$860,MATCH('2.2'!$A200,'2.2 Daten'!$B$9:$B$860,0))," ") -> 6535000 | C200: =IF($A200<>0,INDEX('2.2 Daten'!E$9:E$860,MATCH('2.2'!$A200,'2.2 Daten'!$B$9:$B$860,0))) -> 1617 | D200: =IF($A200<>0,INDEX('2.2 Daten'!F$9:F$860,MATCH('2.2'!$A200,'2.2 Daten'!$B$9:$B$860,0))) -> 345 | E200: =IF($A200<>0,INDEX('2.2 Daten'!G$9:G$860,MATCH('2.2'!$A200,'2.2 Daten'!$B$9:$B$860,0))) -> 297 | F200: =IF($A200<>0,INDEX('2.2 Daten'!H$9:H$860,MATCH('2.2'!$A200,'2.2 Daten'!$B$9:$B$860,0))) -> 772 | G200: =IF($A200<>0,INDEX('2.2 Daten'!I$9:I$860,MATCH('2.2'!$A200,'2.2 Daten'!$B$9:$B$860,0))) -> 203 | H200: =IF($A200<>0,INDEX('2.2 Daten'!K$9:K$860,MATCH('2.2'!$A200,'2.2 Daten'!$B$9:$B$860,0))) -> -3.405017921 | I200: =IF($A200<>0,INDEX('2.2 Daten'!L$9:L$860,MATCH('2.2'!$A200,'2.2 Daten'!$B$9:$B$860,0))) -> -7.258064516 | J200: =IF($A200<>0,INDEX('2.2 Daten'!M$9:M$860,MATCH('2.2'!$A200,'2.2 Daten'!$B$9:$B$860,0))) -> -3.883495146 | K200: =IF($A200<>0,INDEX('2.2 Daten'!N$9:N$860,MATCH('2.2'!$A200,'2.2 Daten'!$B$9:$B$860,0))) -> -1.656050955 | L200: =IF($A200<>0,INDEX('2.2 Daten'!O$9:O$860,MATCH('2.2'!$A200,'2.2 Daten'!$B$9:$B$860,0))) -> -2.403846154
A201: =CHOOSE('2.2 Daten'!$A$2,'2.2 Daten'!B623,'2.2 Daten'!B172,'2.2 Daten'!B189,'2.2 Daten'!B206,'2.2 Daten'!B209,'2.2 Daten'!B256,'2.2 Daten'!B260,'2.2 Daten'!B315,'2.2 Daten'!B343,'2.2 Daten'!B381,'2.2 Daten'!B427,'2.2 Daten'!B525,'2.2 Daten'!B533,'2.2 Daten'!B536,'2.2 Daten'!B556,'2.2 Daten'!B566,'2.2 Daten'!B581,'2.2 Daten'!B597,x) -> Kassel, documenta-Stadt | B201: =IF($A201<>0,INDEX('2.2 Daten'!C$9:C$860,MATCH('2.2'!$A201,'2.2 Daten'!$B$9:$B$860,0))," ") -> 6611000 | C201: =IF($A201<>0,INDEX('2.2 Daten'!E$9:E$860,MATCH('2.2'!$A201,'2.2 Daten'!$B$9:$B$860,0))) -> 8419 | D201: =IF($A201<>0,INDEX('2.2 Daten'!F$9:F$860,MATCH('2.2'!$A201,'2.2 Daten'!$B$9:$B$860,0))) -> 1823 | E201: =IF($A201<>0,INDEX('2.2 Daten'!G$9:G$860,MATCH('2.2'!$A201,'2.2 Daten'!$B$9:$B$860,0))) -> 1639 | F201: =IF($A201<>0,INDEX('2.2 Daten'!H$9:H$860,MATCH('2.2'!$A201,'2.2 Daten'!$B$9:$B$860,0))) -> 3980 | G201: =IF($A201<>0,INDEX('2.2 Daten'!I$9:I$860,MATCH('2.2'!$A201,'2.2 Daten'!$B$9:$B$860,0))) -> 977 | H201: =IF($A201<>0,INDEX('2.2 Daten'!K$9:K$860,MATCH('2.2'!$A201,'2.2 Daten'!$B$9:$B$860,0))) -> 2.271622935 | I201: =IF($A201<>0,INDEX('2.2 Daten'!L$9:L$860,MATCH('2.2'!$A201,'2.2 Daten'!$B$9:$B$860,0))) -> 3.93386545 | J201: =IF($A201<>0,INDEX('2.2 Daten'!M$9:M$860,MATCH('2.2'!$A201,'2.2 Daten'!$B$9:$B$860,0))) -> 3.146633103 | K201: =IF($A201<>0,INDEX('2.2 Daten'!N$9:N$860,MATCH('2.2'!$A201,'2.2 Daten'!$B$9:$B$860,0))) -> 3.082103082 | L201: =IF($A201<>0,INDEX('2.2 Daten'!O$9:O$860,MATCH('2.2'!$A201,'2.2 Daten'!$B$9:$B$860,0))) -> -4.961089494
A202: =CHOOSE('2.2 Daten'!$A$2,'2.2 Daten'!B624,'2.2 Daten'!B173,'2.2 Daten'!B190,'2.2 Daten'!B207,'2.2 Daten'!B210,'2.2 Daten'!B257,'2.2 Daten'!B261,'2.2 Daten'!B316,'2.2 Daten'!B344,'2.2 Daten'!B382,'2.2 Daten'!B428,'2.2 Daten'!B526,'2.2 Daten'!B534,'2.2 Daten'!B537,'2.2 Daten'!B557,'2.2 Daten'!B567,'2.2 Daten'!B582,'2.2 Daten'!B598,x) -> Fulda | B202: =IF($A202<>0,INDEX('2.2 Daten'!C$9:C$860,MATCH('2.2'!$A202,'2.2 Daten'!$B$9:$B$860,0))," ") -> 6631000 | C202: =IF($A202<>0,INDEX('2.2 Daten'!E$9:E$860,MATCH('2.2'!$A202,'2.2 Daten'!$B$9:$B$860,0))) -> 3359 | D202: =IF($A202<>0,INDEX('2.2 Daten'!F$9:F$860,MATCH('2.2'!$A202,'2.2 Daten'!$B$9:$B$860,0))) -> 702 | E202: =IF($A202<>0,INDEX('2.2 Daten'!G$9:G$860,MATCH('2.2'!$A202,'2.2 Daten'!$B$9:$B$860,0))) -> 631 | F202: =IF($A202<>0,INDEX('2.2 Daten'!H$9:H$860,MATCH('2.2'!$A202,'2.2 Daten'!$B$9:$B$860,0))) -> 1635 | G202: =IF($A202<>0,INDEX('2.2 Daten'!I$9:I$860,MATCH('2.2'!$A202,'2.2 Daten'!$B$9:$B$860,0))) -> 391 | H202: =IF($A202<>0,INDEX('2.2 Daten'!K$9:K$860,MATCH('2.2'!$A202,'2.2 Daten'!$B$9:$B$860,0))) -> -3.36593786 | I202: =IF($A202<>0,INDEX('2.2 Daten'!L$9:L$860,MATCH('2.2'!$A202,'2.2 Daten'!$B$9:$B$860,0))) -> -4.229195089 | J202: =IF($A202<>0,INDEX('2.2 Daten'!M$9:M$860,MATCH('2.2'!$A202,'2.2 Daten'!$B$9:$B$860,0))) -> 3.442622951 | K202: =IF($A202<>0,INDEX('2.2 Daten'!N$9:N$860,MATCH('2.2'!$A202,'2.2 Daten'!$B$9:$B$860,0))) -> -3.311649911 | L202: =IF($A202<>0,INDEX('2.2 Daten'!O$9:O$860,MATCH('2.2'!$A202,'2.2 Daten'!$B$9:$B$860,0))) -> -11.53846154
A203: =CHOOSE('2.2 Daten'!$A$2,'2.2 Daten'!B625,'2.2 Daten'!B174,'2.2 Daten'!B191,'2.2 Daten'!B208,'2.2 Daten'!B211,'2.2 Daten'!B258,'2.2 Daten'!B262,'2.2 Daten'!B317,'2.2 Daten'!B345,'2.2 Daten'!B383,'2.2 Daten'!B429,'2.2 Daten'!B527,'2.2 Daten'!B535,'2.2 Daten'!B538,'2.2 Daten'!B558,'2.2 Daten'!B568,'2.2 Daten'!B583,'2.2 Daten'!B599,x) -> Hersfeld-Rotenburg | B203: =IF($A203<>0,INDEX('2.2 Daten'!C$9:C$860,MATCH('2.2'!$A203,'2.2 Daten'!$B$9:$B$860,0))," ") -> 6632000 | C203: =IF($A203<>0,INDEX('2.2 Daten'!E$9:E$860,MATCH('2.2'!$A203,'2.2 Daten'!$B$9:$B$860,0))) -> 2163 | D203: =IF($A203<>0,INDEX('2.2 Daten'!F$9:F$860,MATCH('2.2'!$A203,'2.2 Daten'!$B$9:$B$860,0))) -> 422 | E203: =IF($A203<>0,INDEX('2.2 Daten'!G$9:G$860,MATCH('2.2'!$A203,'2.2 Daten'!$B$9:$B$860,0))) -> 406 | F203: =IF($A203<>0,INDEX('2.2 Daten'!H$9:H$860,MATCH('2.2'!$A203,'2.2 Daten'!$B$9:$B$860,0))) -> 1075 | G203: =IF($A203<>0,INDEX('2.2 Daten'!I$9:I$860,MATCH('2.2'!$A203,'2.2 Daten'!$B$9:$B$860,0))) -> 260 | H203: =IF($A203<>0,INDEX('2.2 Daten'!K$9:K$860,MATCH('2.2'!$A203,'2.2 Daten'!$B$9:$B$860,0))) -> -4.62962963 | I203: =IF($A203<>0,INDEX('2.2 Daten'!L$9:L$860,MATCH('2.2'!$A203,'2.2 Daten'!$B$9:$B$860,0))) -> -8.855291577 | J203: =IF($A203<>0,INDEX('2.2 Daten'!M$9:M$860,MATCH('2.2'!$A203,'2.2 Daten'!$B$9:$B$860,0))) -> -5.800464037 | K203: =IF($A203<>0,INDEX('2.2 Daten'!N$9:N$860,MATCH('2.2'!$A203,'2.2 Daten'!$B$9:$B$860,0))) -> -3.500897666 | L203: =IF($A203<>0,INDEX('2.2 Daten'!O$9:O$860,MATCH('2.2'!$A203,'2.2 Daten'!$B$9:$B$860,0))) -> 0
A204: =CHOOSE('2.2 Daten'!$A$2,'2.2 Daten'!B626,'2.2 Daten'!B175,'2.2 Daten'!B192,'2.2 Daten'!B209,'2.2 Daten'!B212,'2.2 Daten'!B259,'2.2 Daten'!B263,'2.2 Daten'!B318,'2.2 Daten'!B346,'2.2 Daten'!B384,'2.2 Daten'!B430,'2.2 Daten'!B528,'2.2 Daten'!B536,'2.2 Daten'!B539,'2.2 Daten'!B559,'2.2 Daten'!B569,'2.2 Daten'!B584,'2.2 Daten'!B600,x) -> Kassel | B204: =IF($A204<>0,INDEX('2.2 Daten'!C$9:C$860,MATCH('2.2'!$A204,'2.2 Daten'!$B$9:$B$860,0))," ") -> 6633000 | C204: =IF($A204<>0,INDEX('2.2 Daten'!E$9:E$860,MATCH('2.2'!$A204,'2.2 Daten'!$B$9:$B$860,0))) -> 4030 | D204: =IF($A204<>0,INDEX('2.2 Daten'!F$9:F$860,MATCH('2.2'!$A204,'2.2 Daten'!$B$9:$B$860,0))) -> 826 | E204: =IF($A204<>0,INDEX('2.2 Daten'!G$9:G$860,MATCH('2.2'!$A204,'2.2 Daten'!$B$9:$B$860,0))) -> 767 | F204: =IF($A204<>0,INDEX('2.2 Daten'!H$9:H$860,MATCH('2.2'!$A204,'2.2 Daten'!$B$9:$B$860,0))) -> 1933 | G204: =IF($A204<>0,INDEX('2.2 Daten'!I$9:I$860,MATCH('2.2'!$A204,'2.2 Daten'!$B$9:$B$860,0))) -> 504 | H204: =IF($A204<>0,INDEX('2.2 Daten'!K$9:K$860,MATCH('2.2'!$A204,'2.2 Daten'!$B$9:$B$860,0))) -> -2.279340446 | I204: =IF($A204<>0,INDEX('2.2 Daten'!L$9:L$860,MATCH('2.2'!$A204,'2.2 Daten'!$B$9:$B$860,0))) -> -2.364066194 | J204: =IF($A204<>0,INDEX('2.2 Daten'!M$9:M$860,MATCH('2.2'!$A204,'2.2 Daten'!$B$9:$B$860,0))) -> 2.403204272 | K204: =IF($A204<>0,INDEX('2.2 Daten'!N$9:N$860,MATCH('2.2'!$A204,'2.2 Daten'!$B$9:$B$860,0))) -> -3.542914172 | L204: =IF($A204<>0,INDEX('2.2 Daten'!O$9:O$860,MATCH('2.2'!$A204,'2.2 Daten'!$B$9:$B$860,0))) -> -4
A205: =CHOOSE('2.2 Daten'!$A$2,'2.2 Daten'!B627,'2.2 Daten'!B176,'2.2 Daten'!B193,'2.2 Daten'!B210,'2.2 Daten'!B213,'2.2 Daten'!B260,'2.2 Daten'!B264,'2.2 Daten'!B319,'2.2 Daten'!B347,'2.2 Daten'!B385,'2.2 Daten'!B431,'2.2 Daten'!B529,'2.2 Daten'!B537,'2.2 Daten'!B540,'2.2 Daten'!B560,'2.2 Daten'!B570,'2.2 Daten'!B585,'2.2 Daten'!B601,x) -> Schwalm-Eder-Kreis | B205: =IF($A205<>0,INDEX('2.2 Daten'!C$9:C$860,MATCH('2.2'!$A205,'2.2 Daten'!$B$9:$B$860,0))," ") -> 6634000 | C205: =IF($A205<>0,INDEX('2.2 Daten'!E$9:E$860,MATCH('2.2'!$A205,'2.2 Daten'!$B$9:$B$860,0))) -> 2989 | D205: =IF($A205<>0,INDEX('2.2 Daten'!F$9:F$860,MATCH('2.2'!$A205,'2.2 Daten'!$B$9:$B$860,0))) -> 625 | E205: =IF($A205<>0,INDEX('2.2 Daten'!G$9:G$860,MATCH('2.2'!$A205,'2.2 Daten'!$B$9:$B$860,0))) -> 576 | F205: =IF($A205<>0,INDEX('2.2 Daten'!H$9:H$860,MATCH('2.2'!$A205,'2.2 Daten'!$B$9:$B$860,0))) -> 1457 | G205: =IF($A205<>0,INDEX('2.2 Daten'!I$9:I$860,MATCH('2.2'!$A205,'2.2 Daten'!$B$9:$B$860,0))) -> 331 | H205: =IF($A205<>0,INDEX('2.2 Daten'!K$9:K$860,MATCH('2.2'!$A205,'2.2 Daten'!$B$9:$B$860,0))) -> -3.890675241 | I205: =IF($A205<>0,INDEX('2.2 Daten'!L$9:L$860,MATCH('2.2'!$A205,'2.2 Daten'!$B$9:$B$860,0))) -> -2.799377916 | J205: =IF($A205<>0,INDEX('2.2 Daten'!M$9:M$860,MATCH('2.2'!$A205,'2.2 Daten'!$B$9:$B$860,0))) -> -2.866779089 | K205: =IF($A205<>0,INDEX('2.2 Daten'!N$9:N$860,MATCH('2.2'!$A205,'2.2 Daten'!$B$9:$B$860,0))) -> -1.019021739 | L205: =IF($A205<>0,INDEX('2.2 Daten'!O$9:O$860,MATCH('2.2'!$A205,'2.2 Daten'!$B$9:$B$860,0))) -> -17.66169154
A206: =CHOOSE('2.2 Daten'!$A$2,'2.2 Daten'!B628,'2.2 Daten'!B177,'2.2 Daten'!B194,'2.2 Daten'!B211,'2.2 Daten'!B214,'2.2 Daten'!B261,'2.2 Daten'!B265,'2.2 Daten'!B320,'2.2 Daten'!B348,'2.2 Daten'!B386,'2.2 Daten'!B432,'2.2 Daten'!B530,'2.2 Daten'!B538,'2.2 Daten'!B541,'2.2 Daten'!B561,'2.2 Daten'!B571,'2.2 Daten'!B586,'2.2 Daten'!B602,x) -> Waldeck-Frankenberg | B206: =IF($A206<>0,INDEX('2.2 Daten'!C$9:C$860,MATCH('2.2'!$A206,'2.2 Daten'!$B$9:$B$860,0))," ") -> 6635000 | C206: =IF($A206<>0,INDEX('2.2 Daten'!E$9:E$860,MATCH('2.2'!$A206,'2.2 Daten'!$B$9:$B$860,0))) -> 2788 | D206: =IF($A206<>0,INDEX('2.2 Daten'!F$9:F$860,MATCH('2.2'!$A206,'2.2 Daten'!$B$9:$B$860,0))) -> 585 | E206: =IF($A206<>0,INDEX('2.2 Daten'!G$9:G$860,MATCH('2.2'!$A206,'2.2 Daten'!$B$9:$B$860,0))) -> 563 | F206: =IF($A206<>0,INDEX('2.2 Daten'!H$9:H$860,MATCH('2.2'!$A206,'2.2 Daten'!$B$9:$B$860,0))) -> 1307 | G206: =IF($A206<>0,INDEX('2.2 Daten'!I$9:I$860,MATCH('2.2'!$A206,'2.2 Daten'!$B$9:$B$860,0))) -> 333 | H206: =IF($A206<>0,INDEX('2.2 Daten'!K$9:K$860,MATCH('2.2'!$A206,'2.2 Daten'!$B$9:$B$860,0))) -> -2.380952381 | I206: =IF($A206<>0,INDEX('2.2 Daten'!L$9:L$860,MATCH('2.2'!$A206,'2.2 Daten'!$B$9:$B$860,0))) -> -3.9408867 | J206: =IF($A206<>0,INDEX('2.2 Daten'!M$9:M$860,MATCH('2.2'!$A206,'2.2 Daten'!$B$9:$B$860,0))) -> 4.646840149 | K206: =IF($A206<>0,INDEX('2.2 Daten'!N$9:N$860,MATCH('2.2'!$A206,'2.2 Daten'!$B$9:$B$860,0))) -> -3.755522828 | L206: =IF($A206<>0,INDEX('2.2 Daten'!O$9:O$860,MATCH('2.2'!$A206,'2.2 Daten'!$B$9:$B$860,0))) -> -5.128205128
A207: =CHOOSE('2.2 Daten'!$A$2,'2.2 Daten'!B629,'2.2 Daten'!B178,'2.2 Daten'!B195,'2.2 Daten'!B212,'2.2 Daten'!B215,'2.2 Daten'!B262,'2.2 Daten'!B266,'2.2 Daten'!B321,'2.2 Daten'!B349,'2.2 Daten'!B387,'2.2 Daten'!B433,'2.2 Daten'!B531,'2.2 Daten'!B539,'2.2 Daten'!B542,'2.2 Daten'!B562,'2.2 Daten'!B572,'2.2 Daten'!B587,'2.2 Daten'!B603,x) -> Werra-Meißner-Kreis | B207: =IF($A207<>0,INDEX('2.2 Daten'!C$9:C$860,MATCH('2.2'!$A207,'2.2 Daten'!$B$9:$B$860,0))," ") -> 6636000 | C207: =IF($A207<>0,INDEX('2.2 Daten'!E$9:E$860,MATCH('2.2'!$A207,'2.2 Daten'!$B$9:$B$860,0))) -> 2369 | D207: =IF($A207<>0,INDEX('2.2 Daten'!F$9:F$860,MATCH('2.2'!$A207,'2.2 Daten'!$B$9:$B$860,0))) -> 506 | E207: =IF($A207<>0,INDEX('2.2 Daten'!G$9:G$860,MATCH('2.2'!$A207,'2.2 Daten'!$B$9:$B$860,0))) -> 450 | F207: =IF($A207<>0,INDEX('2.2 Daten'!H$9:H$860,MATCH('2.2'!$A207,'2.2 Daten'!$B$9:$B$860,0))) -> 1127 | G207: =IF($A207<>0,INDEX('2.2 Daten'!I$9:I$860,MATCH('2.2'!$A207,'2.2 Daten'!$B$9:$B$860,0))) -> 286 | H207: =IF($A207<>0,INDEX('2.2 Daten'!K$9:K$860,MATCH('2.2'!$A207,'2.2 Daten'!$B$9:$B$860,0))) -> -1.701244813 | I207: =IF($A207<>0,INDEX('2.2 Daten'!L$9:L$860,MATCH('2.2'!$A207,'2.2 Daten'!$B$9:$B$860,0))) -> -5.772811918 | J207: =IF($A207<>0,INDEX('2.2 Daten'!M$9:M$860,MATCH('2.2'!$A207,'2.2 Daten'!$B$9:$B$860,0))) -> -0.8810572687 | K207: =IF($A207<>0,INDEX('2.2 Daten'!N$9:N$860,MATCH('2.2'!$A207,'2.2 Daten'!$B$9:$B$860,0))) -> 0.625 | L207: =IF($A207<>0,INDEX('2.2 Daten'!O$9:O$860,MATCH('2.2'!$A207,'2.2 Daten'!$B$9:$B$860,0))) -> -4.347826087
A208: =CHOOSE('2.2 Daten'!$A$2,'2.2 Daten'!B630,'2.2 Daten'!B179,'2.2 Daten'!B196,'2.2 Daten'!B213,'2.2 Daten'!B216,'2.2 Daten'!B263,'2.2 Daten'!B267,'2.2 Daten'!B322,'2.2 Daten'!B350,'2.2 Daten'!B388,'2.2 Daten'!B434,'2.2 Daten'!B532,'2.2 Daten'!B540,'2.2 Daten'!B543,'2.2 Daten'!B563,'2.2 Daten'!B573,'2.2 Daten'!B588,'2.2 Daten'!B604,x) -> 0 | B208: =IF($A208<>0,INDEX('2.2 Daten'!C$9:C$860,MATCH('2.2'!$A208,'2.2 Daten'!$B$9:$B$860,0))," ") ->  | C208: =IF($A208<>0,INDEX('2.2 Daten'!E$9:E$860,MATCH('2.2'!$A208,'2.2 Daten'!$B$9:$B$860,0))) -> FALSE | D208: =IF($A208<>0,INDEX('2.2 Daten'!F$9:F$860,MATCH('2.2'!$A208,'2.2 Daten'!$B$9:$B$860,0))) -> FALSE | E208: =IF($A208<>0,INDEX('2.2 Daten'!G$9:G$860,MATCH('2.2'!$A208,'2.2 Daten'!$B$9:$B$860,0))) -> FALSE | F208: =IF($A208<>0,INDEX('2.2 Daten'!H$9:H$860,MATCH('2.2'!$A208,'2.2 Daten'!$B$9:$B$860,0))) -> FALSE | G208: =IF($A208<>0,INDEX('2.2 Daten'!I$9:I$860,MATCH('2.2'!$A208,'2.2 Daten'!$B$9:$B$860,0))) -> FALSE | H208: =IF($A208<>0,INDEX('2.2 Daten'!K$9:K$860,MATCH('2.2'!$A208,'2.2 Daten'!$B$9:$B$860,0))) -> FALSE | I208: =IF($A208<>0,INDEX('2.2 Daten'!L$9:L$860,MATCH('2.2'!$A208,'2.2 Daten'!$B$9:$B$860,0))) -> FALSE | J208: =IF($A208<>0,INDEX('2.2 Daten'!M$9:M$860,MATCH('2.2'!$A208,'2.2 Daten'!$B$9:$B$860,0))) -> FALSE | K208: =IF($A208<>0,INDEX('2.2 Daten'!N$9:N$860,MATCH('2.2'!$A208,'2.2 Daten'!$B$9:$B$860,0))) -> FALSE | L208: =IF($A208<>0,INDEX('2.2 Daten'!O$9:O$860,MATCH('2.2'!$A208,'2.2 Daten'!$B$9:$B$860,0))) -> FALSE
A209: =CHOOSE('2.2 Daten'!$A$2,'2.2 Daten'!B631,'2.2 Daten'!B180,'2.2 Daten'!B197,'2.2 Daten'!B214,'2.2 Daten'!B217,'2.2 Daten'!B264,'2.2 Daten'!B268,'2.2 Daten'!B323,'2.2 Daten'!B351,'2.2 Daten'!B389,'2.2 Daten'!B435,'2.2 Daten'!B533,'2.2 Daten'!B541,'2.2 Daten'!B544,'2.2 Daten'!B564,'2.2 Daten'!B574,'2.2 Daten'!B589,'2.2 Daten'!B605,x) -> Rheinland-Pfalz | B209: =IF($A209<>0,INDEX('2.2 Daten'!C$9:C$860,MATCH('2.2'!$A209,'2.2 Daten'!$B$9:$B$860,0))," ") -> 07 | C209: =IF($A209<>0,INDEX('2.2 Daten'!E$9:E$860,MATCH('2.2'!$A209,'2.2 Daten'!$B$9:$B$860,0))) -> 79348 | D209: =IF($A209<>0,INDEX('2.2 Daten'!F$9:F$860,MATCH('2.2'!$A209,'2.2 Daten'!$B$9:$B$860,0))) -> 16285 | E209: =IF($A209<>0,INDEX('2.2 Daten'!G$9:G$860,MATCH('2.2'!$A209,'2.2 Daten'!$B$9:$B$860,0))) -> 14595 | F209: =IF($A209<>0,INDEX('2.2 Daten'!H$9:H$860,MATCH('2.2'!$A209,'2.2 Daten'!$B$9:$B$860,0))) -> 38519 | G209: =IF($A209<>0,INDEX('2.2 Daten'!I$9:I$860,MATCH('2.2'!$A209,'2.2 Daten'!$B$9:$B$860,0))) -> 9949 | H209: =IF($A209<>0,INDEX('2.2 Daten'!K$9:K$860,MATCH('2.2'!$A209,'2.2 Daten'!$B$9:$B$860,0))) -> -3.551719947 | I209: =IF($A209<>0,INDEX('2.2 Daten'!L$9:L$860,MATCH('2.2'!$A209,'2.2 Daten'!$B$9:$B$860,0))) -> -3.860912687 | J209: =IF($A209<>0,INDEX('2.2 Daten'!M$9:M$860,MATCH('2.2'!$A209,'2.2 Daten'!$B$9:$B$860,0))) -> -3.548770817 | K209: =IF($A209<>0,INDEX('2.2 Daten'!N$9:N$860,MATCH('2.2'!$A209,'2.2 Daten'!$B$9:$B$860,0))) -> -2.955255467 | L209: =IF($A209<>0,INDEX('2.2 Daten'!O$9:O$860,MATCH('2.2'!$A209,'2.2 Daten'!$B$9:$B$860,0))) -> -5.310745217
A210: =CHOOSE('2.2 Daten'!$A$2,'2.2 Daten'!B632,'2.2 Daten'!B181,'2.2 Daten'!B198,'2.2 Daten'!B215,'2.2 Daten'!B218,'2.2 Daten'!B265,'2.2 Daten'!B269,'2.2 Daten'!B324,'2.2 Daten'!B352,'2.2 Daten'!B390,'2.2 Daten'!B436,'2.2 Daten'!B534,'2.2 Daten'!B542,'2.2 Daten'!B545,'2.2 Daten'!B565,'2.2 Daten'!B575,'2.2 Daten'!B590,'2.2 Daten'!B606,x) -> Koblenz, kreisfreie Stadt | B210: =IF($A210<>0,INDEX('2.2 Daten'!C$9:C$860,MATCH('2.2'!$A210,'2.2 Daten'!$B$9:$B$860,0))," ") -> 7111000 | C210: =IF($A210<>0,INDEX('2.2 Daten'!E$9:E$860,MATCH('2.2'!$A210,'2.2 Daten'!$B$9:$B$860,0))) -> 3405 | D210: =IF($A210<>0,INDEX('2.2 Daten'!F$9:F$860,MATCH('2.2'!$A210,'2.2 Daten'!$B$9:$B$860,0))) -> 713 | E210: =IF($A210<>0,INDEX('2.2 Daten'!G$9:G$860,MATCH('2.2'!$A210,'2.2 Daten'!$B$9:$B$860,0))) -> 655 | F210: =IF($A210<>0,INDEX('2.2 Daten'!H$9:H$860,MATCH('2.2'!$A210,'2.2 Daten'!$B$9:$B$860,0))) -> 1621 | G210: =IF($A210<>0,INDEX('2.2 Daten'!I$9:I$860,MATCH('2.2'!$A210,'2.2 Daten'!$B$9:$B$860,0))) -> 416 | H210: =IF($A210<>0,INDEX('2.2 Daten'!K$9:K$860,MATCH('2.2'!$A210,'2.2 Daten'!$B$9:$B$860,0))) -> -0.2636203866 | I210: =IF($A210<>0,INDEX('2.2 Daten'!L$9:L$860,MATCH('2.2'!$A210,'2.2 Daten'!$B$9:$B$860,0))) -> 0 | J210: =IF($A210<>0,INDEX('2.2 Daten'!M$9:M$860,MATCH('2.2'!$A210,'2.2 Daten'!$B$9:$B$860,0))) -> 5.815831987 | K210: =IF($A210<>0,INDEX('2.2 Daten'!N$9:N$860,MATCH('2.2'!$A210,'2.2 Daten'!$B$9:$B$860,0))) -> -1.935874168 | L210: =IF($A210<>0,INDEX('2.2 Daten'!O$9:O$860,MATCH('2.2'!$A210,'2.2 Daten'!$B$9:$B$860,0))) -> -3.03030303
A211: =CHOOSE('2.2 Daten'!$A$2,'2.2 Daten'!B633,'2.2 Daten'!B182,'2.2 Daten'!B199,'2.2 Daten'!B216,'2.2 Daten'!B219,'2.2 Daten'!B266,'2.2 Daten'!B270,'2.2 Daten'!B325,'2.2 Daten'!B353,'2.2 Daten'!B391,'2.2 Daten'!B437,'2.2 Daten'!B535,'2.2 Daten'!B543,'2.2 Daten'!B546,'2.2 Daten'!B566,'2.2 Daten'!B576,'2.2 Daten'!B591,'2.2 Daten'!B607,x) -> Ahrweiler | B211: =IF($A211<>0,INDEX('2.2 Daten'!C$9:C$860,MATCH('2.2'!$A211,'2.2 Daten'!$B$9:$B$860,0))," ") -> 7131000 | C211: =IF($A211<>0,INDEX('2.2 Daten'!E$9:E$860,MATCH('2.2'!$A211,'2.2 Daten'!$B$9:$B$860,0))) -> 2082 | D211: =IF($A211<>0,INDEX('2.2 Daten'!F$9:F$860,MATCH('2.2'!$A211,'2.2 Daten'!$B$9:$B$860,0))) -> 458 | E211: =IF($A211<>0,INDEX('2.2 Daten'!G$9:G$860,MATCH('2.2'!$A211,'2.2 Daten'!$B$9:$B$860,0))) -> 371 | F211: =IF($A211<>0,INDEX('2.2 Daten'!H$9:H$860,MATCH('2.2'!$A211,'2.2 Daten'!$B$9:$B$860,0))) -> 998 | G211: =IF($A211<>0,INDEX('2.2 Daten'!I$9:I$860,MATCH('2.2'!$A211,'2.2 Daten'!$B$9:$B$860,0))) -> 255 | H211: =IF($A211<>0,INDEX('2.2 Daten'!K$9:K$860,MATCH('2.2'!$A211,'2.2 Daten'!$B$9:$B$860,0))) -> -6.762203314 | I211: =IF($A211<>0,INDEX('2.2 Daten'!L$9:L$860,MATCH('2.2'!$A211,'2.2 Daten'!$B$9:$B$860,0))) -> -2.553191489 | J211: =IF($A211<>0,INDEX('2.2 Daten'!M$9:M$860,MATCH('2.2'!$A211,'2.2 Daten'!$B$9:$B$860,0))) -> -7.25 | K211: =IF($A211<>0,INDEX('2.2 Daten'!N$9:N$860,MATCH('2.2'!$A211,'2.2 Daten'!$B$9:$B$860,0))) -> -8.356290174 | L211: =IF($A211<>0,INDEX('2.2 Daten'!O$9:O$860,MATCH('2.2'!$A211,'2.2 Daten'!$B$9:$B$860,0))) -> -6.934306569
A212: =CHOOSE('2.2 Daten'!$A$2,'2.2 Daten'!B634,'2.2 Daten'!B183,'2.2 Daten'!B200,'2.2 Daten'!B217,'2.2 Daten'!B220,'2.2 Daten'!B267,'2.2 Daten'!B271,'2.2 Daten'!B326,'2.2 Daten'!B354,'2.2 Daten'!B392,'2.2 Daten'!B438,'2.2 Daten'!B536,'2.2 Daten'!B544,'2.2 Daten'!B547,'2.2 Daten'!B567,'2.2 Daten'!B577,'2.2 Daten'!B592,'2.2 Daten'!B608,x) -> Altenkirchen (Westerwald) | B212: =IF($A212<>0,INDEX('2.2 Daten'!C$9:C$860,MATCH('2.2'!$A212,'2.2 Daten'!$B$9:$B$860,0))," ") -> 7132000 | C212: =IF($A212<>0,INDEX('2.2 Daten'!E$9:E$860,MATCH('2.2'!$A212,'2.2 Daten'!$B$9:$B$860,0))) -> 2016 | D212: =IF($A212<>0,INDEX('2.2 Daten'!F$9:F$860,MATCH('2.2'!$A212,'2.2 Daten'!$B$9:$B$860,0))) -> 396 | E212: =IF($A212<>0,INDEX('2.2 Daten'!G$9:G$860,MATCH('2.2'!$A212,'2.2 Daten'!$B$9:$B$860,0))) -> 365 | F212: =IF($A212<>0,INDEX('2.2 Daten'!H$9:H$860,MATCH('2.2'!$A212,'2.2 Daten'!$B$9:$B$860,0))) -> 1004 | G212: =IF($A212<>0,INDEX('2.2 Daten'!I$9:I$860,MATCH('2.2'!$A212,'2.2 Daten'!$B$9:$B$860,0))) -> 251 | H212: =IF($A212<>0,INDEX('2.2 Daten'!K$9:K$860,MATCH('2.2'!$A212,'2.2 Daten'!$B$9:$B$860,0))) -> -8.071135431 | I212: =IF($A212<>0,INDEX('2.2 Daten'!L$9:L$860,MATCH('2.2'!$A212,'2.2 Daten'!$B$9:$B$860,0))) -> -4.11622276 | J212: =IF($A212<>0,INDEX('2.2 Daten'!M$9:M$860,MATCH('2.2'!$A212,'2.2 Daten'!$B$9:$B$860,0))) -> -9.87654321 | K212: =IF($A212<>0,INDEX('2.2 Daten'!N$9:N$860,MATCH('2.2'!$A212,'2.2 Daten'!$B$9:$B$860,0))) -> -7.805325987 | L212: =IF($A212<>0,INDEX('2.2 Daten'!O$9:O$860,MATCH('2.2'!$A212,'2.2 Daten'!$B$9:$B$860,0))) -> -12.23776224
A213: =CHOOSE('2.2 Daten'!$A$2,'2.2 Daten'!B635,'2.2 Daten'!B184,'2.2 Daten'!B201,'2.2 Daten'!B218,'2.2 Daten'!B221,'2.2 Daten'!B268,'2.2 Daten'!B272,'2.2 Daten'!B327,'2.2 Daten'!B355,'2.2 Daten'!B393,'2.2 Daten'!B439,'2.2 Daten'!B537,'2.2 Daten'!B545,'2.2 Daten'!B548,'2.2 Daten'!B568,'2.2 Daten'!B578,'2.2 Daten'!B593,'2.2 Daten'!B609,x) -> Bad Kreuznach | B213: =IF($A213<>0,INDEX('2.2 Daten'!C$9:C$860,MATCH('2.2'!$A213,'2.2 Daten'!$B$9:$B$860,0))," ") -> 7133000 | C213: =IF($A213<>0,INDEX('2.2 Daten'!E$9:E$860,MATCH('2.2'!$A213,'2.2 Daten'!$B$9:$B$860,0))) -> 3515 | D213: =IF($A213<>0,INDEX('2.2 Daten'!F$9:F$860,MATCH('2.2'!$A213,'2.2 Daten'!$B$9:$B$860,0))) -> 718 | E213: =IF($A213<>0,INDEX('2.2 Daten'!G$9:G$860,MATCH('2.2'!$A213,'2.2 Daten'!$B$9:$B$860,0))) -> 602 | F213: =IF($A213<>0,INDEX('2.2 Daten'!H$9:H$860,MATCH('2.2'!$A213,'2.2 Daten'!$B$9:$B$860,0))) -> 1764 | G213: =IF($A213<>0,INDEX('2.2 Daten'!I$9:I$860,MATCH('2.2'!$A213,'2.2 Daten'!$B$9:$B$860,0))) -> 431 | H213: =IF($A213<>0,INDEX('2.2 Daten'!K$9:K$860,MATCH('2.2'!$A213,'2.2 Daten'!$B$9:$B$860,0))) -> -4.14507772 | I213: =IF($A213<>0,INDEX('2.2 Daten'!L$9:L$860,MATCH('2.2'!$A213,'2.2 Daten'!$B$9:$B$860,0))) -> -0.2777777778 | J213: =IF($A213<>0,INDEX('2.2 Daten'!M$9:M$860,MATCH('2.2'!$A213,'2.2 Daten'!$B$9:$B$860,0))) -> -5.79029734 | K213: =IF($A213<>0,INDEX('2.2 Daten'!N$9:N$860,MATCH('2.2'!$A213,'2.2 Daten'!$B$9:$B$860,0))) -> -3.921568627 | L213: =IF($A213<>0,INDEX('2.2 Daten'!O$9:O$860,MATCH('2.2'!$A213,'2.2 Daten'!$B$9:$B$860,0))) -> -8.686440678
A214: =CHOOSE('2.2 Daten'!$A$2,'2.2 Daten'!B636,'2.2 Daten'!B185,'2.2 Daten'!B202,'2.2 Daten'!B219,'2.2 Daten'!B222,'2.2 Daten'!B269,'2.2 Daten'!B273,'2.2 Daten'!B328,'2.2 Daten'!B356,'2.2 Daten'!B394,'2.2 Daten'!B440,'2.2 Daten'!B538,'2.2 Daten'!B546,'2.2 Daten'!B549,'2.2 Daten'!B569,'2.2 Daten'!B579,'2.2 Daten'!B594,'2.2 Daten'!B610,x) -> Birkenfeld | B214: =IF($A214<>0,INDEX('2.2 Daten'!C$9:C$860,MATCH('2.2'!$A214,'2.2 Daten'!$B$9:$B$860,0))," ") -> 7134000 | C214: =IF($A214<>0,INDEX('2.2 Daten'!E$9:E$860,MATCH('2.2'!$A214,'2.2 Daten'!$B$9:$B$860,0))) -> 1887 | D214: =IF($A214<>0,INDEX('2.2 Daten'!F$9:F$860,MATCH('2.2'!$A214,'2.2 Daten'!$B$9:$B$860,0))) -> 389 | E214: =IF($A214<>0,INDEX('2.2 Daten'!G$9:G$860,MATCH('2.2'!$A214,'2.2 Daten'!$B$9:$B$860,0))) -> 379 | F214: =IF($A214<>0,INDEX('2.2 Daten'!H$9:H$860,MATCH('2.2'!$A214,'2.2 Daten'!$B$9:$B$860,0))) -> 910 | G214: =IF($A214<>0,INDEX('2.2 Daten'!I$9:I$860,MATCH('2.2'!$A214,'2.2 Daten'!$B$9:$B$860,0))) -> 209 | H214: =IF($A214<>0,INDEX('2.2 Daten'!K$9:K$860,MATCH('2.2'!$A214,'2.2 Daten'!$B$9:$B$860,0))) -> 2.66594124 | I214: =IF($A214<>0,INDEX('2.2 Daten'!L$9:L$860,MATCH('2.2'!$A214,'2.2 Daten'!$B$9:$B$860,0))) -> 1.038961039 | J214: =IF($A214<>0,INDEX('2.2 Daten'!M$9:M$860,MATCH('2.2'!$A214,'2.2 Daten'!$B$9:$B$860,0))) -> 3.551912568 | K214: =IF($A214<>0,INDEX('2.2 Daten'!N$9:N$860,MATCH('2.2'!$A214,'2.2 Daten'!$B$9:$B$860,0))) -> 3.526734926 | L214: =IF($A214<>0,INDEX('2.2 Daten'!O$9:O$860,MATCH('2.2'!$A214,'2.2 Daten'!$B$9:$B$860,0))) -> 0.4807692308
A215: =CHOOSE('2.2 Daten'!$A$2,'2.2 Daten'!B637,'2.2 Daten'!B186,'2.2 Daten'!B203,'2.2 Daten'!B220,'2.2 Daten'!B223,'2.2 Daten'!B270,'2.2 Daten'!B274,'2.2 Daten'!B329,'2.2 Daten'!B357,'2.2 Daten'!B395,'2.2 Daten'!B441,'2.2 Daten'!B539,'2.2 Daten'!B547,'2.2 Daten'!B550,'2.2 Daten'!B570,'2.2 Daten'!B580,'2.2 Daten'!B595,'2.2 Daten'!B611,x) -> Cochem-Zell | B215: =IF($A215<>0,INDEX('2.2 Daten'!C$9:C$860,MATCH('2.2'!$A215,'2.2 Daten'!$B$9:$B$860,0))," ") -> 7135000 | C215: =IF($A215<>0,INDEX('2.2 Daten'!E$9:E$860,MATCH('2.2'!$A215,'2.2 Daten'!$B$9:$B$860,0))) -> 778 | D215: =IF($A215<>0,INDEX('2.2 Daten'!F$9:F$860,MATCH('2.2'!$A215,'2.2 Daten'!$B$9:$B$860,0))) -> 189 | E215: =IF($A215<>0,INDEX('2.2 Daten'!G$9:G$860,MATCH('2.2'!$A215,'2.2 Daten'!$B$9:$B$860,0))) -> 153 | F215: =IF($A215<>0,INDEX('2.2 Daten'!H$9:H$860,MATCH('2.2'!$A215,'2.2 Daten'!$B$9:$B$860,0))) -> 338 | G215: =IF($A215<>0,INDEX('2.2 Daten'!I$9:I$860,MATCH('2.2'!$A215,'2.2 Daten'!$B$9:$B$860,0))) -> 98 | H215: =IF($A215<>0,INDEX('2.2 Daten'!K$9:K$860,MATCH('2.2'!$A215,'2.2 Daten'!$B$9:$B$860,0))) -> 6.868131868 | I215: =IF($A215<>0,INDEX('2.2 Daten'!L$9:L$860,MATCH('2.2'!$A215,'2.2 Daten'!$B$9:$B$860,0))) -> 11.17647059 | J215: =IF($A215<>0,INDEX('2.2 Daten'!M$9:M$860,MATCH('2.2'!$A215,'2.2 Daten'!$B$9:$B$860,0))) -> 12.5 | K215: =IF($A215<>0,INDEX('2.2 Daten'!N$9:N$860,MATCH('2.2'!$A215,'2.2 Daten'!$B$9:$B$860,0))) -> 3.048780488 | L215: =IF($A215<>0,INDEX('2.2 Daten'!O$9:O$860,MATCH('2.2'!$A215,'2.2 Daten'!$B$9:$B$860,0))) -> 4.255319149
A216: =CHOOSE('2.2 Daten'!$A$2,'2.2 Daten'!B638,'2.2 Daten'!B187,'2.2 Daten'!B204,'2.2 Daten'!B221,'2.2 Daten'!B224,'2.2 Daten'!B271,'2.2 Daten'!B275,'2.2 Daten'!B330,'2.2 Daten'!B358,'2.2 Daten'!B396,'2.2 Daten'!B442,'2.2 Daten'!B540,'2.2 Daten'!B548,'2.2 Daten'!B551,'2.2 Daten'!B571,'2.2 Daten'!B581,'2.2 Daten'!B596,'2.2 Daten'!B612,x) -> Mayen-Koblenz | B216: =IF($A216<>0,INDEX('2.2 Daten'!C$9:C$860,MATCH('2.2'!$A216,'2.2 Daten'!$B$9:$B$860,0))," ") -> 7137000 | C216: =IF($A216<>0,INDEX('2.2 Daten'!E$9:E$860,MATCH('2.2'!$A216,'2.2 Daten'!$B$9:$B$860,0))) -> 3571 | D216: =IF($A216<>0,INDEX('2.2 Daten'!F$9:F$860,MATCH('2.2'!$A216,'2.2 Daten'!$B$9:$B$860,0))) -> 745 | E216: =IF($A216<>0,INDEX('2.2 Daten'!G$9:G$860,MATCH('2.2'!$A216,'2.2 Daten'!$B$9:$B$860,0))) -> 633 | F216: =IF($A216<>0,INDEX('2.2 Daten'!H$9:H$860,MATCH('2.2'!$A216,'2.2 Daten'!$B$9:$B$860,0))) -> 1730 | G216: =IF($A216<>0,INDEX('2.2 Daten'!I$9:I$860,MATCH('2.2'!$A216,'2.2 Daten'!$B$9:$B$860,0))) -> 463 | H216: =IF($A216<>0,INDEX('2.2 Daten'!K$9:K$860,MATCH('2.2'!$A216,'2.2 Daten'!$B$9:$B$860,0))) -> -5.927291886 | I216: =IF($A216<>0,INDEX('2.2 Daten'!L$9:L$860,MATCH('2.2'!$A216,'2.2 Daten'!$B$9:$B$860,0))) -> -4.974489796 | J216: =IF($A216<>0,INDEX('2.2 Daten'!M$9:M$860,MATCH('2.2'!$A216,'2.2 Daten'!$B$9:$B$860,0))) -> -8.260869565 | K216: =IF($A216<>0,INDEX('2.2 Daten'!N$9:N$860,MATCH('2.2'!$A216,'2.2 Daten'!$B$9:$B$860,0))) -> -5.049396268 | L216: =IF($A216<>0,INDEX('2.2 Daten'!O$9:O$860,MATCH('2.2'!$A216,'2.2 Daten'!$B$9:$B$860,0))) -> -7.4
A217: =CHOOSE('2.2 Daten'!$A$2,'2.2 Daten'!B639,'2.2 Daten'!B188,'2.2 Daten'!B205,'2.2 Daten'!B222,'2.2 Daten'!B225,'2.2 Daten'!B272,'2.2 Daten'!B276,'2.2 Daten'!B331,'2.2 Daten'!B359,'2.2 Daten'!B397,'2.2 Daten'!B443,'2.2 Daten'!B541,'2.2 Daten'!B549,'2.2 Daten'!B552,'2.2 Daten'!B572,'2.2 Daten'!B582,'2.2 Daten'!B597,'2.2 Daten'!B613,x) -> Neuwied | B217: =IF($A217<>0,INDEX('2.2 Daten'!C$9:C$860,MATCH('2.2'!$A217,'2.2 Daten'!$B$9:$B$860,0))," ") -> 7138000 | C217: =IF($A217<>0,INDEX('2.2 Daten'!E$9:E$860,MATCH('2.2'!$A217,'2.2 Daten'!$B$9:$B$860,0))) -> 3752 | D217: =IF($A217<>0,INDEX('2.2 Daten'!F$9:F$860,MATCH('2.2'!$A217,'2.2 Daten'!$B$9:$B$860,0))) -> 750 | E217: =IF($A217<>0,INDEX('2.2 Daten'!G$9:G$860,MATCH('2.2'!$A217,'2.2 Daten'!$B$9:$B$860,0))) -> 671 | F217: =IF($A217<>0,INDEX('2.2 Daten'!H$9:H$860,MATCH('2.2'!$A217,'2.2 Daten'!$B$9:$B$860,0))) -> 1832 | G217: =IF($A217<>0,INDEX('2.2 Daten'!I$9:I$860,MATCH('2.2'!$A217,'2.2 Daten'!$B$9:$B$860,0))) -> 499 | H217: =IF($A217<>0,INDEX('2.2 Daten'!K$9:K$860,MATCH('2.2'!$A217,'2.2 Daten'!$B$9:$B$860,0))) -> -6.713078071 | I217: =IF($A217<>0,INDEX('2.2 Daten'!L$9:L$860,MATCH('2.2'!$A217,'2.2 Daten'!$B$9:$B$860,0))) -> -3.969270166 | J217: =IF($A217<>0,INDEX('2.2 Daten'!M$9:M$860,MATCH('2.2'!$A217,'2.2 Daten'!$B$9:$B$860,0))) -> -11.12582781 | K217: =IF($A217<>0,INDEX('2.2 Daten'!N$9:N$860,MATCH('2.2'!$A217,'2.2 Daten'!$B$9:$B$860,0))) -> -4.929942916 | L217: =IF($A217<>0,INDEX('2.2 Daten'!O$9:O$860,MATCH('2.2'!$A217,'2.2 Daten'!$B$9:$B$860,0))) -> -10.73345259
A218: =CHOOSE('2.2 Daten'!$A$2,'2.2 Daten'!B640,'2.2 Daten'!B189,'2.2 Daten'!B206,'2.2 Daten'!B223,'2.2 Daten'!B226,'2.2 Daten'!B273,'2.2 Daten'!B277,'2.2 Daten'!B332,'2.2 Daten'!B360,'2.2 Daten'!B398,'2.2 Daten'!B444,'2.2 Daten'!B542,'2.2 Daten'!B550,'2.2 Daten'!B553,'2.2 Daten'!B573,'2.2 Daten'!B583,'2.2 Daten'!B598,'2.2 Daten'!B614,x) -> Rhein-Hunsrück-Kreis | B218: =IF($A218<>0,INDEX('2.2 Daten'!C$9:C$860,MATCH('2.2'!$A218,'2.2 Daten'!$B$9:$B$860,0))," ") -> 7140000 | C218: =IF($A218<>0,INDEX('2.2 Daten'!E$9:E$860,MATCH('2.2'!$A218,'2.2 Daten'!$B$9:$B$860,0))) -> 1437 | D218: =IF($A218<>0,INDEX('2.2 Daten'!F$9:F$860,MATCH('2.2'!$A218,'2.2 Daten'!$B$9:$B$860,0))) -> 287 | E218: =IF($A218<>0,INDEX('2.2 Daten'!G$9:G$860,MATCH('2.2'!$A218,'2.2 Daten'!$B$9:$B$860,0))) -> 267 | F218: =IF($A218<>0,INDEX('2.2 Daten'!H$9:H$860,MATCH('2.2'!$A218,'2.2 Daten'!$B$9:$B$860,0))) -> 695 | G218: =IF($A218<>0,INDEX('2.2 Daten'!I$9:I$860,MATCH('2.2'!$A218,'2.2 Daten'!$B$9:$B$860,0))) -> 188 | H218: =IF($A218<>0,INDEX('2.2 Daten'!K$9:K$860,MATCH('2.2'!$A218,'2.2 Daten'!$B$9:$B$860,0))) -> -5.646749836 | I218: =IF($A218<>0,INDEX('2.2 Daten'!L$9:L$860,MATCH('2.2'!$A218,'2.2 Daten'!$B$9:$B$860,0))) -> -13.03030303 | J218: =IF($A218<>0,INDEX('2.2 Daten'!M$9:M$860,MATCH('2.2'!$A218,'2.2 Daten'!$B$9:$B$860,0))) -> -1.47601476 | K218: =IF($A218<>0,INDEX('2.2 Daten'!N$9:N$860,MATCH('2.2'!$A218,'2.2 Daten'!$B$9:$B$860,0))) -> -3.472222222 | L218: =IF($A218<>0,INDEX('2.2 Daten'!O$9:O$860,MATCH('2.2'!$A218,'2.2 Daten'!$B$9:$B$860,0))) -> -6.930693069
A219: =CHOOSE('2.2 Daten'!$A$2,'2.2 Daten'!B641,'2.2 Daten'!B190,'2.2 Daten'!B207,'2.2 Daten'!B224,'2.2 Daten'!B227,'2.2 Daten'!B274,'2.2 Daten'!B278,'2.2 Daten'!B333,'2.2 Daten'!B361,'2.2 Daten'!B399,'2.2 Daten'!B445,'2.2 Daten'!B543,'2.2 Daten'!B551,'2.2 Daten'!B554,'2.2 Daten'!B574,'2.2 Daten'!B584,'2.2 Daten'!B599,'2.2 Daten'!B615,x) -> Rhein-Lahn-Kreis | B219: =IF($A219<>0,INDEX('2.2 Daten'!C$9:C$860,MATCH('2.2'!$A219,'2.2 Daten'!$B$9:$B$860,0))," ") -> 7141000 | C219: =IF($A219<>0,INDEX('2.2 Daten'!E$9:E$860,MATCH('2.2'!$A219,'2.2 Daten'!$B$9:$B$860,0))) -> 2100 | D219: =IF($A219<>0,INDEX('2.2 Daten'!F$9:F$860,MATCH('2.2'!$A219,'2.2 Daten'!$B$9:$B$860,0))) -> 462 | E219: =IF($A219<>0,INDEX('2.2 Daten'!G$9:G$860,MATCH('2.2'!$A219,'2.2 Daten'!$B$9:$B$860,0))) -> 410 | F219: =IF($A219<>0,INDEX('2.2 Daten'!H$9:H$860,MATCH('2.2'!$A219,'2.2 Daten'!$B$9:$B$860,0))) -> 1011 | G219: =IF($A219<>0,INDEX('2.2 Daten'!I$9:I$860,MATCH('2.2'!$A219,'2.2 Daten'!$B$9:$B$860,0))) -> 217 | H219: =IF($A219<>0,INDEX('2.2 Daten'!K$9:K$860,MATCH('2.2'!$A219,'2.2 Daten'!$B$9:$B$860,0))) -> -3.890160183 | I219: =IF($A219<>0,INDEX('2.2 Daten'!L$9:L$860,MATCH('2.2'!$A219,'2.2 Daten'!$B$9:$B$860,0))) -> -8.514851485 | J219: =IF($A219<>0,INDEX('2.2 Daten'!M$9:M$860,MATCH('2.2'!$A219,'2.2 Daten'!$B$9:$B$860,0))) -> -5.311778291 | K219: =IF($A219<>0,INDEX('2.2 Daten'!N$9:N$860,MATCH('2.2'!$A219,'2.2 Daten'!$B$9:$B$860,0))) -> -0.2958579882 | L219: =IF($A219<>0,INDEX('2.2 Daten'!O$9:O$860,MATCH('2.2'!$A219,'2.2 Daten'!$B$9:$B$860,0))) -> -6.86695279
